Workbook

Sheet Présentation
I5: Modèle financier: mine de cuivre / cobalt
B10: Objectif
B23: Table des matières
B44: Relation au modele FARI du FMI
B61: DISCLAIMER
J73: Ce travail est sous la licence Creative Commons Attribution 4.0 International.
J74: Pour une copie de cette licence, merci de vous rendre sur le site : https://creativecommons.org/licenses/by/4.0/deed.fr

Sheet Résultats
B1: Résultats
B4: Hypothèses - mine de cuivre/cobalt | C4: unités | D4: =Paramètres!F111 -> Ruashi
B5: Réserves récupérables - cuivre | C5: tonnes | D5: =Modèle!C8 -> 424226.6903
B6: Réserves récupérables - cobalt | C6: tonnes | D6: =Modèle!C9 -> 38695.86021
B7: Première production | C7: année | D7: =Modèle!$C$40 -> 6
B8: Couts d'exploration | C8: $m | D8: =Paramètres!C119 -> 0
B9: Couts de développement (CAPEX) | C9: $m | D9: =Paramètres!C121+Paramètres!C122 -> 512.024464
B10: Production / CAPEX | C10: tonnes/$m | D10: =(D5+D6)/D9 -> 904.1024073
B11: CAPEX/tonne | C11: $/tonne | D11: =D9/(D5+D6)*1000000 -> 1106.069392
B12: Prix du minerai - cuivre | C12: $/tonne | D12: =Paramètres!$G$106 -> 7000
B13: Prix du minerai - cobalt | C13: $/tonne | D13: =Paramètres!$G$107 -> 55800
B14: Cout opérationnel | C14: $m | D14: =Paramètres!C123 -> 1614.928182
B15: Cout opérationnel par tonne | C15: $/tonne | D15: =D14/(D5+D6)*1000000 -> 3488.549393
B16: Couts de transport | C16: $/tonne | D16: =Paramètres!C117/(Résultats!D5+Résultats!D6)*1000000 -> 542.4498754
B17: Charge de traitement / raffinage | C17: $/tonne | D17: =Paramètres!C118/(Résultats!D5+Résultats!D6)*1000000 -> 0
B18: Taux d'actualisation (Etat) | C18: % | D18: =Paramètres!F93 -> 0.1
B19: Taux d'actualisation (investisseurs) | C19: % | D19: =Paramètres!F94 -> 0.125
B20: Inflation | C20: % | D20: =Paramètres!F95 -> 0.02
B21: Taux d’intérêt réel | C21: % | D21: =Paramètres!F92 -> 0.125
B22: Endettement (capitaux propres/actifs) | C22: % | D22: =Paramètres!F90 -> 0.5
B24: Résultats - synthèse | C24: unités
B25: Flux de trésorerie nets avant impôts du projet (actualisés, VAN10) | C25: $m | D25: =Modèle!C34 -> 755.0689318
B26: TRI avant impôt du projet | C26: % | D26: =Modèle!C33 -> 0.3283477646
B27: TRI après impôt du projet | C27: % | D27: =Modèle!C391 -> 0.2545322553
B28: Taux de rendement minimum - investisseurs | C28: % | D28: =D19 -> 0.125
B29: TRI supérieur au rendement minimum? | D29: =D27>D28 -> TRUE
B30: Période de retour sur investissement (cash-flow non actualisés) | C30: années | D30: =Modèle!C321 -> 7.984357361
B31: Période de retour sur investissement (cash-flow actualisés) | C31: années | D31: =Modèle!C326 -> 9.290257571
B34: Utiliser « sélection des données » dans chaque graphique pour ajuster la longueur des axes et les cellules de données, par exemple, après avoir changé le régime fiscal ou le profil du projet.
J130: Projet selectionné:
J131: =Paramètres!$F$7 -> RDC - 2002
B154: Tableaux utilises pour certains graphiques
B156: Graphique 1. TEMI
C157: TEMI
B158: =TRANSPOSE(Modèle!G468:S468) -> RDC - 2002 | C158: =TRANSPOSE(Modèle!G472:S472) -> 0.4762217589
B159: RDC 2015 - projet d'amendement | C159: 0.6457267206
B160: RDC 2018 - sans substances strategiques | C160: 0.6227035357
B161: RDC 2018 - Cu substance strategique | C161: 0.6797772409
B162: RDC 2018 - Co substance strategique | C162: 0.6622579859
B163: RDC 2018 - Cu + Co substance strategique | C163: 0.7195301803
B164: Proposition des miniers Mai 2018 | C164: 0.557085163
B165: Perou | C165: 0.4666527192
B166: Chili | C166: 0.4744196916
B167: Zambie | C167: 0.4433520482
B168: Australie Occidentale | C168: 0.4174178113
B169: Indonesie | C169: 0.6465596101
B170: PNG | C170: 0.5028535029
B173: Graphique 3a. Profil des recettes de l'Etat - comparaison des regimes fiscaux (valeurs reelles)
C175: Million USD reel | D175: Proportion
B176: =Modèle!D414 -> Bonus de signature | C176: =Modèle!C414 -> 0 | D176: =C176/$C$189 -> 0
B177: =Modèle!D415 -> Droits de douane | C177: =Modèle!C415 -> 58.68833475 | D177: 0.04977938641
B178: =Modèle!D416 -> Redevance | C178: =Modèle!C416 -> 97.55407104 | D178: 0.08274526478
B179: =Modèle!D417 -> Redevance de contrôle de change | C179: =Modèle!C417 -> 0 | D179: 0
B180: =Modèle!D418 -> Contribution au developpement communautaire | C180: =Modèle!C418 -> 0 | D180: =C180/$C$189 -> 0
B181: =Modèle!D419 -> Redevance a taux variable - sur les prix | C181: =Modèle!C419 -> 0 | D181: 0
B182: =Modèle!D420 -> Impot sur la marge operationnelle | C182: =Modèle!C420 -> 0 | D182: 0
B183: =Modèle!D421 -> Impot sur les benefices et profits | C183: =Modèle!C421 -> 764.2628348 | D183: 0.6482469666
B184: =Modèle!D422 -> Impot sur la rente | C184: =Modèle!C422 -> 0 | D184: 0
B185: =Modèle!D423 -> Impot sur les benefices a taux variable | C185: =Modèle!C423 -> 0 | D185: 0
B186: =Modèle!D424 -> Impot sur les profits excedentaires | C186: =Modèle!C424 -> 0 | D186: 0
B187: =Modèle!D425 -> Participation de l'Etat | C187: =Modèle!C425 -> 89.12530495 | D187: 0.07559599387
B188: =Modèle!D426 -> Prelevement a la source sur les dividendes | C188: =Modèle!C426 -> 169.3380794 | D188: 0.1436323884
B189: =Modèle!D427 -> Recettes totales de l'Etat | C189: =Modèle!C427 -> 1178.968625 | D189: 1

Sheet Paramètres
A1: Paramètres
D3: Hypotheses du regime fiscal - principaux impots et taxes
L5: --- Selection de regimes fiscaux a comparer ---
D6: Choisir le numero du regime fiscal | F6: 1 | H6: 1 | I6: 2 | J6: 3 | K6: 4 | L6: 5 | M6: 6 | N6: 7 | O6: 8 | P6: 9 | Q6: 10 | R6: 11 | S6: 12 | T6: 13 | U6: 14 | V6: 15 | W6: 16
D7: Nom du regime fiscal | F7: =INDEX(H7:T7,$F$140) -> RDC - 2002 | H7: RDC - 2002 | I7: RDC 2015 - projet d'amendement | J7: RDC 2018 - sans substances strategiques | K7: RDC 2018 - Cu substance strategique | L7: RDC 2018 - Co substance strategique | M7: RDC 2018 - Cu + Co substance strategique | N7: Proposition des miniers Mai 2018 | O7: Perou | P7: Chili | Q7: Zambie | R7: Australie Occidentale | S7: Indonesie | T7: PNG | V7: Mexique | W7: Kazakhstan
D9: Bonus de signature | E9: USD million | F9: =INDEX(H9:T9,$F$140) -> 0 | H9: 0 | I9: 0 | J9: 0 | K9: 0 | L9: 0 | M9: 0 | N9: 0 | O9: 0 | P9: 0 | Q9: 0 | R9: 0 | S9: 0 | T9: 0 | V9: 0 | W9: 0
D10: Redevance | F10: =INDEX(H10:T10,$F$140) -> 0
D11: Taux de redevance cuivre | E11: % | F11: =INDEX(H11:T11,$F$140) -> 0.02 | H11: 0.02 | I11: 0.035 | J11: 0.035 | K11: 0.1 | L11: 0.035 | M11: 0.1 | N11: 0 | O11: 0 | P11: 0 | Q11: 0 | R11: 0.025 | S11: 0.04 | T11: 0.02 | W11: 0.05
D12: Taux de redevance cobalt | E12: % | F12: =INDEX(H12:T12,$F$140) -> 0.02 | H12: 0.02 | I12: 0.035 | J12: 0.035 | K12: 0.035 | L12: 0.1 | M12: 0.1 | N12: 0 | O12: 0 | P12: 0 | Q12: 0 | R12: 0.025 | S12: 0.04 | T12: 0.02 | W12: 0.05
D13: Assiette de la redevance (nette / brute) | E13: options | F13: =INDEX(H13:T13,$F$140) -> net | H13: net | I13: gross | J13: gross | K13: gross | L13: gross | M13: gross | N13: gross | O13: gross | P13: gross | Q13: gross | R13: gross | S13: gross | T13: gross
D14: Impôt sur les bénéfices
D15: Taux de l’impôt sur les bénéfices | E15: % | F15: =INDEX(H15:T15,$F$140) -> 0.3 | H15: 0.3 | I15: 0.35 | J15: 0.3 | K15: 0.3 | L15: 0.3 | M15: 0.3 | N15: 0.3 | O15: 0.295 | P15: 0.24 | Q15: 0.3 | R15: 0.3 | S15: 0.35 | T15: 0.3 | V15: =0.3+0.075 -> 0.375 | W15: 0.2
D16: Deductibilite des couts d'exploration | E16: options | F16: différés | H16: différés | I16: différés | J16: différés | K16: différés | L16: différés | M16: différés | N16: différés | O16: différés | P16: différés | Q16: différés | R16: différés | S16: différés | T16: différés | V16: différés | W16: différés
D17: Deductibilite des couts d'investissement - immobilisation incorporelles | E17: options | F17: différés | H17: différés | I17: différés | J17: différés | K17: différés | L17: différés | M17: différés | N17: différés | O17: différés | P17: différés | Q17: différés | R17: différés | S17: différés | T17: différés | V17: différés | W17: différés
D18: Amortissement des couts d'investissement - immobilisations corporelles | E18: options | F18: différés | H18: différés | I18: différés | J18: différés | K18: différés | L18: différés | M18: différés | N18: différés | O18: différés | P18: différés | Q18: différés | R18: différés | S18: différés | T18: différés | V18: différés | W18: différés
D19: Report des pertes | E19: années | F19: 5 | H19: 5 | I19: 5 | J19: 5 | K19: 5 | L19: 5 | M19: 5 | N19: 5 | O19: 4 | P19: 100 | Q19: 10 | R19: 100 | S19: 5 | T19: 100 | V19: 10 | W19: 10
D20: Report des pertes (limite) | E20: % | F20: 1 | H20: 1 | I20: 1 | J20: 1 | K20: 1 | L20: 1 | M20: 1 | N20: 1 | O20: 1 | P20: 1 | Q20: 0.5 | R20: 1 | S20: 1 | T20: 1 | V20: 1 | W20: 1
D21: Regime d'amortissement lineaire (investissement et reinvestissement) | E21: années | F21: 0 | H21: 0 | I21: 10 | J21: 10 | K21: 10 | L21: 10 | M21: 10 | N21: 10 | O21: 10 | P21: 10 | Q21: 4 | R21: 10 | S21: 16 | T21: 10 | V21: =100/12 -> 8.333333333 | W21: 4
D22: Amortissement accelere | E22: options | F22: 1 | H22: 1 | I22: 0 | J22: 0 | K22: 0 | L22: 0 | M22: 0 | N22: 0 | O22: 0 | P22: 0 | Q22: 0 | R22: 0 | S22: 0 | T22: 0 | V22: 0 | W22: 0
D23: Option pour les redevances a taux variables (variables dans les tableaux ci-dessous)
D24: Redevance a taux variable - application sur le CA marginal (choisir entre les systemes 1 a 4) | E24: options | F24: =INDEX(H24:T24,$F$140) -> 1 | H24: 1 | I24: 1 | J24: 1 | K24: 1 | L24: 1 | M24: 1 | N24: 3 | O24: 1 | P24: 1 | Q24: 2 | R24: 1 | S24: 1 | T24: 1 | V24: 1 | W24: 1
D25: Redevance a taux variable - application sur le CA total (1=off, 2=on) | F25: =INDEX(H25:W25,$F$140) -> 1 | H25: 1 | I25: 1 | J25: 1 | K25: 1 | L25: 1 | M25: 1 | N25: 2 | O25: 1 | P25: 1 | Q25: 2 | R25: 1 | S25: 1 | T25: 1 | V25: 1 | W25: 1
D26: Taux de la taxe sur la rente | E26: % | F26: =INDEX(H26:T26,$F$140) -> 0
D27: Seuil de la taxe sur la rente | E27: % | F27: 0
D28: Deductibilite de l'Impot sur les benefices (oui/non) | E28: options | F28: oui | H28: oui | I28: oui | J28: oui | K28: oui | L28: oui | M28: oui | N28: oui | O28: oui | P28: oui | Q28: oui | R28: oui | S28: oui | T28: oui | V28: oui | W28: oui
D29: Taxe sur la marge opérationnelle (Choisir 1, 2, 3, 4 dans la section des taux variables) | E29: options | F29: 1 | H29: 1 | I29: 1 | J29: 1 | K29: 1 | L29: 1 | M29: 1 | N29: 1 | O29: 2 | P29: 3 | Q29: 1 | R29: 1 | S29: 1 | T29: 1 | V29: 1 | W29: 1
D30: Impôt variable sur les bénéfices (1 = off, 2 = on) | E30: options | F30: 1 | H30: 1 | I30: 1 | J30: 1 | K30: 1 | L30: 1 | M30: 1 | N30: 1 | O30: 1 | P30: 1 | Q30: 1 | R30: 1 | S30: 1 | T30: 1 | V30: 1 | W30: 1
D31: Taux de l'mpot sur les profits excedentaires (RDC amendement) | E31: % | F31: 0 | H31: 0 | I31: 0.5 | J31: 0.5 | K31: 0.5 | L31: 0.5 | M31: 0.5 | N31: 0 | O31: 0 | P31: 0 | Q31: 0 | R31: 0 | S31: 0 | T31: 0 | V31: 0 | W31: 0
D32: Seuil de l'impot sur les profits excedentaires (RDC amendement) | E32: % | F32: 0 | H32: 0 | I32: 0.25 | J32: 0.25 | K32: 0.25 | L32: 0.25 | M32: 0.25 | N32: 0 | O32: 0 | P32: 0 | Q32: 0 | R32: 0 | S32: 0 | T32: 0 | V32: 0 | W32: 0
D33: Autres taxes et dispositions pertinentes
D34: Impôt sur le revenu des valeurs mobilières | E34: % | F34: =INDEX(H34:T34,$F$140) -> 0.1 | H34: 0.1 | I34: 0.1 | J34: 0.1 | K34: 0.1 | L34: 0.1 | M34: 0.1 | N34: 0.1 | O34: 0.05 | P34: 0.1 | Q34: 0 | R34: 0 | S34: 0.2 | T34: 0.17 | V34: 0.1 | W34: 0.15
D35: Participation gratuite de l’Etat (sans contribution) | E35: % | F35: 0.05 | H35: 0.05 | I35: 0.1 | J35: 0.1 | K35: 0.1 | L35: 0.1 | M35: 0.1 | N35: 0.1 | O35: 0 | P35: 0 | Q35: 0 | R35: 0 | S35: 0 | T35: 0 | V35: 0 | W35: 0
D36: Redevance de contrôle de change | E36: % | F36: 0 | J36: 0.002 | K36: 0.002 | L36: 0.002 | M36: 0.002
D37: Contribution au developpement communautaire | E37: % | F37: 0 | H37: 0 | I37: 0.001 | J37: 0.003 | K37: 0.003 | L37: 0.003 | M37: 0.003 | N37: 0.003
A38: 6 | D38: Droits de douane | E38: % | F38: 0.05 | H38: 0.05 | I38: 0.05 | J38: 0.05 | K38: 0.05 | L38: 0.05 | M38: 0.05 | N38: 0.05 | O38: 0 | P38: 0.06 | Q38: 0 | R38: 0.05 | S38: 0.069 | T38: 0 | V38: 0.025 | W38: 0.05
D39: Clause de rehabilitation (oui/non) | E39: options | F39: oui | H39: oui | I39: oui | J39: oui | K39: oui | L39: oui | M39: oui | N39: oui | O39: oui | P39: oui | Q39: oui | R39: oui | S39: oui | T39: oui | V39: oui | W39: oui
D40: Clause sur le declenchement de la rehabilitation | E40: % exploitation | F40: 0.01 | H40: 0.01 | I40: 0.01 | J40: 0.01 | K40: 0.01 | L40: 0.01 | M40: 0.01 | N40: 0.01 | O40: 0.6 | P40: 0.6 | Q40: 0.6 | R40: 0.6 | S40: 0.6 | T40: 0.6 | V40: 0.6 | W40: 0.6
D42: Amortissement accelere
D44: Amortissement annee 1 | H44: 0.6
D45: Amortissement annee 2 | H45: 0.2
D46: Amortissement annee 3 | H46: 0.1
D47: Amortissement annee 4 | H47: 0.05
D48: Amortissement annee 5 | H48: 0.05
D49: Amortissement annee 6 | H49: 0
D50: Amortissement annee 7 | H50: 0
D51: Amortissement annee 8 | H51: 0
D52: Amortissement annee 9 | H52: 0
D53: Amortissement annee 10 | H53: 0
D55: Impôts variables - regimes
D56: Les "impots variables" sont les taxes dont le taux depend de mesures economiques telles que la marge operationnelle ou le prix des minerais.
D58: Redevance a taux variable | F58: Tableau | H58: 1 - No RTV | J58: 2 - Zambie 2016 | L58: 3 - Proposition RDC 2018 | N58: 4 - Alternative
D59: Paliers | E59: Limite inferieure ($mm) | F59: Taux marginal | H59: Limite inferieure ($mm) | I59: Taux marginal | J59: Limite inferieure ($mm) | K59: Taux marginal | L59: Limite inferieure ($mm) | M59: Taux marginal | N59: Limite inferieure ($mm) | O59: Taux marginal
D60: 1 | E60: =CHOOSE($F$24,H60,J60,L60,N60) -> 0 | F60: =CHOOSE($F$24,I60,K60,M60,O60) -> 0 | H60: 0 | I60: 0 | J60: 6000 | K60: 0.05 | L60: 6000 | M60: 0.03
D61: 2 | E61: 0 | F61: =CHOOSE($F$24,I61,K61,M61,O61) -> 0 | H61: 0 | I61: 0 | J61: 10000 | K61: 0.07 | L61: 7000 | M61: 0.04
D62: 3 | E62: =CHOOSE($F$24,H62,J62,L62,N62) -> 0 | F62: 0 | H62: 0 | I62: 0 | J62: 15000 | K62: 0.09 | L62: 8000 | M62: 0.05
D63: 4 | E63: 0 | F63: 0 | H63: 0 | I63: 0 | J63: 15000 | K63: 0.09 | M63: 0.06
D65: Impot sur la marge operationnelle | F65: Tableau | H65: 1 - No IMO | J65: 2 - Perou | L65: 3 - Chili | N65: 4 - Alternative
D66: Paliers | E66: Limite inferieure | F66: Taux marginal | H66: Limite inferieure | I66: Taux marginal | J66: Limite inferieure | K66: Taux marginal | L66: Limite inferieure | M66: Taux marginal | N66: Limite inferieure | O66: Taux marginal
D67: 1 | E67: =CHOOSE($F$29,H67,J67,L67,N67) -> 0 | F67: =CHOOSE($F$29,I67,K67,M67,O67) -> 0 | H67: 0 | I67: 0 | J67: 0 | K67: 0.03 | L67: 0 | M67: 0.05
D68: 2 | E68: 0 | F68: 0 | H68: 0 | I68: 0 | J68: 0.1 | K68: 0.0415 | L68: 0.35 | M68: 0.08
D69: 3 | E69: 0 | F69: 0 | H69: 0 | I69: 0 | J69: 0.15 | K69: 0.053 | L69: 0.4 | M69: 0.105
D70: 4 | E70: 0 | F70: 0 | H70: 0 | I70: 0 | J70: 0.2 | K70: 0.0645 | L70: 0.45 | M70: 0.13
D71: 5 | E71: 0 | F71: 0 | H71: 0 | I71: 0 | J71: 0.25 | K71: 0.076 | L71: 0.5 | M71: 0.155 | Q71: ` | S71: `
D72: 6 | E72: 0 | F72: 0 | H72: 0 | I72: 0 | J72: 0.3 | K72: 0.0875 | L72: 0.55 | M72: 0.18
D73: 7 | E73: 0 | F73: 0 | H73: 0 | I73: 0 | J73: 0.35 | K73: 0.099 | L73: 0.6 | M73: 0.21
D74: 8 | E74: 0 | F74: 0 | H74: 0 | I74: 0 | J74: 0.4 | K74: 0.1105 | L74: 0.65 | M74: 0.24
D75: 9 | E75: 0 | F75: 0 | H75: 0 | I75: 0 | J75: 0.45 | K75: 0.122 | L75: 0.7 | M75: 0.275
D76: 10 | E76: 0 | F76: 0 | H76: 0 | I76: 0 | J76: 0.5 | K76: 0.1335 | L76: 0.75 | M76: 0.31
D77: 11 | E77: 0 | F77: 0 | H77: 0 | I77: 0 | J77: 0.55 | K77: 0.145 | L77: 0.8 | M77: 0.345
D78: 12 | E78: 0 | F78: 0 | H78: 0 | I78: 0 | J78: 0.6 | K78: 0.1565 | L78: 0.85 | M78: 0.345
D79: 13 | E79: 0 | F79: 0 | H79: 0 | I79: 0 | J79: 0.65 | K79: 0.168 | L79: 0.85 | M79: 0.345
D80: 14 | E80: 0 | F80: 0 | H80: 0 | I80: 0 | J80: 0.7 | K80: 0.1795 | L80: 0.85 | M80: 0.345
D81: 15 | E81: 0 | F81: 0 | H81: 0 | I81: 0 | J81: 0.75 | K81: 0.191 | L81: 0.85 | M81: 0.345
D82: 16 | E82: 0 | F82: 0 | H82: 0 | I82: 0 | J82: 0.8 | K82: 0.2 | L82: 0.85 | M82: 0.345
D83: 17 | E83: 0 | F83: 0 | H83: 0 | I83: 0 | J83: 0.85 | K83: 0.204 | L83: 0.85 | M83: 0.345
D84: Impot variable sur les benefices (modele zambien historique)
D85: Variable "a" dans la formule | F85: 0.2
D86: Variable "c" dans la formule - ratio Benefices/CA | F86: 0.5
D88: Hypotheses economiques et financieres
D90: Pourcentage des couts de developpement emprunte | E90: % | F90: 0.5
D91: Periode de remboursement (a partir du debut de la production) | E91: annees | F91: 5
D92: Taux d'interet reel | E92: % | F92: 0.125
D93: Taux d'actualisation de l'Etat | E93: % | F93: 0.1
D94: Taux d'actualisation de l'investisseur | E94: % | F94: 0.125
D95: Taux d'inflation du dollar US | E95: % | F95: 0.02
D96: Prix du cuivre | E96: $/tonne | F96: 7000
D97: Prix du cobalt | E97: $/tonne | F97: 55800
A98: 50 | D98: Prix de l'etude de faisabilite (pour le calcul de l'impot sur les profits excedentaires de RDC 2018)- cuivre | E98: $/tonne | F98: 5000
D99: Prix de l'etude de faisabilite (pour le calcul de l'impot sur les profits excedentaires de RDC 2018) - cobalt | E99: $/tonne | F99: 40000
D100: Couts soumis aux droits de douane
D101: Opex | E101: % | F101: 0.6
D102: Capex | E102: % | F102: 0.4
D104: Hypotheses de prix | E104: annee | G104: 1 | H104: 2 | I104: 3 | J104: 4 | K104: 5 | L104: 6 | M104: 7 | N104: 8 | O104: 9 | P104: 10 | Q104: 11 | R104: 12 | S104: 13 | T104: 14 | U104: 15 | V104: 16 | W104: 17 | X104: 18 | Y104: 19 | Z104: 20 | AA104: 21 | AB104: 22 | AC104: 23 | AD104: 24 | AE104: 25 | AF104: 26 | AG104: 27 | AH104: 28 | AI104: 29 | AJ104: 30 | AK104: 31 | AL104: 32 | AM104: 33 | AN104: 34 | AO104: 35 | AP104: 36 | AQ104: 37 | AR104: 38 | AS104: 39 | AT104: 40 | AU104: 41 | AV104: 42 | AW104: 43 | AX104: 44 | AY104: 45 | AZ104: 46 | BA104: 47 | BB104: 48 | BC104: 49 | BD104: 50
D106: Prix (reel) - cuivre | G106: =F96 -> 7000 | H106: =$F$138 -> 7000 | I106: 7000 | J106: 7000 | K106: 7000 | L106: 7000 | M106: 7000 | N106: 7000 | O106: 7000 | P106: 7000 | Q106: 7000 | R106: 7000 | S106: 7000 | T106: 7000 | U106: 7000 | V106: 7000 | W106: 7000 | X106: 7000 | Y106: 7000 | Z106: 7000 | AA106: 7000 | AB106: 7000 | AC106: 7000 | AD106: 7000 | AE106: 7000 | AF106: 7000 | AG106: 7000 | AH106: 7000 | AI106: 7000 | AJ106: 7000 | AK106: 7000 | AL106: 7000 | AM106: 7000 | AN106: =$F$138 -> 7000 | AO106: 7000 | AP106: 7000 | AQ106: 7000 | AR106: 7000 | AS106: 7000 | AT106: 7000 | AU106: 7000 | AV106: 7000 | AW106: 7000 | AX106: 7000 | AY106: 7000 | AZ106: 7000 | BA106: 7000 | BB106: 7000 | BC106: 7000 | BD106: 7000
D107: Prix (reel) - cobalt | G107: =F97 -> 55800 | H107: =$F$139 -> 55800 | I107: 55800 | J107: 55800 | K107: 55800 | L107: 55800 | M107: 55800 | N107: 55800 | O107: 55800 | P107: 55800 | Q107: 55800 | R107: 55800 | S107: 55800 | T107: 55800 | U107: 55800 | V107: 55800 | W107: 55800 | X107: 55800 | Y107: 55800 | Z107: 55800 | AA107: 55800 | AB107: 55800 | AC107: 55800 | AD107: 55800 | AE107: 55800 | AF107: 55800 | AG107: 55800 | AH107: 55800 | AI107: 55800 | AJ107: 55800 | AK107: 55800 | AL107: 55800 | AM107: 55800 | AN107: =$F$139 -> 55800 | AO107: 55800 | AP107: 55800 | AQ107: 55800 | AR107: 55800 | AS107: 55800 | AT107: 55800 | AU107: 55800 | AV107: 55800 | AW107: 55800 | AX107: 55800 | AY107: 55800 | AZ107: 55800 | BA107: 55800 | BB107: 55800 | BC107: 55800 | BD107: 55800
D109: Hypothese du profil de projet (valeurs reelles)
D111: Choisir un projet (parmi la liste des profils de mine) | F111: Ruashi | H111: =MATCH(F111,'Profil de Mine'!B1:B4,0) -> 3
C113: Total | D113: Mine de taille moyenne | E113: Annee | G113: 1 | H113: =G113+1 -> 2 | I113: =H113+1 -> 3 | J113: 4 | K113: 5 | L113: 6 | M113: 7 | N113: 8 | O113: 9 | P113: 10 | Q113: 11 | R113: 12 | S113: =R113+1 -> 13 | T113: =S113+1 -> 14 | U113: 15 | V113: 16 | W113: 17 | X113: 18 | Y113: 19 | Z113: 20 | AA113: 21 | AB113: 22 | AC113: 23 | AD113: 24 | AE113: 25 | AF113: 26 | AG113: 27 | AH113: 28 | AI113: 29 | AJ113: 30 | AK113: 31 | AL113: 32 | AM113: 33 | AN113: 34 | AO113: 35 | AP113: 36 | AQ113: 37 | AR113: 38 | AS113: 39 | AT113: 40 | AU113: 41 | AV113: 42 | AW113: 43 | AX113: 44 | AY113: 45 | AZ113: 46 | BA113: 47 | BB113: 48 | BC113: 49 | BD113: 50
C115: =SUM(G115:BD115) -> 424226.6903 | D115: Production cuivre | E115: tonnes | G115: =CHOOSE($H$111,'Profil de Mine'!F8,'Profil de Mine'!F25,'Profil de Mine'!F42,'Profil de Mine'!F59) -> 0 | H115: =CHOOSE($H$111,'Profil de Mine'!G8,'Profil de Mine'!G25,'Profil de Mine'!G42,'Profil de Mine'!G59) -> 0 | I115: =CHOOSE($H$111,'Profil de Mine'!H8,'Profil de Mine'!H25,'Profil de Mine'!H42,'Profil de Mine'!H59) -> 0 | J115: =CHOOSE($H$111,'Profil de Mine'!I8,'Profil de Mine'!I25,'Profil de Mine'!I42,'Profil de Mine'!I59) -> 0 | K115: =CHOOSE($H$111,'Profil de Mine'!J8,'Profil de Mine'!J25,'Profil de Mine'!J42,'Profil de Mine'!J59) -> 0 | L115: =CHOOSE($H$111,'Profil de Mine'!K8,'Profil de Mine'!K25,'Profil de Mine'!K42,'Profil de Mine'!K59) -> 25373.96431 | M115: =CHOOSE($H$111,'Profil de Mine'!L8,'Profil de Mine'!L25,'Profil de Mine'!L42,'Profil de Mine'!L59) -> 31328.72772 | N115: =CHOOSE($H$111,'Profil de Mine'!M8,'Profil de Mine'!M25,'Profil de Mine'!M42,'Profil de Mine'!M59) -> 26975.99983 | O115: =CHOOSE($H$111,'Profil de Mine'!N8,'Profil de Mine'!N25,'Profil de Mine'!N42,'Profil de Mine'!N59) -> 34646.99936 | P115: =CHOOSE($H$111,'Profil de Mine'!O8,'Profil de Mine'!O25,'Profil de Mine'!O42,'Profil de Mine'!O59) -> 37169.99817 | Q115: =CHOOSE($H$111,'Profil de Mine'!P8,'Profil de Mine'!P25,'Profil de Mine'!P42,'Profil de Mine'!P59) -> 35055.99976 | R115: =CHOOSE($H$111,'Profil de Mine'!Q8,'Profil de Mine'!Q25,'Profil de Mine'!Q42,'Profil de Mine'!Q59) -> 32129.00162 | S115: =CHOOSE($H$111,'Profil de Mine'!R8,'Profil de Mine'!R25,'Profil de Mine'!R42,'Profil de Mine'!R59) -> 31545.99953 | T115: =CHOOSE($H$111,'Profil de Mine'!S8,'Profil de Mine'!S25,'Profil de Mine'!S42,'Profil de Mine'!S59) -> 26000 | U115: =CHOOSE($H$111,'Profil de Mine'!T8,'Profil de Mine'!T25,'Profil de Mine'!T42,'Profil de Mine'!T59) -> 26000 | V115: =CHOOSE($H$111,'Profil de Mine'!U8,'Profil de Mine'!U25,'Profil de Mine'!U42,'Profil de Mine'!U59) -> 26000 | W115: =CHOOSE($H$111,'Profil de Mine'!V8,'Profil de Mine'!V25,'Profil de Mine'!V42,'Profil de Mine'!V59) -> 25000 | X115: =CHOOSE($H$111,'Profil de Mine'!W8,'Profil de Mine'!W25,'Profil de Mine'!W42,'Profil de Mine'!W59) -> 24000 | Y115: =CHOOSE($H$111,'Profil de Mine'!X8,'Profil de Mine'!X25,'Profil de Mine'!X42,'Profil de Mine'!X59) -> 24000 | Z115: =CHOOSE($H$111,'Profil de Mine'!Y8,'Profil de Mine'!Y25,'Profil de Mine'!Y42,'Profil de Mine'!Y59) -> 19000 | AA115: =CHOOSE($H$111,'Profil de Mine'!Z8,'Profil de Mine'!Z25,'Profil de Mine'!Z42,'Profil de Mine'!Z59) -> 0 | AB115: =CHOOSE($H$111,'Profil de Mine'!AA8,'Profil de Mine'!AA25,'Profil de Mine'!AA42,'Profil de Mine'!AA59) -> 0 | AC115: =CHOOSE($H$111,'Profil de Mine'!AB8,'Profil de Mine'!AB25,'Profil de Mine'!AB42,'Profil de Mine'!AB59) -> 0 | AD115: =CHOOSE($H$111,'Profil de Mine'!AC8,'Profil de Mine'!AC25,'Profil de Mine'!AC42,'Profil de Mine'!AC59) -> 0 | AE115: =CHOOSE($H$111,'Profil de Mine'!AD8,'Profil de Mine'!AD25,'Profil de Mine'!AD42,'Profil de Mine'!AD59) -> 0 | AF115: =CHOOSE($H$111,'Profil de Mine'!AE8,'Profil de Mine'!AE25,'Profil de Mine'!AE42,'Profil de Mine'!AE59) -> 0 | AG115: =CHOOSE($H$111,'Profil de Mine'!AF8,'Profil de Mine'!AF25,'Profil de Mine'!AF42,'Profil de Mine'!AF59) -> 0 | AH115: =CHOOSE($H$111,'Profil de Mine'!AG8,'Profil de Mine'!AG25,'Profil de Mine'!AG42,'Profil de Mine'!AG59) -> 0 | AI115: =CHOOSE($H$111,'Profil de Mine'!AH8,'Profil de Mine'!AH25,'Profil de Mine'!AH42,'Profil de Mine'!AH59) -> 0 | AJ115: =CHOOSE($H$111,'Profil de Mine'!AI8,'Profil de Mine'!AI25,'Profil de Mine'!AI42,'Profil de Mine'!AI59) -> 0 | AK115: =CHOOSE($H$111,'Profil de Mine'!AJ8,'Profil de Mine'!AJ25,'Profil de Mine'!AJ42,'Profil de Mine'!AJ59) -> 0 | AL115: =CHOOSE($H$111,'Profil de Mine'!AK8,'Profil de Mine'!AK25,'Profil de Mine'!AK42,'Profil de Mine'!AK59) -> 0 | AM115: =CHOOSE($H$111,'Profil de Mine'!AL8,'Profil de Mine'!AL25,'Profil de Mine'!AL42,'Profil de Mine'!AL59) -> 0 | AN115: =CHOOSE($H$111,'Profil de Mine'!AM8,'Profil de Mine'!AM25,'Profil de Mine'!AM42,'Profil de Mine'!AM59) -> 0 | AO115: =CHOOSE($H$111,'Profil de Mine'!AN8,'Profil de Mine'!AN25,'Profil de Mine'!AN42,'Profil de Mine'!AN59) -> 0 | AP115: =CHOOSE($H$111,'Profil de Mine'!AO8,'Profil de Mine'!AO25,'Profil de Mine'!AO42,'Profil de Mine'!AO59) -> 0 | AQ115: =CHOOSE($H$111,'Profil de Mine'!AP8,'Profil de Mine'!AP25,'Profil de Mine'!AP42,'Profil de Mine'!AP59) -> 0 | AR115: =CHOOSE($H$111,'Profil de Mine'!AQ8,'Profil de Mine'!AQ25,'Profil de Mine'!AQ42,'Profil de Mine'!AQ59) -> 0 | AS115: =CHOOSE($H$111,'Profil de Mine'!AR8,'Profil de Mine'!AR25,'Profil de Mine'!AR42,'Profil de Mine'!AR59) -> 0 | AT115: =CHOOSE($H$111,'Profil de Mine'!AS8,'Profil de Mine'!AS25,'Profil de Mine'!AS42,'Profil de Mine'!AS59) -> 0 | AU115: =CHOOSE($H$111,'Profil de Mine'!AT8,'Profil de Mine'!AT25,'Profil de Mine'!AT42,'Profil de Mine'!AT59) -> 0 | AV115: =CHOOSE($H$111,'Profil de Mine'!AU8,'Profil de Mine'!AU25,'Profil de Mine'!AU42,'Profil de Mine'!AU59) -> 0 | AW115: =CHOOSE($H$111,'Profil de Mine'!AV8,'Profil de Mine'!AV25,'Profil de Mine'!AV42,'Profil de Mine'!AV59) -> 0 | AX115: =CHOOSE($H$111,'Profil de Mine'!AW8,'Profil de Mine'!AW25,'Profil de Mine'!AW42,'Profil de Mine'!AW59) -> 0 | AY115: =CHOOSE($H$111,'Profil de Mine'!AX8,'Profil de Mine'!AX25,'Profil de Mine'!AX42,'Profil de Mine'!AX59) -> 0 | AZ115: =CHOOSE($H$111,'Profil de Mine'!AY8,'Profil de Mine'!AY25,'Profil de Mine'!AY42,'Profil de Mine'!AY59) -> 0 | BA115: =CHOOSE($H$111,'Profil de Mine'!AZ8,'Profil de Mine'!AZ25,'Profil de Mine'!AZ42,'Profil de Mine'!AZ59) -> 0 | BB115: =CHOOSE($H$111,'Profil de Mine'!BA8,'Profil de Mine'!BA25,'Profil de Mine'!BA42,'Profil de Mine'!BA59) -> 0 | BC115: =CHOOSE($H$111,'Profil de Mine'!BB8,'Profil de Mine'!BB25,'Profil de Mine'!BB42,'Profil de Mine'!BB59) -> 0 | BD115: =CHOOSE($H$111,'Profil de Mine'!BC8,'Profil de Mine'!BC25,'Profil de Mine'!BC42,'Profil de Mine'!BC59) -> 0
C116: =SUM(G116:BD116) -> 38695.86021 | D116: Production cobalt | E116: tonnes | G116: =CHOOSE($H$111,'Profil de Mine'!F9,'Profil de Mine'!F26,'Profil de Mine'!F43,'Profil de Mine'!F60) -> 0 | H116: =CHOOSE($H$111,'Profil de Mine'!G9,'Profil de Mine'!G26,'Profil de Mine'!G43,'Profil de Mine'!G60) -> 0 | I116: =CHOOSE($H$111,'Profil de Mine'!H9,'Profil de Mine'!H26,'Profil de Mine'!H43,'Profil de Mine'!H60) -> 0 | J116: =CHOOSE($H$111,'Profil de Mine'!I9,'Profil de Mine'!I26,'Profil de Mine'!I43,'Profil de Mine'!I60) -> 0 | K116: =CHOOSE($H$111,'Profil de Mine'!J9,'Profil de Mine'!J26,'Profil de Mine'!J43,'Profil de Mine'!J60) -> 0 | L116: =CHOOSE($H$111,'Profil de Mine'!K9,'Profil de Mine'!K26,'Profil de Mine'!K43,'Profil de Mine'!K60) -> 2208.451033 | M116: =CHOOSE($H$111,'Profil de Mine'!L9,'Profil de Mine'!L26,'Profil de Mine'!L43,'Profil de Mine'!L60) -> 2268.906116 | N116: =CHOOSE($H$111,'Profil de Mine'!M9,'Profil de Mine'!M26,'Profil de Mine'!M43,'Profil de Mine'!M60) -> 2063.800097 | O116: =CHOOSE($H$111,'Profil de Mine'!N9,'Profil de Mine'!N26,'Profil de Mine'!N43,'Profil de Mine'!N60) -> 2090.393066 | P116: =CHOOSE($H$111,'Profil de Mine'!O9,'Profil de Mine'!O26,'Profil de Mine'!O43,'Profil de Mine'!O60) -> 2700.074911 | Q116: =CHOOSE($H$111,'Profil de Mine'!P9,'Profil de Mine'!P26,'Profil de Mine'!P43,'Profil de Mine'!P60) -> 3019.079924 | R116: =CHOOSE($H$111,'Profil de Mine'!Q9,'Profil de Mine'!Q26,'Profil de Mine'!Q43,'Profil de Mine'!Q60) -> 2356.745005 | S116: =CHOOSE($H$111,'Profil de Mine'!R9,'Profil de Mine'!R26,'Profil de Mine'!R43,'Profil de Mine'!R60) -> 3223.409891 | T116: =CHOOSE($H$111,'Profil de Mine'!S9,'Profil de Mine'!S26,'Profil de Mine'!S43,'Profil de Mine'!S60) -> 4170.000076 | U116: =CHOOSE($H$111,'Profil de Mine'!T9,'Profil de Mine'!T26,'Profil de Mine'!T43,'Profil de Mine'!T60) -> 3127.500057 | V116: =CHOOSE($H$111,'Profil de Mine'!U9,'Profil de Mine'!U26,'Profil de Mine'!U43,'Profil de Mine'!U60) -> 3127.500057 | W116: =CHOOSE($H$111,'Profil de Mine'!V9,'Profil de Mine'!V26,'Profil de Mine'!V43,'Profil de Mine'!V60) -> 2779.999971 | X116: =CHOOSE($H$111,'Profil de Mine'!W9,'Profil de Mine'!W26,'Profil de Mine'!W43,'Profil de Mine'!W60) -> 2779.999971 | Y116: =CHOOSE($H$111,'Profil de Mine'!X9,'Profil de Mine'!X26,'Profil de Mine'!X43,'Profil de Mine'!X60) -> 2085.000038 | Z116: =CHOOSE($H$111,'Profil de Mine'!Y9,'Profil de Mine'!Y26,'Profil de Mine'!Y43,'Profil de Mine'!Y60) -> 694.9999928 | AA116: =CHOOSE($H$111,'Profil de Mine'!Z9,'Profil de Mine'!Z26,'Profil de Mine'!Z43,'Profil de Mine'!Z60) -> 0 | AB116: =CHOOSE($H$111,'Profil de Mine'!AA9,'Profil de Mine'!AA26,'Profil de Mine'!AA43,'Profil de Mine'!AA60) -> 0 | AC116: =CHOOSE($H$111,'Profil de Mine'!AB9,'Profil de Mine'!AB26,'Profil de Mine'!AB43,'Profil de Mine'!AB60) -> 0 | AD116: =CHOOSE($H$111,'Profil de Mine'!AC9,'Profil de Mine'!AC26,'Profil de Mine'!AC43,'Profil de Mine'!AC60) -> 0 | AE116: =CHOOSE($H$111,'Profil de Mine'!AD9,'Profil de Mine'!AD26,'Profil de Mine'!AD43,'Profil de Mine'!AD60) -> 0 | AF116: =CHOOSE($H$111,'Profil de Mine'!AE9,'Profil de Mine'!AE26,'Profil de Mine'!AE43,'Profil de Mine'!AE60) -> 0 | AG116: =CHOOSE($H$111,'Profil de Mine'!AF9,'Profil de Mine'!AF26,'Profil de Mine'!AF43,'Profil de Mine'!AF60) -> 0 | AH116: =CHOOSE($H$111,'Profil de Mine'!AG9,'Profil de Mine'!AG26,'Profil de Mine'!AG43,'Profil de Mine'!AG60) -> 0 | AI116: =CHOOSE($H$111,'Profil de Mine'!AH9,'Profil de Mine'!AH26,'Profil de Mine'!AH43,'Profil de Mine'!AH60) -> 0 | AJ116: =CHOOSE($H$111,'Profil de Mine'!AI9,'Profil de Mine'!AI26,'Profil de Mine'!AI43,'Profil de Mine'!AI60) -> 0 | AK116: =CHOOSE($H$111,'Profil de Mine'!AJ9,'Profil de Mine'!AJ26,'Profil de Mine'!AJ43,'Profil de Mine'!AJ60) -> 0 | AL116: =CHOOSE($H$111,'Profil de Mine'!AK9,'Profil de Mine'!AK26,'Profil de Mine'!AK43,'Profil de Mine'!AK60) -> 0 | AM116: =CHOOSE($H$111,'Profil de Mine'!AL9,'Profil de Mine'!AL26,'Profil de Mine'!AL43,'Profil de Mine'!AL60) -> 0 | AN116: =CHOOSE($H$111,'Profil de Mine'!AM9,'Profil de Mine'!AM26,'Profil de Mine'!AM43,'Profil de Mine'!AM60) -> 0 | AO116: =CHOOSE($H$111,'Profil de Mine'!AN9,'Profil de Mine'!AN26,'Profil de Mine'!AN43,'Profil de Mine'!AN60) -> 0 | AP116: =CHOOSE($H$111,'Profil de Mine'!AO9,'Profil de Mine'!AO26,'Profil de Mine'!AO43,'Profil de Mine'!AO60) -> 0 | AQ116: =CHOOSE($H$111,'Profil de Mine'!AP9,'Profil de Mine'!AP26,'Profil de Mine'!AP43,'Profil de Mine'!AP60) -> 0 | AR116: =CHOOSE($H$111,'Profil de Mine'!AQ9,'Profil de Mine'!AQ26,'Profil de Mine'!AQ43,'Profil de Mine'!AQ60) -> 0 | AS116: =CHOOSE($H$111,'Profil de Mine'!AR9,'Profil de Mine'!AR26,'Profil de Mine'!AR43,'Profil de Mine'!AR60) -> 0 | AT116: =CHOOSE($H$111,'Profil de Mine'!AS9,'Profil de Mine'!AS26,'Profil de Mine'!AS43,'Profil de Mine'!AS60) -> 0 | AU116: =CHOOSE($H$111,'Profil de Mine'!AT9,'Profil de Mine'!AT26,'Profil de Mine'!AT43,'Profil de Mine'!AT60) -> 0 | AV116: =CHOOSE($H$111,'Profil de Mine'!AU9,'Profil de Mine'!AU26,'Profil de Mine'!AU43,'Profil de Mine'!AU60) -> 0 | AW116: =CHOOSE($H$111,'Profil de Mine'!AV9,'Profil de Mine'!AV26,'Profil de Mine'!AV43,'Profil de Mine'!AV60) -> 0 | AX116: =CHOOSE($H$111,'Profil de Mine'!AW9,'Profil de Mine'!AW26,'Profil de Mine'!AW43,'Profil de Mine'!AW60) -> 0 | AY116: =CHOOSE($H$111,'Profil de Mine'!AX9,'Profil de Mine'!AX26,'Profil de Mine'!AX43,'Profil de Mine'!AX60) -> 0 | AZ116: =CHOOSE($H$111,'Profil de Mine'!AY9,'Profil de Mine'!AY26,'Profil de Mine'!AY43,'Profil de Mine'!AY60) -> 0 | BA116: =CHOOSE($H$111,'Profil de Mine'!AZ9,'Profil de Mine'!AZ26,'Profil de Mine'!AZ43,'Profil de Mine'!AZ60) -> 0 | BB116: =CHOOSE($H$111,'Profil de Mine'!BA9,'Profil de Mine'!BA26,'Profil de Mine'!BA43,'Profil de Mine'!BA60) -> 0 | BC116: =CHOOSE($H$111,'Profil de Mine'!BB9,'Profil de Mine'!BB26,'Profil de Mine'!BB43,'Profil de Mine'!BB60) -> 0 | BD116: =CHOOSE($H$111,'Profil de Mine'!BC9,'Profil de Mine'!BC26,'Profil de Mine'!BC43,'Profil de Mine'!BC60) -> 0
C117: 251.1122798 | D117: Transport après imposition | E117: $mm reel | G117: =CHOOSE($H$111,'Profil de Mine'!F10,'Profil de Mine'!F27,'Profil de Mine'!F44,'Profil de Mine'!F61) -> 0 | H117: =CHOOSE($H$111,'Profil de Mine'!G10,'Profil de Mine'!G27,'Profil de Mine'!G44,'Profil de Mine'!G61) -> 0 | I117: =CHOOSE($H$111,'Profil de Mine'!H10,'Profil de Mine'!H27,'Profil de Mine'!H44,'Profil de Mine'!H61) -> 0 | J117: =CHOOSE($H$111,'Profil de Mine'!I10,'Profil de Mine'!I27,'Profil de Mine'!I44,'Profil de Mine'!I61) -> 0 | K117: =CHOOSE($H$111,'Profil de Mine'!J10,'Profil de Mine'!J27,'Profil de Mine'!J44,'Profil de Mine'!J61) -> 0 | L117: =CHOOSE($H$111,'Profil de Mine'!K10,'Profil de Mine'!K27,'Profil de Mine'!K44,'Profil de Mine'!K61) -> 21.46570914 | M117: =CHOOSE($H$111,'Profil de Mine'!L10,'Profil de Mine'!L27,'Profil de Mine'!L44,'Profil de Mine'!L61) -> 31.19350072 | N117: =CHOOSE($H$111,'Profil de Mine'!M10,'Profil de Mine'!M27,'Profil de Mine'!M44,'Profil de Mine'!M61) -> 20.18787411 | O117: =CHOOSE($H$111,'Profil de Mine'!N10,'Profil de Mine'!N27,'Profil de Mine'!N44,'Profil de Mine'!N61) -> 19.18245611 | P117: =CHOOSE($H$111,'Profil de Mine'!O10,'Profil de Mine'!O27,'Profil de Mine'!O44,'Profil de Mine'!O61) -> 23.68987187 | Q117: =CHOOSE($H$111,'Profil de Mine'!P10,'Profil de Mine'!P27,'Profil de Mine'!P44,'Profil de Mine'!P61) -> 17.17941637 | R117: =CHOOSE($H$111,'Profil de Mine'!Q10,'Profil de Mine'!Q27,'Profil de Mine'!Q44,'Profil de Mine'!Q61) -> 13.93281416 | S117: =CHOOSE($H$111,'Profil de Mine'!R10,'Profil de Mine'!R27,'Profil de Mine'!R44,'Profil de Mine'!R61) -> 16.05436724 | T117: =CHOOSE($H$111,'Profil de Mine'!S10,'Profil de Mine'!S27,'Profil de Mine'!S44,'Profil de Mine'!S61) -> 15.087972 | U117: =CHOOSE($H$111,'Profil de Mine'!T10,'Profil de Mine'!T27,'Profil de Mine'!T44,'Profil de Mine'!T61) -> 13.809324 | V117: =CHOOSE($H$111,'Profil de Mine'!U10,'Profil de Mine'!U27,'Profil de Mine'!U44,'Profil de Mine'!U61) -> 13.809324 | W117: =CHOOSE($H$111,'Profil de Mine'!V10,'Profil de Mine'!V27,'Profil de Mine'!V44,'Profil de Mine'!V61) -> 12.999528 | X117: =CHOOSE($H$111,'Profil de Mine'!W10,'Profil de Mine'!W27,'Profil de Mine'!W44,'Profil de Mine'!W61) -> 12.615936 | Y117: =CHOOSE($H$111,'Profil de Mine'!X10,'Profil de Mine'!X27,'Profil de Mine'!X44,'Profil de Mine'!X61) -> 11.7635016 | Z117: =CHOOSE($H$111,'Profil de Mine'!Y10,'Profil de Mine'!Y27,'Profil de Mine'!Y44,'Profil de Mine'!Y61) -> 8.1406845 | AA117: =CHOOSE($H$111,'Profil de Mine'!Z10,'Profil de Mine'!Z27,'Profil de Mine'!Z44,'Profil de Mine'!Z61) -> 0 | AB117: =CHOOSE($H$111,'Profil de Mine'!AA10,'Profil de Mine'!AA27,'Profil de Mine'!AA44,'Profil de Mine'!AA61) -> 0 | AC117: =CHOOSE($H$111,'Profil de Mine'!AB10,'Profil de Mine'!AB27,'Profil de Mine'!AB44,'Profil de Mine'!AB61) -> 0 | AD117: =CHOOSE($H$111,'Profil de Mine'!AC10,'Profil de Mine'!AC27,'Profil de Mine'!AC44,'Profil de Mine'!AC61) -> 0 | AE117: =CHOOSE($H$111,'Profil de Mine'!AD10,'Profil de Mine'!AD27,'Profil de Mine'!AD44,'Profil de Mine'!AD61) -> 0 | AF117: =CHOOSE($H$111,'Profil de Mine'!AE10,'Profil de Mine'!AE27,'Profil de Mine'!AE44,'Profil de Mine'!AE61) -> 0 | AG117: =CHOOSE($H$111,'Profil de Mine'!AF10,'Profil de Mine'!AF27,'Profil de Mine'!AF44,'Profil de Mine'!AF61) -> 0 | AH117: =CHOOSE($H$111,'Profil de Mine'!AG10,'Profil de Mine'!AG27,'Profil de Mine'!AG44,'Profil de Mine'!AG61) -> 0 | AI117: =CHOOSE($H$111,'Profil de Mine'!AH10,'Profil de Mine'!AH27,'Profil de Mine'!AH44,'Profil de Mine'!AH61) -> 0 | AJ117: =CHOOSE($H$111,'Profil de Mine'!AI10,'Profil de Mine'!AI27,'Profil de Mine'!AI44,'Profil de Mine'!AI61) -> 0 | AK117: =CHOOSE($H$111,'Profil de Mine'!AJ10,'Profil de Mine'!AJ27,'Profil de Mine'!AJ44,'Profil de Mine'!AJ61) -> 0 | AL117: =CHOOSE($H$111,'Profil de Mine'!AK10,'Profil de Mine'!AK27,'Profil de Mine'!AK44,'Profil de Mine'!AK61) -> 0 | AM117: =CHOOSE($H$111,'Profil de Mine'!AL10,'Profil de Mine'!AL27,'Profil de Mine'!AL44,'Profil de Mine'!AL61) -> 0 | AN117: =CHOOSE($H$111,'Profil de Mine'!AM10,'Profil de Mine'!AM27,'Profil de Mine'!AM44,'Profil de Mine'!AM61) -> 0 | AO117: =CHOOSE($H$111,'Profil de Mine'!AN10,'Profil de Mine'!AN27,'Profil de Mine'!AN44,'Profil de Mine'!AN61) -> 0 | AP117: =CHOOSE($H$111,'Profil de Mine'!AO10,'Profil de Mine'!AO27,'Profil de Mine'!AO44,'Profil de Mine'!AO61) -> 0 | AQ117: =CHOOSE($H$111,'Profil de Mine'!AP10,'Profil de Mine'!AP27,'Profil de Mine'!AP44,'Profil de Mine'!AP61) -> 0 | AR117: =CHOOSE($H$111,'Profil de Mine'!AQ10,'Profil de Mine'!AQ27,'Profil de Mine'!AQ44,'Profil de Mine'!AQ61) -> 0 | AS117: =CHOOSE($H$111,'Profil de Mine'!AR10,'Profil de Mine'!AR27,'Profil de Mine'!AR44,'Profil de Mine'!AR61) -> 0 | AT117: =CHOOSE($H$111,'Profil de Mine'!AS10,'Profil de Mine'!AS27,'Profil de Mine'!AS44,'Profil de Mine'!AS61) -> 0 | AU117: =CHOOSE($H$111,'Profil de Mine'!AT10,'Profil de Mine'!AT27,'Profil de Mine'!AT44,'Profil de Mine'!AT61) -> 0 | AV117: =CHOOSE($H$111,'Profil de Mine'!AU10,'Profil de Mine'!AU27,'Profil de Mine'!AU44,'Profil de Mine'!AU61) -> 0 | AW117: =CHOOSE($H$111,'Profil de Mine'!AV10,'Profil de Mine'!AV27,'Profil de Mine'!AV44,'Profil de Mine'!AV61) -> 0 | AX117: =CHOOSE($H$111,'Profil de Mine'!AW10,'Profil de Mine'!AW27,'Profil de Mine'!AW44,'Profil de Mine'!AW61) -> 0 | AY117: =CHOOSE($H$111,'Profil de Mine'!AX10,'Profil de Mine'!AX27,'Profil de Mine'!AX44,'Profil de Mine'!AX61) -> 0 | AZ117: =CHOOSE($H$111,'Profil de Mine'!AY10,'Profil de Mine'!AY27,'Profil de Mine'!AY44,'Profil de Mine'!AY61) -> 0 | BA117: =CHOOSE($H$111,'Profil de Mine'!AZ10,'Profil de Mine'!AZ27,'Profil de Mine'!AZ44,'Profil de Mine'!AZ61) -> 0 | BB117: =CHOOSE($H$111,'Profil de Mine'!BA10,'Profil de Mine'!BA27,'Profil de Mine'!BA44,'Profil de Mine'!BA61) -> 0 | BC117: =CHOOSE($H$111,'Profil de Mine'!BB10,'Profil de Mine'!BB27,'Profil de Mine'!BB44,'Profil de Mine'!BB61) -> 0 | BD117: =CHOOSE($H$111,'Profil de Mine'!BC10,'Profil de Mine'!BC27,'Profil de Mine'!BC44,'Profil de Mine'!BC61) -> 0
C118: 0 | D118: Charge de traitement / raffinage après imposition | E118: $mm reel | G118: =CHOOSE($H$111,'Profil de Mine'!F11,'Profil de Mine'!F28,'Profil de Mine'!F45,'Profil de Mine'!F62) -> 0 | H118: =CHOOSE($H$111,'Profil de Mine'!G11,'Profil de Mine'!G28,'Profil de Mine'!G45,'Profil de Mine'!G62) -> 0 | I118: =CHOOSE($H$111,'Profil de Mine'!H11,'Profil de Mine'!H28,'Profil de Mine'!H45,'Profil de Mine'!H62) -> 0 | J118: =CHOOSE($H$111,'Profil de Mine'!I11,'Profil de Mine'!I28,'Profil de Mine'!I45,'Profil de Mine'!I62) -> 0 | K118: =CHOOSE($H$111,'Profil de Mine'!J11,'Profil de Mine'!J28,'Profil de Mine'!J45,'Profil de Mine'!J62) -> 0 | L118: =CHOOSE($H$111,'Profil de Mine'!K11,'Profil de Mine'!K28,'Profil de Mine'!K45,'Profil de Mine'!K62) -> 0 | M118: =CHOOSE($H$111,'Profil de Mine'!L11,'Profil de Mine'!L28,'Profil de Mine'!L45,'Profil de Mine'!L62) -> 0 | N118: =CHOOSE($H$111,'Profil de Mine'!M11,'Profil de Mine'!M28,'Profil de Mine'!M45,'Profil de Mine'!M62) -> 0 | O118: =CHOOSE($H$111,'Profil de Mine'!N11,'Profil de Mine'!N28,'Profil de Mine'!N45,'Profil de Mine'!N62) -> 0 | P118: =CHOOSE($H$111,'Profil de Mine'!O11,'Profil de Mine'!O28,'Profil de Mine'!O45,'Profil de Mine'!O62) -> 0 | Q118: =CHOOSE($H$111,'Profil de Mine'!P11,'Profil de Mine'!P28,'Profil de Mine'!P45,'Profil de Mine'!P62) -> 0 | R118: =CHOOSE($H$111,'Profil de Mine'!Q11,'Profil de Mine'!Q28,'Profil de Mine'!Q45,'Profil de Mine'!Q62) -> 0 | S118: =CHOOSE($H$111,'Profil de Mine'!R11,'Profil de Mine'!R28,'Profil de Mine'!R45,'Profil de Mine'!R62) -> 0 | T118: =CHOOSE($H$111,'Profil de Mine'!S11,'Profil de Mine'!S28,'Profil de Mine'!S45,'Profil de Mine'!S62) -> 0 | U118: =CHOOSE($H$111,'Profil de Mine'!T11,'Profil de Mine'!T28,'Profil de Mine'!T45,'Profil de Mine'!T62) -> 0 | V118: =CHOOSE($H$111,'Profil de Mine'!U11,'Profil de Mine'!U28,'Profil de Mine'!U45,'Profil de Mine'!U62) -> 0 | W118: =CHOOSE($H$111,'Profil de Mine'!V11,'Profil de Mine'!V28,'Profil de Mine'!V45,'Profil de Mine'!V62) -> 0 | X118: =CHOOSE($H$111,'Profil de Mine'!W11,'Profil de Mine'!W28,'Profil de Mine'!W45,'Profil de Mine'!W62) -> 0 | Y118: =CHOOSE($H$111,'Profil de Mine'!X11,'Profil de Mine'!X28,'Profil de Mine'!X45,'Profil de Mine'!X62) -> 0 | Z118: =CHOOSE($H$111,'Profil de Mine'!Y11,'Profil de Mine'!Y28,'Profil de Mine'!Y45,'Profil de Mine'!Y62) -> 0 | AA118: =CHOOSE($H$111,'Profil de Mine'!Z11,'Profil de Mine'!Z28,'Profil de Mine'!Z45,'Profil de Mine'!Z62) -> 0 | AB118: =CHOOSE($H$111,'Profil de Mine'!AA11,'Profil de Mine'!AA28,'Profil de Mine'!AA45,'Profil de Mine'!AA62) -> 0 | AC118: =CHOOSE($H$111,'Profil de Mine'!AB11,'Profil de Mine'!AB28,'Profil de Mine'!AB45,'Profil de Mine'!AB62) -> 0 | AD118: =CHOOSE($H$111,'Profil de Mine'!AC11,'Profil de Mine'!AC28,'Profil de Mine'!AC45,'Profil de Mine'!AC62) -> 0 | AE118: =CHOOSE($H$111,'Profil de Mine'!AD11,'Profil de Mine'!AD28,'Profil de Mine'!AD45,'Profil de Mine'!AD62) -> 0 | AF118: =CHOOSE($H$111,'Profil de Mine'!AE11,'Profil de Mine'!AE28,'Profil de Mine'!AE45,'Profil de Mine'!AE62) -> 0 | AG118: =CHOOSE($H$111,'Profil de Mine'!AF11,'Profil de Mine'!AF28,'Profil de Mine'!AF45,'Profil de Mine'!AF62) -> 0 | AH118: =CHOOSE($H$111,'Profil de Mine'!AG11,'Profil de Mine'!AG28,'Profil de Mine'!AG45,'Profil de Mine'!AG62) -> 0 | AI118: =CHOOSE($H$111,'Profil de Mine'!AH11,'Profil de Mine'!AH28,'Profil de Mine'!AH45,'Profil de Mine'!AH62) -> 0 | AJ118: =CHOOSE($H$111,'Profil de Mine'!AI11,'Profil de Mine'!AI28,'Profil de Mine'!AI45,'Profil de Mine'!AI62) -> 0 | AK118: =CHOOSE($H$111,'Profil de Mine'!AJ11,'Profil de Mine'!AJ28,'Profil de Mine'!AJ45,'Profil de Mine'!AJ62) -> 0 | AL118: =CHOOSE($H$111,'Profil de Mine'!AK11,'Profil de Mine'!AK28,'Profil de Mine'!AK45,'Profil de Mine'!AK62) -> 0 | AM118: =CHOOSE($H$111,'Profil de Mine'!AL11,'Profil de Mine'!AL28,'Profil de Mine'!AL45,'Profil de Mine'!AL62) -> 0 | AN118: =CHOOSE($H$111,'Profil de Mine'!AM11,'Profil de Mine'!AM28,'Profil de Mine'!AM45,'Profil de Mine'!AM62) -> 0 | AO118: =CHOOSE($H$111,'Profil de Mine'!AN11,'Profil de Mine'!AN28,'Profil de Mine'!AN45,'Profil de Mine'!AN62) -> 0 | AP118: =CHOOSE($H$111,'Profil de Mine'!AO11,'Profil de Mine'!AO28,'Profil de Mine'!AO45,'Profil de Mine'!AO62) -> 0 | AQ118: =CHOOSE($H$111,'Profil de Mine'!AP11,'Profil de Mine'!AP28,'Profil de Mine'!AP45,'Profil de Mine'!AP62) -> 0 | AR118: =CHOOSE($H$111,'Profil de Mine'!AQ11,'Profil de Mine'!AQ28,'Profil de Mine'!AQ45,'Profil de Mine'!AQ62) -> 0 | AS118: =CHOOSE($H$111,'Profil de Mine'!AR11,'Profil de Mine'!AR28,'Profil de Mine'!AR45,'Profil de Mine'!AR62) -> 0 | AT118: =CHOOSE($H$111,'Profil de Mine'!AS11,'Profil de Mine'!AS28,'Profil de Mine'!AS45,'Profil de Mine'!AS62) -> 0 | AU118: =CHOOSE($H$111,'Profil de Mine'!AT11,'Profil de Mine'!AT28,'Profil de Mine'!AT45,'Profil de Mine'!AT62) -> 0 | AV118: =CHOOSE($H$111,'Profil de Mine'!AU11,'Profil de Mine'!AU28,'Profil de Mine'!AU45,'Profil de Mine'!AU62) -> 0 | AW118: =CHOOSE($H$111,'Profil de Mine'!AV11,'Profil de Mine'!AV28,'Profil de Mine'!AV45,'Profil de Mine'!AV62) -> 0 | AX118: =CHOOSE($H$111,'Profil de Mine'!AW11,'Profil de Mine'!AW28,'Profil de Mine'!AW45,'Profil de Mine'!AW62) -> 0 | AY118: =CHOOSE($H$111,'Profil de Mine'!AX11,'Profil de Mine'!AX28,'Profil de Mine'!AX45,'Profil de Mine'!AX62) -> 0 | AZ118: =CHOOSE($H$111,'Profil de Mine'!AY11,'Profil de Mine'!AY28,'Profil de Mine'!AY45,'Profil de Mine'!AY62) -> 0 | BA118: =CHOOSE($H$111,'Profil de Mine'!AZ11,'Profil de Mine'!AZ28,'Profil de Mine'!AZ45,'Profil de Mine'!AZ62) -> 0 | BB118: =CHOOSE($H$111,'Profil de Mine'!BA11,'Profil de Mine'!BA28,'Profil de Mine'!BA45,'Profil de Mine'!BA62) -> 0 | BC118: =CHOOSE($H$111,'Profil de Mine'!BB11,'Profil de Mine'!BB28,'Profil de Mine'!BB45,'Profil de Mine'!BB62) -> 0 | BD118: =CHOOSE($H$111,'Profil de Mine'!BC11,'Profil de Mine'!BC28,'Profil de Mine'!BC45,'Profil de Mine'!BC62) -> 0
C119: 0 | D119: Couts d’exploration | E119: $mm reel | G119: =CHOOSE($H$111,'Profil de Mine'!F12,'Profil de Mine'!F29,'Profil de Mine'!F46,'Profil de Mine'!F63) -> 0 | H119: =CHOOSE($H$111,'Profil de Mine'!G12,'Profil de Mine'!G29,'Profil de Mine'!G46,'Profil de Mine'!G63) -> 0 | I119: =CHOOSE($H$111,'Profil de Mine'!H12,'Profil de Mine'!H29,'Profil de Mine'!H46,'Profil de Mine'!H63) -> 0 | J119: =CHOOSE($H$111,'Profil de Mine'!I12,'Profil de Mine'!I29,'Profil de Mine'!I46,'Profil de Mine'!I63) -> 0 | K119: =CHOOSE($H$111,'Profil de Mine'!J12,'Profil de Mine'!J29,'Profil de Mine'!J46,'Profil de Mine'!J63) -> 0 | L119: =CHOOSE($H$111,'Profil de Mine'!K12,'Profil de Mine'!K29,'Profil de Mine'!K46,'Profil de Mine'!K63) -> 0 | M119: =CHOOSE($H$111,'Profil de Mine'!L12,'Profil de Mine'!L29,'Profil de Mine'!L46,'Profil de Mine'!L63) -> 0 | N119: =CHOOSE($H$111,'Profil de Mine'!M12,'Profil de Mine'!M29,'Profil de Mine'!M46,'Profil de Mine'!M63) -> 0 | O119: =CHOOSE($H$111,'Profil de Mine'!N12,'Profil de Mine'!N29,'Profil de Mine'!N46,'Profil de Mine'!N63) -> 0 | P119: =CHOOSE($H$111,'Profil de Mine'!O12,'Profil de Mine'!O29,'Profil de Mine'!O46,'Profil de Mine'!O63) -> 0 | Q119: =CHOOSE($H$111,'Profil de Mine'!P12,'Profil de Mine'!P29,'Profil de Mine'!P46,'Profil de Mine'!P63) -> 0 | R119: =CHOOSE($H$111,'Profil de Mine'!Q12,'Profil de Mine'!Q29,'Profil de Mine'!Q46,'Profil de Mine'!Q63) -> 0 | S119: =CHOOSE($H$111,'Profil de Mine'!R12,'Profil de Mine'!R29,'Profil de Mine'!R46,'Profil de Mine'!R63) -> 0 | T119: =CHOOSE($H$111,'Profil de Mine'!S12,'Profil de Mine'!S29,'Profil de Mine'!S46,'Profil de Mine'!S63) -> 0 | U119: =CHOOSE($H$111,'Profil de Mine'!T12,'Profil de Mine'!T29,'Profil de Mine'!T46,'Profil de Mine'!T63) -> 0 | V119: =CHOOSE($H$111,'Profil de Mine'!U12,'Profil de Mine'!U29,'Profil de Mine'!U46,'Profil de Mine'!U63) -> 0 | W119: =CHOOSE($H$111,'Profil de Mine'!V12,'Profil de Mine'!V29,'Profil de Mine'!V46,'Profil de Mine'!V63) -> 0 | X119: =CHOOSE($H$111,'Profil de Mine'!W12,'Profil de Mine'!W29,'Profil de Mine'!W46,'Profil de Mine'!W63) -> 0 | Y119: =CHOOSE($H$111,'Profil de Mine'!X12,'Profil de Mine'!X29,'Profil de Mine'!X46,'Profil de Mine'!X63) -> 0 | Z119: =CHOOSE($H$111,'Profil de Mine'!Y12,'Profil de Mine'!Y29,'Profil de Mine'!Y46,'Profil de Mine'!Y63) -> 0 | AA119: =CHOOSE($H$111,'Profil de Mine'!Z12,'Profil de Mine'!Z29,'Profil de Mine'!Z46,'Profil de Mine'!Z63) -> 0 | AB119: =CHOOSE($H$111,'Profil de Mine'!AA12,'Profil de Mine'!AA29,'Profil de Mine'!AA46,'Profil de Mine'!AA63) -> 0 | AC119: =CHOOSE($H$111,'Profil de Mine'!AB12,'Profil de Mine'!AB29,'Profil de Mine'!AB46,'Profil de Mine'!AB63) -> 0 | AD119: =CHOOSE($H$111,'Profil de Mine'!AC12,'Profil de Mine'!AC29,'Profil de Mine'!AC46,'Profil de Mine'!AC63) -> 0 | AE119: =CHOOSE($H$111,'Profil de Mine'!AD12,'Profil de Mine'!AD29,'Profil de Mine'!AD46,'Profil de Mine'!AD63) -> 0 | AF119: =CHOOSE($H$111,'Profil de Mine'!AE12,'Profil de Mine'!AE29,'Profil de Mine'!AE46,'Profil de Mine'!AE63) -> 0 | AG119: =CHOOSE($H$111,'Profil de Mine'!AF12,'Profil de Mine'!AF29,'Profil de Mine'!AF46,'Profil de Mine'!AF63) -> 0 | AH119: =CHOOSE($H$111,'Profil de Mine'!AG12,'Profil de Mine'!AG29,'Profil de Mine'!AG46,'Profil de Mine'!AG63) -> 0 | AI119: =CHOOSE($H$111,'Profil de Mine'!AH12,'Profil de Mine'!AH29,'Profil de Mine'!AH46,'Profil de Mine'!AH63) -> 0 | AJ119: =CHOOSE($H$111,'Profil de Mine'!AI12,'Profil de Mine'!AI29,'Profil de Mine'!AI46,'Profil de Mine'!AI63) -> 0 | AK119: =CHOOSE($H$111,'Profil de Mine'!AJ12,'Profil de Mine'!AJ29,'Profil de Mine'!AJ46,'Profil de Mine'!AJ63) -> 0 | AL119: =CHOOSE($H$111,'Profil de Mine'!AK12,'Profil de Mine'!AK29,'Profil de Mine'!AK46,'Profil de Mine'!AK63) -> 0 | AM119: =CHOOSE($H$111,'Profil de Mine'!AL12,'Profil de Mine'!AL29,'Profil de Mine'!AL46,'Profil de Mine'!AL63) -> 0 | AN119: =CHOOSE($H$111,'Profil de Mine'!AM12,'Profil de Mine'!AM29,'Profil de Mine'!AM46,'Profil de Mine'!AM63) -> 0 | AO119: =CHOOSE($H$111,'Profil de Mine'!AN12,'Profil de Mine'!AN29,'Profil de Mine'!AN46,'Profil de Mine'!AN63) -> 0 | AP119: =CHOOSE($H$111,'Profil de Mine'!AO12,'Profil de Mine'!AO29,'Profil de Mine'!AO46,'Profil de Mine'!AO63) -> 0 | AQ119: =CHOOSE($H$111,'Profil de Mine'!AP12,'Profil de Mine'!AP29,'Profil de Mine'!AP46,'Profil de Mine'!AP63) -> 0 | AR119: =CHOOSE($H$111,'Profil de Mine'!AQ12,'Profil de Mine'!AQ29,'Profil de Mine'!AQ46,'Profil de Mine'!AQ63) -> 0 | AS119: =CHOOSE($H$111,'Profil de Mine'!AR12,'Profil de Mine'!AR29,'Profil de Mine'!AR46,'Profil de Mine'!AR63) -> 0 | AT119: =CHOOSE($H$111,'Profil de Mine'!AS12,'Profil de Mine'!AS29,'Profil de Mine'!AS46,'Profil de Mine'!AS63) -> 0 | AU119: =CHOOSE($H$111,'Profil de Mine'!AT12,'Profil de Mine'!AT29,'Profil de Mine'!AT46,'Profil de Mine'!AT63) -> 0 | AV119: =CHOOSE($H$111,'Profil de Mine'!AU12,'Profil de Mine'!AU29,'Profil de Mine'!AU46,'Profil de Mine'!AU63) -> 0 | AW119: =CHOOSE($H$111,'Profil de Mine'!AV12,'Profil de Mine'!AV29,'Profil de Mine'!AV46,'Profil de Mine'!AV63) -> 0 | AX119: =CHOOSE($H$111,'Profil de Mine'!AW12,'Profil de Mine'!AW29,'Profil de Mine'!AW46,'Profil de Mine'!AW63) -> 0 | AY119: =CHOOSE($H$111,'Profil de Mine'!AX12,'Profil de Mine'!AX29,'Profil de Mine'!AX46,'Profil de Mine'!AX63) -> 0 | AZ119: =CHOOSE($H$111,'Profil de Mine'!AY12,'Profil de Mine'!AY29,'Profil de Mine'!AY46,'Profil de Mine'!AY63) -> 0 | BA119: =CHOOSE($H$111,'Profil de Mine'!AZ12,'Profil de Mine'!AZ29,'Profil de Mine'!AZ46,'Profil de Mine'!AZ63) -> 0 | BB119: =CHOOSE($H$111,'Profil de Mine'!BA12,'Profil de Mine'!BA29,'Profil de Mine'!BA46,'Profil de Mine'!BA63) -> 0 | BC119: =CHOOSE($H$111,'Profil de Mine'!BB12,'Profil de Mine'!BB29,'Profil de Mine'!BB46,'Profil de Mine'!BB63) -> 0 | BD119: =CHOOSE($H$111,'Profil de Mine'!BC12,'Profil de Mine'!BC29,'Profil de Mine'!BC46,'Profil de Mine'!BC63) -> 0
C120: 0 | D120: Couts d’investissement en capital - incorporel | E120: $mm reel | G120: =CHOOSE($H$111,'Profil de Mine'!F13,'Profil de Mine'!F30,'Profil de Mine'!F47,'Profil de Mine'!F64) -> 0 | H120: =CHOOSE($H$111,'Profil de Mine'!G13,'Profil de Mine'!G30,'Profil de Mine'!G47,'Profil de Mine'!G64) -> 0 | I120: =CHOOSE($H$111,'Profil de Mine'!H13,'Profil de Mine'!H30,'Profil de Mine'!H47,'Profil de Mine'!H64) -> 0 | J120: =CHOOSE($H$111,'Profil de Mine'!I13,'Profil de Mine'!I30,'Profil de Mine'!I47,'Profil de Mine'!I64) -> 0 | K120: =CHOOSE($H$111,'Profil de Mine'!J13,'Profil de Mine'!J30,'Profil de Mine'!J47,'Profil de Mine'!J64) -> 0 | L120: =CHOOSE($H$111,'Profil de Mine'!K13,'Profil de Mine'!K30,'Profil de Mine'!K47,'Profil de Mine'!K64) -> 0 | M120: =CHOOSE($H$111,'Profil de Mine'!L13,'Profil de Mine'!L30,'Profil de Mine'!L47,'Profil de Mine'!L64) -> 0 | N120: =CHOOSE($H$111,'Profil de Mine'!M13,'Profil de Mine'!M30,'Profil de Mine'!M47,'Profil de Mine'!M64) -> 0 | O120: =CHOOSE($H$111,'Profil de Mine'!N13,'Profil de Mine'!N30,'Profil de Mine'!N47,'Profil de Mine'!N64) -> 0 | P120: =CHOOSE($H$111,'Profil de Mine'!O13,'Profil de Mine'!O30,'Profil de Mine'!O47,'Profil de Mine'!O64) -> 0 | Q120: =CHOOSE($H$111,'Profil de Mine'!P13,'Profil de Mine'!P30,'Profil de Mine'!P47,'Profil de Mine'!P64) -> 0 | R120: =CHOOSE($H$111,'Profil de Mine'!Q13,'Profil de Mine'!Q30,'Profil de Mine'!Q47,'Profil de Mine'!Q64) -> 0 | S120: =CHOOSE($H$111,'Profil de Mine'!R13,'Profil de Mine'!R30,'Profil de Mine'!R47,'Profil de Mine'!R64) -> 0 | T120: =CHOOSE($H$111,'Profil de Mine'!S13,'Profil de Mine'!S30,'Profil de Mine'!S47,'Profil de Mine'!S64) -> 0 | U120: =CHOOSE($H$111,'Profil de Mine'!T13,'Profil de Mine'!T30,'Profil de Mine'!T47,'Profil de Mine'!T64) -> 0 | V120: =CHOOSE($H$111,'Profil de Mine'!U13,'Profil de Mine'!U30,'Profil de Mine'!U47,'Profil de Mine'!U64) -> 0 | W120: =CHOOSE($H$111,'Profil de Mine'!V13,'Profil de Mine'!V30,'Profil de Mine'!V47,'Profil de Mine'!V64) -> 0 | X120: =CHOOSE($H$111,'Profil de Mine'!W13,'Profil de Mine'!W30,'Profil de Mine'!W47,'Profil de Mine'!W64) -> 0 | Y120: =CHOOSE($H$111,'Profil de Mine'!X13,'Profil de Mine'!X30,'Profil de Mine'!X47,'Profil de Mine'!X64) -> 0 | Z120: =CHOOSE($H$111,'Profil de Mine'!Y13,'Profil de Mine'!Y30,'Profil de Mine'!Y47,'Profil de Mine'!Y64) -> 0 | AA120: =CHOOSE($H$111,'Profil de Mine'!Z13,'Profil de Mine'!Z30,'Profil de Mine'!Z47,'Profil de Mine'!Z64) -> 0 | AB120: =CHOOSE($H$111,'Profil de Mine'!AA13,'Profil de Mine'!AA30,'Profil de Mine'!AA47,'Profil de Mine'!AA64) -> 0 | AC120: =CHOOSE($H$111,'Profil de Mine'!AB13,'Profil de Mine'!AB30,'Profil de Mine'!AB47,'Profil de Mine'!AB64) -> 0 | AD120: =CHOOSE($H$111,'Profil de Mine'!AC13,'Profil de Mine'!AC30,'Profil de Mine'!AC47,'Profil de Mine'!AC64) -> 0 | AE120: =CHOOSE($H$111,'Profil de Mine'!AD13,'Profil de Mine'!AD30,'Profil de Mine'!AD47,'Profil de Mine'!AD64) -> 0 | AF120: =CHOOSE($H$111,'Profil de Mine'!AE13,'Profil de Mine'!AE30,'Profil de Mine'!AE47,'Profil de Mine'!AE64) -> 0 | AG120: =CHOOSE($H$111,'Profil de Mine'!AF13,'Profil de Mine'!AF30,'Profil de Mine'!AF47,'Profil de Mine'!AF64) -> 0 | AH120: =CHOOSE($H$111,'Profil de Mine'!AG13,'Profil de Mine'!AG30,'Profil de Mine'!AG47,'Profil de Mine'!AG64) -> 0 | AI120: =CHOOSE($H$111,'Profil de Mine'!AH13,'Profil de Mine'!AH30,'Profil de Mine'!AH47,'Profil de Mine'!AH64) -> 0 | AJ120: =CHOOSE($H$111,'Profil de Mine'!AI13,'Profil de Mine'!AI30,'Profil de Mine'!AI47,'Profil de Mine'!AI64) -> 0 | AK120: =CHOOSE($H$111,'Profil de Mine'!AJ13,'Profil de Mine'!AJ30,'Profil de Mine'!AJ47,'Profil de Mine'!AJ64) -> 0 | AL120: =CHOOSE($H$111,'Profil de Mine'!AK13,'Profil de Mine'!AK30,'Profil de Mine'!AK47,'Profil de Mine'!AK64) -> 0 | AM120: =CHOOSE($H$111,'Profil de Mine'!AL13,'Profil de Mine'!AL30,'Profil de Mine'!AL47,'Profil de Mine'!AL64) -> 0 | AN120: =CHOOSE($H$111,'Profil de Mine'!AM13,'Profil de Mine'!AM30,'Profil de Mine'!AM47,'Profil de Mine'!AM64) -> 0 | AO120: =CHOOSE($H$111,'Profil de Mine'!AN13,'Profil de Mine'!AN30,'Profil de Mine'!AN47,'Profil de Mine'!AN64) -> 0 | AP120: =CHOOSE($H$111,'Profil de Mine'!AO13,'Profil de Mine'!AO30,'Profil de Mine'!AO47,'Profil de Mine'!AO64) -> 0 | AQ120: =CHOOSE($H$111,'Profil de Mine'!AP13,'Profil de Mine'!AP30,'Profil de Mine'!AP47,'Profil de Mine'!AP64) -> 0 | AR120: =CHOOSE($H$111,'Profil de Mine'!AQ13,'Profil de Mine'!AQ30,'Profil de Mine'!AQ47,'Profil de Mine'!AQ64) -> 0 | AS120: =CHOOSE($H$111,'Profil de Mine'!AR13,'Profil de Mine'!AR30,'Profil de Mine'!AR47,'Profil de Mine'!AR64) -> 0 | AT120: =CHOOSE($H$111,'Profil de Mine'!AS13,'Profil de Mine'!AS30,'Profil de Mine'!AS47,'Profil de Mine'!AS64) -> 0 | AU120: =CHOOSE($H$111,'Profil de Mine'!AT13,'Profil de Mine'!AT30,'Profil de Mine'!AT47,'Profil de Mine'!AT64) -> 0 | AV120: =CHOOSE($H$111,'Profil de Mine'!AU13,'Profil de Mine'!AU30,'Profil de Mine'!AU47,'Profil de Mine'!AU64) -> 0 | AW120: =CHOOSE($H$111,'Profil de Mine'!AV13,'Profil de Mine'!AV30,'Profil de Mine'!AV47,'Profil de Mine'!AV64) -> 0 | AX120: =CHOOSE($H$111,'Profil de Mine'!AW13,'Profil de Mine'!AW30,'Profil de Mine'!AW47,'Profil de Mine'!AW64) -> 0 | AY120: =CHOOSE($H$111,'Profil de Mine'!AX13,'Profil de Mine'!AX30,'Profil de Mine'!AX47,'Profil de Mine'!AX64) -> 0 | AZ120: =CHOOSE($H$111,'Profil de Mine'!AY13,'Profil de Mine'!AY30,'Profil de Mine'!AY47,'Profil de Mine'!AY64) -> 0 | BA120: =CHOOSE($H$111,'Profil de Mine'!AZ13,'Profil de Mine'!AZ30,'Profil de Mine'!AZ47,'Profil de Mine'!AZ64) -> 0 | BB120: =CHOOSE($H$111,'Profil de Mine'!BA13,'Profil de Mine'!BA30,'Profil de Mine'!BA47,'Profil de Mine'!BA64) -> 0 | BC120: =CHOOSE($H$111,'Profil de Mine'!BB13,'Profil de Mine'!BB30,'Profil de Mine'!BB47,'Profil de Mine'!BB64) -> 0 | BD120: =CHOOSE($H$111,'Profil de Mine'!BC13,'Profil de Mine'!BC30,'Profil de Mine'!BC47,'Profil de Mine'!BC64) -> 0
C121: 320.724464 | D121: Couts d’investissement en capital - corporel | E121: $mm reel | G121: =CHOOSE($H$111,'Profil de Mine'!F14,'Profil de Mine'!F31,'Profil de Mine'!F48,'Profil de Mine'!F65) -> 5.723911 | H121: =CHOOSE($H$111,'Profil de Mine'!G14,'Profil de Mine'!G31,'Profil de Mine'!G48,'Profil de Mine'!G65) -> 28.23035 | I121: =CHOOSE($H$111,'Profil de Mine'!H14,'Profil de Mine'!H31,'Profil de Mine'!H48,'Profil de Mine'!H65) -> 101.361458 | J121: =CHOOSE($H$111,'Profil de Mine'!I14,'Profil de Mine'!I31,'Profil de Mine'!I48,'Profil de Mine'!I65) -> 128.20015 | K121: =CHOOSE($H$111,'Profil de Mine'!J14,'Profil de Mine'!J31,'Profil de Mine'!J48,'Profil de Mine'!J65) -> 57.208595 | L121: =CHOOSE($H$111,'Profil de Mine'!K14,'Profil de Mine'!K31,'Profil de Mine'!K48,'Profil de Mine'!K65) -> 0 | M121: =CHOOSE($H$111,'Profil de Mine'!L14,'Profil de Mine'!L31,'Profil de Mine'!L48,'Profil de Mine'!L65) -> 0 | N121: =CHOOSE($H$111,'Profil de Mine'!M14,'Profil de Mine'!M31,'Profil de Mine'!M48,'Profil de Mine'!M65) -> 0 | O121: =CHOOSE($H$111,'Profil de Mine'!N14,'Profil de Mine'!N31,'Profil de Mine'!N48,'Profil de Mine'!N65) -> 0 | P121: =CHOOSE($H$111,'Profil de Mine'!O14,'Profil de Mine'!O31,'Profil de Mine'!O48,'Profil de Mine'!O65) -> 0 | Q121: =CHOOSE($H$111,'Profil de Mine'!P14,'Profil de Mine'!P31,'Profil de Mine'!P48,'Profil de Mine'!P65) -> 0 | R121: =CHOOSE($H$111,'Profil de Mine'!Q14,'Profil de Mine'!Q31,'Profil de Mine'!Q48,'Profil de Mine'!Q65) -> 0 | S121: =CHOOSE($H$111,'Profil de Mine'!R14,'Profil de Mine'!R31,'Profil de Mine'!R48,'Profil de Mine'!R65) -> 0 | T121: =CHOOSE($H$111,'Profil de Mine'!S14,'Profil de Mine'!S31,'Profil de Mine'!S48,'Profil de Mine'!S65) -> 0 | U121: =CHOOSE($H$111,'Profil de Mine'!T14,'Profil de Mine'!T31,'Profil de Mine'!T48,'Profil de Mine'!T65) -> 0 | V121: =CHOOSE($H$111,'Profil de Mine'!U14,'Profil de Mine'!U31,'Profil de Mine'!U48,'Profil de Mine'!U65) -> 0 | W121: =CHOOSE($H$111,'Profil de Mine'!V14,'Profil de Mine'!V31,'Profil de Mine'!V48,'Profil de Mine'!V65) -> 0 | X121: =CHOOSE($H$111,'Profil de Mine'!W14,'Profil de Mine'!W31,'Profil de Mine'!W48,'Profil de Mine'!W65) -> 0 | Y121: =CHOOSE($H$111,'Profil de Mine'!X14,'Profil de Mine'!X31,'Profil de Mine'!X48,'Profil de Mine'!X65) -> 0 | Z121: =CHOOSE($H$111,'Profil de Mine'!Y14,'Profil de Mine'!Y31,'Profil de Mine'!Y48,'Profil de Mine'!Y65) -> 0 | AA121: =CHOOSE($H$111,'Profil de Mine'!Z14,'Profil de Mine'!Z31,'Profil de Mine'!Z48,'Profil de Mine'!Z65) -> 0 | AB121: =CHOOSE($H$111,'Profil de Mine'!AA14,'Profil de Mine'!AA31,'Profil de Mine'!AA48,'Profil de Mine'!AA65) -> 0 | AC121: =CHOOSE($H$111,'Profil de Mine'!AB14,'Profil de Mine'!AB31,'Profil de Mine'!AB48,'Profil de Mine'!AB65) -> 0 | AD121: =CHOOSE($H$111,'Profil de Mine'!AC14,'Profil de Mine'!AC31,'Profil de Mine'!AC48,'Profil de Mine'!AC65) -> 0 | AE121: =CHOOSE($H$111,'Profil de Mine'!AD14,'Profil de Mine'!AD31,'Profil de Mine'!AD48,'Profil de Mine'!AD65) -> 0 | AF121: =CHOOSE($H$111,'Profil de Mine'!AE14,'Profil de Mine'!AE31,'Profil de Mine'!AE48,'Profil de Mine'!AE65) -> 0 | AG121: =CHOOSE($H$111,'Profil de Mine'!AF14,'Profil de Mine'!AF31,'Profil de Mine'!AF48,'Profil de Mine'!AF65) -> 0 | AH121: =CHOOSE($H$111,'Profil de Mine'!AG14,'Profil de Mine'!AG31,'Profil de Mine'!AG48,'Profil de Mine'!AG65) -> 0 | AI121: =CHOOSE($H$111,'Profil de Mine'!AH14,'Profil de Mine'!AH31,'Profil de Mine'!AH48,'Profil de Mine'!AH65) -> 0 | AJ121: =CHOOSE($H$111,'Profil de Mine'!AI14,'Profil de Mine'!AI31,'Profil de Mine'!AI48,'Profil de Mine'!AI65) -> 0 | AK121: =CHOOSE($H$111,'Profil de Mine'!AJ14,'Profil de Mine'!AJ31,'Profil de Mine'!AJ48,'Profil de Mine'!AJ65) -> 0 | AL121: =CHOOSE($H$111,'Profil de Mine'!AK14,'Profil de Mine'!AK31,'Profil de Mine'!AK48,'Profil de Mine'!AK65) -> 0 | AM121: =CHOOSE($H$111,'Profil de Mine'!AL14,'Profil de Mine'!AL31,'Profil de Mine'!AL48,'Profil de Mine'!AL65) -> 0 | AN121: =CHOOSE($H$111,'Profil de Mine'!AM14,'Profil de Mine'!AM31,'Profil de Mine'!AM48,'Profil de Mine'!AM65) -> 0 | AO121: =CHOOSE($H$111,'Profil de Mine'!AN14,'Profil de Mine'!AN31,'Profil de Mine'!AN48,'Profil de Mine'!AN65) -> 0 | AP121: =CHOOSE($H$111,'Profil de Mine'!AO14,'Profil de Mine'!AO31,'Profil de Mine'!AO48,'Profil de Mine'!AO65) -> 0 | AQ121: =CHOOSE($H$111,'Profil de Mine'!AP14,'Profil de Mine'!AP31,'Profil de Mine'!AP48,'Profil de Mine'!AP65) -> 0 | AR121: =CHOOSE($H$111,'Profil de Mine'!AQ14,'Profil de Mine'!AQ31,'Profil de Mine'!AQ48,'Profil de Mine'!AQ65) -> 0 | AS121: =CHOOSE($H$111,'Profil de Mine'!AR14,'Profil de Mine'!AR31,'Profil de Mine'!AR48,'Profil de Mine'!AR65) -> 0 | AT121: =CHOOSE($H$111,'Profil de Mine'!AS14,'Profil de Mine'!AS31,'Profil de Mine'!AS48,'Profil de Mine'!AS65) -> 0 | AU121: =CHOOSE($H$111,'Profil de Mine'!AT14,'Profil de Mine'!AT31,'Profil de Mine'!AT48,'Profil de Mine'!AT65) -> 0 | AV121: =CHOOSE($H$111,'Profil de Mine'!AU14,'Profil de Mine'!AU31,'Profil de Mine'!AU48,'Profil de Mine'!AU65) -> 0 | AW121: =CHOOSE($H$111,'Profil de Mine'!AV14,'Profil de Mine'!AV31,'Profil de Mine'!AV48,'Profil de Mine'!AV65) -> 0 | AX121: =CHOOSE($H$111,'Profil de Mine'!AW14,'Profil de Mine'!AW31,'Profil de Mine'!AW48,'Profil de Mine'!AW65) -> 0 | AY121: =CHOOSE($H$111,'Profil de Mine'!AX14,'Profil de Mine'!AX31,'Profil de Mine'!AX48,'Profil de Mine'!AX65) -> 0 | AZ121: =CHOOSE($H$111,'Profil de Mine'!AY14,'Profil de Mine'!AY31,'Profil de Mine'!AY48,'Profil de Mine'!AY65) -> 0 | BA121: =CHOOSE($H$111,'Profil de Mine'!AZ14,'Profil de Mine'!AZ31,'Profil de Mine'!AZ48,'Profil de Mine'!AZ65) -> 0 | BB121: =CHOOSE($H$111,'Profil de Mine'!BA14,'Profil de Mine'!BA31,'Profil de Mine'!BA48,'Profil de Mine'!BA65) -> 0 | BC121: =CHOOSE($H$111,'Profil de Mine'!BB14,'Profil de Mine'!BB31,'Profil de Mine'!BB48,'Profil de Mine'!BB65) -> 0 | BD121: =CHOOSE($H$111,'Profil de Mine'!BC14,'Profil de Mine'!BC31,'Profil de Mine'!BC48,'Profil de Mine'!BC65) -> 0
C122: 191.3 | D122: Capital de réinvestissement | E122: $mm reel | G122: =CHOOSE($H$111,'Profil de Mine'!F15,'Profil de Mine'!F32,'Profil de Mine'!F49,'Profil de Mine'!F66) -> 0 | H122: =CHOOSE($H$111,'Profil de Mine'!G15,'Profil de Mine'!G32,'Profil de Mine'!G49,'Profil de Mine'!G66) -> 0 | I122: =CHOOSE($H$111,'Profil de Mine'!H15,'Profil de Mine'!H32,'Profil de Mine'!H49,'Profil de Mine'!H66) -> 0 | J122: =CHOOSE($H$111,'Profil de Mine'!I15,'Profil de Mine'!I32,'Profil de Mine'!I49,'Profil de Mine'!I66) -> 0 | K122: =CHOOSE($H$111,'Profil de Mine'!J15,'Profil de Mine'!J32,'Profil de Mine'!J49,'Profil de Mine'!J66) -> 0 | L122: =CHOOSE($H$111,'Profil de Mine'!K15,'Profil de Mine'!K32,'Profil de Mine'!K49,'Profil de Mine'!K66) -> 40 | M122: =CHOOSE($H$111,'Profil de Mine'!L15,'Profil de Mine'!L32,'Profil de Mine'!L49,'Profil de Mine'!L66) -> 80 | N122: =CHOOSE($H$111,'Profil de Mine'!M15,'Profil de Mine'!M32,'Profil de Mine'!M49,'Profil de Mine'!M66) -> 40 | O122: =CHOOSE($H$111,'Profil de Mine'!N15,'Profil de Mine'!N32,'Profil de Mine'!N49,'Profil de Mine'!N66) -> 18 | P122: =CHOOSE($H$111,'Profil de Mine'!O15,'Profil de Mine'!O32,'Profil de Mine'!O49,'Profil de Mine'!O66) -> 2.3 | Q122: =CHOOSE($H$111,'Profil de Mine'!P15,'Profil de Mine'!P32,'Profil de Mine'!P49,'Profil de Mine'!P66) -> 2.2 | R122: =CHOOSE($H$111,'Profil de Mine'!Q15,'Profil de Mine'!Q32,'Profil de Mine'!Q49,'Profil de Mine'!Q66) -> 1.1 | S122: =CHOOSE($H$111,'Profil de Mine'!R15,'Profil de Mine'!R32,'Profil de Mine'!R49,'Profil de Mine'!R66) -> 1.1 | T122: =CHOOSE($H$111,'Profil de Mine'!S15,'Profil de Mine'!S32,'Profil de Mine'!S49,'Profil de Mine'!S66) -> 1.1 | U122: =CHOOSE($H$111,'Profil de Mine'!T15,'Profil de Mine'!T32,'Profil de Mine'!T49,'Profil de Mine'!T66) -> 1.1 | V122: =CHOOSE($H$111,'Profil de Mine'!U15,'Profil de Mine'!U32,'Profil de Mine'!U49,'Profil de Mine'!U66) -> 1.1 | W122: =CHOOSE($H$111,'Profil de Mine'!V15,'Profil de Mine'!V32,'Profil de Mine'!V49,'Profil de Mine'!V66) -> 1.1 | X122: =CHOOSE($H$111,'Profil de Mine'!W15,'Profil de Mine'!W32,'Profil de Mine'!W49,'Profil de Mine'!W66) -> 1.1 | Y122: =CHOOSE($H$111,'Profil de Mine'!X15,'Profil de Mine'!X32,'Profil de Mine'!X49,'Profil de Mine'!X66) -> 1.1 | Z122: =CHOOSE($H$111,'Profil de Mine'!Y15,'Profil de Mine'!Y32,'Profil de Mine'!Y49,'Profil de Mine'!Y66) -> 0 | AA122: =CHOOSE($H$111,'Profil de Mine'!Z15,'Profil de Mine'!Z32,'Profil de Mine'!Z49,'Profil de Mine'!Z66) -> 0 | AB122: =CHOOSE($H$111,'Profil de Mine'!AA15,'Profil de Mine'!AA32,'Profil de Mine'!AA49,'Profil de Mine'!AA66) -> 0 | AC122: =CHOOSE($H$111,'Profil de Mine'!AB15,'Profil de Mine'!AB32,'Profil de Mine'!AB49,'Profil de Mine'!AB66) -> 0 | AD122: =CHOOSE($H$111,'Profil de Mine'!AC15,'Profil de Mine'!AC32,'Profil de Mine'!AC49,'Profil de Mine'!AC66) -> 0 | AE122: =CHOOSE($H$111,'Profil de Mine'!AD15,'Profil de Mine'!AD32,'Profil de Mine'!AD49,'Profil de Mine'!AD66) -> 0 | AF122: =CHOOSE($H$111,'Profil de Mine'!AE15,'Profil de Mine'!AE32,'Profil de Mine'!AE49,'Profil de Mine'!AE66) -> 0 | AG122: =CHOOSE($H$111,'Profil de Mine'!AF15,'Profil de Mine'!AF32,'Profil de Mine'!AF49,'Profil de Mine'!AF66) -> 0 | AH122: =CHOOSE($H$111,'Profil de Mine'!AG15,'Profil de Mine'!AG32,'Profil de Mine'!AG49,'Profil de Mine'!AG66) -> 0 | AI122: =CHOOSE($H$111,'Profil de Mine'!AH15,'Profil de Mine'!AH32,'Profil de Mine'!AH49,'Profil de Mine'!AH66) -> 0 | AJ122: =CHOOSE($H$111,'Profil de Mine'!AI15,'Profil de Mine'!AI32,'Profil de Mine'!AI49,'Profil de Mine'!AI66) -> 0 | AK122: =CHOOSE($H$111,'Profil de Mine'!AJ15,'Profil de Mine'!AJ32,'Profil de Mine'!AJ49,'Profil de Mine'!AJ66) -> 0 | AL122: =CHOOSE($H$111,'Profil de Mine'!AK15,'Profil de Mine'!AK32,'Profil de Mine'!AK49,'Profil de Mine'!AK66) -> 0 | AM122: =CHOOSE($H$111,'Profil de Mine'!AL15,'Profil de Mine'!AL32,'Profil de Mine'!AL49,'Profil de Mine'!AL66) -> 0 | AN122: =CHOOSE($H$111,'Profil de Mine'!AM15,'Profil de Mine'!AM32,'Profil de Mine'!AM49,'Profil de Mine'!AM66) -> 0 | AO122: =CHOOSE($H$111,'Profil de Mine'!AN15,'Profil de Mine'!AN32,'Profil de Mine'!AN49,'Profil de Mine'!AN66) -> 0 | AP122: =CHOOSE($H$111,'Profil de Mine'!AO15,'Profil de Mine'!AO32,'Profil de Mine'!AO49,'Profil de Mine'!AO66) -> 0 | AQ122: =CHOOSE($H$111,'Profil de Mine'!AP15,'Profil de Mine'!AP32,'Profil de Mine'!AP49,'Profil de Mine'!AP66) -> 0 | AR122: =CHOOSE($H$111,'Profil de Mine'!AQ15,'Profil de Mine'!AQ32,'Profil de Mine'!AQ49,'Profil de Mine'!AQ66) -> 0 | AS122: =CHOOSE($H$111,'Profil de Mine'!AR15,'Profil de Mine'!AR32,'Profil de Mine'!AR49,'Profil de Mine'!AR66) -> 0 | AT122: =CHOOSE($H$111,'Profil de Mine'!AS15,'Profil de Mine'!AS32,'Profil de Mine'!AS49,'Profil de Mine'!AS66) -> 0 | AU122: =CHOOSE($H$111,'Profil de Mine'!AT15,'Profil de Mine'!AT32,'Profil de Mine'!AT49,'Profil de Mine'!AT66) -> 0 | AV122: =CHOOSE($H$111,'Profil de Mine'!AU15,'Profil de Mine'!AU32,'Profil de Mine'!AU49,'Profil de Mine'!AU66) -> 0 | AW122: =CHOOSE($H$111,'Profil de Mine'!AV15,'Profil de Mine'!AV32,'Profil de Mine'!AV49,'Profil de Mine'!AV66) -> 0 | AX122: =CHOOSE($H$111,'Profil de Mine'!AW15,'Profil de Mine'!AW32,'Profil de Mine'!AW49,'Profil de Mine'!AW66) -> 0 | AY122: =CHOOSE($H$111,'Profil de Mine'!AX15,'Profil de Mine'!AX32,'Profil de Mine'!AX49,'Profil de Mine'!AX66) -> 0 | AZ122: =CHOOSE($H$111,'Profil de Mine'!AY15,'Profil de Mine'!AY32,'Profil de Mine'!AY49,'Profil de Mine'!AY66) -> 0 | BA122: =CHOOSE($H$111,'Profil de Mine'!AZ15,'Profil de Mine'!AZ32,'Profil de Mine'!AZ49,'Profil de Mine'!AZ66) -> 0 | BB122: =CHOOSE($H$111,'Profil de Mine'!BA15,'Profil de Mine'!BA32,'Profil de Mine'!BA49,'Profil de Mine'!BA66) -> 0 | BC122: =CHOOSE($H$111,'Profil de Mine'!BB15,'Profil de Mine'!BB32,'Profil de Mine'!BB49,'Profil de Mine'!BB66) -> 0 | BD122: =CHOOSE($H$111,'Profil de Mine'!BC15,'Profil de Mine'!BC32,'Profil de Mine'!BC49,'Profil de Mine'!BC66) -> 0
C123: 1614.928182 | D123: Couts opérationnels - extraction | E123: $mm reel | G123: =CHOOSE($H$111,'Profil de Mine'!F16,'Profil de Mine'!F33,'Profil de Mine'!F50,'Profil de Mine'!F67) -> 0 | H123: =CHOOSE($H$111,'Profil de Mine'!G16,'Profil de Mine'!G33,'Profil de Mine'!G50,'Profil de Mine'!G67) -> 0 | I123: =CHOOSE($H$111,'Profil de Mine'!H16,'Profil de Mine'!H33,'Profil de Mine'!H50,'Profil de Mine'!H67) -> 0 | J123: =CHOOSE($H$111,'Profil de Mine'!I16,'Profil de Mine'!I33,'Profil de Mine'!I50,'Profil de Mine'!I67) -> 0 | K123: =CHOOSE($H$111,'Profil de Mine'!J16,'Profil de Mine'!J33,'Profil de Mine'!J50,'Profil de Mine'!J67) -> 0 | L123: =CHOOSE($H$111,'Profil de Mine'!K16,'Profil de Mine'!K33,'Profil de Mine'!K50,'Profil de Mine'!K67) -> 112.7059863 | M123: =CHOOSE($H$111,'Profil de Mine'!L16,'Profil de Mine'!L33,'Profil de Mine'!L50,'Profil de Mine'!L67) -> 131.7524922 | N123: =CHOOSE($H$111,'Profil de Mine'!M16,'Profil de Mine'!M33,'Profil de Mine'!M50,'Profil de Mine'!M67) -> 135.5890556 | O123: =CHOOSE($H$111,'Profil de Mine'!N16,'Profil de Mine'!N33,'Profil de Mine'!N50,'Profil de Mine'!N67) -> 142.7704473 | P123: =CHOOSE($H$111,'Profil de Mine'!O16,'Profil de Mine'!O33,'Profil de Mine'!O50,'Profil de Mine'!O67) -> 154.318103 | Q123: =CHOOSE($H$111,'Profil de Mine'!P16,'Profil de Mine'!P33,'Profil de Mine'!P50,'Profil de Mine'!P67) -> 120.3514161 | R123: =CHOOSE($H$111,'Profil de Mine'!Q16,'Profil de Mine'!Q33,'Profil de Mine'!Q50,'Profil de Mine'!Q67) -> 109.4140122 | S123: =CHOOSE($H$111,'Profil de Mine'!R16,'Profil de Mine'!R33,'Profil de Mine'!R50,'Profil de Mine'!R67) -> 107.3113585 | T123: =CHOOSE($H$111,'Profil de Mine'!S16,'Profil de Mine'!S33,'Profil de Mine'!S50,'Profil de Mine'!S67) -> 102.075324 | U123: =CHOOSE($H$111,'Profil de Mine'!T16,'Profil de Mine'!T33,'Profil de Mine'!T50,'Profil de Mine'!T67) -> 90.980448 | V123: =CHOOSE($H$111,'Profil de Mine'!U16,'Profil de Mine'!U33,'Profil de Mine'!U50,'Profil de Mine'!U67) -> 87.096084 | W123: =CHOOSE($H$111,'Profil de Mine'!V16,'Profil de Mine'!V33,'Profil de Mine'!V50,'Profil de Mine'!V67) -> 86.385792 | X123: =CHOOSE($H$111,'Profil de Mine'!W16,'Profil de Mine'!W33,'Profil de Mine'!W50,'Profil de Mine'!W67) -> 85.749276 | Y123: =CHOOSE($H$111,'Profil de Mine'!X16,'Profil de Mine'!X33,'Profil de Mine'!X50,'Profil de Mine'!X67) -> 85.58352 | Z123: =CHOOSE($H$111,'Profil de Mine'!Y16,'Profil de Mine'!Y33,'Profil de Mine'!Y50,'Profil de Mine'!Y67) -> 62.844867 | AA123: =CHOOSE($H$111,'Profil de Mine'!Z16,'Profil de Mine'!Z33,'Profil de Mine'!Z50,'Profil de Mine'!Z67) -> 0 | AB123: =CHOOSE($H$111,'Profil de Mine'!AA16,'Profil de Mine'!AA33,'Profil de Mine'!AA50,'Profil de Mine'!AA67) -> 0 | AC123: =CHOOSE($H$111,'Profil de Mine'!AB16,'Profil de Mine'!AB33,'Profil de Mine'!AB50,'Profil de Mine'!AB67) -> 0 | AD123: =CHOOSE($H$111,'Profil de Mine'!AC16,'Profil de Mine'!AC33,'Profil de Mine'!AC50,'Profil de Mine'!AC67) -> 0 | AE123: =CHOOSE($H$111,'Profil de Mine'!AD16,'Profil de Mine'!AD33,'Profil de Mine'!AD50,'Profil de Mine'!AD67) -> 0 | AF123: =CHOOSE($H$111,'Profil de Mine'!AE16,'Profil de Mine'!AE33,'Profil de Mine'!AE50,'Profil de Mine'!AE67) -> 0 | AG123: =CHOOSE($H$111,'Profil de Mine'!AF16,'Profil de Mine'!AF33,'Profil de Mine'!AF50,'Profil de Mine'!AF67) -> 0 | AH123: =CHOOSE($H$111,'Profil de Mine'!AG16,'Profil de Mine'!AG33,'Profil de Mine'!AG50,'Profil de Mine'!AG67) -> 0 | AI123: =CHOOSE($H$111,'Profil de Mine'!AH16,'Profil de Mine'!AH33,'Profil de Mine'!AH50,'Profil de Mine'!AH67) -> 0 | AJ123: =CHOOSE($H$111,'Profil de Mine'!AI16,'Profil de Mine'!AI33,'Profil de Mine'!AI50,'Profil de Mine'!AI67) -> 0 | AK123: =CHOOSE($H$111,'Profil de Mine'!AJ16,'Profil de Mine'!AJ33,'Profil de Mine'!AJ50,'Profil de Mine'!AJ67) -> 0 | AL123: =CHOOSE($H$111,'Profil de Mine'!AK16,'Profil de Mine'!AK33,'Profil de Mine'!AK50,'Profil de Mine'!AK67) -> 0 | AM123: =CHOOSE($H$111,'Profil de Mine'!AL16,'Profil de Mine'!AL33,'Profil de Mine'!AL50,'Profil de Mine'!AL67) -> 0 | AN123: =CHOOSE($H$111,'Profil de Mine'!AM16,'Profil de Mine'!AM33,'Profil de Mine'!AM50,'Profil de Mine'!AM67) -> 0 | AO123: =CHOOSE($H$111,'Profil de Mine'!AN16,'Profil de Mine'!AN33,'Profil de Mine'!AN50,'Profil de Mine'!AN67) -> 0 | AP123: =CHOOSE($H$111,'Profil de Mine'!AO16,'Profil de Mine'!AO33,'Profil de Mine'!AO50,'Profil de Mine'!AO67) -> 0 | AQ123: =CHOOSE($H$111,'Profil de Mine'!AP16,'Profil de Mine'!AP33,'Profil de Mine'!AP50,'Profil de Mine'!AP67) -> 0 | AR123: =CHOOSE($H$111,'Profil de Mine'!AQ16,'Profil de Mine'!AQ33,'Profil de Mine'!AQ50,'Profil de Mine'!AQ67) -> 0 | AS123: =CHOOSE($H$111,'Profil de Mine'!AR16,'Profil de Mine'!AR33,'Profil de Mine'!AR50,'Profil de Mine'!AR67) -> 0 | AT123: =CHOOSE($H$111,'Profil de Mine'!AS16,'Profil de Mine'!AS33,'Profil de Mine'!AS50,'Profil de Mine'!AS67) -> 0 | AU123: =CHOOSE($H$111,'Profil de Mine'!AT16,'Profil de Mine'!AT33,'Profil de Mine'!AT50,'Profil de Mine'!AT67) -> 0 | AV123: =CHOOSE($H$111,'Profil de Mine'!AU16,'Profil de Mine'!AU33,'Profil de Mine'!AU50,'Profil de Mine'!AU67) -> 0 | AW123: =CHOOSE($H$111,'Profil de Mine'!AV16,'Profil de Mine'!AV33,'Profil de Mine'!AV50,'Profil de Mine'!AV67) -> 0 | AX123: =CHOOSE($H$111,'Profil de Mine'!AW16,'Profil de Mine'!AW33,'Profil de Mine'!AW50,'Profil de Mine'!AW67) -> 0 | AY123: =CHOOSE($H$111,'Profil de Mine'!AX16,'Profil de Mine'!AX33,'Profil de Mine'!AX50,'Profil de Mine'!AX67) -> 0 | AZ123: =CHOOSE($H$111,'Profil de Mine'!AY16,'Profil de Mine'!AY33,'Profil de Mine'!AY50,'Profil de Mine'!AY67) -> 0 | BA123: =CHOOSE($H$111,'Profil de Mine'!AZ16,'Profil de Mine'!AZ33,'Profil de Mine'!AZ50,'Profil de Mine'!AZ67) -> 0 | BB123: =CHOOSE($H$111,'Profil de Mine'!BA16,'Profil de Mine'!BA33,'Profil de Mine'!BA50,'Profil de Mine'!BA67) -> 0 | BC123: =CHOOSE($H$111,'Profil de Mine'!BB16,'Profil de Mine'!BB33,'Profil de Mine'!BB50,'Profil de Mine'!BB67) -> 0 | BD123: =CHOOSE($H$111,'Profil de Mine'!BC16,'Profil de Mine'!BC33,'Profil de Mine'!BC50,'Profil de Mine'!BC67) -> 0
D124: Couts opérationnels - broyage | E124: $mm reel | G124: =CHOOSE($H$111,'Profil de Mine'!F17,'Profil de Mine'!F34,'Profil de Mine'!F51,'Profil de Mine'!F68) -> 0 | H124: =CHOOSE($H$111,'Profil de Mine'!G17,'Profil de Mine'!G34,'Profil de Mine'!G51,'Profil de Mine'!G68) -> 0 | I124: =CHOOSE($H$111,'Profil de Mine'!H17,'Profil de Mine'!H34,'Profil de Mine'!H51,'Profil de Mine'!H68) -> 0 | J124: =CHOOSE($H$111,'Profil de Mine'!I17,'Profil de Mine'!I34,'Profil de Mine'!I51,'Profil de Mine'!I68) -> 0 | K124: =CHOOSE($H$111,'Profil de Mine'!J17,'Profil de Mine'!J34,'Profil de Mine'!J51,'Profil de Mine'!J68) -> 0 | L124: =CHOOSE($H$111,'Profil de Mine'!K17,'Profil de Mine'!K34,'Profil de Mine'!K51,'Profil de Mine'!K68) -> 0 | M124: =CHOOSE($H$111,'Profil de Mine'!L17,'Profil de Mine'!L34,'Profil de Mine'!L51,'Profil de Mine'!L68) -> 0 | N124: =CHOOSE($H$111,'Profil de Mine'!M17,'Profil de Mine'!M34,'Profil de Mine'!M51,'Profil de Mine'!M68) -> 0 | O124: =CHOOSE($H$111,'Profil de Mine'!N17,'Profil de Mine'!N34,'Profil de Mine'!N51,'Profil de Mine'!N68) -> 0 | P124: =CHOOSE($H$111,'Profil de Mine'!O17,'Profil de Mine'!O34,'Profil de Mine'!O51,'Profil de Mine'!O68) -> 0 | Q124: =CHOOSE($H$111,'Profil de Mine'!P17,'Profil de Mine'!P34,'Profil de Mine'!P51,'Profil de Mine'!P68) -> 0 | R124: =CHOOSE($H$111,'Profil de Mine'!Q17,'Profil de Mine'!Q34,'Profil de Mine'!Q51,'Profil de Mine'!Q68) -> 0 | S124: =CHOOSE($H$111,'Profil de Mine'!R17,'Profil de Mine'!R34,'Profil de Mine'!R51,'Profil de Mine'!R68) -> 0 | T124: =CHOOSE($H$111,'Profil de Mine'!S17,'Profil de Mine'!S34,'Profil de Mine'!S51,'Profil de Mine'!S68) -> 0 | U124: =CHOOSE($H$111,'Profil de Mine'!T17,'Profil de Mine'!T34,'Profil de Mine'!T51,'Profil de Mine'!T68) -> 0 | V124: =CHOOSE($H$111,'Profil de Mine'!U17,'Profil de Mine'!U34,'Profil de Mine'!U51,'Profil de Mine'!U68) -> 0 | W124: =CHOOSE($H$111,'Profil de Mine'!V17,'Profil de Mine'!V34,'Profil de Mine'!V51,'Profil de Mine'!V68) -> 0 | X124: =CHOOSE($H$111,'Profil de Mine'!W17,'Profil de Mine'!W34,'Profil de Mine'!W51,'Profil de Mine'!W68) -> 0 | Y124: =CHOOSE($H$111,'Profil de Mine'!X17,'Profil de Mine'!X34,'Profil de Mine'!X51,'Profil de Mine'!X68) -> 0 | Z124: =CHOOSE($H$111,'Profil de Mine'!Y17,'Profil de Mine'!Y34,'Profil de Mine'!Y51,'Profil de Mine'!Y68) -> 0 | AA124: =CHOOSE($H$111,'Profil de Mine'!Z17,'Profil de Mine'!Z34,'Profil de Mine'!Z51,'Profil de Mine'!Z68) -> 0 | AB124: =CHOOSE($H$111,'Profil de Mine'!AA17,'Profil de Mine'!AA34,'Profil de Mine'!AA51,'Profil de Mine'!AA68) -> 0 | AC124: =CHOOSE($H$111,'Profil de Mine'!AB17,'Profil de Mine'!AB34,'Profil de Mine'!AB51,'Profil de Mine'!AB68) -> 0 | AD124: =CHOOSE($H$111,'Profil de Mine'!AC17,'Profil de Mine'!AC34,'Profil de Mine'!AC51,'Profil de Mine'!AC68) -> 0 | AE124: =CHOOSE($H$111,'Profil de Mine'!AD17,'Profil de Mine'!AD34,'Profil de Mine'!AD51,'Profil de Mine'!AD68) -> 0 | AF124: =CHOOSE($H$111,'Profil de Mine'!AE17,'Profil de Mine'!AE34,'Profil de Mine'!AE51,'Profil de Mine'!AE68) -> 0 | AG124: =CHOOSE($H$111,'Profil de Mine'!AF17,'Profil de Mine'!AF34,'Profil de Mine'!AF51,'Profil de Mine'!AF68) -> 0 | AH124: =CHOOSE($H$111,'Profil de Mine'!AG17,'Profil de Mine'!AG34,'Profil de Mine'!AG51,'Profil de Mine'!AG68) -> 0 | AI124: =CHOOSE($H$111,'Profil de Mine'!AH17,'Profil de Mine'!AH34,'Profil de Mine'!AH51,'Profil de Mine'!AH68) -> 0 | AJ124: =CHOOSE($H$111,'Profil de Mine'!AI17,'Profil de Mine'!AI34,'Profil de Mine'!AI51,'Profil de Mine'!AI68) -> 0 | AK124: =CHOOSE($H$111,'Profil de Mine'!AJ17,'Profil de Mine'!AJ34,'Profil de Mine'!AJ51,'Profil de Mine'!AJ68) -> 0 | AL124: =CHOOSE($H$111,'Profil de Mine'!AK17,'Profil de Mine'!AK34,'Profil de Mine'!AK51,'Profil de Mine'!AK68) -> 0 | AM124: =CHOOSE($H$111,'Profil de Mine'!AL17,'Profil de Mine'!AL34,'Profil de Mine'!AL51,'Profil de Mine'!AL68) -> 0 | AN124: =CHOOSE($H$111,'Profil de Mine'!AM17,'Profil de Mine'!AM34,'Profil de Mine'!AM51,'Profil de Mine'!AM68) -> 0 | AO124: =CHOOSE($H$111,'Profil de Mine'!AN17,'Profil de Mine'!AN34,'Profil de Mine'!AN51,'Profil de Mine'!AN68) -> 0 | AP124: =CHOOSE($H$111,'Profil de Mine'!AO17,'Profil de Mine'!AO34,'Profil de Mine'!AO51,'Profil de Mine'!AO68) -> 0 | AQ124: =CHOOSE($H$111,'Profil de Mine'!AP17,'Profil de Mine'!AP34,'Profil de Mine'!AP51,'Profil de Mine'!AP68) -> 0 | AR124: =CHOOSE($H$111,'Profil de Mine'!AQ17,'Profil de Mine'!AQ34,'Profil de Mine'!AQ51,'Profil de Mine'!AQ68) -> 0 | AS124: =CHOOSE($H$111,'Profil de Mine'!AR17,'Profil de Mine'!AR34,'Profil de Mine'!AR51,'Profil de Mine'!AR68) -> 0 | AT124: =CHOOSE($H$111,'Profil de Mine'!AS17,'Profil de Mine'!AS34,'Profil de Mine'!AS51,'Profil de Mine'!AS68) -> 0 | AU124: =CHOOSE($H$111,'Profil de Mine'!AT17,'Profil de Mine'!AT34,'Profil de Mine'!AT51,'Profil de Mine'!AT68) -> 0 | AV124: =CHOOSE($H$111,'Profil de Mine'!AU17,'Profil de Mine'!AU34,'Profil de Mine'!AU51,'Profil de Mine'!AU68) -> 0 | AW124: =CHOOSE($H$111,'Profil de Mine'!AV17,'Profil de Mine'!AV34,'Profil de Mine'!AV51,'Profil de Mine'!AV68) -> 0 | AX124: =CHOOSE($H$111,'Profil de Mine'!AW17,'Profil de Mine'!AW34,'Profil de Mine'!AW51,'Profil de Mine'!AW68) -> 0 | AY124: =CHOOSE($H$111,'Profil de Mine'!AX17,'Profil de Mine'!AX34,'Profil de Mine'!AX51,'Profil de Mine'!AX68) -> 0 | AZ124: =CHOOSE($H$111,'Profil de Mine'!AY17,'Profil de Mine'!AY34,'Profil de Mine'!AY51,'Profil de Mine'!AY68) -> 0 | BA124: =CHOOSE($H$111,'Profil de Mine'!AZ17,'Profil de Mine'!AZ34,'Profil de Mine'!AZ51,'Profil de Mine'!AZ68) -> 0 | BB124: =CHOOSE($H$111,'Profil de Mine'!BA17,'Profil de Mine'!BA34,'Profil de Mine'!BA51,'Profil de Mine'!BA68) -> 0 | BC124: =CHOOSE($H$111,'Profil de Mine'!BB17,'Profil de Mine'!BB34,'Profil de Mine'!BB51,'Profil de Mine'!BB68) -> 0 | BD124: =CHOOSE($H$111,'Profil de Mine'!BC17,'Profil de Mine'!BC34,'Profil de Mine'!BC51,'Profil de Mine'!BC68) -> 0
D125: Couts opérationnels - autres | E125: $mm reel | G125: =CHOOSE($H$111,'Profil de Mine'!F18,'Profil de Mine'!F35,'Profil de Mine'!F52,'Profil de Mine'!F69) -> 0 | H125: =CHOOSE($H$111,'Profil de Mine'!G18,'Profil de Mine'!G35,'Profil de Mine'!G52,'Profil de Mine'!G69) -> 0 | I125: =CHOOSE($H$111,'Profil de Mine'!H18,'Profil de Mine'!H35,'Profil de Mine'!H52,'Profil de Mine'!H69) -> 0 | J125: =CHOOSE($H$111,'Profil de Mine'!I18,'Profil de Mine'!I35,'Profil de Mine'!I52,'Profil de Mine'!I69) -> 0 | K125: =CHOOSE($H$111,'Profil de Mine'!J18,'Profil de Mine'!J35,'Profil de Mine'!J52,'Profil de Mine'!J69) -> 0 | L125: =CHOOSE($H$111,'Profil de Mine'!K18,'Profil de Mine'!K35,'Profil de Mine'!K52,'Profil de Mine'!K69) -> 0 | M125: =CHOOSE($H$111,'Profil de Mine'!L18,'Profil de Mine'!L35,'Profil de Mine'!L52,'Profil de Mine'!L69) -> 0 | N125: =CHOOSE($H$111,'Profil de Mine'!M18,'Profil de Mine'!M35,'Profil de Mine'!M52,'Profil de Mine'!M69) -> 0 | O125: =CHOOSE($H$111,'Profil de Mine'!N18,'Profil de Mine'!N35,'Profil de Mine'!N52,'Profil de Mine'!N69) -> 0 | P125: =CHOOSE($H$111,'Profil de Mine'!O18,'Profil de Mine'!O35,'Profil de Mine'!O52,'Profil de Mine'!O69) -> 0 | Q125: =CHOOSE($H$111,'Profil de Mine'!P18,'Profil de Mine'!P35,'Profil de Mine'!P52,'Profil de Mine'!P69) -> 0 | R125: =CHOOSE($H$111,'Profil de Mine'!Q18,'Profil de Mine'!Q35,'Profil de Mine'!Q52,'Profil de Mine'!Q69) -> 0 | S125: =CHOOSE($H$111,'Profil de Mine'!R18,'Profil de Mine'!R35,'Profil de Mine'!R52,'Profil de Mine'!R69) -> 0 | T125: =CHOOSE($H$111,'Profil de Mine'!S18,'Profil de Mine'!S35,'Profil de Mine'!S52,'Profil de Mine'!S69) -> 0 | U125: =CHOOSE($H$111,'Profil de Mine'!T18,'Profil de Mine'!T35,'Profil de Mine'!T52,'Profil de Mine'!T69) -> 0 | V125: =CHOOSE($H$111,'Profil de Mine'!U18,'Profil de Mine'!U35,'Profil de Mine'!U52,'Profil de Mine'!U69) -> 0 | W125: =CHOOSE($H$111,'Profil de Mine'!V18,'Profil de Mine'!V35,'Profil de Mine'!V52,'Profil de Mine'!V69) -> 0 | X125: =CHOOSE($H$111,'Profil de Mine'!W18,'Profil de Mine'!W35,'Profil de Mine'!W52,'Profil de Mine'!W69) -> 0 | Y125: =CHOOSE($H$111,'Profil de Mine'!X18,'Profil de Mine'!X35,'Profil de Mine'!X52,'Profil de Mine'!X69) -> 0 | Z125: =CHOOSE($H$111,'Profil de Mine'!Y18,'Profil de Mine'!Y35,'Profil de Mine'!Y52,'Profil de Mine'!Y69) -> 0 | AA125: =CHOOSE($H$111,'Profil de Mine'!Z18,'Profil de Mine'!Z35,'Profil de Mine'!Z52,'Profil de Mine'!Z69) -> 0 | AB125: =CHOOSE($H$111,'Profil de Mine'!AA18,'Profil de Mine'!AA35,'Profil de Mine'!AA52,'Profil de Mine'!AA69) -> 0 | AC125: =CHOOSE($H$111,'Profil de Mine'!AB18,'Profil de Mine'!AB35,'Profil de Mine'!AB52,'Profil de Mine'!AB69) -> 0 | AD125: =CHOOSE($H$111,'Profil de Mine'!AC18,'Profil de Mine'!AC35,'Profil de Mine'!AC52,'Profil de Mine'!AC69) -> 0 | AE125: =CHOOSE($H$111,'Profil de Mine'!AD18,'Profil de Mine'!AD35,'Profil de Mine'!AD52,'Profil de Mine'!AD69) -> 0 | AF125: =CHOOSE($H$111,'Profil de Mine'!AE18,'Profil de Mine'!AE35,'Profil de Mine'!AE52,'Profil de Mine'!AE69) -> 0 | AG125: =CHOOSE($H$111,'Profil de Mine'!AF18,'Profil de Mine'!AF35,'Profil de Mine'!AF52,'Profil de Mine'!AF69) -> 0 | AH125: =CHOOSE($H$111,'Profil de Mine'!AG18,'Profil de Mine'!AG35,'Profil de Mine'!AG52,'Profil de Mine'!AG69) -> 0 | AI125: =CHOOSE($H$111,'Profil de Mine'!AH18,'Profil de Mine'!AH35,'Profil de Mine'!AH52,'Profil de Mine'!AH69) -> 0 | AJ125: =CHOOSE($H$111,'Profil de Mine'!AI18,'Profil de Mine'!AI35,'Profil de Mine'!AI52,'Profil de Mine'!AI69) -> 0 | AK125: =CHOOSE($H$111,'Profil de Mine'!AJ18,'Profil de Mine'!AJ35,'Profil de Mine'!AJ52,'Profil de Mine'!AJ69) -> 0 | AL125: =CHOOSE($H$111,'Profil de Mine'!AK18,'Profil de Mine'!AK35,'Profil de Mine'!AK52,'Profil de Mine'!AK69) -> 0 | AM125: =CHOOSE($H$111,'Profil de Mine'!AL18,'Profil de Mine'!AL35,'Profil de Mine'!AL52,'Profil de Mine'!AL69) -> 0 | AN125: =CHOOSE($H$111,'Profil de Mine'!AM18,'Profil de Mine'!AM35,'Profil de Mine'!AM52,'Profil de Mine'!AM69) -> 0 | AO125: =CHOOSE($H$111,'Profil de Mine'!AN18,'Profil de Mine'!AN35,'Profil de Mine'!AN52,'Profil de Mine'!AN69) -> 0 | AP125: =CHOOSE($H$111,'Profil de Mine'!AO18,'Profil de Mine'!AO35,'Profil de Mine'!AO52,'Profil de Mine'!AO69) -> 0 | AQ125: =CHOOSE($H$111,'Profil de Mine'!AP18,'Profil de Mine'!AP35,'Profil de Mine'!AP52,'Profil de Mine'!AP69) -> 0 | AR125: =CHOOSE($H$111,'Profil de Mine'!AQ18,'Profil de Mine'!AQ35,'Profil de Mine'!AQ52,'Profil de Mine'!AQ69) -> 0 | AS125: =CHOOSE($H$111,'Profil de Mine'!AR18,'Profil de Mine'!AR35,'Profil de Mine'!AR52,'Profil de Mine'!AR69) -> 0 | AT125: =CHOOSE($H$111,'Profil de Mine'!AS18,'Profil de Mine'!AS35,'Profil de Mine'!AS52,'Profil de Mine'!AS69) -> 0 | AU125: =CHOOSE($H$111,'Profil de Mine'!AT18,'Profil de Mine'!AT35,'Profil de Mine'!AT52,'Profil de Mine'!AT69) -> 0 | AV125: =CHOOSE($H$111,'Profil de Mine'!AU18,'Profil de Mine'!AU35,'Profil de Mine'!AU52,'Profil de Mine'!AU69) -> 0 | AW125: =CHOOSE($H$111,'Profil de Mine'!AV18,'Profil de Mine'!AV35,'Profil de Mine'!AV52,'Profil de Mine'!AV69) -> 0 | AX125: =CHOOSE($H$111,'Profil de Mine'!AW18,'Profil de Mine'!AW35,'Profil de Mine'!AW52,'Profil de Mine'!AW69) -> 0 | AY125: =CHOOSE($H$111,'Profil de Mine'!AX18,'Profil de Mine'!AX35,'Profil de Mine'!AX52,'Profil de Mine'!AX69) -> 0 | AZ125: =CHOOSE($H$111,'Profil de Mine'!AY18,'Profil de Mine'!AY35,'Profil de Mine'!AY52,'Profil de Mine'!AY69) -> 0 | BA125: =CHOOSE($H$111,'Profil de Mine'!AZ18,'Profil de Mine'!AZ35,'Profil de Mine'!AZ52,'Profil de Mine'!AZ69) -> 0 | BB125: =CHOOSE($H$111,'Profil de Mine'!BA18,'Profil de Mine'!BA35,'Profil de Mine'!BA52,'Profil de Mine'!BA69) -> 0 | BC125: =CHOOSE($H$111,'Profil de Mine'!BB18,'Profil de Mine'!BB35,'Profil de Mine'!BB52,'Profil de Mine'!BB69) -> 0 | BD125: =CHOOSE($H$111,'Profil de Mine'!BC18,'Profil de Mine'!BC35,'Profil de Mine'!BC52,'Profil de Mine'!BC69) -> 0
D126: Couts opérationnels - energie | E126: $mm reel | G126: =CHOOSE($H$111,'Profil de Mine'!F19,'Profil de Mine'!F36,'Profil de Mine'!F53,'Profil de Mine'!F70) -> 0 | H126: =CHOOSE($H$111,'Profil de Mine'!G19,'Profil de Mine'!G36,'Profil de Mine'!G53,'Profil de Mine'!G70) -> 0 | I126: =CHOOSE($H$111,'Profil de Mine'!H19,'Profil de Mine'!H36,'Profil de Mine'!H53,'Profil de Mine'!H70) -> 0 | J126: =CHOOSE($H$111,'Profil de Mine'!I19,'Profil de Mine'!I36,'Profil de Mine'!I53,'Profil de Mine'!I70) -> 0 | K126: =CHOOSE($H$111,'Profil de Mine'!J19,'Profil de Mine'!J36,'Profil de Mine'!J53,'Profil de Mine'!J70) -> 0 | L126: =CHOOSE($H$111,'Profil de Mine'!K19,'Profil de Mine'!K36,'Profil de Mine'!K53,'Profil de Mine'!K70) -> 0 | M126: =CHOOSE($H$111,'Profil de Mine'!L19,'Profil de Mine'!L36,'Profil de Mine'!L53,'Profil de Mine'!L70) -> 0 | N126: =CHOOSE($H$111,'Profil de Mine'!M19,'Profil de Mine'!M36,'Profil de Mine'!M53,'Profil de Mine'!M70) -> 0 | O126: =CHOOSE($H$111,'Profil de Mine'!N19,'Profil de Mine'!N36,'Profil de Mine'!N53,'Profil de Mine'!N70) -> 0 | P126: =CHOOSE($H$111,'Profil de Mine'!O19,'Profil de Mine'!O36,'Profil de Mine'!O53,'Profil de Mine'!O70) -> 0 | Q126: =CHOOSE($H$111,'Profil de Mine'!P19,'Profil de Mine'!P36,'Profil de Mine'!P53,'Profil de Mine'!P70) -> 0 | R126: =CHOOSE($H$111,'Profil de Mine'!Q19,'Profil de Mine'!Q36,'Profil de Mine'!Q53,'Profil de Mine'!Q70) -> 0 | S126: =CHOOSE($H$111,'Profil de Mine'!R19,'Profil de Mine'!R36,'Profil de Mine'!R53,'Profil de Mine'!R70) -> 0 | T126: =CHOOSE($H$111,'Profil de Mine'!S19,'Profil de Mine'!S36,'Profil de Mine'!S53,'Profil de Mine'!S70) -> 0 | U126: =CHOOSE($H$111,'Profil de Mine'!T19,'Profil de Mine'!T36,'Profil de Mine'!T53,'Profil de Mine'!T70) -> 0 | V126: =CHOOSE($H$111,'Profil de Mine'!U19,'Profil de Mine'!U36,'Profil de Mine'!U53,'Profil de Mine'!U70) -> 0 | W126: =CHOOSE($H$111,'Profil de Mine'!V19,'Profil de Mine'!V36,'Profil de Mine'!V53,'Profil de Mine'!V70) -> 0 | X126: =CHOOSE($H$111,'Profil de Mine'!W19,'Profil de Mine'!W36,'Profil de Mine'!W53,'Profil de Mine'!W70) -> 0 | Y126: =CHOOSE($H$111,'Profil de Mine'!X19,'Profil de Mine'!X36,'Profil de Mine'!X53,'Profil de Mine'!X70) -> 0 | Z126: =CHOOSE($H$111,'Profil de Mine'!Y19,'Profil de Mine'!Y36,'Profil de Mine'!Y53,'Profil de Mine'!Y70) -> 0 | AA126: =CHOOSE($H$111,'Profil de Mine'!Z19,'Profil de Mine'!Z36,'Profil de Mine'!Z53,'Profil de Mine'!Z70) -> 0 | AB126: =CHOOSE($H$111,'Profil de Mine'!AA19,'Profil de Mine'!AA36,'Profil de Mine'!AA53,'Profil de Mine'!AA70) -> 0 | AC126: =CHOOSE($H$111,'Profil de Mine'!AB19,'Profil de Mine'!AB36,'Profil de Mine'!AB53,'Profil de Mine'!AB70) -> 0 | AD126: =CHOOSE($H$111,'Profil de Mine'!AC19,'Profil de Mine'!AC36,'Profil de Mine'!AC53,'Profil de Mine'!AC70) -> 0 | AE126: =CHOOSE($H$111,'Profil de Mine'!AD19,'Profil de Mine'!AD36,'Profil de Mine'!AD53,'Profil de Mine'!AD70) -> 0 | AF126: =CHOOSE($H$111,'Profil de Mine'!AE19,'Profil de Mine'!AE36,'Profil de Mine'!AE53,'Profil de Mine'!AE70) -> 0 | AG126: =CHOOSE($H$111,'Profil de Mine'!AF19,'Profil de Mine'!AF36,'Profil de Mine'!AF53,'Profil de Mine'!AF70) -> 0 | AH126: =CHOOSE($H$111,'Profil de Mine'!AG19,'Profil de Mine'!AG36,'Profil de Mine'!AG53,'Profil de Mine'!AG70) -> 0 | AI126: =CHOOSE($H$111,'Profil de Mine'!AH19,'Profil de Mine'!AH36,'Profil de Mine'!AH53,'Profil de Mine'!AH70) -> 0 | AJ126: =CHOOSE($H$111,'Profil de Mine'!AI19,'Profil de Mine'!AI36,'Profil de Mine'!AI53,'Profil de Mine'!AI70) -> 0 | AK126: =CHOOSE($H$111,'Profil de Mine'!AJ19,'Profil de Mine'!AJ36,'Profil de Mine'!AJ53,'Profil de Mine'!AJ70) -> 0 | AL126: =CHOOSE($H$111,'Profil de Mine'!AK19,'Profil de Mine'!AK36,'Profil de Mine'!AK53,'Profil de Mine'!AK70) -> 0 | AM126: =CHOOSE($H$111,'Profil de Mine'!AL19,'Profil de Mine'!AL36,'Profil de Mine'!AL53,'Profil de Mine'!AL70) -> 0 | AN126: =CHOOSE($H$111,'Profil de Mine'!AM19,'Profil de Mine'!AM36,'Profil de Mine'!AM53,'Profil de Mine'!AM70) -> 0 | AO126: =CHOOSE($H$111,'Profil de Mine'!AN19,'Profil de Mine'!AN36,'Profil de Mine'!AN53,'Profil de Mine'!AN70) -> 0 | AP126: =CHOOSE($H$111,'Profil de Mine'!AO19,'Profil de Mine'!AO36,'Profil de Mine'!AO53,'Profil de Mine'!AO70) -> 0 | AQ126: =CHOOSE($H$111,'Profil de Mine'!AP19,'Profil de Mine'!AP36,'Profil de Mine'!AP53,'Profil de Mine'!AP70) -> 0 | AR126: =CHOOSE($H$111,'Profil de Mine'!AQ19,'Profil de Mine'!AQ36,'Profil de Mine'!AQ53,'Profil de Mine'!AQ70) -> 0 | AS126: =CHOOSE($H$111,'Profil de Mine'!AR19,'Profil de Mine'!AR36,'Profil de Mine'!AR53,'Profil de Mine'!AR70) -> 0 | AT126: =CHOOSE($H$111,'Profil de Mine'!AS19,'Profil de Mine'!AS36,'Profil de Mine'!AS53,'Profil de Mine'!AS70) -> 0 | AU126: =CHOOSE($H$111,'Profil de Mine'!AT19,'Profil de Mine'!AT36,'Profil de Mine'!AT53,'Profil de Mine'!AT70) -> 0 | AV126: =CHOOSE($H$111,'Profil de Mine'!AU19,'Profil de Mine'!AU36,'Profil de Mine'!AU53,'Profil de Mine'!AU70) -> 0 | AW126: =CHOOSE($H$111,'Profil de Mine'!AV19,'Profil de Mine'!AV36,'Profil de Mine'!AV53,'Profil de Mine'!AV70) -> 0 | AX126: =CHOOSE($H$111,'Profil de Mine'!AW19,'Profil de Mine'!AW36,'Profil de Mine'!AW53,'Profil de Mine'!AW70) -> 0 | AY126: =CHOOSE($H$111,'Profil de Mine'!AX19,'Profil de Mine'!AX36,'Profil de Mine'!AX53,'Profil de Mine'!AX70) -> 0 | AZ126: =CHOOSE($H$111,'Profil de Mine'!AY19,'Profil de Mine'!AY36,'Profil de Mine'!AY53,'Profil de Mine'!AY70) -> 0 | BA126: =CHOOSE($H$111,'Profil de Mine'!AZ19,'Profil de Mine'!AZ36,'Profil de Mine'!AZ53,'Profil de Mine'!AZ70) -> 0 | BB126: =CHOOSE($H$111,'Profil de Mine'!BA19,'Profil de Mine'!BA36,'Profil de Mine'!BA53,'Profil de Mine'!BA70) -> 0 | BC126: =CHOOSE($H$111,'Profil de Mine'!BB19,'Profil de Mine'!BB36,'Profil de Mine'!BB53,'Profil de Mine'!BB70) -> 0 | BD126: =CHOOSE($H$111,'Profil de Mine'!BC19,'Profil de Mine'!BC36,'Profil de Mine'!BC53,'Profil de Mine'!BC70) -> 0
D127: Couts opérationnels - services domestiques | E127: $mm reel | G127: =CHOOSE($H$111,'Profil de Mine'!F20,'Profil de Mine'!F37,'Profil de Mine'!F54,'Profil de Mine'!F71) -> 0 | H127: =CHOOSE($H$111,'Profil de Mine'!G20,'Profil de Mine'!G37,'Profil de Mine'!G54,'Profil de Mine'!G71) -> 0 | I127: =CHOOSE($H$111,'Profil de Mine'!H20,'Profil de Mine'!H37,'Profil de Mine'!H54,'Profil de Mine'!H71) -> 0 | J127: =CHOOSE($H$111,'Profil de Mine'!I20,'Profil de Mine'!I37,'Profil de Mine'!I54,'Profil de Mine'!I71) -> 0 | K127: =CHOOSE($H$111,'Profil de Mine'!J20,'Profil de Mine'!J37,'Profil de Mine'!J54,'Profil de Mine'!J71) -> 0 | L127: =CHOOSE($H$111,'Profil de Mine'!K20,'Profil de Mine'!K37,'Profil de Mine'!K54,'Profil de Mine'!K71) -> 0 | M127: =CHOOSE($H$111,'Profil de Mine'!L20,'Profil de Mine'!L37,'Profil de Mine'!L54,'Profil de Mine'!L71) -> 0 | N127: =CHOOSE($H$111,'Profil de Mine'!M20,'Profil de Mine'!M37,'Profil de Mine'!M54,'Profil de Mine'!M71) -> 0 | O127: =CHOOSE($H$111,'Profil de Mine'!N20,'Profil de Mine'!N37,'Profil de Mine'!N54,'Profil de Mine'!N71) -> 0 | P127: =CHOOSE($H$111,'Profil de Mine'!O20,'Profil de Mine'!O37,'Profil de Mine'!O54,'Profil de Mine'!O71) -> 0 | Q127: =CHOOSE($H$111,'Profil de Mine'!P20,'Profil de Mine'!P37,'Profil de Mine'!P54,'Profil de Mine'!P71) -> 0 | R127: =CHOOSE($H$111,'Profil de Mine'!Q20,'Profil de Mine'!Q37,'Profil de Mine'!Q54,'Profil de Mine'!Q71) -> 0 | S127: =CHOOSE($H$111,'Profil de Mine'!R20,'Profil de Mine'!R37,'Profil de Mine'!R54,'Profil de Mine'!R71) -> 0 | T127: =CHOOSE($H$111,'Profil de Mine'!S20,'Profil de Mine'!S37,'Profil de Mine'!S54,'Profil de Mine'!S71) -> 0 | U127: =CHOOSE($H$111,'Profil de Mine'!T20,'Profil de Mine'!T37,'Profil de Mine'!T54,'Profil de Mine'!T71) -> 0 | V127: =CHOOSE($H$111,'Profil de Mine'!U20,'Profil de Mine'!U37,'Profil de Mine'!U54,'Profil de Mine'!U71) -> 0 | W127: =CHOOSE($H$111,'Profil de Mine'!V20,'Profil de Mine'!V37,'Profil de Mine'!V54,'Profil de Mine'!V71) -> 0 | X127: =CHOOSE($H$111,'Profil de Mine'!W20,'Profil de Mine'!W37,'Profil de Mine'!W54,'Profil de Mine'!W71) -> 0 | Y127: =CHOOSE($H$111,'Profil de Mine'!X20,'Profil de Mine'!X37,'Profil de Mine'!X54,'Profil de Mine'!X71) -> 0 | Z127: =CHOOSE($H$111,'Profil de Mine'!Y20,'Profil de Mine'!Y37,'Profil de Mine'!Y54,'Profil de Mine'!Y71) -> 0 | AA127: =CHOOSE($H$111,'Profil de Mine'!Z20,'Profil de Mine'!Z37,'Profil de Mine'!Z54,'Profil de Mine'!Z71) -> 0 | AB127: =CHOOSE($H$111,'Profil de Mine'!AA20,'Profil de Mine'!AA37,'Profil de Mine'!AA54,'Profil de Mine'!AA71) -> 0 | AC127: =CHOOSE($H$111,'Profil de Mine'!AB20,'Profil de Mine'!AB37,'Profil de Mine'!AB54,'Profil de Mine'!AB71) -> 0 | AD127: =CHOOSE($H$111,'Profil de Mine'!AC20,'Profil de Mine'!AC37,'Profil de Mine'!AC54,'Profil de Mine'!AC71) -> 0 | AE127: =CHOOSE($H$111,'Profil de Mine'!AD20,'Profil de Mine'!AD37,'Profil de Mine'!AD54,'Profil de Mine'!AD71) -> 0 | AF127: =CHOOSE($H$111,'Profil de Mine'!AE20,'Profil de Mine'!AE37,'Profil de Mine'!AE54,'Profil de Mine'!AE71) -> 0 | AG127: =CHOOSE($H$111,'Profil de Mine'!AF20,'Profil de Mine'!AF37,'Profil de Mine'!AF54,'Profil de Mine'!AF71) -> 0 | AH127: =CHOOSE($H$111,'Profil de Mine'!AG20,'Profil de Mine'!AG37,'Profil de Mine'!AG54,'Profil de Mine'!AG71) -> 0 | AI127: =CHOOSE($H$111,'Profil de Mine'!AH20,'Profil de Mine'!AH37,'Profil de Mine'!AH54,'Profil de Mine'!AH71) -> 0 | AJ127: =CHOOSE($H$111,'Profil de Mine'!AI20,'Profil de Mine'!AI37,'Profil de Mine'!AI54,'Profil de Mine'!AI71) -> 0 | AK127: =CHOOSE($H$111,'Profil de Mine'!AJ20,'Profil de Mine'!AJ37,'Profil de Mine'!AJ54,'Profil de Mine'!AJ71) -> 0 | AL127: =CHOOSE($H$111,'Profil de Mine'!AK20,'Profil de Mine'!AK37,'Profil de Mine'!AK54,'Profil de Mine'!AK71) -> 0 | AM127: =CHOOSE($H$111,'Profil de Mine'!AL20,'Profil de Mine'!AL37,'Profil de Mine'!AL54,'Profil de Mine'!AL71) -> 0 | AN127: =CHOOSE($H$111,'Profil de Mine'!AM20,'Profil de Mine'!AM37,'Profil de Mine'!AM54,'Profil de Mine'!AM71) -> 0 | AO127: =CHOOSE($H$111,'Profil de Mine'!AN20,'Profil de Mine'!AN37,'Profil de Mine'!AN54,'Profil de Mine'!AN71) -> 0 | AP127: =CHOOSE($H$111,'Profil de Mine'!AO20,'Profil de Mine'!AO37,'Profil de Mine'!AO54,'Profil de Mine'!AO71) -> 0 | AQ127: =CHOOSE($H$111,'Profil de Mine'!AP20,'Profil de Mine'!AP37,'Profil de Mine'!AP54,'Profil de Mine'!AP71) -> 0 | AR127: =CHOOSE($H$111,'Profil de Mine'!AQ20,'Profil de Mine'!AQ37,'Profil de Mine'!AQ54,'Profil de Mine'!AQ71) -> 0 | AS127: =CHOOSE($H$111,'Profil de Mine'!AR20,'Profil de Mine'!AR37,'Profil de Mine'!AR54,'Profil de Mine'!AR71) -> 0 | AT127: =CHOOSE($H$111,'Profil de Mine'!AS20,'Profil de Mine'!AS37,'Profil de Mine'!AS54,'Profil de Mine'!AS71) -> 0 | AU127: =CHOOSE($H$111,'Profil de Mine'!AT20,'Profil de Mine'!AT37,'Profil de Mine'!AT54,'Profil de Mine'!AT71) -> 0 | AV127: =CHOOSE($H$111,'Profil de Mine'!AU20,'Profil de Mine'!AU37,'Profil de Mine'!AU54,'Profil de Mine'!AU71) -> 0 | AW127: =CHOOSE($H$111,'Profil de Mine'!AV20,'Profil de Mine'!AV37,'Profil de Mine'!AV54,'Profil de Mine'!AV71) -> 0 | AX127: =CHOOSE($H$111,'Profil de Mine'!AW20,'Profil de Mine'!AW37,'Profil de Mine'!AW54,'Profil de Mine'!AW71) -> 0 | AY127: =CHOOSE($H$111,'Profil de Mine'!AX20,'Profil de Mine'!AX37,'Profil de Mine'!AX54,'Profil de Mine'!AX71) -> 0 | AZ127: =CHOOSE($H$111,'Profil de Mine'!AY20,'Profil de Mine'!AY37,'Profil de Mine'!AY54,'Profil de Mine'!AY71) -> 0 | BA127: =CHOOSE($H$111,'Profil de Mine'!AZ20,'Profil de Mine'!AZ37,'Profil de Mine'!AZ54,'Profil de Mine'!AZ71) -> 0 | BB127: =CHOOSE($H$111,'Profil de Mine'!BA20,'Profil de Mine'!BA37,'Profil de Mine'!BA54,'Profil de Mine'!BA71) -> 0 | BC127: =CHOOSE($H$111,'Profil de Mine'!BB20,'Profil de Mine'!BB37,'Profil de Mine'!BB54,'Profil de Mine'!BB71) -> 0 | BD127: =CHOOSE($H$111,'Profil de Mine'!BC20,'Profil de Mine'!BC37,'Profil de Mine'!BC54,'Profil de Mine'!BC71) -> 0
C128: 0 | D128: Parafiscalité | E128: $mm reel | G128: =CHOOSE($H$111,'Profil de Mine'!F21,'Profil de Mine'!F38,'Profil de Mine'!F55,'Profil de Mine'!F72) -> 0 | H128: =CHOOSE($H$111,'Profil de Mine'!G21,'Profil de Mine'!G38,'Profil de Mine'!G55,'Profil de Mine'!G72) -> 0 | I128: =CHOOSE($H$111,'Profil de Mine'!H21,'Profil de Mine'!H38,'Profil de Mine'!H55,'Profil de Mine'!H72) -> 0 | J128: =CHOOSE($H$111,'Profil de Mine'!I21,'Profil de Mine'!I38,'Profil de Mine'!I55,'Profil de Mine'!I72) -> 0 | K128: =CHOOSE($H$111,'Profil de Mine'!J21,'Profil de Mine'!J38,'Profil de Mine'!J55,'Profil de Mine'!J72) -> 0 | L128: =CHOOSE($H$111,'Profil de Mine'!K21,'Profil de Mine'!K38,'Profil de Mine'!K55,'Profil de Mine'!K72) -> 0 | M128: =CHOOSE($H$111,'Profil de Mine'!L21,'Profil de Mine'!L38,'Profil de Mine'!L55,'Profil de Mine'!L72) -> 0 | N128: =CHOOSE($H$111,'Profil de Mine'!M21,'Profil de Mine'!M38,'Profil de Mine'!M55,'Profil de Mine'!M72) -> 0 | O128: =CHOOSE($H$111,'Profil de Mine'!N21,'Profil de Mine'!N38,'Profil de Mine'!N55,'Profil de Mine'!N72) -> 0 | P128: =CHOOSE($H$111,'Profil de Mine'!O21,'Profil de Mine'!O38,'Profil de Mine'!O55,'Profil de Mine'!O72) -> 0 | Q128: =CHOOSE($H$111,'Profil de Mine'!P21,'Profil de Mine'!P38,'Profil de Mine'!P55,'Profil de Mine'!P72) -> 0 | R128: =CHOOSE($H$111,'Profil de Mine'!Q21,'Profil de Mine'!Q38,'Profil de Mine'!Q55,'Profil de Mine'!Q72) -> 0 | S128: =CHOOSE($H$111,'Profil de Mine'!R21,'Profil de Mine'!R38,'Profil de Mine'!R55,'Profil de Mine'!R72) -> 0 | T128: =CHOOSE($H$111,'Profil de Mine'!S21,'Profil de Mine'!S38,'Profil de Mine'!S55,'Profil de Mine'!S72) -> 0 | U128: =CHOOSE($H$111,'Profil de Mine'!T21,'Profil de Mine'!T38,'Profil de Mine'!T55,'Profil de Mine'!T72) -> 0 | V128: =CHOOSE($H$111,'Profil de Mine'!U21,'Profil de Mine'!U38,'Profil de Mine'!U55,'Profil de Mine'!U72) -> 0 | W128: =CHOOSE($H$111,'Profil de Mine'!V21,'Profil de Mine'!V38,'Profil de Mine'!V55,'Profil de Mine'!V72) -> 0 | X128: =CHOOSE($H$111,'Profil de Mine'!W21,'Profil de Mine'!W38,'Profil de Mine'!W55,'Profil de Mine'!W72) -> 0 | Y128: =CHOOSE($H$111,'Profil de Mine'!X21,'Profil de Mine'!X38,'Profil de Mine'!X55,'Profil de Mine'!X72) -> 0 | Z128: =CHOOSE($H$111,'Profil de Mine'!Y21,'Profil de Mine'!Y38,'Profil de Mine'!Y55,'Profil de Mine'!Y72) -> 0 | AA128: =CHOOSE($H$111,'Profil de Mine'!Z21,'Profil de Mine'!Z38,'Profil de Mine'!Z55,'Profil de Mine'!Z72) -> 0 | AB128: =CHOOSE($H$111,'Profil de Mine'!AA21,'Profil de Mine'!AA38,'Profil de Mine'!AA55,'Profil de Mine'!AA72) -> 0 | AC128: =CHOOSE($H$111,'Profil de Mine'!AB21,'Profil de Mine'!AB38,'Profil de Mine'!AB55,'Profil de Mine'!AB72) -> 0 | AD128: =CHOOSE($H$111,'Profil de Mine'!AC21,'Profil de Mine'!AC38,'Profil de Mine'!AC55,'Profil de Mine'!AC72) -> 0 | AE128: =CHOOSE($H$111,'Profil de Mine'!AD21,'Profil de Mine'!AD38,'Profil de Mine'!AD55,'Profil de Mine'!AD72) -> 0 | AF128: =CHOOSE($H$111,'Profil de Mine'!AE21,'Profil de Mine'!AE38,'Profil de Mine'!AE55,'Profil de Mine'!AE72) -> 0 | AG128: =CHOOSE($H$111,'Profil de Mine'!AF21,'Profil de Mine'!AF38,'Profil de Mine'!AF55,'Profil de Mine'!AF72) -> 0 | AH128: =CHOOSE($H$111,'Profil de Mine'!AG21,'Profil de Mine'!AG38,'Profil de Mine'!AG55,'Profil de Mine'!AG72) -> 0 | AI128: =CHOOSE($H$111,'Profil de Mine'!AH21,'Profil de Mine'!AH38,'Profil de Mine'!AH55,'Profil de Mine'!AH72) -> 0 | AJ128: =CHOOSE($H$111,'Profil de Mine'!AI21,'Profil de Mine'!AI38,'Profil de Mine'!AI55,'Profil de Mine'!AI72) -> 0 | AK128: =CHOOSE($H$111,'Profil de Mine'!AJ21,'Profil de Mine'!AJ38,'Profil de Mine'!AJ55,'Profil de Mine'!AJ72) -> 0 | AL128: =CHOOSE($H$111,'Profil de Mine'!AK21,'Profil de Mine'!AK38,'Profil de Mine'!AK55,'Profil de Mine'!AK72) -> 0 | AM128: =CHOOSE($H$111,'Profil de Mine'!AL21,'Profil de Mine'!AL38,'Profil de Mine'!AL55,'Profil de Mine'!AL72) -> 0 | AN128: =CHOOSE($H$111,'Profil de Mine'!AM21,'Profil de Mine'!AM38,'Profil de Mine'!AM55,'Profil de Mine'!AM72) -> 0 | AO128: =CHOOSE($H$111,'Profil de Mine'!AN21,'Profil de Mine'!AN38,'Profil de Mine'!AN55,'Profil de Mine'!AN72) -> 0 | AP128: =CHOOSE($H$111,'Profil de Mine'!AO21,'Profil de Mine'!AO38,'Profil de Mine'!AO55,'Profil de Mine'!AO72) -> 0 | AQ128: =CHOOSE($H$111,'Profil de Mine'!AP21,'Profil de Mine'!AP38,'Profil de Mine'!AP55,'Profil de Mine'!AP72) -> 0 | AR128: =CHOOSE($H$111,'Profil de Mine'!AQ21,'Profil de Mine'!AQ38,'Profil de Mine'!AQ55,'Profil de Mine'!AQ72) -> 0 | AS128: =CHOOSE($H$111,'Profil de Mine'!AR21,'Profil de Mine'!AR38,'Profil de Mine'!AR55,'Profil de Mine'!AR72) -> 0 | AT128: =CHOOSE($H$111,'Profil de Mine'!AS21,'Profil de Mine'!AS38,'Profil de Mine'!AS55,'Profil de Mine'!AS72) -> 0 | AU128: =CHOOSE($H$111,'Profil de Mine'!AT21,'Profil de Mine'!AT38,'Profil de Mine'!AT55,'Profil de Mine'!AT72) -> 0 | AV128: =CHOOSE($H$111,'Profil de Mine'!AU21,'Profil de Mine'!AU38,'Profil de Mine'!AU55,'Profil de Mine'!AU72) -> 0 | AW128: =CHOOSE($H$111,'Profil de Mine'!AV21,'Profil de Mine'!AV38,'Profil de Mine'!AV55,'Profil de Mine'!AV72) -> 0 | AX128: =CHOOSE($H$111,'Profil de Mine'!AW21,'Profil de Mine'!AW38,'Profil de Mine'!AW55,'Profil de Mine'!AW72) -> 0 | AY128: =CHOOSE($H$111,'Profil de Mine'!AX21,'Profil de Mine'!AX38,'Profil de Mine'!AX55,'Profil de Mine'!AX72) -> 0 | AZ128: =CHOOSE($H$111,'Profil de Mine'!AY21,'Profil de Mine'!AY38,'Profil de Mine'!AY55,'Profil de Mine'!AY72) -> 0 | BA128: =CHOOSE($H$111,'Profil de Mine'!AZ21,'Profil de Mine'!AZ38,'Profil de Mine'!AZ55,'Profil de Mine'!AZ72) -> 0 | BB128: =CHOOSE($H$111,'Profil de Mine'!BA21,'Profil de Mine'!BA38,'Profil de Mine'!BA55,'Profil de Mine'!BA72) -> 0 | BC128: =CHOOSE($H$111,'Profil de Mine'!BB21,'Profil de Mine'!BB38,'Profil de Mine'!BB55,'Profil de Mine'!BB72) -> 0 | BD128: =CHOOSE($H$111,'Profil de Mine'!BC21,'Profil de Mine'!BC38,'Profil de Mine'!BC55,'Profil de Mine'!BC72) -> 0
C129: 0 | D129: Couts de fermeture et de rehabilitation | E129: $mm reel | G129: =CHOOSE($H$111,'Profil de Mine'!F22,'Profil de Mine'!F39,'Profil de Mine'!F56,'Profil de Mine'!F73) -> 0 | H129: =CHOOSE($H$111,'Profil de Mine'!G22,'Profil de Mine'!G39,'Profil de Mine'!G56,'Profil de Mine'!G73) -> 0 | I129: =CHOOSE($H$111,'Profil de Mine'!H22,'Profil de Mine'!H39,'Profil de Mine'!H56,'Profil de Mine'!H73) -> 0 | J129: =CHOOSE($H$111,'Profil de Mine'!I22,'Profil de Mine'!I39,'Profil de Mine'!I56,'Profil de Mine'!I73) -> 0 | K129: =CHOOSE($H$111,'Profil de Mine'!J22,'Profil de Mine'!J39,'Profil de Mine'!J56,'Profil de Mine'!J73) -> 0 | L129: =CHOOSE($H$111,'Profil de Mine'!K22,'Profil de Mine'!K39,'Profil de Mine'!K56,'Profil de Mine'!K73) -> 0 | M129: =CHOOSE($H$111,'Profil de Mine'!L22,'Profil de Mine'!L39,'Profil de Mine'!L56,'Profil de Mine'!L73) -> 0 | N129: =CHOOSE($H$111,'Profil de Mine'!M22,'Profil de Mine'!M39,'Profil de Mine'!M56,'Profil de Mine'!M73) -> 0 | O129: =CHOOSE($H$111,'Profil de Mine'!N22,'Profil de Mine'!N39,'Profil de Mine'!N56,'Profil de Mine'!N73) -> 0 | P129: =CHOOSE($H$111,'Profil de Mine'!O22,'Profil de Mine'!O39,'Profil de Mine'!O56,'Profil de Mine'!O73) -> 0 | Q129: =CHOOSE($H$111,'Profil de Mine'!P22,'Profil de Mine'!P39,'Profil de Mine'!P56,'Profil de Mine'!P73) -> 0 | R129: =CHOOSE($H$111,'Profil de Mine'!Q22,'Profil de Mine'!Q39,'Profil de Mine'!Q56,'Profil de Mine'!Q73) -> 0 | S129: =CHOOSE($H$111,'Profil de Mine'!R22,'Profil de Mine'!R39,'Profil de Mine'!R56,'Profil de Mine'!R73) -> 0 | T129: =CHOOSE($H$111,'Profil de Mine'!S22,'Profil de Mine'!S39,'Profil de Mine'!S56,'Profil de Mine'!S73) -> 0 | U129: =CHOOSE($H$111,'Profil de Mine'!T22,'Profil de Mine'!T39,'Profil de Mine'!T56,'Profil de Mine'!T73) -> 0 | V129: =CHOOSE($H$111,'Profil de Mine'!U22,'Profil de Mine'!U39,'Profil de Mine'!U56,'Profil de Mine'!U73) -> 0 | W129: =CHOOSE($H$111,'Profil de Mine'!V22,'Profil de Mine'!V39,'Profil de Mine'!V56,'Profil de Mine'!V73) -> 0 | X129: =CHOOSE($H$111,'Profil de Mine'!W22,'Profil de Mine'!W39,'Profil de Mine'!W56,'Profil de Mine'!W73) -> 0 | Y129: =CHOOSE($H$111,'Profil de Mine'!X22,'Profil de Mine'!X39,'Profil de Mine'!X56,'Profil de Mine'!X73) -> 0 | Z129: =CHOOSE($H$111,'Profil de Mine'!Y22,'Profil de Mine'!Y39,'Profil de Mine'!Y56,'Profil de Mine'!Y73) -> 0 | AA129: =CHOOSE($H$111,'Profil de Mine'!Z22,'Profil de Mine'!Z39,'Profil de Mine'!Z56,'Profil de Mine'!Z73) -> 0 | AB129: =CHOOSE($H$111,'Profil de Mine'!AA22,'Profil de Mine'!AA39,'Profil de Mine'!AA56,'Profil de Mine'!AA73) -> 0 | AC129: =CHOOSE($H$111,'Profil de Mine'!AB22,'Profil de Mine'!AB39,'Profil de Mine'!AB56,'Profil de Mine'!AB73) -> 0 | AD129: =CHOOSE($H$111,'Profil de Mine'!AC22,'Profil de Mine'!AC39,'Profil de Mine'!AC56,'Profil de Mine'!AC73) -> 0 | AE129: =CHOOSE($H$111,'Profil de Mine'!AD22,'Profil de Mine'!AD39,'Profil de Mine'!AD56,'Profil de Mine'!AD73) -> 0 | AF129: =CHOOSE($H$111,'Profil de Mine'!AE22,'Profil de Mine'!AE39,'Profil de Mine'!AE56,'Profil de Mine'!AE73) -> 0 | AG129: =CHOOSE($H$111,'Profil de Mine'!AF22,'Profil de Mine'!AF39,'Profil de Mine'!AF56,'Profil de Mine'!AF73) -> 0 | AH129: =CHOOSE($H$111,'Profil de Mine'!AG22,'Profil de Mine'!AG39,'Profil de Mine'!AG56,'Profil de Mine'!AG73) -> 0 | AI129: =CHOOSE($H$111,'Profil de Mine'!AH22,'Profil de Mine'!AH39,'Profil de Mine'!AH56,'Profil de Mine'!AH73) -> 0 | AJ129: =CHOOSE($H$111,'Profil de Mine'!AI22,'Profil de Mine'!AI39,'Profil de Mine'!AI56,'Profil de Mine'!AI73) -> 0 | AK129: =CHOOSE($H$111,'Profil de Mine'!AJ22,'Profil de Mine'!AJ39,'Profil de Mine'!AJ56,'Profil de Mine'!AJ73) -> 0 | AL129: =CHOOSE($H$111,'Profil de Mine'!AK22,'Profil de Mine'!AK39,'Profil de Mine'!AK56,'Profil de Mine'!AK73) -> 0 | AM129: =CHOOSE($H$111,'Profil de Mine'!AL22,'Profil de Mine'!AL39,'Profil de Mine'!AL56,'Profil de Mine'!AL73) -> 0 | AN129: =CHOOSE($H$111,'Profil de Mine'!AM22,'Profil de Mine'!AM39,'Profil de Mine'!AM56,'Profil de Mine'!AM73) -> 0 | AO129: =CHOOSE($H$111,'Profil de Mine'!AN22,'Profil de Mine'!AN39,'Profil de Mine'!AN56,'Profil de Mine'!AN73) -> 0 | AP129: =CHOOSE($H$111,'Profil de Mine'!AO22,'Profil de Mine'!AO39,'Profil de Mine'!AO56,'Profil de Mine'!AO73) -> 0 | AQ129: =CHOOSE($H$111,'Profil de Mine'!AP22,'Profil de Mine'!AP39,'Profil de Mine'!AP56,'Profil de Mine'!AP73) -> 0 | AR129: =CHOOSE($H$111,'Profil de Mine'!AQ22,'Profil de Mine'!AQ39,'Profil de Mine'!AQ56,'Profil de Mine'!AQ73) -> 0 | AS129: =CHOOSE($H$111,'Profil de Mine'!AR22,'Profil de Mine'!AR39,'Profil de Mine'!AR56,'Profil de Mine'!AR73) -> 0 | AT129: =CHOOSE($H$111,'Profil de Mine'!AS22,'Profil de Mine'!AS39,'Profil de Mine'!AS56,'Profil de Mine'!AS73) -> 0 | AU129: =CHOOSE($H$111,'Profil de Mine'!AT22,'Profil de Mine'!AT39,'Profil de Mine'!AT56,'Profil de Mine'!AT73) -> 0 | AV129: =CHOOSE($H$111,'Profil de Mine'!AU22,'Profil de Mine'!AU39,'Profil de Mine'!AU56,'Profil de Mine'!AU73) -> 0 | AW129: =CHOOSE($H$111,'Profil de Mine'!AV22,'Profil de Mine'!AV39,'Profil de Mine'!AV56,'Profil de Mine'!AV73) -> 0 | AX129: =CHOOSE($H$111,'Profil de Mine'!AW22,'Profil de Mine'!AW39,'Profil de Mine'!AW56,'Profil de Mine'!AW73) -> 0 | AY129: =CHOOSE($H$111,'Profil de Mine'!AX22,'Profil de Mine'!AX39,'Profil de Mine'!AX56,'Profil de Mine'!AX73) -> 0 | AZ129: =CHOOSE($H$111,'Profil de Mine'!AY22,'Profil de Mine'!AY39,'Profil de Mine'!AY56,'Profil de Mine'!AY73) -> 0 | BA129: =CHOOSE($H$111,'Profil de Mine'!AZ22,'Profil de Mine'!AZ39,'Profil de Mine'!AZ56,'Profil de Mine'!AZ73) -> 0 | BB129: =CHOOSE($H$111,'Profil de Mine'!BA22,'Profil de Mine'!BA39,'Profil de Mine'!BA56,'Profil de Mine'!BA73) -> 0 | BC129: =CHOOSE($H$111,'Profil de Mine'!BB22,'Profil de Mine'!BB39,'Profil de Mine'!BB56,'Profil de Mine'!BB73) -> 0 | BD129: =CHOOSE($H$111,'Profil de Mine'!BC22,'Profil de Mine'!BC39,'Profil de Mine'!BC56,'Profil de Mine'!BC73) -> 0
D132: Conversion des unites
D134: livres en tonnes | E134: 2204.622622
D136: NE PAS SUPPRIMER - variables utilisees pour les calculs de sensibilite
D138: Prix - cuivre | F138: =Modèle!E584 -> 7000
D139: Prix - cobalt | F139: =Modèle!E585 -> 55800
D140: Selection du regime fiscal | F140: =Modèle!F431 -> 1
D141: Couts

Sheet Modèle
A2: Verification: | C2: =AND(A:A) -> TRUE | E2: year | G2: 1 | H2: =G2+1 -> 2 | I2: 3 | J2: 4 | K2: 5 | L2: 6 | M2: 7 | N2: 8 | O2: 9 | P2: 10 | Q2: 11 | R2: 12 | S2: 13 | T2: 14 | U2: 15 | V2: 16 | W2: 17 | X2: 18 | Y2: 19 | Z2: 20 | AA2: 21 | AB2: 22 | AC2: 23 | AD2: 24 | AE2: 25 | AF2: 26 | AG2: 27 | AH2: 28 | AI2: 29 | AJ2: 30 | AK2: 31 | AL2: 32 | AM2: 33 | AN2: =AM2+1 -> 34 | AO2: 35 | AP2: 36 | AQ2: 37 | AR2: 38 | AS2: 39 | AT2: 40 | AU2: 41 | AV2: 42 | AW2: 43 | AX2: 44 | AY2: 45 | AZ2: 46 | BA2: 47 | BB2: 48 | BC2: 49 | BD2: 50
A4: Flux de tresorerie du projet
D7: Flux de tresorerie du projet avant impots: reel | E7: annee | G7: =G$2 -> 1 | H7: 2 | I7: 3 | J7: 4 | K7: 5 | L7: 6 | M7: 7 | N7: 8 | O7: 9 | P7: 10 | Q7: 11 | R7: 12 | S7: 13 | T7: 14 | U7: 15 | V7: 16 | W7: 17 | X7: 18 | Y7: 19 | Z7: 20 | AA7: 21 | AB7: 22 | AC7: 23 | AD7: 24 | AE7: 25 | AF7: 26 | AG7: 27 | AH7: 28 | AI7: 29 | AJ7: 30 | AK7: 31 | AL7: 32 | AM7: =AM$2 -> 33 | AN7: 34 | AO7: 35 | AP7: 36 | AQ7: 37 | AR7: 38 | AS7: 39 | AT7: 40 | AU7: 41 | AV7: 42 | AW7: 43 | AX7: 44 | AY7: 45 | AZ7: 46 | BA7: 47 | BB7: 48 | BC7: 49 | BD7: 50
C8: =SUM(G8:BD8) -> 424226.6903 | D8: Production - cuivre | E8: tonnes | G8: =Paramètres!G115 -> 0 | H8: =Paramètres!H115 -> 0 | I8: =Paramètres!I115 -> 0 | J8: =Paramètres!J115 -> 0 | K8: =Paramètres!K115 -> 0 | L8: =Paramètres!L115 -> 25373.96431 | M8: =Paramètres!M115 -> 31328.72772 | N8: =Paramètres!N115 -> 26975.99983 | O8: =Paramètres!O115 -> 34646.99936 | P8: =Paramètres!P115 -> 37169.99817 | Q8: =Paramètres!Q115 -> 35055.99976 | R8: =Paramètres!R115 -> 32129.00162 | S8: =Paramètres!S115 -> 31545.99953 | T8: =Paramètres!T115 -> 26000 | U8: =Paramètres!U115 -> 26000 | V8: =Paramètres!V115 -> 26000 | W8: =Paramètres!W115 -> 25000 | X8: =Paramètres!X115 -> 24000 | Y8: =Paramètres!Y115 -> 24000 | Z8: =Paramètres!Z115 -> 19000 | AA8: =Paramètres!AA115 -> 0 | AB8: =Paramètres!AB115 -> 0 | AC8: =Paramètres!AC115 -> 0 | AD8: =Paramètres!AD115 -> 0 | AE8: =Paramètres!AE115 -> 0 | AF8: =Paramètres!AF115 -> 0 | AG8: =Paramètres!AG115 -> 0 | AH8: =Paramètres!AH115 -> 0 | AI8: =Paramètres!AI115 -> 0 | AJ8: =Paramètres!AJ115 -> 0 | AK8: =Paramètres!AK115 -> 0 | AL8: =Paramètres!AL115 -> 0 | AM8: =Paramètres!AM115 -> 0 | AN8: =Paramètres!AN115 -> 0 | AO8: =Paramètres!AO115 -> 0 | AP8: =Paramètres!AP115 -> 0 | AQ8: =Paramètres!AQ115 -> 0 | AR8: =Paramètres!AR115 -> 0 | AS8: =Paramètres!AS115 -> 0 | AT8: =Paramètres!AT115 -> 0 | AU8: =Paramètres!AU115 -> 0 | AV8: =Paramètres!AV115 -> 0 | AW8: =Paramètres!AW115 -> 0 | AX8: =Paramètres!AX115 -> 0 | AY8: =Paramètres!AY115 -> 0 | AZ8: =Paramètres!AZ115 -> 0 | BA8: =Paramètres!BA115 -> 0 | BB8: =Paramètres!BB115 -> 0 | BC8: =Paramètres!BC115 -> 0 | BD8: =Paramètres!BD115 -> 0
C9: 38695.86021 | D9: Production - cobalt | E9: tonnes | G9: =Paramètres!G116 -> 0 | H9: =Paramètres!H116 -> 0 | I9: =Paramètres!I116 -> 0 | J9: =Paramètres!J116 -> 0 | K9: =Paramètres!K116 -> 0 | L9: =Paramètres!L116 -> 2208.451033 | M9: =Paramètres!M116 -> 2268.906116 | N9: =Paramètres!N116 -> 2063.800097 | O9: =Paramètres!O116 -> 2090.393066 | P9: =Paramètres!P116 -> 2700.074911 | Q9: =Paramètres!Q116 -> 3019.079924 | R9: =Paramètres!R116 -> 2356.745005 | S9: =Paramètres!S116 -> 3223.409891 | T9: =Paramètres!T116 -> 4170.000076 | U9: =Paramètres!U116 -> 3127.500057 | V9: =Paramètres!V116 -> 3127.500057 | W9: =Paramètres!W116 -> 2779.999971 | X9: =Paramètres!X116 -> 2779.999971 | Y9: =Paramètres!Y116 -> 2085.000038 | Z9: =Paramètres!Z116 -> 694.9999928 | AA9: =Paramètres!AA116 -> 0 | AB9: =Paramètres!AB116 -> 0 | AC9: =Paramètres!AC116 -> 0 | AD9: =Paramètres!AD116 -> 0 | AE9: =Paramètres!AE116 -> 0 | AF9: =Paramètres!AF116 -> 0 | AG9: =Paramètres!AG116 -> 0 | AH9: =Paramètres!AH116 -> 0 | AI9: =Paramètres!AI116 -> 0 | AJ9: =Paramètres!AJ116 -> 0 | AK9: =Paramètres!AK116 -> 0 | AL9: =Paramètres!AL116 -> 0 | AM9: =Paramètres!AM116 -> 0 | AN9: =Paramètres!AN116 -> 0 | AO9: =Paramètres!AO116 -> 0 | AP9: =Paramètres!AP116 -> 0 | AQ9: =Paramètres!AQ116 -> 0 | AR9: =Paramètres!AR116 -> 0 | AS9: =Paramètres!AS116 -> 0 | AT9: =Paramètres!AT116 -> 0 | AU9: =Paramètres!AU116 -> 0 | AV9: =Paramètres!AV116 -> 0 | AW9: =Paramètres!AW116 -> 0 | AX9: =Paramètres!AX116 -> 0 | AY9: =Paramètres!AY116 -> 0 | AZ9: =Paramètres!AZ116 -> 0 | BA9: =Paramètres!BA116 -> 0 | BB9: =Paramètres!BB116 -> 0 | BC9: =Paramètres!BC116 -> 0 | BD9: =Paramètres!BD116 -> 0
D10: Prix - cuivre | G10: =Paramètres!G106 -> 7000 | H10: =Paramètres!H106 -> 7000 | I10: =Paramètres!I106 -> 7000 | J10: =Paramètres!J106 -> 7000 | K10: =Paramètres!K106 -> 7000 | L10: =Paramètres!L106 -> 7000 | M10: =Paramètres!M106 -> 7000 | N10: =Paramètres!N106 -> 7000 | O10: =Paramètres!O106 -> 7000 | P10: =Paramètres!P106 -> 7000 | Q10: =Paramètres!Q106 -> 7000 | R10: =Paramètres!R106 -> 7000 | S10: =Paramètres!S106 -> 7000 | T10: =Paramètres!T106 -> 7000 | U10: =Paramètres!U106 -> 7000 | V10: =Paramètres!V106 -> 7000 | W10: =Paramètres!W106 -> 7000 | X10: =Paramètres!X106 -> 7000 | Y10: =Paramètres!Y106 -> 7000 | Z10: =Paramètres!Z106 -> 7000 | AA10: =Paramètres!AA106 -> 7000 | AB10: =Paramètres!AB106 -> 7000 | AC10: =Paramètres!AC106 -> 7000 | AD10: =Paramètres!AD106 -> 7000 | AE10: =Paramètres!AE106 -> 7000 | AF10: =Paramètres!AF106 -> 7000 | AG10: =Paramètres!AG106 -> 7000 | AH10: =Paramètres!AH106 -> 7000 | AI10: =Paramètres!AI106 -> 7000 | AJ10: =Paramètres!AJ106 -> 7000 | AK10: =Paramètres!AK106 -> 7000 | AL10: =Paramètres!AL106 -> 7000 | AM10: =Paramètres!AM106 -> 7000 | AN10: =Paramètres!AN106 -> 7000 | AO10: =Paramètres!AO106 -> 7000 | AP10: =Paramètres!AP106 -> 7000 | AQ10: =Paramètres!AQ106 -> 7000 | AR10: =Paramètres!AR106 -> 7000 | AS10: =Paramètres!AS106 -> 7000 | AT10: =Paramètres!AT106 -> 7000 | AU10: =Paramètres!AU106 -> 7000 | AV10: =Paramètres!AV106 -> 7000 | AW10: =Paramètres!AW106 -> 7000 | AX10: =Paramètres!AX106 -> 7000 | AY10: =Paramètres!AY106 -> 7000 | AZ10: =Paramètres!AZ106 -> 7000 | BA10: =Paramètres!BA106 -> 7000 | BB10: =Paramètres!BB106 -> 7000 | BC10: =Paramètres!BC106 -> 7000 | BD10: =Paramètres!BD106 -> 7000
D11: Prix - cobalt | G11: =Paramètres!G107 -> 55800 | H11: =Paramètres!H107 -> 55800 | I11: =Paramètres!I107 -> 55800 | J11: =Paramètres!J107 -> 55800 | K11: =Paramètres!K107 -> 55800 | L11: =Paramètres!L107 -> 55800 | M11: =Paramètres!M107 -> 55800 | N11: =Paramètres!N107 -> 55800 | O11: =Paramètres!O107 -> 55800 | P11: =Paramètres!P107 -> 55800 | Q11: =Paramètres!Q107 -> 55800 | R11: =Paramètres!R107 -> 55800 | S11: =Paramètres!S107 -> 55800 | T11: =Paramètres!T107 -> 55800 | U11: =Paramètres!U107 -> 55800 | V11: =Paramètres!V107 -> 55800 | W11: =Paramètres!W107 -> 55800 | X11: =Paramètres!X107 -> 55800 | Y11: =Paramètres!Y107 -> 55800 | Z11: =Paramètres!Z107 -> 55800 | AA11: =Paramètres!AA107 -> 55800 | AB11: =Paramètres!AB107 -> 55800 | AC11: =Paramètres!AC107 -> 55800 | AD11: =Paramètres!AD107 -> 55800 | AE11: =Paramètres!AE107 -> 55800 | AF11: =Paramètres!AF107 -> 55800 | AG11: =Paramètres!AG107 -> 55800 | AH11: =Paramètres!AH107 -> 55800 | AI11: =Paramètres!AI107 -> 55800 | AJ11: =Paramètres!AJ107 -> 55800 | AK11: =Paramètres!AK107 -> 55800 | AL11: =Paramètres!AL107 -> 55800 | AM11: =Paramètres!AM107 -> 55800 | AN11: =Paramètres!AN107 -> 55800 | AO11: =Paramètres!AO107 -> 55800 | AP11: =Paramètres!AP107 -> 55800 | AQ11: =Paramètres!AQ107 -> 55800 | AR11: =Paramètres!AR107 -> 55800 | AS11: =Paramètres!AS107 -> 55800 | AT11: =Paramètres!AT107 -> 55800 | AU11: =Paramètres!AU107 -> 55800 | AV11: =Paramètres!AV107 -> 55800 | AW11: =Paramètres!AW107 -> 55800 | AX11: =Paramètres!AX107 -> 55800 | AY11: =Paramètres!AY107 -> 55800 | AZ11: =Paramètres!AZ107 -> 55800 | BA11: =Paramètres!BA107 -> 55800 | BB11: =Paramètres!BB107 -> 55800 | BC11: =Paramètres!BC107 -> 55800 | BD11: =Paramètres!BD107 -> 55800
C12: 2969.586832 | D12: Chiffre d'affaires - cuivre | E12: $mm reel | G12: =G8*G10/1000000 -> 0 | H12: =H8*H10/1000000 -> 0 | I12: 0 | J12: 0 | K12: 0 | L12: 177.6177502 | M12: 219.3010941 | N12: 188.8319988 | O12: 242.5289955 | P12: 260.1899872 | Q12: 245.3919983 | R12: 224.9030113 | S12: 220.8219967 | T12: 182 | U12: 182 | V12: 182 | W12: 175 | X12: 168 | Y12: 168 | Z12: 133 | AA12: 0 | AB12: 0 | AC12: 0 | AD12: 0 | AE12: 0 | AF12: 0 | AG12: 0 | AH12: 0 | AI12: 0 | AJ12: 0 | AK12: 0 | AL12: 0 | AM12: 0 | AN12: 0 | AO12: 0 | AP12: 0 | AQ12: 0 | AR12: 0 | AS12: 0 | AT12: 0 | AU12: 0 | AV12: 0 | AW12: 0 | AX12: 0 | AY12: 0 | AZ12: 0 | BA12: 0 | BB12: 0 | BC12: 0 | BD12: 0
C13: 2159.229 | D13: Chiffre d'affaires - cobalt | E13: $mm reel | G13: =G9*G11/1000000 -> 0 | H13: =H9*H11/1000000 -> 0 | I13: 0 | J13: 0 | K13: 0 | L13: 123.2315676 | M13: 126.6049613 | N13: 115.1600454 | O13: 116.6439331 | P13: 150.66418 | Q13: 168.4646597 | R13: 131.5063713 | S13: 179.8662719 | T13: 232.6860043 | U13: 174.5145032 | V13: 174.5145032 | W13: 155.1239984 | X13: 155.1239984 | Y13: 116.3430021 | Z13: 38.7809996 | AA13: 0 | AB13: 0 | AC13: 0 | AD13: 0 | AE13: 0 | AF13: 0 | AG13: 0 | AH13: 0 | AI13: 0 | AJ13: 0 | AK13: 0 | AL13: 0 | AM13: 0 | AN13: 0 | AO13: 0 | AP13: 0 | AQ13: 0 | AR13: 0 | AS13: 0 | AT13: 0 | AU13: 0 | AV13: 0 | AW13: 0 | AX13: 0 | AY13: 0 | AZ13: 0 | BA13: 0 | BB13: 0 | BC13: 0 | BD13: 0
C14: 5128.815832 | D14: Chiffre d'affaires brut | E14: $mm reel | G14: =G12+G13 -> 0 | H14: =H12+H13 -> 0 | I14: 0 | J14: 0 | K14: 0 | L14: 300.8493178 | M14: 345.9060554 | N14: 303.9920442 | O14: 359.1729286 | P14: 410.8541672 | Q14: 413.856658 | R14: 356.4093826 | S14: 400.6882686 | T14: 414.6860043 | U14: 356.5145032 | V14: 356.5145032 | W14: 330.1239984 | X14: 323.1239984 | Y14: 284.3430021 | Z14: 171.7809996 | AA14: 0 | AB14: 0 | AC14: 0 | AD14: 0 | AE14: 0 | AF14: 0 | AG14: 0 | AH14: 0 | AI14: 0 | AJ14: 0 | AK14: 0 | AL14: 0 | AM14: 0 | AN14: 0 | AO14: 0 | AP14: 0 | AQ14: 0 | AR14: 0 | AS14: 0 | AT14: 0 | AU14: 0 | AV14: 0 | AW14: 0 | AX14: 0 | AY14: 0 | AZ14: 0 | BA14: 0 | BB14: 0 | BC14: 0 | BD14: 0
C15: 251.1122798 | D15: Transport et traitement apres imposition | E15: $mm reel | G15: =Paramètres!G117+Paramètres!G118 -> 0 | H15: =Paramètres!H117+Paramètres!H118 -> 0 | I15: =Paramètres!I117+Paramètres!I118 -> 0 | J15: =Paramètres!J117+Paramètres!J118 -> 0 | K15: =Paramètres!K117+Paramètres!K118 -> 0 | L15: =Paramètres!L117+Paramètres!L118 -> 21.46570914 | M15: =Paramètres!M117+Paramètres!M118 -> 31.19350072 | N15: =Paramètres!N117+Paramètres!N118 -> 20.18787411 | O15: =Paramètres!O117+Paramètres!O118 -> 19.18245611 | P15: =Paramètres!P117+Paramètres!P118 -> 23.68987187 | Q15: =Paramètres!Q117+Paramètres!Q118 -> 17.17941637 | R15: =Paramètres!R117+Paramètres!R118 -> 13.93281416 | S15: =Paramètres!S117+Paramètres!S118 -> 16.05436724 | T15: =Paramètres!T117+Paramètres!T118 -> 15.087972 | U15: =Paramètres!U117+Paramètres!U118 -> 13.809324 | V15: =Paramètres!V117+Paramètres!V118 -> 13.809324 | W15: =Paramètres!W117+Paramètres!W118 -> 12.999528 | X15: =Paramètres!X117+Paramètres!X118 -> 12.615936 | Y15: =Paramètres!Y117+Paramètres!Y118 -> 11.7635016 | Z15: =Paramètres!Z117+Paramètres!Z118 -> 8.1406845 | AA15: =Paramètres!AA117+Paramètres!AA118 -> 0 | AB15: =Paramètres!AB117+Paramètres!AB118 -> 0 | AC15: =Paramètres!AC117+Paramètres!AC118 -> 0 | AD15: =Paramètres!AD117+Paramètres!AD118 -> 0 | AE15: =Paramètres!AE117+Paramètres!AE118 -> 0 | AF15: =Paramètres!AF117+Paramètres!AF118 -> 0 | AG15: =Paramètres!AG117+Paramètres!AG118 -> 0 | AH15: =Paramètres!AH117+Paramètres!AH118 -> 0 | AI15: =Paramètres!AI117+Paramètres!AI118 -> 0 | AJ15: =Paramètres!AJ117+Paramètres!AJ118 -> 0 | AK15: =Paramètres!AK117+Paramètres!AK118 -> 0 | AL15: =Paramètres!AL117+Paramètres!AL118 -> 0 | AM15: =Paramètres!AM117+Paramètres!AM118 -> 0 | AN15: =Paramètres!AN117+Paramètres!AN118 -> 0 | AO15: =Paramètres!AO117+Paramètres!AO118 -> 0 | AP15: =Paramètres!AP117+Paramètres!AP118 -> 0 | AQ15: =Paramètres!AQ117+Paramètres!AQ118 -> 0 | AR15: =Paramètres!AR117+Paramètres!AR118 -> 0 | AS15: =Paramètres!AS117+Paramètres!AS118 -> 0 | AT15: =Paramètres!AT117+Paramètres!AT118 -> 0 | AU15: =Paramètres!AU117+Paramètres!AU118 -> 0 | AV15: =Paramètres!AV117+Paramètres!AV118 -> 0 | AW15: =Paramètres!AW117+Paramètres!AW118 -> 0 | AX15: =Paramètres!AX117+Paramètres!AX118 -> 0 | AY15: =Paramètres!AY117+Paramètres!AY118 -> 0 | AZ15: =Paramètres!AZ117+Paramètres!AZ118 -> 0 | BA15: =Paramètres!BA117+Paramètres!BA118 -> 0 | BB15: =Paramètres!BB117+Paramètres!BB118 -> 0 | BC15: =Paramètres!BC117+Paramètres!BC118 -> 0 | BD15: =Paramètres!BD117+Paramètres!BD118 -> 0
A16: =ROUND(C16-(C14-C15),5)=0 -> TRUE | C16: =SUM(G16:BD16) -> 4877.703552 | D16: Chiffre d'affaires net | E16: $mm reel | G16: =G14-G15 -> 0 | H16: =H14-H15 -> 0 | I16: 0 | J16: 0 | K16: 0 | L16: 279.3836087 | M16: 314.7125546 | N16: 283.8041701 | O16: 339.9904725 | P16: 387.1642954 | Q16: 396.6772417 | R16: 342.4765684 | S16: 384.6339014 | T16: =T14-T15 -> 399.5980323 | U16: 342.7051792 | V16: 342.7051792 | W16: 317.1244704 | X16: 310.5080624 | Y16: 272.5795005 | Z16: 163.6403151 | AA16: 0 | AB16: 0 | AC16: 0 | AD16: 0 | AE16: 0 | AF16: 0 | AG16: 0 | AH16: 0 | AI16: 0 | AJ16: 0 | AK16: 0 | AL16: 0 | AM16: 0 | AN16: 0 | AO16: 0 | AP16: 0 | AQ16: 0 | AR16: 0 | AS16: 0 | AT16: 0 | AU16: 0 | AV16: 0 | AW16: 0 | AX16: 0 | AY16: 0 | AZ16: 0 | BA16: 0 | BB16: 0 | BC16: 0 | BD16: 0
C17: 0 | D17: Couts d’exploration | E17: $mm reel | G17: =Paramètres!G119 -> 0 | H17: =Paramètres!H119 -> 0 | I17: =Paramètres!I119 -> 0 | J17: =Paramètres!J119 -> 0 | K17: =Paramètres!K119 -> 0 | L17: =Paramètres!L119 -> 0 | M17: =Paramètres!M119 -> 0 | N17: =Paramètres!N119 -> 0 | O17: =Paramètres!O119 -> 0 | P17: =Paramètres!P119 -> 0 | Q17: =Paramètres!Q119 -> 0 | R17: =Paramètres!R119 -> 0 | S17: =Paramètres!S119 -> 0 | T17: =Paramètres!T119 -> 0 | U17: =Paramètres!U119 -> 0 | V17: =Paramètres!V119 -> 0 | W17: =Paramètres!W119 -> 0 | X17: =Paramètres!X119 -> 0 | Y17: =Paramètres!Y119 -> 0 | Z17: =Paramètres!Z119 -> 0 | AA17: =Paramètres!AA119 -> 0 | AB17: =Paramètres!AB119 -> 0 | AC17: =Paramètres!AC119 -> 0 | AD17: =Paramètres!AD119 -> 0 | AE17: =Paramètres!AE119 -> 0 | AF17: =Paramètres!AF119 -> 0 | AG17: =Paramètres!AG119 -> 0 | AH17: =Paramètres!AH119 -> 0 | AI17: =Paramètres!AI119 -> 0 | AJ17: =Paramètres!AJ119 -> 0 | AK17: =Paramètres!AK119 -> 0 | AL17: =Paramètres!AL119 -> 0 | AM17: =Paramètres!AM119 -> 0 | AN17: =Paramètres!AN119 -> 0 | AO17: =Paramètres!AO119 -> 0 | AP17: =Paramètres!AP119 -> 0 | AQ17: =Paramètres!AQ119 -> 0 | AR17: =Paramètres!AR119 -> 0 | AS17: =Paramètres!AS119 -> 0 | AT17: =Paramètres!AT119 -> 0 | AU17: =Paramètres!AU119 -> 0 | AV17: =Paramètres!AV119 -> 0 | AW17: =Paramètres!AW119 -> 0 | AX17: =Paramètres!AX119 -> 0 | AY17: =Paramètres!AY119 -> 0 | AZ17: =Paramètres!AZ119 -> 0 | BA17: =Paramètres!BA119 -> 0 | BB17: =Paramètres!BB119 -> 0 | BC17: =Paramètres!BC119 -> 0 | BD17: =Paramètres!BD119 -> 0
C18: 0 | D18: Couts d’investissement en capital - incorporel | E18: $mm reel | G18: =Paramètres!G120 -> 0 | H18: =Paramètres!H120 -> 0 | I18: =Paramètres!I120 -> 0 | J18: =Paramètres!J120 -> 0 | K18: =Paramètres!K120 -> 0 | L18: =Paramètres!L120 -> 0 | M18: =Paramètres!M120 -> 0 | N18: =Paramètres!N120 -> 0 | O18: =Paramètres!O120 -> 0 | P18: =Paramètres!P120 -> 0 | Q18: =Paramètres!Q120 -> 0 | R18: =Paramètres!R120 -> 0 | S18: =Paramètres!S120 -> 0 | T18: =Paramètres!T120 -> 0 | U18: =Paramètres!U120 -> 0 | V18: =Paramètres!V120 -> 0 | W18: =Paramètres!W120 -> 0 | X18: =Paramètres!X120 -> 0 | Y18: =Paramètres!Y120 -> 0 | Z18: =Paramètres!Z120 -> 0 | AA18: =Paramètres!AA120 -> 0 | AB18: =Paramètres!AB120 -> 0 | AC18: =Paramètres!AC120 -> 0 | AD18: =Paramètres!AD120 -> 0 | AE18: =Paramètres!AE120 -> 0 | AF18: =Paramètres!AF120 -> 0 | AG18: =Paramètres!AG120 -> 0 | AH18: =Paramètres!AH120 -> 0 | AI18: =Paramètres!AI120 -> 0 | AJ18: =Paramètres!AJ120 -> 0 | AK18: =Paramètres!AK120 -> 0 | AL18: =Paramètres!AL120 -> 0 | AM18: =Paramètres!AM120 -> 0 | AN18: =Paramètres!AN120 -> 0 | AO18: =Paramètres!AO120 -> 0 | AP18: =Paramètres!AP120 -> 0 | AQ18: =Paramètres!AQ120 -> 0 | AR18: =Paramètres!AR120 -> 0 | AS18: =Paramètres!AS120 -> 0 | AT18: =Paramètres!AT120 -> 0 | AU18: =Paramètres!AU120 -> 0 | AV18: =Paramètres!AV120 -> 0 | AW18: =Paramètres!AW120 -> 0 | AX18: =Paramètres!AX120 -> 0 | AY18: =Paramètres!AY120 -> 0 | AZ18: =Paramètres!AZ120 -> 0 | BA18: =Paramètres!BA120 -> 0 | BB18: =Paramètres!BB120 -> 0 | BC18: =Paramètres!BC120 -> 0 | BD18: =Paramètres!BD120 -> 0
C19: 320.724464 | D19: Couts d’investissement en capital - corporel | E19: $mm reel | G19: =Paramètres!G121 -> 5.723911 | H19: =Paramètres!H121 -> 28.23035 | I19: =Paramètres!I121 -> 101.361458 | J19: =Paramètres!J121 -> 128.20015 | K19: =Paramètres!K121 -> 57.208595 | L19: =Paramètres!L121 -> 0 | M19: =Paramètres!M121 -> 0 | N19: =Paramètres!N121 -> 0 | O19: =Paramètres!O121 -> 0 | P19: =Paramètres!P121 -> 0 | Q19: =Paramètres!Q121 -> 0 | R19: =Paramètres!R121 -> 0 | S19: =Paramètres!S121 -> 0 | T19: =Paramètres!T121 -> 0 | U19: =Paramètres!U121 -> 0 | V19: =Paramètres!V121 -> 0 | W19: =Paramètres!W121 -> 0 | X19: =Paramètres!X121 -> 0 | Y19: =Paramètres!Y121 -> 0 | Z19: =Paramètres!Z121 -> 0 | AA19: =Paramètres!AA121 -> 0 | AB19: =Paramètres!AB121 -> 0 | AC19: =Paramètres!AC121 -> 0 | AD19: =Paramètres!AD121 -> 0 | AE19: =Paramètres!AE121 -> 0 | AF19: =Paramètres!AF121 -> 0 | AG19: =Paramètres!AG121 -> 0 | AH19: =Paramètres!AH121 -> 0 | AI19: =Paramètres!AI121 -> 0 | AJ19: =Paramètres!AJ121 -> 0 | AK19: =Paramètres!AK121 -> 0 | AL19: =Paramètres!AL121 -> 0 | AM19: =Paramètres!AM121 -> 0 | AN19: =Paramètres!AN121 -> 0 | AO19: =Paramètres!AO121 -> 0 | AP19: =Paramètres!AP121 -> 0 | AQ19: =Paramètres!AQ121 -> 0 | AR19: =Paramètres!AR121 -> 0 | AS19: =Paramètres!AS121 -> 0 | AT19: =Paramètres!AT121 -> 0 | AU19: =Paramètres!AU121 -> 0 | AV19: =Paramètres!AV121 -> 0 | AW19: =Paramètres!AW121 -> 0 | AX19: =Paramètres!AX121 -> 0 | AY19: =Paramètres!AY121 -> 0 | AZ19: =Paramètres!AZ121 -> 0 | BA19: =Paramètres!BA121 -> 0 | BB19: =Paramètres!BB121 -> 0 | BC19: =Paramètres!BC121 -> 0 | BD19: =Paramètres!BD121 -> 0
C20: 191.3 | D20: Capital de réinvestissement | E20: $mm reel | G20: =Paramètres!G122 -> 0 | H20: =Paramètres!H122 -> 0 | I20: =Paramètres!I122 -> 0 | J20: =Paramètres!J122 -> 0 | K20: =Paramètres!K122 -> 0 | L20: =Paramètres!L122 -> 40 | M20: =Paramètres!M122 -> 80 | N20: =Paramètres!N122 -> 40 | O20: =Paramètres!O122 -> 18 | P20: =Paramètres!P122 -> 2.3 | Q20: =Paramètres!Q122 -> 2.2 | R20: =Paramètres!R122 -> 1.1 | S20: =Paramètres!S122 -> 1.1 | T20: =Paramètres!T122 -> 1.1 | U20: =Paramètres!U122 -> 1.1 | V20: =Paramètres!V122 -> 1.1 | W20: =Paramètres!W122 -> 1.1 | X20: =Paramètres!X122 -> 1.1 | Y20: =Paramètres!Y122 -> 1.1 | Z20: =Paramètres!Z122 -> 0 | AA20: =Paramètres!AA122 -> 0 | AB20: =Paramètres!AB122 -> 0 | AC20: =Paramètres!AC122 -> 0 | AD20: =Paramètres!AD122 -> 0 | AE20: =Paramètres!AE122 -> 0 | AF20: =Paramètres!AF122 -> 0 | AG20: =Paramètres!AG122 -> 0 | AH20: =Paramètres!AH122 -> 0 | AI20: =Paramètres!AI122 -> 0 | AJ20: =Paramètres!AJ122 -> 0 | AK20: =Paramètres!AK122 -> 0 | AL20: =Paramètres!AL122 -> 0 | AM20: =Paramètres!AM122 -> 0 | AN20: =Paramètres!AN122 -> 0 | AO20: =Paramètres!AO122 -> 0 | AP20: =Paramètres!AP122 -> 0 | AQ20: =Paramètres!AQ122 -> 0 | AR20: =Paramètres!AR122 -> 0 | AS20: =Paramètres!AS122 -> 0 | AT20: =Paramètres!AT122 -> 0 | AU20: =Paramètres!AU122 -> 0 | AV20: =Paramètres!AV122 -> 0 | AW20: =Paramètres!AW122 -> 0 | AX20: =Paramètres!AX122 -> 0 | AY20: =Paramètres!AY122 -> 0 | AZ20: =Paramètres!AZ122 -> 0 | BA20: =Paramètres!BA122 -> 0 | BB20: =Paramètres!BB122 -> 0 | BC20: =Paramètres!BC122 -> 0 | BD20: =Paramètres!BD122 -> 0
C21: 1614.928182 | D21: Couts opérationnels - extraction | E21: $mm reel | G21: =Paramètres!G123 -> 0 | H21: =Paramètres!H123 -> 0 | I21: =Paramètres!I123 -> 0 | J21: =Paramètres!J123 -> 0 | K21: =Paramètres!K123 -> 0 | L21: =Paramètres!L123 -> 112.7059863 | M21: =Paramètres!M123 -> 131.7524922 | N21: =Paramètres!N123 -> 135.5890556 | O21: =Paramètres!O123 -> 142.7704473 | P21: =Paramètres!P123 -> 154.318103 | Q21: =Paramètres!Q123 -> 120.3514161 | R21: =Paramètres!R123 -> 109.4140122 | S21: =Paramètres!S123 -> 107.3113585 | T21: =Paramètres!T123 -> 102.075324 | U21: =Paramètres!U123 -> 90.980448 | V21: =Paramètres!V123 -> 87.096084 | W21: =Paramètres!W123 -> 86.385792 | X21: =Paramètres!X123 -> 85.749276 | Y21: =Paramètres!Y123 -> 85.58352 | Z21: =Paramètres!Z123 -> 62.844867 | AA21: =Paramètres!AA123 -> 0 | AB21: =Paramètres!AB123 -> 0 | AC21: =Paramètres!AC123 -> 0 | AD21: =Paramètres!AD123 -> 0 | AE21: =Paramètres!AE123 -> 0 | AF21: =Paramètres!AF123 -> 0 | AG21: =Paramètres!AG123 -> 0 | AH21: =Paramètres!AH123 -> 0 | AI21: =Paramètres!AI123 -> 0 | AJ21: =Paramètres!AJ123 -> 0 | AK21: =Paramètres!AK123 -> 0 | AL21: =Paramètres!AL123 -> 0 | AM21: =Paramètres!AM123 -> 0 | AN21: =Paramètres!AN123 -> 0 | AO21: =Paramètres!AO123 -> 0 | AP21: =Paramètres!AP123 -> 0 | AQ21: =Paramètres!AQ123 -> 0 | AR21: =Paramètres!AR123 -> 0 | AS21: =Paramètres!AS123 -> 0 | AT21: =Paramètres!AT123 -> 0 | AU21: =Paramètres!AU123 -> 0 | AV21: =Paramètres!AV123 -> 0 | AW21: =Paramètres!AW123 -> 0 | AX21: =Paramètres!AX123 -> 0 | AY21: =Paramètres!AY123 -> 0 | AZ21: =Paramètres!AZ123 -> 0 | BA21: =Paramètres!BA123 -> 0 | BB21: =Paramètres!BB123 -> 0 | BC21: =Paramètres!BC123 -> 0 | BD21: =Paramètres!BD123 -> 0
C22: 0 | D22: Couts opérationnels - broyage | E22: $mm reel | G22: =Paramètres!G124 -> 0 | H22: =Paramètres!H124 -> 0 | I22: =Paramètres!I124 -> 0 | J22: =Paramètres!J124 -> 0 | K22: =Paramètres!K124 -> 0 | L22: =Paramètres!L124 -> 0 | M22: =Paramètres!M124 -> 0 | N22: =Paramètres!N124 -> 0 | O22: =Paramètres!O124 -> 0 | P22: =Paramètres!P124 -> 0 | Q22: =Paramètres!Q124 -> 0 | R22: =Paramètres!R124 -> 0 | S22: =Paramètres!S124 -> 0 | T22: =Paramètres!T124 -> 0 | U22: =Paramètres!U124 -> 0 | V22: =Paramètres!V124 -> 0 | W22: =Paramètres!W124 -> 0 | X22: =Paramètres!X124 -> 0 | Y22: =Paramètres!Y124 -> 0 | Z22: =Paramètres!Z124 -> 0 | AA22: =Paramètres!AA124 -> 0 | AB22: =Paramètres!AB124 -> 0 | AC22: =Paramètres!AC124 -> 0 | AD22: =Paramètres!AD124 -> 0 | AE22: =Paramètres!AE124 -> 0 | AF22: =Paramètres!AF124 -> 0 | AG22: =Paramètres!AG124 -> 0 | AH22: =Paramètres!AH124 -> 0 | AI22: =Paramètres!AI124 -> 0 | AJ22: =Paramètres!AJ124 -> 0 | AK22: =Paramètres!AK124 -> 0 | AL22: =Paramètres!AL124 -> 0 | AM22: =Paramètres!AM124 -> 0 | AN22: =Paramètres!AN124 -> 0 | AO22: =Paramètres!AO124 -> 0 | AP22: =Paramètres!AP124 -> 0 | AQ22: =Paramètres!AQ124 -> 0 | AR22: =Paramètres!AR124 -> 0 | AS22: =Paramètres!AS124 -> 0 | AT22: =Paramètres!AT124 -> 0 | AU22: =Paramètres!AU124 -> 0 | AV22: =Paramètres!AV124 -> 0 | AW22: =Paramètres!AW124 -> 0 | AX22: =Paramètres!AX124 -> 0 | AY22: =Paramètres!AY124 -> 0 | AZ22: =Paramètres!AZ124 -> 0 | BA22: =Paramètres!BA124 -> 0 | BB22: =Paramètres!BB124 -> 0 | BC22: =Paramètres!BC124 -> 0 | BD22: =Paramètres!BD124 -> 0
C23: 0 | D23: Couts opérationnels - autres | E23: $mm reel | G23: =Paramètres!G125 -> 0 | H23: =Paramètres!H125 -> 0 | I23: =Paramètres!I125 -> 0 | J23: =Paramètres!J125 -> 0 | K23: =Paramètres!K125 -> 0 | L23: =Paramètres!L125 -> 0 | M23: =Paramètres!M125 -> 0 | N23: =Paramètres!N125 -> 0 | O23: =Paramètres!O125 -> 0 | P23: =Paramètres!P125 -> 0 | Q23: =Paramètres!Q125 -> 0 | R23: =Paramètres!R125 -> 0 | S23: =Paramètres!S125 -> 0 | T23: =Paramètres!T125 -> 0 | U23: =Paramètres!U125 -> 0 | V23: =Paramètres!V125 -> 0 | W23: =Paramètres!W125 -> 0 | X23: =Paramètres!X125 -> 0 | Y23: =Paramètres!Y125 -> 0 | Z23: =Paramètres!Z125 -> 0 | AA23: =Paramètres!AA125 -> 0 | AB23: =Paramètres!AB125 -> 0 | AC23: =Paramètres!AC125 -> 0 | AD23: =Paramètres!AD125 -> 0 | AE23: =Paramètres!AE125 -> 0 | AF23: =Paramètres!AF125 -> 0 | AG23: =Paramètres!AG125 -> 0 | AH23: =Paramètres!AH125 -> 0 | AI23: =Paramètres!AI125 -> 0 | AJ23: =Paramètres!AJ125 -> 0 | AK23: =Paramètres!AK125 -> 0 | AL23: =Paramètres!AL125 -> 0 | AM23: =Paramètres!AM125 -> 0 | AN23: =Paramètres!AN125 -> 0 | AO23: =Paramètres!AO125 -> 0 | AP23: =Paramètres!AP125 -> 0 | AQ23: =Paramètres!AQ125 -> 0 | AR23: =Paramètres!AR125 -> 0 | AS23: =Paramètres!AS125 -> 0 | AT23: =Paramètres!AT125 -> 0 | AU23: =Paramètres!AU125 -> 0 | AV23: =Paramètres!AV125 -> 0 | AW23: =Paramètres!AW125 -> 0 | AX23: =Paramètres!AX125 -> 0 | AY23: =Paramètres!AY125 -> 0 | AZ23: =Paramètres!AZ125 -> 0 | BA23: =Paramètres!BA125 -> 0 | BB23: =Paramètres!BB125 -> 0 | BC23: =Paramètres!BC125 -> 0 | BD23: =Paramètres!BD125 -> 0
C24: 0 | D24: Couts opérationnels - energie | E24: $mm reel | G24: =Paramètres!G126 -> 0 | H24: =Paramètres!H126 -> 0 | I24: =Paramètres!I126 -> 0 | J24: =Paramètres!J126 -> 0 | K24: =Paramètres!K126 -> 0 | L24: =Paramètres!L126 -> 0 | M24: =Paramètres!M126 -> 0 | N24: =Paramètres!N126 -> 0 | O24: =Paramètres!O126 -> 0 | P24: =Paramètres!P126 -> 0 | Q24: =Paramètres!Q126 -> 0 | R24: =Paramètres!R126 -> 0 | S24: =Paramètres!S126 -> 0 | T24: =Paramètres!T126 -> 0 | U24: =Paramètres!U126 -> 0 | V24: =Paramètres!V126 -> 0 | W24: =Paramètres!W126 -> 0 | X24: =Paramètres!X126 -> 0 | Y24: =Paramètres!Y126 -> 0 | Z24: =Paramètres!Z126 -> 0 | AA24: =Paramètres!AA126 -> 0 | AB24: =Paramètres!AB126 -> 0 | AC24: =Paramètres!AC126 -> 0 | AD24: =Paramètres!AD126 -> 0 | AE24: =Paramètres!AE126 -> 0 | AF24: =Paramètres!AF126 -> 0 | AG24: =Paramètres!AG126 -> 0 | AH24: =Paramètres!AH126 -> 0 | AI24: =Paramètres!AI126 -> 0 | AJ24: =Paramètres!AJ126 -> 0 | AK24: =Paramètres!AK126 -> 0 | AL24: =Paramètres!AL126 -> 0 | AM24: =Paramètres!AM126 -> 0 | AN24: =Paramètres!AN126 -> 0 | AO24: =Paramètres!AO126 -> 0 | AP24: =Paramètres!AP126 -> 0 | AQ24: =Paramètres!AQ126 -> 0 | AR24: =Paramètres!AR126 -> 0 | AS24: =Paramètres!AS126 -> 0 | AT24: =Paramètres!AT126 -> 0 | AU24: =Paramètres!AU126 -> 0 | AV24: =Paramètres!AV126 -> 0 | AW24: =Paramètres!AW126 -> 0 | AX24: =Paramètres!AX126 -> 0 | AY24: =Paramètres!AY126 -> 0 | AZ24: =Paramètres!AZ126 -> 0 | BA24: =Paramètres!BA126 -> 0 | BB24: =Paramètres!BB126 -> 0 | BC24: =Paramètres!BC126 -> 0 | BD24: =Paramètres!BD126 -> 0
C25: 0 | D25: Couts opérationnels - services domestiques | E25: $mm reel | G25: =Paramètres!G127 -> 0 | H25: =Paramètres!H127 -> 0 | I25: =Paramètres!I127 -> 0 | J25: =Paramètres!J127 -> 0 | K25: =Paramètres!K127 -> 0 | L25: =Paramètres!L127 -> 0 | M25: =Paramètres!M127 -> 0 | N25: =Paramètres!N127 -> 0 | O25: =Paramètres!O127 -> 0 | P25: =Paramètres!P127 -> 0 | Q25: =Paramètres!Q127 -> 0 | R25: =Paramètres!R127 -> 0 | S25: =Paramètres!S127 -> 0 | T25: =Paramètres!T127 -> 0 | U25: =Paramètres!U127 -> 0 | V25: =Paramètres!V127 -> 0 | W25: =Paramètres!W127 -> 0 | X25: =Paramètres!X127 -> 0 | Y25: =Paramètres!Y127 -> 0 | Z25: =Paramètres!Z127 -> 0 | AA25: =Paramètres!AA127 -> 0 | AB25: =Paramètres!AB127 -> 0 | AC25: =Paramètres!AC127 -> 0 | AD25: =Paramètres!AD127 -> 0 | AE25: =Paramètres!AE127 -> 0 | AF25: =Paramètres!AF127 -> 0 | AG25: =Paramètres!AG127 -> 0 | AH25: =Paramètres!AH127 -> 0 | AI25: =Paramètres!AI127 -> 0 | AJ25: =Paramètres!AJ127 -> 0 | AK25: =Paramètres!AK127 -> 0 | AL25: =Paramètres!AL127 -> 0 | AM25: =Paramètres!AM127 -> 0 | AN25: =Paramètres!AN127 -> 0 | AO25: =Paramètres!AO127 -> 0 | AP25: =Paramètres!AP127 -> 0 | AQ25: =Paramètres!AQ127 -> 0 | AR25: =Paramètres!AR127 -> 0 | AS25: =Paramètres!AS127 -> 0 | AT25: =Paramètres!AT127 -> 0 | AU25: =Paramètres!AU127 -> 0 | AV25: =Paramètres!AV127 -> 0 | AW25: =Paramètres!AW127 -> 0 | AX25: =Paramètres!AX127 -> 0 | AY25: =Paramètres!AY127 -> 0 | AZ25: =Paramètres!AZ127 -> 0 | BA25: =Paramètres!BA127 -> 0 | BB25: =Paramètres!BB127 -> 0 | BC25: =Paramètres!BC127 -> 0 | BD25: =Paramètres!BD127 -> 0
C26: =SUM(G26:BD26) -> 1614.928182 | D26: Couts opérationnels - total | E26: $mm reel | G26: =SUM(G21:G25) -> 0 | H26: =SUM(H21:H25) -> 0 | I26: 0 | J26: 0 | K26: 0 | L26: 112.7059863 | M26: 131.7524922 | N26: 135.5890556 | O26: 142.7704473 | P26: 154.318103 | Q26: 120.3514161 | R26: 109.4140122 | S26: 107.3113585 | T26: 102.075324 | U26: 90.980448 | V26: 87.096084 | W26: 86.385792 | X26: 85.749276 | Y26: 85.58352 | Z26: 62.844867 | AA26: 0 | AB26: 0 | AC26: 0 | AD26: 0 | AE26: 0 | AF26: 0 | AG26: 0 | AH26: 0 | AI26: 0 | AJ26: 0 | AK26: 0 | AL26: 0 | AM26: 0 | AN26: 0 | AO26: 0 | AP26: 0 | AQ26: 0 | AR26: 0 | AS26: 0 | AT26: 0 | AU26: 0 | AV26: 0 | AW26: 0 | AX26: 0 | AY26: 0 | AZ26: 0 | BA26: 0 | BB26: 0 | BC26: 0 | BD26: 0
C27: 0 | D27: Parafiscalité | E27: $mm reel | G27: =Paramètres!G128 -> 0 | H27: =Paramètres!H128 -> 0 | I27: =Paramètres!I128 -> 0 | J27: =Paramètres!J128 -> 0 | K27: =Paramètres!K128 -> 0 | L27: =Paramètres!L128 -> 0 | M27: =Paramètres!M128 -> 0 | N27: =Paramètres!N128 -> 0 | O27: =Paramètres!O128 -> 0 | P27: =Paramètres!P128 -> 0 | Q27: =Paramètres!Q128 -> 0 | R27: =Paramètres!R128 -> 0 | S27: =Paramètres!S128 -> 0 | T27: =Paramètres!T128 -> 0 | U27: =Paramètres!U128 -> 0 | V27: =Paramètres!V128 -> 0 | W27: =Paramètres!W128 -> 0 | X27: =Paramètres!X128 -> 0 | Y27: =Paramètres!Y128 -> 0 | Z27: =Paramètres!Z128 -> 0 | AA27: =Paramètres!AA128 -> 0 | AB27: =Paramètres!AB128 -> 0 | AC27: =Paramètres!AC128 -> 0 | AD27: =Paramètres!AD128 -> 0 | AE27: =Paramètres!AE128 -> 0 | AF27: =Paramètres!AF128 -> 0 | AG27: =Paramètres!AG128 -> 0 | AH27: =Paramètres!AH128 -> 0 | AI27: =Paramètres!AI128 -> 0 | AJ27: =Paramètres!AJ128 -> 0 | AK27: =Paramètres!AK128 -> 0 | AL27: =Paramètres!AL128 -> 0 | AM27: =Paramètres!AM128 -> 0 | AN27: =Paramètres!AN128 -> 0 | AO27: =Paramètres!AO128 -> 0 | AP27: =Paramètres!AP128 -> 0 | AQ27: =Paramètres!AQ128 -> 0 | AR27: =Paramètres!AR128 -> 0 | AS27: =Paramètres!AS128 -> 0 | AT27: =Paramètres!AT128 -> 0 | AU27: =Paramètres!AU128 -> 0 | AV27: =Paramètres!AV128 -> 0 | AW27: =Paramètres!AW128 -> 0 | AX27: =Paramètres!AX128 -> 0 | AY27: =Paramètres!AY128 -> 0 | AZ27: =Paramètres!AZ128 -> 0 | BA27: =Paramètres!BA128 -> 0 | BB27: =Paramètres!BB128 -> 0 | BC27: =Paramètres!BC128 -> 0 | BD27: =Paramètres!BD128 -> 0
C28: 0 | D28: Couts de fermeture et de rehabilitation | E28: $mm reel | G28: =Paramètres!G129 -> 0 | H28: =Paramètres!H129 -> 0 | I28: =Paramètres!I129 -> 0 | J28: =Paramètres!J129 -> 0 | K28: =Paramètres!K129 -> 0 | L28: =Paramètres!L129 -> 0 | M28: =Paramètres!M129 -> 0 | N28: =Paramètres!N129 -> 0 | O28: =Paramètres!O129 -> 0 | P28: =Paramètres!P129 -> 0 | Q28: =Paramètres!Q129 -> 0 | R28: =Paramètres!R129 -> 0 | S28: =Paramètres!S129 -> 0 | T28: =Paramètres!T129 -> 0 | U28: =Paramètres!U129 -> 0 | V28: =Paramètres!V129 -> 0 | W28: =Paramètres!W129 -> 0 | X28: =Paramètres!X129 -> 0 | Y28: =Paramètres!Y129 -> 0 | Z28: =Paramètres!Z129 -> 0 | AA28: =Paramètres!AA129 -> 0 | AB28: =Paramètres!AB129 -> 0 | AC28: =Paramètres!AC129 -> 0 | AD28: =Paramètres!AD129 -> 0 | AE28: =Paramètres!AE129 -> 0 | AF28: =Paramètres!AF129 -> 0 | AG28: =Paramètres!AG129 -> 0 | AH28: =Paramètres!AH129 -> 0 | AI28: =Paramètres!AI129 -> 0 | AJ28: =Paramètres!AJ129 -> 0 | AK28: =Paramètres!AK129 -> 0 | AL28: =Paramètres!AL129 -> 0 | AM28: =Paramètres!AM129 -> 0 | AN28: =Paramètres!AN129 -> 0 | AO28: =Paramètres!AO129 -> 0 | AP28: =Paramètres!AP129 -> 0 | AQ28: =Paramètres!AQ129 -> 0 | AR28: =Paramètres!AR129 -> 0 | AS28: =Paramètres!AS129 -> 0 | AT28: =Paramètres!AT129 -> 0 | AU28: =Paramètres!AU129 -> 0 | AV28: =Paramètres!AV129 -> 0 | AW28: =Paramètres!AW129 -> 0 | AX28: =Paramètres!AX129 -> 0 | AY28: =Paramètres!AY129 -> 0 | AZ28: =Paramètres!AZ129 -> 0 | BA28: =Paramètres!BA129 -> 0 | BB28: =Paramètres!BB129 -> 0 | BC28: =Paramètres!BC129 -> 0 | BD28: =Paramètres!BD129 -> 0
C29: =SUM(G29:BD29) -> 2126.952646 | D29: Couts totaux | E29: $mm reel | G29: =SUM(G17:G20)+G26+G27+G28 -> 5.723911 | H29: 28.23035 | I29: 101.361458 | J29: 128.20015 | K29: 57.208595 | L29: 152.7059863 | M29: 211.7524922 | N29: 175.5890556 | O29: 160.7704473 | P29: 156.618103 | Q29: 122.5514161 | R29: 110.5140122 | S29: 108.4113585 | T29: 103.175324 | U29: 92.080448 | V29: 88.196084 | W29: 87.485792 | X29: 86.849276 | Y29: 86.68352 | Z29: 62.844867 | AA29: 0 | AB29: 0 | AC29: 0 | AD29: 0 | AE29: 0 | AF29: 0 | AG29: 0 | AH29: 0 | AI29: 0 | AJ29: 0 | AK29: 0 | AL29: 0 | AM29: =SUM(AM17:AM20)+AM26+AM27+AM28 -> 0 | AN29: 0 | AO29: 0 | AP29: 0 | AQ29: 0 | AR29: 0 | AS29: 0 | AT29: 0 | AU29: 0 | AV29: 0 | AW29: 0 | AX29: 0 | AY29: 0 | AZ29: 0 | BA29: 0 | BB29: 0 | BC29: 0 | BD29: 0
A30: =ROUND(C30-(C16-SUM(C17:C20,C26:C28)),5)=0 -> TRUE | C30: =SUM(G30:BD30) -> 2750.750905 | D30: Flux de tresorerie du projet avant redevances, droits de douanes et impots | E30: $mm reel | G30: =G16-G29 -> -5.723911 | H30: -28.23035 | I30: -101.361458 | J30: -128.20015 | K30: -57.208595 | L30: 126.6776223 | M30: 102.9600624 | N30: 108.2151145 | O30: 179.2200252 | P30: 230.5461924 | Q30: 274.1258255 | R30: 231.9625562 | S30: 276.2225428 | T30: 296.4227083 | U30: 250.6247312 | V30: 254.5090952 | W30: 229.6386784 | X30: 223.6587864 | Y30: 185.8959805 | Z30: 100.7954481 | AA30: 0 | AB30: 0 | AC30: 0 | AD30: 0 | AE30: 0 | AF30: 0 | AG30: 0 | AH30: 0 | AI30: 0 | AJ30: 0 | AK30: 0 | AL30: 0 | AM30: =AM16-AM29 -> 0 | AN30: 0 | AO30: 0 | AP30: 0 | AQ30: 0 | AR30: 0 | AS30: 0 | AT30: 0 | AU30: 0 | AV30: 0 | AW30: 0 | AX30: 0 | AY30: 0 | AZ30: 0 | BA30: 0 | BB30: 0 | BC30: 0 | BD30: 0
C32: =AVERAGE(G32:BD32) -> 0.6219417436 | D32: Marge operationnelle | E32: % | G32: =IFERROR(G30/G16,"") ->  | L32: 0.4534182336 | M32: 0.3271558789 | N32: 0.3813020593 | O32: 0.5271324925 | P32: 0.5954737953 | Q32: 0.6910550864 | R32: 0.6773092749 | S32: 0.7181440373 | T32: 0.7418022221 | U32: 0.7313129372 | V32: 0.7426473559 | W32: 0.7241279051 | X32: 0.7202994495 | Y32: 0.6819881178 | Z32: 0.6159573088 | AM32: =IFERROR(AM30/AM16,"") -> 
C33: =IFERROR(IRR($G30:BD30),0) -> 0.3283477646 | D33: Taux de rendement interne (reel) | E33: % | G33: =IFERROR(IRR($G30:G30),"--") -> -- | H33: =IFERROR(IRR($G30:H30),"--") -> -- | I33: =IFERROR(IRR($G30:I30),"--") -> -- | J33: =IFERROR(IRR($G30:J30),"--") -> -- | K33: =IFERROR(IRR($G30:K30),"--") -> -- | L33: =IFERROR(IRR($G30:L30),"--") -> -0.3454205192 | M33: =IFERROR(IRR($G30:M30),"--") -> -0.1132763694 | N33: =IFERROR(IRR($G30:N30),"--") -> 0.01582317231 | O33: =IFERROR(IRR($G30:O30),"--") -> 0.127061442 | P33: =IFERROR(IRR($G30:P30),"--") -> 0.2007069164 | Q33: =IFERROR(IRR($G30:Q30),"--") -> 0.2491539429 | R33: =IFERROR(IRR($G30:R30),"--") -> 0.2740596485 | S33: =IFERROR(IRR($G30:S30),"--") -> 0.2932392486 | T33: =IFERROR(IRR($G30:T30),"--") -> 0.3067844278 | U33: =IFERROR(IRR($G30:U30),"--") -> 0.3145839798 | V33: =IFERROR(IRR($G30:V30),"--") -> 0.3201361804 | W33: =IFERROR(IRR($G30:W30),"--") -> 0.3237047395 | X33: =IFERROR(IRR($G30:X30),"--") -> 0.3262146799 | Y33: =IFERROR(IRR($G30:Y30),"--") -> 0.3277373625 | Z33: =IFERROR(IRR($G30:Z30),"--") -> 0.3283477646 | AA33: =IFERROR(IRR($G30:AA30),"--") -> 0.3283477646 | AB33: =IFERROR(IRR($G30:AB30),"--") -> 0.3283477646 | AC33: =IFERROR(IRR($G30:AC30),"--") -> 0.3283477646 | AD33: =IFERROR(IRR($G30:AD30),"--") -> 0.3283477646 | AE33: =IFERROR(IRR($G30:AE30),"--") -> 0.3283477646 | AF33: =IFERROR(IRR($G30:AF30),"--") -> 0.3283477646 | AG33: =IFERROR(IRR($G30:AG30),"--") -> 0.3283477646 | AH33: =IFERROR(IRR($G30:AH30),"--") -> 0.3283477646 | AI33: =IFERROR(IRR($G30:AI30),"--") -> 0.3283477646 | AJ33: =IFERROR(IRR($G30:AJ30),"--") -> 0.3283477646 | AK33: =IFERROR(IRR($G30:AK30),"--") -> 0.3283477646 | AL33: =IFERROR(IRR($G30:AL30),"--") -> 0.3283477646 | AM33: =IFERROR(IRR($G30:AM30),"--") -> 0.3283477646 | AN33: =IFERROR(IRR($G30:AN30),"--") -> 0.3283477646 | AO33: =IFERROR(IRR($G30:AO30),"--") -> 0.3283477646 | AP33: =IFERROR(IRR($G30:AP30),"--") -> 0.3283477646 | AQ33: =IFERROR(IRR($G30:AQ30),"--") -> 0.3283477646 | AR33: =IFERROR(IRR($G30:AR30),"--") -> 0.3283477646 | AS33: =IFERROR(IRR($G30:AS30),"--") -> 0.3283477646 | AT33: =IFERROR(IRR($G30:AT30),"--") -> 0.3283477646 | AU33: =IFERROR(IRR($G30:AU30),"--") -> 0.3283477646 | AV33: =IFERROR(IRR($G30:AV30),"--") -> 0.3283477646 | AW33: =IFERROR(IRR($G30:AW30),"--") -> 0.3283477646 | AX33: =IFERROR(IRR($G30:AX30),"--") -> 0.3283477646 | AY33: =IFERROR(IRR($G30:AY30),"--") -> 0.3283477646 | AZ33: =IFERROR(IRR($G30:AZ30),"--") -> 0.3283477646 | BA33: =IFERROR(IRR($G30:BA30),"--") -> 0.3283477646 | BB33: =IFERROR(IRR($G30:BB30),"--") -> 0.3283477646 | BC33: =IFERROR(IRR($G30:BC30),"--") -> 0.3283477646 | BD33: =IFERROR(IRR($G30:BD30),"--") -> 0.3283477646
C34: =NPV(Paramètres!$F$93,$H$30:$BD$30)+$G$30 -> 755.0689318 | D34: Flux de tresorerie du projet avant impots, VAN10 | E34: $mm reel
D36: Reperes
C37: =MAX(G37:BD37) -> 50 | D37: Annees du projet | E37: annee | G37: =(SUM($G$8:G29)>0)*1+F37 -> 1 | H37: =(SUM($G$8:H29)>0)*1+G37 -> 2 | I37: =(SUM($G$8:I29)>0)*1+H37 -> 3 | J37: =(SUM($G$8:J29)>0)*1+I37 -> 4 | K37: =(SUM($G$8:K29)>0)*1+J37 -> 5 | L37: =(SUM($G$8:L29)>0)*1+K37 -> 6 | M37: =(SUM($G$8:M29)>0)*1+L37 -> 7 | N37: =(SUM($G$8:N29)>0)*1+M37 -> 8 | O37: =(SUM($G$8:O29)>0)*1+N37 -> 9 | P37: =(SUM($G$8:P29)>0)*1+O37 -> 10 | Q37: =(SUM($G$8:Q29)>0)*1+P37 -> 11 | R37: =(SUM($G$8:R29)>0)*1+Q37 -> 12 | S37: =(SUM($G$8:S29)>0)*1+R37 -> 13 | T37: =(SUM($G$8:T29)>0)*1+S37 -> 14 | U37: =(SUM($G$8:U29)>0)*1+T37 -> 15 | V37: =(SUM($G$8:V29)>0)*1+U37 -> 16 | W37: =(SUM($G$8:W29)>0)*1+V37 -> 17 | X37: =(SUM($G$8:X29)>0)*1+W37 -> 18 | Y37: =(SUM($G$8:Y29)>0)*1+X37 -> 19 | Z37: =(SUM($G$8:Z29)>0)*1+Y37 -> 20 | AA37: =(SUM($G$8:AA29)>0)*1+Z37 -> 21 | AB37: =(SUM($G$8:AB29)>0)*1+AA37 -> 22 | AC37: =(SUM($G$8:AC29)>0)*1+AB37 -> 23 | AD37: =(SUM($G$8:AD29)>0)*1+AC37 -> 24 | AE37: =(SUM($G$8:AE29)>0)*1+AD37 -> 25 | AF37: =(SUM($G$8:AF29)>0)*1+AE37 -> 26 | AG37: =(SUM($G$8:AG29)>0)*1+AF37 -> 27 | AH37: =(SUM($G$8:AH29)>0)*1+AG37 -> 28 | AI37: =(SUM($G$8:AI29)>0)*1+AH37 -> 29 | AJ37: =(SUM($G$8:AJ29)>0)*1+AI37 -> 30 | AK37: =(SUM($G$8:AK29)>0)*1+AJ37 -> 31 | AL37: =(SUM($G$8:AL29)>0)*1+AK37 -> 32 | AM37: =(SUM($G$8:AM29)>0)*1+AL37 -> 33 | AN37: =(SUM($G$8:AN29)>0)*1+AM37 -> 34 | AO37: =(SUM($G$8:AO29)>0)*1+AN37 -> 35 | AP37: =(SUM($G$8:AP29)>0)*1+AO37 -> 36 | AQ37: =(SUM($G$8:AQ29)>0)*1+AP37 -> 37 | AR37: =(SUM($G$8:AR29)>0)*1+AQ37 -> 38 | AS37: =(SUM($G$8:AS29)>0)*1+AR37 -> 39 | AT37: =(SUM($G$8:AT29)>0)*1+AS37 -> 40 | AU37: =(SUM($G$8:AU29)>0)*1+AT37 -> 41 | AV37: =(SUM($G$8:AV29)>0)*1+AU37 -> 42 | AW37: =(SUM($G$8:AW29)>0)*1+AV37 -> 43 | AX37: =(SUM($G$8:AX29)>0)*1+AW37 -> 44 | AY37: =(SUM($G$8:AY29)>0)*1+AX37 -> 45 | AZ37: =(SUM($G$8:AZ29)>0)*1+AY37 -> 46 | BA37: =(SUM($G$8:BA29)>0)*1+AZ37 -> 47 | BB37: =(SUM($G$8:BB29)>0)*1+BA37 -> 48 | BC37: =(SUM($G$8:BC29)>0)*1+BB37 -> 49 | BD37: =(SUM($G$8:BD29)>0)*1+BC37 -> 50
C38: =MAX(G38:BD38) -> 15 | D38: Annees de production | E38: annee | G38: =((G8>0)*1+F38)*(G8>0) -> 0 | H38: 0 | I38: 0 | J38: 0 | K38: 0 | L38: 1 | M38: 2 | N38: 3 | O38: 4 | P38: 5 | Q38: 6 | R38: 7 | S38: 8 | T38: 9 | U38: 10 | V38: 11 | W38: 12 | X38: 13 | Y38: 14 | Z38: 15 | AA38: 0 | AB38: 0 | AC38: 0 | AD38: 0 | AE38: 0 | AF38: 0 | AG38: 0 | AH38: 0 | AI38: 0 | AJ38: 0 | AK38: 0 | AL38: 0 | AM38: =((AM8>0)*1+AL38)*(AM8>0) -> 0 | AN38: 0 | AO38: 0 | AP38: 0 | AQ38: 0 | AR38: 0 | AS38: 0 | AT38: 0 | AU38: 0 | AV38: 0 | AW38: 0 | AX38: 0 | AY38: 0 | AZ38: 0 | BA38: 0 | BB38: 0 | BC38: 0 | BD38: 0
C39: =MAX(G39:BD39) -> 15 | D39: Annees de production restantes | E39: annee | G39: =($C$38-G38+1)*(G8>0) -> 0 | H39: 0 | I39: 0 | J39: 0 | K39: 0 | L39: 15 | M39: 14 | N39: 13 | O39: 12 | P39: 11 | Q39: 10 | R39: 9 | S39: 8 | T39: 7 | U39: 6 | V39: 5 | W39: 4 | X39: 3 | Y39: 2 | Z39: 1 | AA39: 0 | AB39: 0 | AC39: 0 | AD39: 0 | AE39: 0 | AF39: 0 | AG39: 0 | AH39: 0 | AI39: 0 | AJ39: 0 | AK39: 0 | AL39: 0 | AM39: =($C$38-AM38+1)*(AM8>0) -> 0 | AN39: 0 | AO39: 0 | AP39: 0 | AQ39: 0 | AR39: 0 | AS39: 0 | AT39: 0 | AU39: 0 | AV39: 0 | AW39: 0 | AX39: 0 | AY39: 0 | AZ39: 0 | BA39: 0 | BB39: 0 | BC39: 0 | BD39: 0
C40: =SUM(G40:BD40) -> 6 | D40: Annee de premiere production | E40: annee | G40: =IF(G38=1,G37,0) -> 0 | H40: =IF(H38=1,H37,0) -> 0 | I40: 0 | J40: 0 | K40: 0 | L40: 6 | M40: 0 | N40: 0 | O40: 0 | P40: 0 | Q40: 0 | R40: 0 | S40: 0 | T40: 0 | U40: 0 | V40: 0 | W40: 0 | X40: 0 | Y40: 0 | Z40: 0 | AA40: 0 | AB40: 0 | AC40: 0 | AD40: 0 | AE40: 0 | AF40: 0 | AG40: 0 | AH40: 0 | AI40: 0 | AJ40: 0 | AK40: 0 | AL40: 0 | AM40: 0 | AN40: 0 | AO40: 0 | AP40: 0 | AQ40: 0 | AR40: 0 | AS40: 0 | AT40: 0 | AU40: 0 | AV40: 0 | AW40: 0 | AX40: 0 | AY40: 0 | AZ40: 0 | BA40: 0 | BB40: 0 | BC40: 0 | BD40: 0
D43: Periode de retour sur investissement
C44: =MAX(G44:BD44) -> 296.4227083 | D44: Flux de tresorerie du projet avant impot | E44: $mm reel | G44: =G30 -> -5.723911 | H44: =H30 -> -28.23035 | I44: -101.361458 | J44: -128.20015 | K44: -57.208595 | L44: 126.6776223 | M44: 102.9600624 | N44: 108.2151145 | O44: 179.2200252 | P44: 230.5461924 | Q44: 274.1258255 | R44: 231.9625562 | S44: 276.2225428 | T44: 296.4227083 | U44: 250.6247312 | V44: 254.5090952 | W44: 229.6386784 | X44: 223.6587864 | Y44: 185.8959805 | Z44: 100.7954481 | AA44: 0 | AB44: 0 | AC44: 0 | AD44: 0 | AE44: 0 | AF44: 0 | AG44: 0 | AH44: 0 | AI44: 0 | AJ44: 0 | AK44: 0 | AL44: 0 | AM44: =AM30 -> 0 | AN44: 0 | AO44: 0 | AP44: 0 | AQ44: 0 | AR44: 0 | AS44: 0 | AT44: 0 | AU44: 0 | AV44: 0 | AW44: 0 | AX44: 0 | AY44: 0 | AZ44: 0 | BA44: 0 | BB44: 0 | BC44: 0 | BD44: 0
C45: =MAX(G45:BD45) -> 2750.750905 | D45: Flux cumulatifs de tresorerie du projet avant impot | E45: $mm reel | G45: =G44+F45 -> -5.723911 | H45: -33.954261 | I45: -135.315719 | J45: -263.515869 | K45: -320.724464 | L45: -194.0468417 | M45: -91.08677925 | N45: 17.12833524 | O45: 196.3483604 | P45: 426.8945528 | Q45: 701.0203783 | R45: 932.9829345 | S45: 1209.205477 | T45: 1505.628186 | U45: 1756.252917 | V45: 2010.762012 | W45: 2240.40069 | X45: 2464.059477 | Y45: 2649.955457 | Z45: 2750.750905 | AA45: 2750.750905 | AB45: 2750.750905 | AC45: 2750.750905 | AD45: 2750.750905 | AE45: 2750.750905 | AF45: 2750.750905 | AG45: 2750.750905 | AH45: 2750.750905 | AI45: 2750.750905 | AJ45: 2750.750905 | AK45: 2750.750905 | AL45: 2750.750905 | AM45: =AM44+AL45 -> 2750.750905 | AN45: 2750.750905 | AO45: 2750.750905 | AP45: 2750.750905 | AQ45: 2750.750905 | AR45: 2750.750905 | AS45: 2750.750905 | AT45: 2750.750905 | AU45: 2750.750905 | AV45: 2750.750905 | AW45: 2750.750905 | AX45: 2750.750905 | AY45: 2750.750905 | AZ45: 2750.750905 | BA45: 2750.750905 | BB45: 2750.750905 | BC45: 2750.750905 | BD45: 2750.750905
C46: =MAX(G46:BD46) -> 7.841719566 | D46: Periode de retour sur investissement | E46: annee | G46: =IF(AND(G45<=0,H45>0),G37+(-G45/H44),0) -> 0 | H46: 0 | I46: 0 | J46: 0 | K46: 0 | L46: 0 | M46: 7.841719566 | N46: 0 | O46: 0 | P46: 0 | Q46: 0 | R46: 0 | S46: 0 | T46: 0 | U46: 0 | V46: 0 | W46: 0 | X46: 0 | Y46: 0 | Z46: 0 | AA46: 0 | AB46: 0 | AC46: 0 | AD46: 0 | AE46: 0 | AF46: 0 | AG46: 0 | AH46: 0 | AI46: 0 | AJ46: 0 | AK46: 0 | AL46: 0 | AM46: =IF(AND(AM45<=0,AN45>0),AM37+(-AM45/AN44),0) -> 0 | AN46: 0 | AO46: 0 | AP46: 0 | AQ46: 0 | AR46: 0 | AS46: 0 | AT46: 0 | AU46: 0 | AV46: 0 | AW46: 0 | AX46: 0 | AY46: 0 | AZ46: 0 | BA46: 0 | BB46: 0 | BC46: 0 | BD46: 0
D48: Inflation
D49: Indice d'inflation | E49: indice | G49: =IF(Paramètres!G$113=1,1,(1+Paramètres!$F$95)^(Paramètres!G$113-1)) -> 1 | H49: =IF(Paramètres!H$113=1,1,(1+Paramètres!$F$95)^(Paramètres!H$113-1)) -> 1.02 | I49: =IF(Paramètres!I$113=1,1,(1+Paramètres!$F$95)^(Paramètres!I$113-1)) -> 1.0404 | J49: =IF(Paramètres!J$113=1,1,(1+Paramètres!$F$95)^(Paramètres!J$113-1)) -> 1.061208 | K49: =IF(Paramètres!K$113=1,1,(1+Paramètres!$F$95)^(Paramètres!K$113-1)) -> 1.08243216 | L49: =IF(Paramètres!L$113=1,1,(1+Paramètres!$F$95)^(Paramètres!L$113-1)) -> 1.104080803 | M49: =IF(Paramètres!M$113=1,1,(1+Paramètres!$F$95)^(Paramètres!M$113-1)) -> 1.126162419 | N49: =IF(Paramètres!N$113=1,1,(1+Paramètres!$F$95)^(Paramètres!N$113-1)) -> 1.148685668 | O49: =IF(Paramètres!O$113=1,1,(1+Paramètres!$F$95)^(Paramètres!O$113-1)) -> 1.171659381 | P49: =IF(Paramètres!P$113=1,1,(1+Paramètres!$F$95)^(Paramètres!P$113-1)) -> 1.195092569 | Q49: =IF(Paramètres!Q$113=1,1,(1+Paramètres!$F$95)^(Paramètres!Q$113-1)) -> 1.21899442 | R49: =IF(Paramètres!R$113=1,1,(1+Paramètres!$F$95)^(Paramètres!R$113-1)) -> 1.243374308 | S49: =IF(Paramètres!S$113=1,1,(1+Paramètres!$F$95)^(Paramètres!S$113-1)) -> 1.268241795 | T49: =IF(Paramètres!T$113=1,1,(1+Paramètres!$F$95)^(Paramètres!T$113-1)) -> 1.29360663 | U49: =IF(Paramètres!U$113=1,1,(1+Paramètres!$F$95)^(Paramètres!U$113-1)) -> 1.319478763 | V49: =IF(Paramètres!V$113=1,1,(1+Paramètres!$F$95)^(Paramètres!V$113-1)) -> 1.345868338 | W49: =IF(Paramètres!W$113=1,1,(1+Paramètres!$F$95)^(Paramètres!W$113-1)) -> 1.372785705 | X49: =IF(Paramètres!X$113=1,1,(1+Paramètres!$F$95)^(Paramètres!X$113-1)) -> 1.400241419 | Y49: =IF(Paramètres!Y$113=1,1,(1+Paramètres!$F$95)^(Paramètres!Y$113-1)) -> 1.428246248 | Z49: =IF(Paramètres!Z$113=1,1,(1+Paramètres!$F$95)^(Paramètres!Z$113-1)) -> 1.456811173 | AA49: =IF(Paramètres!AA$113=1,1,(1+Paramètres!$F$95)^(Paramètres!AA$113-1)) -> 1.485947396 | AB49: =IF(Paramètres!AB$113=1,1,(1+Paramètres!$F$95)^(Paramètres!AB$113-1)) -> 1.515666344 | AC49: =IF(Paramètres!AC$113=1,1,(1+Paramètres!$F$95)^(Paramètres!AC$113-1)) -> 1.545979671 | AD49: =IF(Paramètres!AD$113=1,1,(1+Paramètres!$F$95)^(Paramètres!AD$113-1)) -> 1.576899264 | AE49: =IF(Paramètres!AE$113=1,1,(1+Paramètres!$F$95)^(Paramètres!AE$113-1)) -> 1.608437249 | AF49: =IF(Paramètres!AF$113=1,1,(1+Paramètres!$F$95)^(Paramètres!AF$113-1)) -> 1.640605994 | AG49: =IF(Paramètres!AG$113=1,1,(1+Paramètres!$F$95)^(Paramètres!AG$113-1)) -> 1.673418114 | AH49: =IF(Paramètres!AH$113=1,1,(1+Paramètres!$F$95)^(Paramètres!AH$113-1)) -> 1.706886477 | AI49: =IF(Paramètres!AI$113=1,1,(1+Paramètres!$F$95)^(Paramètres!AI$113-1)) -> 1.741024206 | AJ49: =IF(Paramètres!AJ$113=1,1,(1+Paramètres!$F$95)^(Paramètres!AJ$113-1)) -> 1.77584469 | AK49: =IF(Paramètres!AK$113=1,1,(1+Paramètres!$F$95)^(Paramètres!AK$113-1)) -> 1.811361584 | AL49: =IF(Paramètres!AL$113=1,1,(1+Paramètres!$F$95)^(Paramètres!AL$113-1)) -> 1.847588816 | AM49: =IF(Paramètres!AM$113=1,1,(1+Paramètres!$F$95)^(Paramètres!AM$113-1)) -> 1.884540592 | AN49: =IF(Paramètres!AN$113=1,1,(1+Paramètres!$F$95)^(Paramètres!AN$113-1)) -> 1.922231404 | AO49: =IF(Paramètres!AO$113=1,1,(1+Paramètres!$F$95)^(Paramètres!AO$113-1)) -> 1.960676032 | AP49: =IF(Paramètres!AP$113=1,1,(1+Paramètres!$F$95)^(Paramètres!AP$113-1)) -> 1.999889553 | AQ49: =IF(Paramètres!AQ$113=1,1,(1+Paramètres!$F$95)^(Paramètres!AQ$113-1)) -> 2.039887344 | AR49: =IF(Paramètres!AR$113=1,1,(1+Paramètres!$F$95)^(Paramètres!AR$113-1)) -> 2.080685091 | AS49: =IF(Paramètres!AS$113=1,1,(1+Paramètres!$F$95)^(Paramètres!AS$113-1)) -> 2.122298792 | AT49: =IF(Paramètres!AT$113=1,1,(1+Paramètres!$F$95)^(Paramètres!AT$113-1)) -> 2.164744768 | AU49: =IF(Paramètres!AU$113=1,1,(1+Paramètres!$F$95)^(Paramètres!AU$113-1)) -> 2.208039664 | AV49: =IF(Paramètres!AV$113=1,1,(1+Paramètres!$F$95)^(Paramètres!AV$113-1)) -> 2.252200457 | AW49: =IF(Paramètres!AW$113=1,1,(1+Paramètres!$F$95)^(Paramètres!AW$113-1)) -> 2.297244466 | AX49: =IF(Paramètres!AX$113=1,1,(1+Paramètres!$F$95)^(Paramètres!AX$113-1)) -> 2.343189355 | AY49: =IF(Paramètres!AY$113=1,1,(1+Paramètres!$F$95)^(Paramètres!AY$113-1)) -> 2.390053142 | AZ49: =IF(Paramètres!AZ$113=1,1,(1+Paramètres!$F$95)^(Paramètres!AZ$113-1)) -> 2.437854205 | BA49: =IF(Paramètres!BA$113=1,1,(1+Paramètres!$F$95)^(Paramètres!BA$113-1)) -> 2.486611289 | BB49: =IF(Paramètres!BB$113=1,1,(1+Paramètres!$F$95)^(Paramètres!BB$113-1)) -> 2.536343515 | BC49: =IF(Paramètres!BC$113=1,1,(1+Paramètres!$F$95)^(Paramètres!BC$113-1)) -> 2.587070385 | BD49: =IF(Paramètres!BD$113=1,1,(1+Paramètres!$F$95)^(Paramètres!BD$113-1)) -> 2.638811793
D51: Flux de tresorerie du projet avant impot: Nominal | E51: year | G51: =G$2 -> 1 | H51: 2 | I51: 3 | J51: 4 | K51: 5 | L51: 6 | M51: 7 | N51: 8 | O51: 9 | P51: 10 | Q51: 11 | R51: 12 | S51: 13 | T51: 14 | U51: 15 | V51: 16 | W51: 17 | X51: 18 | Y51: 19 | Z51: 20 | AA51: 21 | AB51: 22 | AC51: 23 | AD51: 24 | AE51: 25 | AF51: 26 | AG51: 27 | AH51: 28 | AI51: 29 | AJ51: 30 | AK51: 31 | AL51: 32 | AM51: =AM$2 -> 33 | AN51: 34 | AO51: 35 | AP51: 36 | AQ51: 37 | AR51: 38 | AS51: 39 | AT51: 40 | AU51: 41 | AV51: 42 | AW51: 43 | AX51: 44 | AY51: 45 | AZ51: 46 | BA51: 47 | BB51: 48 | BC51: 49 | BD51: 50
C52: =SUM(G52:BD52) -> 3743.628782 | D52: Chiffre d'affaires - cuivre | E52: $mm nominal | G52: =G12*G$49 -> 0 | H52: 0 | I52: 0 | J52: 0 | K52: 0 | L52: 196.1043483 | M52: 246.9686506 | N52: 216.9086106 | O52: 284.1613728 | P52: 310.9511201 | Q52: 299.1314766 | R52: 279.6386262 | S52: 280.0556854 | T52: 235.4364067 | U52: 240.1451349 | V52: 244.9480376 | W52: =W12*W$49 -> 240.2374984 | X52: 235.2405584 | Y52: 239.9453696 | Z52: 193.7558859 | AA52: 0 | AB52: 0 | AC52: 0 | AD52: 0 | AE52: 0 | AF52: 0 | AG52: 0 | AH52: 0 | AI52: 0 | AJ52: 0 | AK52: 0 | AL52: 0 | AM52: 0 | AN52: 0 | AO52: 0 | AP52: 0 | AQ52: 0 | AR52: 0 | AS52: 0 | AT52: 0 | AU52: 0 | AV52: 0 | AW52: 0 | AX52: 0 | AY52: 0 | AZ52: 0 | BA52: 0 | BB52: 0 | BC52: 0 | BD52: 0
C53: 2743.597687 | D53: Chiffre d'affaires - cobalt | E53: $mm nominal | G53: 0 | H53: 0 | I53: 0 | J53: 0 | K53: 0 | L53: 136.0576082 | M53: 142.5777495 | N53: 132.2826936 | O53: 136.6669585 | P53: 180.0576419 | Q53: 205.3574802 | R53: 163.5116434 | S53: 228.1139235 | T53: 301.0041579 | U53: 230.2681808 | V53: 234.8735444 | W53: 212.9520075 | X53: 217.2110477 | Y53: 166.1664562 | Z53: 56.4965935 | AA53: 0 | AB53: 0 | AC53: 0 | AD53: 0 | AE53: 0 | AF53: 0 | AG53: 0 | AH53: 0 | AI53: 0 | AJ53: 0 | AK53: 0 | AL53: 0 | AM53: 0 | AN53: 0 | AO53: 0 | AP53: 0 | AQ53: 0 | AR53: 0 | AS53: 0 | AT53: 0 | AU53: 0 | AV53: 0 | AW53: 0 | AX53: 0 | AY53: 0 | AZ53: 0 | BA53: 0 | BB53: 0 | BC53: 0 | BD53: 0
C54: =SUM(G54:BD54) -> 6487.226469 | D54: Chiffre d'affaires brut | E54: $mm nominal | G54: =G14*G$49 -> 0 | H54: 0 | I54: 0 | J54: 0 | K54: 0 | L54: 332.1619564 | M54: 389.5464001 | N54: 349.1913043 | O54: 420.8283312 | P54: 491.008762 | Q54: 504.4889568 | R54: 443.1502696 | S54: 508.1696088 | T54: 536.4405647 | U54: 470.4133157 | V54: 479.821582 | W54: 453.1895059 | X54: 452.4516061 | Y54: 406.1118258 | Z54: 250.2524794 | AA54: 0 | AB54: 0 | AC54: 0 | AD54: 0 | AE54: 0 | AF54: 0 | AG54: 0 | AH54: 0 | AI54: 0 | AJ54: 0 | AK54: 0 | AL54: 0 | AM54: =AM14*AM$49 -> 0 | AN54: 0 | AO54: 0 | AP54: 0 | AQ54: 0 | AR54: 0 | AS54: 0 | AT54: 0 | AU54: 0 | AV54: 0 | AW54: 0 | AX54: 0 | AY54: 0 | AZ54: 0 | BA54: 0 | BB54: 0 | BC54: 0 | BD54: 0
C55: =SUM(G55:BD55) -> 311.9274589 | D55: Transport et traitement apres imposition | E55: $mm nominal | G55: =G15*G$49 -> 0 | H55: 0 | I55: 0 | J55: 0 | K55: 0 | L55: 23.69987739 | M55: 35.12894823 | N55: 23.18952166 | O55: 22.47530466 | P55: 28.31158983 | Q55: 20.94161269 | R55: 17.32370317 | S55: 20.36081952 | T55: 19.51790062 | U55: 18.22110975 | V55: 18.58553195 | W55: 17.84556621 | X55: 17.66535613 | Y55: 16.80117702 | Z55: 11.85944013 | AA55: 0 | AB55: 0 | AC55: 0 | AD55: 0 | AE55: 0 | AF55: 0 | AG55: 0 | AH55: 0 | AI55: 0 | AJ55: 0 | AK55: 0 | AL55: 0 | AM55: =AM15*AM$49 -> 0 | AN55: 0 | AO55: 0 | AP55: 0 | AQ55: 0 | AR55: 0 | AS55: 0 | AT55: 0 | AU55: 0 | AV55: 0 | AW55: 0 | AX55: 0 | AY55: 0 | AZ55: 0 | BA55: 0 | BB55: 0 | BC55: 0 | BD55: 0
A56: =ROUND(C56-(C54-C55),5)=0 -> TRUE | C56: =SUM(G56:BD56) -> 6175.29901 | D56: Chiffre d'affaires net | E56: $mm nominal | G56: =G16*G$49 -> 0 | H56: 0 | I56: 0 | J56: 0 | K56: 0 | L56: 308.462079 | M56: 354.4174519 | N56: 326.0017826 | O56: 398.3530266 | P56: 462.6971722 | Q56: 483.5473441 | R56: 425.8265664 | S56: 487.8087893 | T56: 516.922664 | U56: 452.1922059 | V56: 461.2360501 | W56: 435.3439397 | X56: 434.78625 | Y56: 389.3106488 | Z56: 238.3930393 | AA56: 0 | AB56: 0 | AC56: 0 | AD56: 0 | AE56: 0 | AF56: 0 | AG56: 0 | AH56: 0 | AI56: 0 | AJ56: 0 | AK56: 0 | AL56: 0 | AM56: =AM16*AM$49 -> 0 | AN56: 0 | AO56: 0 | AP56: 0 | AQ56: 0 | AR56: 0 | AS56: 0 | AT56: 0 | AU56: 0 | AV56: 0 | AW56: 0 | AX56: 0 | AY56: 0 | AZ56: 0 | BA56: 0 | BB56: 0 | BC56: 0 | BD56: 0
C57: 0 | D57: Couts d’exploration | E57: $mm nominal | G57: =G17*G$49 -> 0 | H57: 0 | I57: 0 | J57: 0 | K57: 0 | L57: 0 | M57: 0 | N57: 0 | O57: 0 | P57: 0 | Q57: 0 | R57: 0 | S57: 0 | T57: 0 | U57: 0 | V57: 0 | W57: 0 | X57: 0 | Y57: 0 | Z57: 0 | AA57: 0 | AB57: 0 | AC57: 0 | AD57: 0 | AE57: 0 | AF57: 0 | AG57: 0 | AH57: 0 | AI57: 0 | AJ57: 0 | AK57: 0 | AL57: 0 | AM57: =AM17*AM$49 -> 0 | AN57: 0 | AO57: 0 | AP57: 0 | AQ57: 0 | AR57: 0 | AS57: 0 | AT57: 0 | AU57: 0 | AV57: 0 | AW57: 0 | AX57: 0 | AY57: 0 | AZ57: 0 | BA57: 0 | BB57: 0 | BC57: 0 | BD57: 0
C58: 0 | D58: Couts d’investissement en capital - incorporel | E58: $mm nominal | G58: =G18*G$49 -> 0 | H58: 0 | I58: 0 | J58: 0 | K58: 0 | L58: 0 | M58: 0 | N58: 0 | O58: 0 | P58: 0 | Q58: 0 | R58: 0 | S58: 0 | T58: 0 | U58: 0 | V58: 0 | W58: 0 | X58: 0 | Y58: 0 | Z58: 0 | AA58: 0 | AB58: 0 | AC58: 0 | AD58: 0 | AE58: 0 | AF58: 0 | AG58: 0 | AH58: 0 | AI58: 0 | AJ58: 0 | AK58: 0 | AL58: 0 | AM58: =AM18*AM$49 -> 0 | AN58: 0 | AO58: 0 | AP58: 0 | AQ58: 0 | AR58: 0 | AS58: 0 | AT58: 0 | AU58: 0 | AV58: 0 | AW58: 0 | AX58: 0 | AY58: 0 | AZ58: 0 | BA58: 0 | BB58: 0 | BC58: 0 | BD58: 0
C59: 337.9467767 | D59: Couts d’investissement en capital - corporel | E59: $mm nominal | G59: =G19*G$49 -> 5.723911 | H59: 28.794957 | I59: 105.4564609 | J59: 136.0470248 | K59: 61.92442306 | L59: 0 | M59: 0 | N59: 0 | O59: 0 | P59: 0 | Q59: 0 | R59: 0 | S59: 0 | T59: 0 | U59: 0 | V59: 0 | W59: 0 | X59: 0 | Y59: 0 | Z59: 0 | AA59: 0 | AB59: 0 | AC59: 0 | AD59: 0 | AE59: 0 | AF59: 0 | AG59: 0 | AH59: 0 | AI59: 0 | AJ59: 0 | AK59: 0 | AL59: 0 | AM59: =AM19*AM$49 -> 0 | AN59: 0 | AO59: 0 | AP59: 0 | AQ59: 0 | AR59: 0 | AS59: 0 | AT59: 0 | AU59: 0 | AV59: 0 | AW59: 0 | AX59: 0 | AY59: 0 | AZ59: 0 | BA59: 0 | BB59: 0 | BC59: 0 | BD59: 0
C60: 218.4630494 | D60: Capital de réinvestissement | E60: $mm nominal | G60: =G20*G$49 -> 0 | H60: 0 | I60: 0 | J60: 0 | K60: 0 | L60: 44.16323213 | M60: 90.09299354 | N60: 45.94742671 | O60: 21.08986886 | P60: 2.748712908 | Q60: 2.681787724 | R60: 1.367711739 | S60: 1.395065974 | T60: 1.422967293 | U60: 1.451426639 | V60: 1.480455172 | W60: 1.510064276 | X60: 1.540265561 | Y60: 1.571070872 | Z60: 0 | AA60: 0 | AB60: 0 | AC60: 0 | AD60: 0 | AE60: 0 | AF60: 0 | AG60: 0 | AH60: 0 | AI60: 0 | AJ60: 0 | AK60: 0 | AL60: 0 | AM60: =AM20*AM$49 -> 0 | AN60: 0 | AO60: 0 | AP60: 0 | AQ60: 0 | AR60: 0 | AS60: 0 | AT60: 0 | AU60: 0 | AV60: 0 | AW60: 0 | AX60: 0 | AY60: 0 | AZ60: 0 | BA60: 0 | BB60: 0 | BC60: 0 | BD60: 0
C61: =SUM(G61:BD61) -> 2020.868465 | D61: Couts opérationnels - total | E61: $mm nominal | G61: =G26*G$49 -> 0 | H61: 0 | I61: 0 | J61: 0 | K61: 0 | L61: 124.4365159 | M61: 148.3747054 | N61: 155.7492049 | O61: 167.2783339 | P61: 184.4244181 | Q61: 146.7077047 | R61: 136.0425717 | S61: 136.0967499 | T61: 132.0453159 | U61: 120.046769 | V61: 117.2198618 | W61: 118.5891804 | X61: 120.0696879 | Y61: 122.2343413 | Z61: 91.55310438 | AA61: 0 | AB61: 0 | AC61: 0 | AD61: 0 | AE61: 0 | AF61: 0 | AG61: 0 | AH61: 0 | AI61: 0 | AJ61: 0 | AK61: 0 | AL61: 0 | AM61: =AM26*AM$49 -> 0 | AN61: 0 | AO61: 0 | AP61: 0 | AQ61: 0 | AR61: 0 | AS61: 0 | AT61: 0 | AU61: 0 | AV61: 0 | AW61: 0 | AX61: 0 | AY61: 0 | AZ61: 0 | BA61: 0 | BB61: 0 | BC61: 0 | BD61: 0
C62: 0 | D62: Parafiscalité | E62: $mm nominal | G62: =G27*G$49 -> 0 | H62: 0 | I62: 0 | J62: 0 | K62: 0 | L62: 0 | M62: 0 | N62: 0 | O62: 0 | P62: 0 | Q62: 0 | R62: 0 | S62: 0 | T62: 0 | U62: 0 | V62: 0 | W62: 0 | X62: 0 | Y62: 0 | Z62: 0 | AA62: 0 | AB62: 0 | AC62: 0 | AD62: 0 | AE62: 0 | AF62: 0 | AG62: 0 | AH62: 0 | AI62: 0 | AJ62: 0 | AK62: 0 | AL62: 0 | AM62: =AM27*AM$49 -> 0 | AN62: 0 | AO62: 0 | AP62: 0 | AQ62: 0 | AR62: 0 | AS62: 0 | AT62: 0 | AU62: 0 | AV62: 0 | AW62: 0 | AX62: 0 | AY62: 0 | AZ62: 0 | BA62: 0 | BB62: 0 | BC62: 0 | BD62: 0
C63: 0 | D63: Couts de fermeture et de rehabilitation | E63: $mm nominal | G63: =G28*G$49 -> 0 | H63: 0 | I63: 0 | J63: 0 | K63: 0 | L63: 0 | M63: 0 | N63: 0 | O63: 0 | P63: 0 | Q63: 0 | R63: 0 | S63: 0 | T63: 0 | U63: 0 | V63: 0 | W63: 0 | X63: 0 | Y63: 0 | Z63: 0 | AA63: 0 | AB63: 0 | AC63: 0 | AD63: 0 | AE63: 0 | AF63: 0 | AG63: 0 | AH63: 0 | AI63: 0 | AJ63: 0 | AK63: 0 | AL63: 0 | AM63: =AM28*AM$49 -> 0 | AN63: 0 | AO63: 0 | AP63: 0 | AQ63: 0 | AR63: 0 | AS63: 0 | AT63: 0 | AU63: 0 | AV63: 0 | AW63: 0 | AX63: 0 | AY63: 0 | AZ63: 0 | BA63: 0 | BB63: 0 | BC63: 0 | BD63: 0
C64: =SUM(G64:BD64) -> 2577.278291 | D64: Couts totaux | E64: $mm nominal | G64: =SUM(G57:G63) -> 5.723911 | H64: =SUM(H57:H63) -> 28.794957 | I64: =SUM(I57:I63) -> 105.4564609 | J64: 136.0470248 | K64: 61.92442306 | L64: 168.599748 | M64: 238.4676989 | N64: 201.6966316 | O64: 188.3682028 | P64: 187.173131 | Q64: 149.3894924 | R64: 137.4102835 | S64: 137.4918159 | T64: =SUM(T57:T63) -> 133.4682832 | U64: 121.4981956 | V64: 118.700317 | W64: 120.0992447 | X64: 121.6099535 | Y64: 123.8054122 | Z64: 91.55310438 | AA64: 0 | AB64: 0 | AC64: 0 | AD64: 0 | AE64: 0 | AF64: 0 | AG64: 0 | AH64: 0 | AI64: 0 | AJ64: 0 | AK64: 0 | AL64: 0 | AM64: 0 | AN64: 0 | AO64: 0 | AP64: 0 | AQ64: 0 | AR64: 0 | AS64: 0 | AT64: 0 | AU64: 0 | AV64: 0 | AW64: 0 | AX64: 0 | AY64: 0 | AZ64: 0 | BA64: 0 | BB64: 0 | BC64: 0 | BD64: 0
A65: =ROUND(C65-(C56-SUM(C57:C63)),5)=0 -> TRUE | C65: =SUM(G65:BD65) -> 3598.020719 | D65: Flux de tresorerie du projet avant redevances, droits de douanes et impots | E65: $mm nominal | G65: =G56-G64 -> -5.723911 | H65: =H56-H64 -> -28.794957 | I65: -105.4564609 | J65: =J56-J64 -> -136.0470248 | K65: -61.92442306 | L65: 139.862331 | M65: 115.949753 | N65: 124.305151 | O65: 209.9848238 | P65: 275.5240412 | Q65: 334.1578517 | R65: 288.4162829 | S65: 350.3169734 | T65: =T56-T64 -> 383.4543808 | U65: 330.6940103 | V65: 342.535733 | W65: 315.244695 | X65: 313.1762965 | Y65: 265.5052366 | Z65: 146.8399349 | AA65: 0 | AB65: 0 | AC65: 0 | AD65: 0 | AE65: 0 | AF65: 0 | AG65: 0 | AH65: 0 | AI65: 0 | AJ65: 0 | AK65: 0 | AL65: 0 | AM65: 0 | AN65: 0 | AO65: 0 | AP65: 0 | AQ65: 0 | AR65: 0 | AS65: 0 | AT65: 0 | AU65: 0 | AV65: 0 | AW65: 0 | AX65: 0 | AY65: 0 | AZ65: 0 | BA65: 0 | BB65: 0 | BC65: 0 | BD65: 0
C68: =IFERROR(IRR($G65:BD65),0) -> 0.3549147198 | D68: Taux de rendement interne (nominal) | E68: % | G68: =IFERROR(IRR($G65:G65),"--") -> -- | H68: =IFERROR(IRR($G65:H65),"--") -> -- | I68: =IFERROR(IRR($G65:I65),"--") -> -- | J68: =IFERROR(IRR($G65:J65),"--") -> -- | K68: =IFERROR(IRR($G65:K65),"--") -> -- | L68: =IFERROR(IRR($G65:L65),"--") -> -0.3323289296 | M68: =IFERROR(IRR($G65:M65),"--") -> -0.09554189676 | N68: =IFERROR(IRR($G65:N65),"--") -> 0.03613963575 | O68: =IFERROR(IRR($G65:O65),"--") -> 0.1496026708 | P68: =IFERROR(IRR($G65:P65),"--") -> 0.2247210547 | Q68: =IFERROR(IRR($G65:Q65),"--") -> 0.2741370218 | R68: =IFERROR(IRR($G65:R65),"--") -> 0.2995408414 | S68: =IFERROR(IRR($G65:S65),"--") -> 0.3191040335 | T68: =IFERROR(IRR($G65:T65),"--") -> 0.3329201163 | U68: =IFERROR(IRR($G65:U65),"--") -> 0.3408756595 | V68: =IFERROR(IRR($G65:V65),"--") -> 0.346538904 | W68: =IFERROR(IRR($G65:W65),"--") -> 0.3501788343 | X68: =IFERROR(IRR($G65:X65),"--") -> 0.3527389735 | Y68: =IFERROR(IRR($G65:Y65),"--") -> 0.3542921097 | Z68: =IFERROR(IRR($G65:Z65),"--") -> 0.3549147198 | AA68: =IFERROR(IRR($G65:AA65),"--") -> 0.3549147198 | AB68: =IFERROR(IRR($G65:AB65),"--") -> 0.3549147198 | AC68: =IFERROR(IRR($G65:AC65),"--") -> 0.3549147198 | AD68: =IFERROR(IRR($G65:AD65),"--") -> 0.3549147198 | AE68: =IFERROR(IRR($G65:AE65),"--") -> 0.3549147198 | AF68: =IFERROR(IRR($G65:AF65),"--") -> 0.3549147198 | AG68: =IFERROR(IRR($G65:AG65),"--") -> 0.3549147198 | AH68: =IFERROR(IRR($G65:AH65),"--") -> 0.3549147198 | AI68: =IFERROR(IRR($G65:AI65),"--") -> 0.3549147198 | AJ68: =IFERROR(IRR($G65:AJ65),"--") -> 0.3549147198 | AK68: =IFERROR(IRR($G65:AK65),"--") -> 0.3549147198 | AL68: =IFERROR(IRR($G65:AL65),"--") -> 0.3549147198 | AM68: =IFERROR(IRR($G65:AM65),"--") -> 0.3549147198 | AN68: =IFERROR(IRR($G65:AN65),"--") -> 0.3549147198 | AO68: =IFERROR(IRR($G65:AO65),"--") -> 0.3549147198 | AP68: =IFERROR(IRR($G65:AP65),"--") -> 0.3549147198 | AQ68: =IFERROR(IRR($G65:AQ65),"--") -> 0.3549147198 | AR68: =IFERROR(IRR($G65:AR65),"--") -> 0.3549147198 | AS68: =IFERROR(IRR($G65:AS65),"--") -> 0.3549147198 | AT68: =IFERROR(IRR($G65:AT65),"--") -> 0.3549147198 | AU68: =IFERROR(IRR($G65:AU65),"--") -> 0.3549147198 | AV68: =IFERROR(IRR($G65:AV65),"--") -> 0.3549147198 | AW68: =IFERROR(IRR($G65:AW65),"--") -> 0.3549147198 | AX68: =IFERROR(IRR($G65:AX65),"--") -> 0.3549147198 | AY68: =IFERROR(IRR($G65:AY65),"--") -> 0.3549147198 | AZ68: =IFERROR(IRR($G65:AZ65),"--") -> 0.3549147198 | BA68: =IFERROR(IRR($G65:BA65),"--") -> 0.3549147198 | BB68: =IFERROR(IRR($G65:BB65),"--") -> 0.3549147198 | BC68: =IFERROR(IRR($G65:BC65),"--") -> 0.3549147198 | BD68: =IFERROR(IRR($G65:BD65),"--") -> 0.3549147198
C69: =NPV(Paramètres!$F$93,$H$65:$BD$65)+$G$65 -> 991.3536397 | D69: Flux de tresorerie du projet avant impots, VAN10 | E69: $mm nominal
A72: Calculs - fiscalite
C74: Total | D74: Fermeture et rehabilitation
C75: =SUM(G75:BD75) -> 0 | D75: Annee de fermeture | E75: years | G75: =Paramètres!G113*(G76>0) -> 0 | H75: =Paramètres!H113*(H76>0) -> 0 | I75: =Paramètres!I113*(I76>0) -> 0 | J75: =Paramètres!J113*(J76>0) -> 0 | K75: =Paramètres!K113*(K76>0) -> 0 | L75: =Paramètres!L113*(L76>0) -> 0 | M75: =Paramètres!M113*(M76>0) -> 0 | N75: =Paramètres!N113*(N76>0) -> 0 | O75: =Paramètres!O113*(O76>0) -> 0 | P75: =Paramètres!P113*(P76>0) -> 0 | Q75: =Paramètres!Q113*(Q76>0) -> 0 | R75: =Paramètres!R113*(R76>0) -> 0 | S75: =Paramètres!S113*(S76>0) -> 0 | T75: =Paramètres!T113*(T76>0) -> 0 | U75: =Paramètres!U113*(U76>0) -> 0 | V75: =Paramètres!V113*(V76>0) -> 0 | W75: =Paramètres!W113*(W76>0) -> 0 | X75: =Paramètres!X113*(X76>0) -> 0 | Y75: =Paramètres!Y113*(Y76>0) -> 0 | Z75: =Paramètres!Z113*(Z76>0) -> 0 | AA75: =Paramètres!AA113*(AA76>0) -> 0 | AB75: =Paramètres!AB113*(AB76>0) -> 0 | AC75: =Paramètres!AC113*(AC76>0) -> 0 | AD75: =Paramètres!AD113*(AD76>0) -> 0 | AE75: =Paramètres!AE113*(AE76>0) -> 0 | AF75: =Paramètres!AF113*(AF76>0) -> 0 | AG75: =Paramètres!AG113*(AG76>0) -> 0 | AH75: =Paramètres!AH113*(AH76>0) -> 0 | AI75: =Paramètres!AI113*(AI76>0) -> 0 | AJ75: =Paramètres!AJ113*(AJ76>0) -> 0 | AK75: =Paramètres!AK113*(AK76>0) -> 0 | AL75: =Paramètres!AL113*(AL76>0) -> 0 | AM75: =Paramètres!AM113*(AM76>0) -> 0 | AN75: =Paramètres!AN113*(AN76>0) -> 0 | AO75: =Paramètres!AO113*(AO76>0) -> 0 | AP75: =Paramètres!AP113*(AP76>0) -> 0 | AQ75: =Paramètres!AQ113*(AQ76>0) -> 0 | AR75: =Paramètres!AR113*(AR76>0) -> 0 | AS75: =Paramètres!AS113*(AS76>0) -> 0 | AT75: =Paramètres!AT113*(AT76>0) -> 0 | AU75: =Paramètres!AU113*(AU76>0) -> 0 | AV75: =Paramètres!AV113*(AV76>0) -> 0 | AW75: =Paramètres!AW113*(AW76>0) -> 0 | AX75: =Paramètres!AX113*(AX76>0) -> 0 | AY75: =Paramètres!AY113*(AY76>0) -> 0 | AZ75: =Paramètres!AZ113*(AZ76>0) -> 0 | BA75: =Paramètres!BA113*(BA76>0) -> 0 | BB75: =Paramètres!BB113*(BB76>0) -> 0 | BC75: =Paramètres!BC113*(BC76>0) -> 0 | BD75: =Paramètres!BD113*(BD76>0) -> 0
C76: =SUM(G76:BD76) -> 0 | D76: Couts de fermeture et rehabilitation | E76: $mm nominal | G76: =G63 -> 0 | H76: 0 | I76: 0 | J76: 0 | K76: 0 | L76: 0 | M76: 0 | N76: 0 | O76: 0 | P76: 0 | Q76: 0 | R76: 0 | S76: 0 | T76: 0 | U76: 0 | V76: 0 | W76: 0 | X76: 0 | Y76: =Y63 -> 0 | Z76: 0 | AA76: 0 | AB76: 0 | AC76: 0 | AD76: 0 | AE76: 0 | AF76: 0 | AG76: 0 | AH76: 0 | AI76: 0 | AJ76: 0 | AK76: 0 | AL76: 0 | AM76: =AM63 -> 0 | AN76: 0 | AO76: 0 | AP76: 0 | AQ76: 0 | AR76: 0 | AS76: 0 | AT76: 0 | AU76: 0 | AV76: 0 | AW76: 0 | AX76: 0 | AY76: 0 | AZ76: 0 | BA76: 0 | BB76: 0 | BC76: 0 | BD76: 0
C77: =SUM(G77:BD77) -> 0 | D77: Couts de fermeture et rehabilitation (reel) | E77: $mm const | G77: =G76/G49 -> 0 | H77: 0 | I77: 0 | J77: 0 | K77: 0 | L77: 0 | M77: 0 | N77: 0 | O77: 0 | P77: 0 | Q77: 0 | R77: 0 | S77: 0 | T77: 0 | U77: 0 | V77: 0 | W77: 0 | X77: 0 | Y77: 0 | Z77: 0 | AA77: 0 | AB77: 0 | AC77: 0 | AD77: 0 | AE77: 0 | AF77: 0 | AG77: 0 | AH77: 0 | AI77: 0 | AJ77: 0 | AK77: 0 | AL77: 0 | AM77: =AM76/AM49 -> 0 | AN77: 0 | AO77: 0 | AP77: 0 | AQ77: 0 | AR77: 0 | AS77: 0 | AT77: 0 | AU77: 0 | AV77: 0 | AW77: 0 | AX77: 0 | AY77: 0 | AZ77: 0 | BA77: 0 | BB77: 0 | BC77: 0 | BD77: 0
D78: Couts de fermeture, equivalent par annee | E78: $mm nominal | G78: =$C$77*G49*(Paramètres!G113<=$C$75) -> 0 | H78: =$C$77*H49*(Paramètres!H113<=$C$75) -> 0 | I78: =$C$77*I49*(Paramètres!I113<=$C$75) -> 0 | J78: =$C$77*J49*(Paramètres!J113<=$C$75) -> 0 | K78: =$C$77*K49*(Paramètres!K113<=$C$75) -> 0 | L78: =$C$77*L49*(Paramètres!L113<=$C$75) -> 0 | M78: =$C$77*M49*(Paramètres!M113<=$C$75) -> 0 | N78: =$C$77*N49*(Paramètres!N113<=$C$75) -> 0 | O78: =$C$77*O49*(Paramètres!O113<=$C$75) -> 0 | P78: =$C$77*P49*(Paramètres!P113<=$C$75) -> 0 | Q78: =$C$77*Q49*(Paramètres!Q113<=$C$75) -> 0 | R78: =$C$77*R49*(Paramètres!R113<=$C$75) -> 0 | S78: =$C$77*S49*(Paramètres!S113<=$C$75) -> 0 | T78: =$C$77*T49*(Paramètres!T113<=$C$75) -> 0 | U78: =$C$77*U49*(Paramètres!U113<=$C$75) -> 0 | V78: =$C$77*V49*(Paramètres!V113<=$C$75) -> 0 | W78: =$C$77*W49*(Paramètres!W113<=$C$75) -> 0 | X78: =$C$77*X49*(Paramètres!X113<=$C$75) -> 0 | Y78: =$C$77*Y49*(Paramètres!Y113<=$C$75) -> 0 | Z78: =$C$77*Z49*(Paramètres!Z113<=$C$75)*(1+Paramètres!$F$95) -> 0 | AA78: =$C$77*AA49*(Paramètres!AA113<=$C$75)*(1+Paramètres!$F$95) -> 0 | AB78: =$C$77*AB49*(Paramètres!AB113<=$C$75)*(1+Paramètres!$F$95) -> 0 | AC78: =$C$77*AC49*(Paramètres!AC113<=$C$75)*(1+Paramètres!$F$95) -> 0 | AD78: =$C$77*AD49*(Paramètres!AD113<=$C$75)*(1+Paramètres!$F$95) -> 0 | AE78: =$C$77*AE49*(Paramètres!AE113<=$C$75)*(1+Paramètres!$F$95) -> 0 | AF78: =$C$77*AF49*(Paramètres!AF113<=$C$75)*(1+Paramètres!$F$95) -> 0 | AG78: =$C$77*AG49*(Paramètres!AG113<=$C$75)*(1+Paramètres!$F$95) -> 0 | AH78: =$C$77*AH49*(Paramètres!AH113<=$C$75)*(1+Paramètres!$F$95) -> 0 | AI78: =$C$77*AI49*(Paramètres!AI113<=$C$75)*(1+Paramètres!$F$95) -> 0 | AJ78: =$C$77*AJ49*(Paramètres!AJ113<=$C$75)*(1+Paramètres!$F$95) -> 0 | AK78: =$C$77*AK49*(Paramètres!AK113<=$C$75)*(1+Paramètres!$F$95) -> 0 | AL78: =$C$77*AL49*(Paramètres!AL113<=$C$75)*(1+Paramètres!$F$95) -> 0 | AM78: =$C$77*AM49*(Paramètres!AM113<=$C$75)*(1+Paramètres!$F$95) -> 0 | AN78: =$C$77*AN49*(Paramètres!AN113<=$C$75)*(1+Paramètres!$F$95) -> 0 | AO78: =$C$77*AO49*(Paramètres!AO113<=$C$75)*(1+Paramètres!$F$95) -> 0 | AP78: =$C$77*AP49*(Paramètres!AP113<=$C$75)*(1+Paramètres!$F$95) -> 0 | AQ78: =$C$77*AQ49*(Paramètres!AQ113<=$C$75)*(1+Paramètres!$F$95) -> 0 | AR78: =$C$77*AR49*(Paramètres!AR113<=$C$75)*(1+Paramètres!$F$95) -> 0 | AS78: =$C$77*AS49*(Paramètres!AS113<=$C$75)*(1+Paramètres!$F$95) -> 0 | AT78: =$C$77*AT49*(Paramètres!AT113<=$C$75)*(1+Paramètres!$F$95) -> 0 | AU78: =$C$77*AU49*(Paramètres!AU113<=$C$75)*(1+Paramètres!$F$95) -> 0 | AV78: =$C$77*AV49*(Paramètres!AV113<=$C$75)*(1+Paramètres!$F$95) -> 0 | AW78: =$C$77*AW49*(Paramètres!AW113<=$C$75)*(1+Paramètres!$F$95) -> 0 | AX78: =$C$77*AX49*(Paramètres!AX113<=$C$75)*(1+Paramètres!$F$95) -> 0 | AY78: =$C$77*AY49*(Paramètres!AY113<=$C$75)*(1+Paramètres!$F$95) -> 0 | AZ78: =$C$77*AZ49*(Paramètres!AZ113<=$C$75)*(1+Paramètres!$F$95) -> 0 | BA78: =$C$77*BA49*(Paramètres!BA113<=$C$75)*(1+Paramètres!$F$95) -> 0 | BB78: =$C$77*BB49*(Paramètres!BB113<=$C$75)*(1+Paramètres!$F$95) -> 0 | BC78: =$C$77*BC49*(Paramètres!BC113<=$C$75)*(1+Paramètres!$F$95) -> 0 | BD78: =$C$77*BD49*(Paramètres!BD113<=$C$75)*(1+Paramètres!$F$95) -> 0
D80: % des reserves extraites, par annee | E80: % | G80: =SUM(Paramètres!$G$115:G115)/Paramètres!$C$115 -> 0 | H80: =SUM(Paramètres!$G$115:H115)/Paramètres!$C$115 -> 0 | I80: =SUM(Paramètres!$G$115:I115)/Paramètres!$C$115 -> 0 | J80: =SUM(Paramètres!$G$115:J115)/Paramètres!$C$115 -> 0 | K80: =SUM(Paramètres!$G$115:K115)/Paramètres!$C$115 -> 0 | L80: =SUM(Paramètres!$G$115:L115)/Paramètres!$C$115 -> 0.059812277 | M80: =SUM(Paramètres!$G$115:M115)/Paramètres!$C$115 -> 0.1336613026 | N80: =SUM(Paramètres!$G$115:N115)/Paramètres!$C$115 -> 0.1972499463 | O80: =SUM(Paramètres!$G$115:O115)/Paramètres!$C$115 -> 0.2789209023 | P80: =SUM(Paramètres!$G$115:P115)/Paramètres!$C$115 -> 0.3665391475 | Q80: =SUM(Paramètres!$G$115:Q115)/Paramètres!$C$115 -> 0.4491742116 | R80: =SUM(Paramètres!$G$115:R115)/Paramètres!$C$115 -> 0.5249096671 | S80: =SUM(Paramètres!$G$115:S115)/Paramètres!$C$115 -> 0.5992708524 | T80: =SUM(Paramètres!$G$115:T115)/Paramètres!$C$115 -> 0.6605588397 | U80: =SUM(Paramètres!$G$115:U115)/Paramètres!$C$115 -> 0.7218468269 | V80: =SUM(Paramètres!$G$115:V115)/Paramètres!$C$115 -> 0.7831348142 | W80: =SUM(Paramètres!$G$115:W115)/Paramètres!$C$115 -> 0.8420655712 | X80: =SUM(Paramètres!$G$115:X115)/Paramètres!$C$115 -> 0.898639098 | Y80: =SUM(Paramètres!$G$115:Y115)/Paramètres!$C$115 -> 0.9552126247 | Z80: =SUM(Paramètres!$G$115:Z115)/Paramètres!$C$115 -> 1 | AA80: =SUM(Paramètres!$G$115:AA115)/Paramètres!$C$115 -> 1 | AB80: =SUM(Paramètres!$G$115:AB115)/Paramètres!$C$115 -> 1 | AC80: =SUM(Paramètres!$G$115:AC115)/Paramètres!$C$115 -> 1 | AD80: =SUM(Paramètres!$G$115:AD115)/Paramètres!$C$115 -> 1 | AE80: =SUM(Paramètres!$G$115:AE115)/Paramètres!$C$115 -> 1 | AF80: =SUM(Paramètres!$G$115:AF115)/Paramètres!$C$115 -> 1 | AG80: =SUM(Paramètres!$G$115:AG115)/Paramètres!$C$115 -> 1 | AH80: =SUM(Paramètres!$G$115:AH115)/Paramètres!$C$115 -> 1 | AI80: =SUM(Paramètres!$G$115:AI115)/Paramètres!$C$115 -> 1 | AJ80: =SUM(Paramètres!$G$115:AJ115)/Paramètres!$C$115 -> 1 | AK80: =SUM(Paramètres!$G$115:AK115)/Paramètres!$C$115 -> 1 | AL80: =SUM(Paramètres!$G$115:AL115)/Paramètres!$C$115 -> 1 | AM80: =SUM(Paramètres!$G$115:AM115)/Paramètres!$C$115 -> 1 | AN80: =SUM(Paramètres!$G$115:AN115)/Paramètres!$C$115 -> 1 | AO80: =SUM(Paramètres!$G$115:AO115)/Paramètres!$C$115 -> 1 | AP80: =SUM(Paramètres!$G$115:AP115)/Paramètres!$C$115 -> 1 | AQ80: =SUM(Paramètres!$G$115:AQ115)/Paramètres!$C$115 -> 1 | AR80: =SUM(Paramètres!$G$115:AR115)/Paramètres!$C$115 -> 1 | AS80: =SUM(Paramètres!$G$115:AS115)/Paramètres!$C$115 -> 1 | AT80: =SUM(Paramètres!$G$115:AT115)/Paramètres!$C$115 -> 1 | AU80: =SUM(Paramètres!$G$115:AU115)/Paramètres!$C$115 -> 1 | AV80: =SUM(Paramètres!$G$115:AV115)/Paramètres!$C$115 -> 1 | AW80: =SUM(Paramètres!$G$115:AW115)/Paramètres!$C$115 -> 1 | AX80: =SUM(Paramètres!$G$115:AX115)/Paramètres!$C$115 -> 1 | AY80: =SUM(Paramètres!$G$115:AY115)/Paramètres!$C$115 -> 1 | AZ80: =SUM(Paramètres!$G$115:AZ115)/Paramètres!$C$115 -> 1 | BA80: =SUM(Paramètres!$G$115:BA115)/Paramètres!$C$115 -> 1 | BB80: =SUM(Paramètres!$G$115:BB115)/Paramètres!$C$115 -> 1 | BC80: =SUM(Paramètres!$G$115:BC115)/Paramètres!$C$115 -> 1 | BD80: =SUM(Paramètres!$G$115:BD115)/Paramètres!$C$115 -> 1
D81: Reserves exploitables restantes au 31 decembre | E81: tons | G81: =Paramètres!$C$115-SUM(Paramètres!$G$115:G115) -> 424226.6903 | H81: =Paramètres!$C$115-SUM(Paramètres!$G$115:H115) -> 424226.6903 | I81: =Paramètres!$C$115-SUM(Paramètres!$G$115:I115) -> 424226.6903 | J81: =Paramètres!$C$115-SUM(Paramètres!$G$115:J115) -> 424226.6903 | K81: =Paramètres!$C$115-SUM(Paramètres!$G$115:K115) -> 424226.6903 | L81: =Paramètres!$C$115-SUM(Paramètres!$G$115:L115) -> 398852.726 | M81: =Paramètres!$C$115-SUM(Paramètres!$G$115:M115) -> 367523.9983 | N81: =Paramètres!$C$115-SUM(Paramètres!$G$115:N115) -> 340547.9984 | O81: =Paramètres!$C$115-SUM(Paramètres!$G$115:O115) -> 305900.9991 | P81: =Paramètres!$C$115-SUM(Paramètres!$G$115:P115) -> 268731.0009 | Q81: =Paramètres!$C$115-SUM(Paramètres!$G$115:Q115) -> 233675.0011 | R81: =Paramètres!$C$115-SUM(Paramètres!$G$115:R115) -> 201545.9995 | S81: =Paramètres!$C$115-SUM(Paramètres!$G$115:S115) -> 170000 | T81: =Paramètres!$C$115-SUM(Paramètres!$G$115:T115) -> 144000 | U81: =Paramètres!$C$115-SUM(Paramètres!$G$115:U115) -> 118000 | V81: =Paramètres!$C$115-SUM(Paramètres!$G$115:V115) -> 92000 | W81: =Paramètres!$C$115-SUM(Paramètres!$G$115:W115) -> 67000 | X81: =Paramètres!$C$115-SUM(Paramètres!$G$115:X115) -> 43000 | Y81: =Paramètres!$C$115-SUM(Paramètres!$G$115:Y115) -> 19000 | Z81: =Paramètres!$C$115-SUM(Paramètres!$G$115:Z115) -> 0 | AA81: =Paramètres!$C$115-SUM(Paramètres!$G$115:AA115) -> 0 | AB81: =Paramètres!$C$115-SUM(Paramètres!$G$115:AB115) -> 0 | AC81: =Paramètres!$C$115-SUM(Paramètres!$G$115:AC115) -> 0 | AD81: =Paramètres!$C$115-SUM(Paramètres!$G$115:AD115) -> 0 | AE81: =Paramètres!$C$115-SUM(Paramètres!$G$115:AE115) -> 0 | AF81: =Paramètres!$C$115-SUM(Paramètres!$G$115:AF115) -> 0 | AG81: =Paramètres!$C$115-SUM(Paramètres!$G$115:AG115) -> 0 | AH81: =Paramètres!$C$115-SUM(Paramètres!$G$115:AH115) -> 0 | AI81: =Paramètres!$C$115-SUM(Paramètres!$G$115:AI115) -> 0 | AJ81: =Paramètres!$C$115-SUM(Paramètres!$G$115:AJ115) -> 0 | AK81: =Paramètres!$C$115-SUM(Paramètres!$G$115:AK115) -> 0 | AL81: =Paramètres!$C$115-SUM(Paramètres!$G$115:AL115) -> 0 | AM81: =Paramètres!$C$115-SUM(Paramètres!$G$115:AM115) -> 0 | AN81: =Paramètres!$C$115-SUM(Paramètres!$G$115:AN115) -> 0 | AO81: =Paramètres!$C$115-SUM(Paramètres!$G$115:AO115) -> 0 | AP81: =Paramètres!$C$115-SUM(Paramètres!$G$115:AP115) -> 0 | AQ81: =Paramètres!$C$115-SUM(Paramètres!$G$115:AQ115) -> 0 | AR81: =Paramètres!$C$115-SUM(Paramètres!$G$115:AR115) -> 0 | AS81: =Paramètres!$C$115-SUM(Paramètres!$G$115:AS115) -> 0 | AT81: =Paramètres!$C$115-SUM(Paramètres!$G$115:AT115) -> 0 | AU81: =Paramètres!$C$115-SUM(Paramètres!$G$115:AU115) -> 0 | AV81: =Paramètres!$C$115-SUM(Paramètres!$G$115:AV115) -> 0 | AW81: =Paramètres!$C$115-SUM(Paramètres!$G$115:AW115) -> 0 | AX81: =Paramètres!$C$115-SUM(Paramètres!$G$115:AX115) -> 0 | AY81: =Paramètres!$C$115-SUM(Paramètres!$G$115:AY115) -> 0 | AZ81: =Paramètres!$C$115-SUM(Paramètres!$G$115:AZ115) -> 0 | BA81: =Paramètres!$C$115-SUM(Paramètres!$G$115:BA115) -> 0 | BB81: =Paramètres!$C$115-SUM(Paramètres!$G$115:BB115) -> 0 | BC81: =Paramètres!$C$115-SUM(Paramètres!$G$115:BC115) -> 0 | BD81: =Paramètres!$C$115-SUM(Paramètres!$G$115:BD115) -> 0
D82: Repere - fonds de rehabilitation | E82: repere | G82: =1*(G80>Paramètres!$F$40)*(Paramètres!G115>0) -> 0 | H82: =1*(H80>Paramètres!$F$40)*(Paramètres!H115>0) -> 0 | I82: =1*(I80>Paramètres!$F$40)*(Paramètres!I115>0) -> 0 | J82: =1*(J80>Paramètres!$F$40)*(Paramètres!J115>0) -> 0 | K82: =1*(K80>Paramètres!$F$40)*(Paramètres!K115>0) -> 0 | L82: =1*(L80>Paramètres!$F$40)*(Paramètres!L115>0) -> 1 | M82: =1*(M80>Paramètres!$F$40)*(Paramètres!M115>0) -> 1 | N82: =1*(N80>Paramètres!$F$40)*(Paramètres!N115>0) -> 1 | O82: =1*(O80>Paramètres!$F$40)*(Paramètres!O115>0) -> 1 | P82: =1*(P80>Paramètres!$F$40)*(Paramètres!P115>0) -> 1 | Q82: =1*(Q80>Paramètres!$F$40)*(Paramètres!Q115>0) -> 1 | R82: =1*(R80>Paramètres!$F$40)*(Paramètres!R115>0) -> 1 | S82: =1*(S80>Paramètres!$F$40)*(Paramètres!S115>0) -> 1 | T82: =1*(T80>Paramètres!$F$40)*(Paramètres!T115>0) -> 1 | U82: =1*(U80>Paramètres!$F$40)*(Paramètres!U115>0) -> 1 | V82: =1*(V80>Paramètres!$F$40)*(Paramètres!V115>0) -> 1 | W82: =1*(W80>Paramètres!$F$40)*(Paramètres!W115>0) -> 1 | X82: =1*(X80>Paramètres!$F$40)*(Paramètres!X115>0) -> 1 | Y82: =1*(Y80>Paramètres!$F$40)*(Paramètres!Y115>0) -> 1 | Z82: =1*(Z80>Paramètres!$F$40)*(Paramètres!Z115>0) -> 1 | AA82: =1*(AA80>Paramètres!$F$40)*(Paramètres!AA115>0) -> 0 | AB82: =1*(AB80>Paramètres!$F$40)*(Paramètres!AB115>0) -> 0 | AC82: =1*(AC80>Paramètres!$F$40)*(Paramètres!AC115>0) -> 0 | AD82: =1*(AD80>Paramètres!$F$40)*(Paramètres!AD115>0) -> 0 | AE82: =1*(AE80>Paramètres!$F$40)*(Paramètres!AE115>0) -> 0 | AF82: =1*(AF80>Paramètres!$F$40)*(Paramètres!AF115>0) -> 0 | AG82: =1*(AG80>Paramètres!$F$40)*(Paramètres!AG115>0) -> 0 | AH82: =1*(AH80>Paramètres!$F$40)*(Paramètres!AH115>0) -> 0 | AI82: =1*(AI80>Paramètres!$F$40)*(Paramètres!AI115>0) -> 0 | AJ82: =1*(AJ80>Paramètres!$F$40)*(Paramètres!AJ115>0) -> 0 | AK82: =1*(AK80>Paramètres!$F$40)*(Paramètres!AK115>0) -> 0 | AL82: =1*(AL80>Paramètres!$F$40)*(Paramètres!AL115>0) -> 0 | AM82: =1*(AM80>Paramètres!$F$40)*(Paramètres!AM115>0) -> 0 | AN82: =1*(AN80>Paramètres!$F$40)*(Paramètres!AN115>0) -> 0 | AO82: =1*(AO80>Paramètres!$F$40)*(Paramètres!AO115>0) -> 0 | AP82: =1*(AP80>Paramètres!$F$40)*(Paramètres!AP115>0) -> 0 | AQ82: =1*(AQ80>Paramètres!$F$40)*(Paramètres!AQ115>0) -> 0 | AR82: =1*(AR80>Paramètres!$F$40)*(Paramètres!AR115>0) -> 0 | AS82: =1*(AS80>Paramètres!$F$40)*(Paramètres!AS115>0) -> 0 | AT82: =1*(AT80>Paramètres!$F$40)*(Paramètres!AT115>0) -> 0 | AU82: =1*(AU80>Paramètres!$F$40)*(Paramètres!AU115>0) -> 0 | AV82: =1*(AV80>Paramètres!$F$40)*(Paramètres!AV115>0) -> 0 | AW82: =1*(AW80>Paramètres!$F$40)*(Paramètres!AW115>0) -> 0 | AX82: =1*(AX80>Paramètres!$F$40)*(Paramètres!AX115>0) -> 0 | AY82: =1*(AY80>Paramètres!$F$40)*(Paramètres!AY115>0) -> 0 | AZ82: =1*(AZ80>Paramètres!$F$40)*(Paramètres!AZ115>0) -> 0 | BA82: =1*(BA80>Paramètres!$F$40)*(Paramètres!BA115>0) -> 0 | BB82: =1*(BB80>Paramètres!$F$40)*(Paramètres!BB115>0) -> 0 | BC82: =1*(BC80>Paramètres!$F$40)*(Paramètres!BC115>0) -> 0 | BD82: =1*(BD80>Paramètres!$F$40)*(Paramètres!BD115>0) -> 0
C83: =SUM(G83:BD83) -> 424226.6903 | D83: Production pendant la periode de rehabilitation | E83: tonnes | G83: =G82*Paramètres!G115 -> 0 | H83: =H82*Paramètres!H115 -> 0 | I83: =I82*Paramètres!I115 -> 0 | J83: =J82*Paramètres!J115 -> 0 | K83: =K82*Paramètres!K115 -> 0 | L83: =L82*Paramètres!L115 -> 25373.96431 | M83: =M82*Paramètres!M115 -> 31328.72772 | N83: =N82*Paramètres!N115 -> 26975.99983 | O83: =O82*Paramètres!O115 -> 34646.99936 | P83: =P82*Paramètres!P115 -> 37169.99817 | Q83: =Q82*Paramètres!Q115 -> 35055.99976 | R83: =R82*Paramètres!R115 -> 32129.00162 | S83: =S82*Paramètres!S115 -> 31545.99953 | T83: =T82*Paramètres!T115 -> 26000 | U83: =U82*Paramètres!U115 -> 26000 | V83: =V82*Paramètres!V115 -> 26000 | W83: =W82*Paramètres!W115 -> 25000 | X83: =X82*Paramètres!X115 -> 24000 | Y83: =Y82*Paramètres!Y115 -> 24000 | Z83: =Z82*Paramètres!Z115 -> 19000 | AA83: =AA82*Paramètres!AA115 -> 0 | AB83: =AB82*Paramètres!AB115 -> 0 | AC83: =AC82*Paramètres!AC115 -> 0 | AD83: =AD82*Paramètres!AD115 -> 0 | AE83: =AE82*Paramètres!AE115 -> 0 | AF83: =AF82*Paramètres!AF115 -> 0 | AG83: =AG82*Paramètres!AG115 -> 0 | AH83: =AH82*Paramètres!AH115 -> 0 | AI83: =AI82*Paramètres!AI115 -> 0 | AJ83: =AJ82*Paramètres!AJ115 -> 0 | AK83: =AK82*Paramètres!AK115 -> 0 | AL83: =AL82*Paramètres!AL115 -> 0 | AM83: =AM82*Paramètres!AM115 -> 0 | AN83: =AN82*Paramètres!AN115 -> 0 | AO83: =AO82*Paramètres!AO115 -> 0 | AP83: =AP82*Paramètres!AP115 -> 0 | AQ83: =AQ82*Paramètres!AQ115 -> 0 | AR83: =AR82*Paramètres!AR115 -> 0 | AS83: =AS82*Paramètres!AS115 -> 0 | AT83: =AT82*Paramètres!AT115 -> 0 | AU83: =AU82*Paramètres!AU115 -> 0 | AV83: =AV82*Paramètres!AV115 -> 0 | AW83: =AW82*Paramètres!AW115 -> 0 | AX83: =AX82*Paramètres!AX115 -> 0 | AY83: =AY82*Paramètres!AY115 -> 0 | AZ83: =AZ82*Paramètres!AZ115 -> 0 | BA83: =BA82*Paramètres!BA115 -> 0 | BB83: =BB82*Paramètres!BB115 -> 0 | BC83: =BC82*Paramètres!BC115 -> 0 | BD83: =BD82*Paramètres!BD115 -> 0
C84: 3593622.631 | D84: Production cumulee pendant la periode de rehabilitation | E84: tonnes | G84: =(G83+F84)*G82 -> 0 | H84: =(H83+G84)*H82 -> 0 | I84: 0 | J84: 0 | K84: 0 | L84: 25373.96431 | M84: 56702.69203 | N84: 83678.69186 | O84: 118325.6912 | P84: 155495.6894 | Q84: 190551.6891 | R84: 222680.6908 | S84: 254226.6903 | T84: 280226.6903 | U84: 306226.6903 | V84: 332226.6903 | W84: 357226.6903 | X84: 381226.6903 | Y84: 405226.6903 | Z84: 424226.6903 | AA84: 0 | AB84: 0 | AC84: 0 | AD84: 0 | AE84: 0 | AF84: 0 | AG84: 0 | AH84: 0 | AI84: 0 | AJ84: 0 | AK84: 0 | AL84: 0 | AM84: =(AM83+AL84)*AM82 -> 0 | AN84: 0 | AO84: 0 | AP84: 0 | AQ84: 0 | AR84: 0 | AS84: 0 | AT84: 0 | AU84: 0 | AV84: 0 | AW84: 0 | AX84: 0 | AY84: 0 | AZ84: 0 | BA84: 0 | BB84: 0 | BC84: 0 | BD84: 0
C85: 0 | D85: Solde initial du fonds de rehabilitation | E85: $mm nominal | G85: =F89 -> 0 | H85: 0 | I85: 0 | J85: 0 | K85: 0 | L85: 0 | M85: 0 | N85: 0 | O85: 0 | P85: 0 | Q85: 0 | R85: 0 | S85: 0 | T85: 0 | U85: 0 | V85: 0 | W85: 0 | X85: 0 | Y85: 0 | Z85: 0 | AA85: 0 | AB85: 0 | AC85: 0 | AD85: 0 | AE85: 0 | AF85: 0 | AG85: 0 | AH85: 0 | AI85: 0 | AJ85: 0 | AK85: 0 | AL85: 0 | AM85: =AL89 -> 0 | AN85: 0 | AO85: 0 | AP85: 0 | AQ85: 0 | AR85: 0 | AS85: 0 | AT85: 0 | AU85: 0 | AV85: 0 | AW85: 0 | AX85: 0 | AY85: 0 | AZ85: 0 | BA85: 0 | BB85: 0 | BC85: 0 | BD85: 0
C86: 0 | D86: Provision autorisee pendant l'annee | E86: $mm nominal | G86: =IF(G82<>0,(G78-G85)*IFERROR(G83/F81,1)*(Paramètres!$F$39="yes"),0) -> 0 | H86: =IF(H82<>0,(H78-H85)*IFERROR(H83/G81,1)*(Paramètres!$F$39="yes"),0) -> 0 | I86: =IF(I82<>0,(I78-I85)*IFERROR(I83/H81,1)*(Paramètres!$F$39="yes"),0) -> 0 | J86: =IF(J82<>0,(J78-J85)*IFERROR(J83/I81,1)*(Paramètres!$F$39="yes"),0) -> 0 | K86: =IF(K82<>0,(K78-K85)*IFERROR(K83/J81,1)*(Paramètres!$F$39="yes"),0) -> 0 | L86: =IF(L82<>0,(L78-L85)*IFERROR(L83/K81,1)*(Paramètres!$F$39="yes"),0) -> 0 | M86: =IF(M82<>0,(M78-M85)*IFERROR(M83/L81,1)*(Paramètres!$F$39="yes"),0) -> 0 | N86: =IF(N82<>0,(N78-N85)*IFERROR(N83/M81,1)*(Paramètres!$F$39="yes"),0) -> 0 | O86: =IF(O82<>0,(O78-O85)*IFERROR(O83/N81,1)*(Paramètres!$F$39="yes"),0) -> 0 | P86: =IF(P82<>0,(P78-P85)*IFERROR(P83/O81,1)*(Paramètres!$F$39="yes"),0) -> 0 | Q86: =IF(Q82<>0,(Q78-Q85)*IFERROR(Q83/P81,1)*(Paramètres!$F$39="yes"),0) -> 0 | R86: =IF(R82<>0,(R78-R85)*IFERROR(R83/Q81,1)*(Paramètres!$F$39="yes"),0) -> 0 | S86: =IF(S82<>0,(S78-S85)*IFERROR(S83/R81,1)*(Paramètres!$F$39="yes"),0) -> 0 | T86: =IF(T82<>0,(T78-T85)*IFERROR(T83/S81,1)*(Paramètres!$F$39="yes"),0) -> 0 | U86: =IF(U82<>0,(U78-U85)*IFERROR(U83/T81,1)*(Paramètres!$F$39="yes"),0) -> 0 | V86: =IF(V82<>0,(V78-V85)*IFERROR(V83/U81,1)*(Paramètres!$F$39="yes"),0) -> 0 | W86: =IF(W82<>0,(W78-W85)*IFERROR(W83/V81,1)*(Paramètres!$F$39="yes"),0) -> 0 | X86: =IF(X82<>0,(X78-X85)*IFERROR(X83/W81,1)*(Paramètres!$F$39="yes"),0) -> 0 | Y86: =IF(Y82<>0,(Y78-Y85)*IFERROR(Y83/X81,1)*(Paramètres!$F$39="yes"),0) -> 0 | Z86: =IF(Z82<>0,(Z78-Z85)*IFERROR(Z83/Y81,1)*(Paramètres!$F$39="yes"),0) -> 0 | AA86: =IF(AA82<>0,(AA78-AA85)*IFERROR(AA83/Z81,1)*(Paramètres!$F$39="yes"),0) -> 0 | AB86: =IF(AB82<>0,(AB78-AB85)*IFERROR(AB83/AA81,1)*(Paramètres!$F$39="yes"),0) -> 0 | AC86: =IF(AC82<>0,(AC78-AC85)*IFERROR(AC83/AB81,1)*(Paramètres!$F$39="yes"),0) -> 0 | AD86: =IF(AD82<>0,(AD78-AD85)*IFERROR(AD83/AC81,1)*(Paramètres!$F$39="yes"),0) -> 0 | AE86: =IF(AE82<>0,(AE78-AE85)*IFERROR(AE83/AD81,1)*(Paramètres!$F$39="yes"),0) -> 0 | AF86: =IF(AF82<>0,(AF78-AF85)*IFERROR(AF83/AE81,1)*(Paramètres!$F$39="yes"),0) -> 0 | AG86: =IF(AG82<>0,(AG78-AG85)*IFERROR(AG83/AF81,1)*(Paramètres!$F$39="yes"),0) -> 0 | AH86: =IF(AH82<>0,(AH78-AH85)*IFERROR(AH83/AG81,1)*(Paramètres!$F$39="yes"),0) -> 0 | AI86: =IF(AI82<>0,(AI78-AI85)*IFERROR(AI83/AH81,1)*(Paramètres!$F$39="yes"),0) -> 0 | AJ86: =IF(AJ82<>0,(AJ78-AJ85)*IFERROR(AJ83/AI81,1)*(Paramètres!$F$39="yes"),0) -> 0 | AK86: =IF(AK82<>0,(AK78-AK85)*IFERROR(AK83/AJ81,1)*(Paramètres!$F$39="yes"),0) -> 0 | AL86: =IF(AL82<>0,(AL78-AL85)*IFERROR(AL83/AK81,1)*(Paramètres!$F$39="yes"),0) -> 0 | AM86: =IF(AM82<>0,(AM78-AM85)*IFERROR(AM83/AL81,1)*(Paramètres!$F$39="yes"),0) -> 0 | AN86: =IF(AN82<>0,(AN78-AN85)*IFERROR(AN83/AM81,1)*(Paramètres!$F$39="yes"),0) -> 0 | AO86: =IF(AO82<>0,(AO78-AO85)*IFERROR(AO83/AN81,1)*(Paramètres!$F$39="yes"),0) -> 0 | AP86: =IF(AP82<>0,(AP78-AP85)*IFERROR(AP83/AO81,1)*(Paramètres!$F$39="yes"),0) -> 0 | AQ86: =IF(AQ82<>0,(AQ78-AQ85)*IFERROR(AQ83/AP81,1)*(Paramètres!$F$39="yes"),0) -> 0 | AR86: =IF(AR82<>0,(AR78-AR85)*IFERROR(AR83/AQ81,1)*(Paramètres!$F$39="yes"),0) -> 0 | AS86: =IF(AS82<>0,(AS78-AS85)*IFERROR(AS83/AR81,1)*(Paramètres!$F$39="yes"),0) -> 0 | AT86: =IF(AT82<>0,(AT78-AT85)*IFERROR(AT83/AS81,1)*(Paramètres!$F$39="yes"),0) -> 0 | AU86: =IF(AU82<>0,(AU78-AU85)*IFERROR(AU83/AT81,1)*(Paramètres!$F$39="yes"),0) -> 0 | AV86: =IF(AV82<>0,(AV78-AV85)*IFERROR(AV83/AU81,1)*(Paramètres!$F$39="yes"),0) -> 0 | AW86: =IF(AW82<>0,(AW78-AW85)*IFERROR(AW83/AV81,1)*(Paramètres!$F$39="yes"),0) -> 0 | AX86: =IF(AX82<>0,(AX78-AX85)*IFERROR(AX83/AW81,1)*(Paramètres!$F$39="yes"),0) -> 0 | AY86: =IF(AY82<>0,(AY78-AY85)*IFERROR(AY83/AX81,1)*(Paramètres!$F$39="yes"),0) -> 0 | AZ86: =IF(AZ82<>0,(AZ78-AZ85)*IFERROR(AZ83/AY81,1)*(Paramètres!$F$39="yes"),0) -> 0 | BA86: =IF(BA82<>0,(BA78-BA85)*IFERROR(BA83/AZ81,1)*(Paramètres!$F$39="yes"),0) -> 0 | BB86: =IF(BB82<>0,(BB78-BB85)*IFERROR(BB83/BA81,1)*(Paramètres!$F$39="yes"),0) -> 0 | BC86: =IF(BC82<>0,(BC78-BC85)*IFERROR(BC83/BB81,1)*(Paramètres!$F$39="yes"),0) -> 0 | BD86: =IF(BD82<>0,(BD78-BD85)*IFERROR(BD83/BC81,1)*(Paramètres!$F$39="yes"),0) -> 0
C87: 0 | D87: Retraits du fonds pour payer les couts de rehabilitation | E87: $mm nominal | G87: =MIN(G76,F89)*-1 -> 0 | H87: 0 | I87: 0 | J87: 0 | K87: 0 | L87: 0 | M87: 0 | N87: 0 | O87: 0 | P87: 0 | Q87: 0 | R87: 0 | S87: 0 | T87: 0 | U87: 0 | V87: 0 | W87: 0 | X87: 0 | Y87: 0 | Z87: 0 | AA87: 0 | AB87: 0 | AC87: 0 | AD87: 0 | AE87: 0 | AF87: 0 | AG87: 0 | AH87: 0 | AI87: 0 | AJ87: 0 | AK87: 0 | AL87: 0 | AM87: =MIN(AM76,AL89)*-1 -> 0 | AN87: 0 | AO87: 0 | AP87: 0 | AQ87: 0 | AR87: 0 | AS87: 0 | AT87: 0 | AU87: 0 | AV87: 0 | AW87: 0 | AX87: 0 | AY87: 0 | AZ87: 0 | BA87: 0 | BB87: 0 | BC87: 0 | BD87: 0
C88: 0 | D88: Solde positive | E88: $mm nominal | G88: =(G87<>0)*(G85+G87)*-1 -> 0 | H88: 0 | I88: 0 | J88: 0 | K88: 0 | L88: 0 | M88: 0 | N88: 0 | O88: 0 | P88: 0 | Q88: 0 | R88: 0 | S88: 0 | T88: 0 | U88: 0 | V88: 0 | W88: 0 | X88: 0 | Y88: 0 | Z88: 0 | AA88: 0 | AB88: 0 | AC88: 0 | AD88: 0 | AE88: 0 | AF88: 0 | AG88: 0 | AH88: 0 | AI88: 0 | AJ88: 0 | AK88: 0 | AL88: 0 | AM88: =(AM87<>0)*(AM85+AM87)*-1 -> 0 | AN88: 0 | AO88: 0 | AP88: 0 | AQ88: 0 | AR88: 0 | AS88: 0 | AT88: 0 | AU88: 0 | AV88: 0 | AW88: 0 | AX88: 0 | AY88: 0 | AZ88: 0 | BA88: 0 | BB88: 0 | BC88: 0 | BD88: 0
D89: Solde final | E89: $mm nominal | G89: =SUM(G85:G88) -> 0 | H89: 0 | I89: 0 | J89: 0 | K89: 0 | L89: 0 | M89: 0 | N89: 0 | O89: 0 | P89: 0 | Q89: 0 | R89: 0 | S89: 0 | T89: 0 | U89: 0 | V89: 0 | W89: 0 | X89: 0 | Y89: 0 | Z89: 0 | AA89: 0 | AB89: 0 | AC89: 0 | AD89: 0 | AE89: 0 | AF89: 0 | AG89: 0 | AH89: 0 | AI89: 0 | AJ89: 0 | AK89: 0 | AL89: 0 | AM89: =SUM(AM85:AM88) -> 0 | AN89: 0 | AO89: 0 | AP89: 0 | AQ89: 0 | AR89: 0 | AS89: 0 | AT89: 0 | AU89: 0 | AV89: 0 | AW89: 0 | AX89: 0 | AY89: 0 | AZ89: 0 | BA89: 0 | BB89: 0 | BC89: 0 | BD89: 0
D91: Redevance cuivre
C92: =SUM(G92:BD92) -> 3743.628782 | D92: Chiffre d'affaires brut | E92: $mm nominal | G92: =G52 -> 0 | H92: =H52 -> 0 | I92: 0 | J92: 0 | K92: 0 | L92: 196.1043483 | M92: 246.9686506 | N92: 216.9086106 | O92: 284.1613728 | P92: 310.9511201 | Q92: 299.1314766 | R92: 279.6386262 | S92: 280.0556854 | T92: 235.4364067 | U92: 240.1451349 | V92: 244.9480376 | W92: 240.2374984 | X92: 235.2405584 | Y92: 239.9453696 | Z92: 193.7558859 | AA92: 0 | AB92: 0 | AC92: 0 | AD92: 0 | AE92: 0 | AF92: 0 | AG92: 0 | AH92: 0 | AI92: 0 | AJ92: 0 | AK92: 0 | AL92: 0 | AM92: 0 | AN92: 0 | AO92: 0 | AP92: 0 | AQ92: 0 | AR92: 0 | AS92: 0 | AT92: 0 | AU92: 0 | AV92: 0 | AW92: 0 | AX92: 0 | AY92: 0 | AZ92: 0 | BA92: 0 | BB92: 0 | BC92: 0 | BD92: 0
C93: =SUM(G93:BD93) -> 3431.701323 | D93: Chiffre d'affaires net | E93: $mm nominal | G93: =G52-G55 -> 0 | H93: =H52-H55 -> 0 | I93: 0 | J93: 0 | K93: 0 | L93: 172.4044709 | M93: 211.8397024 | N93: 193.719089 | O93: 261.6860681 | P93: 282.6395303 | Q93: 278.1898639 | R93: 262.314923 | S93: 259.6948658 | T93: 215.9185061 | U93: 221.9240251 | V93: 226.3625056 | W93: 222.3919322 | X93: 217.5752023 | Y93: 223.1441926 | Z93: 181.8964458 | AA93: 0 | AB93: 0 | AC93: 0 | AD93: 0 | AE93: 0 | AF93: 0 | AG93: 0 | AH93: 0 | AI93: 0 | AJ93: 0 | AK93: 0 | AL93: 0 | AM93: 0 | AN93: 0 | AO93: 0 | AP93: 0 | AQ93: 0 | AR93: 0 | AS93: 0 | AT93: 0 | AU93: 0 | AV93: 0 | AW93: 0 | AX93: 0 | AY93: 0 | AZ93: 0 | BA93: 0 | BB93: 0 | BC93: 0 | BD93: 0
C94: =SUM(G94:BD94) -> 3431.701323 | D94: ="Assiette de la redevance: revenu "&Paramètres!F13 -> Assiette de la redevance: revenu net | E94: $mm nominal | G94: =IF(G38=0,0,IF(Paramètres!$F$13="gross",G92,G93)) -> 0 | H94: =IF(H38=0,0,IF(Paramètres!$F$13="gross",H92,H93)) -> 0 | I94: =IF(I38=0,0,IF(Paramètres!$F$13="gross",I92,I93)) -> 0 | J94: =IF(J38=0,0,IF(Paramètres!$F$13="gross",J92,J93)) -> 0 | K94: =IF(K38=0,0,IF(Paramètres!$F$13="gross",K92,K93)) -> 0 | L94: =IF(L38=0,0,IF(Paramètres!$F$13="gross",L92,L93)) -> 172.4044709 | M94: =IF(M38=0,0,IF(Paramètres!$F$13="gross",M92,M93)) -> 211.8397024 | N94: =IF(N38=0,0,IF(Paramètres!$F$13="gross",N92,N93)) -> 193.719089 | O94: =IF(O38=0,0,IF(Paramètres!$F$13="gross",O92,O93)) -> 261.6860681 | P94: =IF(P38=0,0,IF(Paramètres!$F$13="gross",P92,P93)) -> 282.6395303 | Q94: =IF(Q38=0,0,IF(Paramètres!$F$13="gross",Q92,Q93)) -> 278.1898639 | R94: =IF(R38=0,0,IF(Paramètres!$F$13="gross",R92,R93)) -> 262.314923 | S94: =IF(S38=0,0,IF(Paramètres!$F$13="gross",S92,S93)) -> 259.6948658 | T94: =IF(T38=0,0,IF(Paramètres!$F$13="gross",T92,T93)) -> 215.9185061 | U94: =IF(U38=0,0,IF(Paramètres!$F$13="gross",U92,U93)) -> 221.9240251 | V94: =IF(V38=0,0,IF(Paramètres!$F$13="gross",V92,V93)) -> 226.3625056 | W94: =IF(W38=0,0,IF(Paramètres!$F$13="gross",W92,W93)) -> 222.3919322 | X94: =IF(X38=0,0,IF(Paramètres!$F$13="gross",X92,X93)) -> 217.5752023 | Y94: =IF(Y38=0,0,IF(Paramètres!$F$13="gross",Y92,Y93)) -> 223.1441926 | Z94: =IF(Z38=0,0,IF(Paramètres!$F$13="gross",Z92,Z93)) -> 181.8964458 | AA94: =IF(AA38=0,0,IF(Paramètres!$F$13="gross",AA92,AA93)) -> 0 | AB94: =IF(AB38=0,0,IF(Paramètres!$F$13="gross",AB92,AB93)) -> 0 | AC94: =IF(AC38=0,0,IF(Paramètres!$F$13="gross",AC92,AC93)) -> 0 | AD94: =IF(AD38=0,0,IF(Paramètres!$F$13="gross",AD92,AD93)) -> 0 | AE94: =IF(AE38=0,0,IF(Paramètres!$F$13="gross",AE92,AE93)) -> 0 | AF94: =IF(AF38=0,0,IF(Paramètres!$F$13="gross",AF92,AF93)) -> 0 | AG94: =IF(AG38=0,0,IF(Paramètres!$F$13="gross",AG92,AG93)) -> 0 | AH94: =IF(AH38=0,0,IF(Paramètres!$F$13="gross",AH92,AH93)) -> 0 | AI94: =IF(AI38=0,0,IF(Paramètres!$F$13="gross",AI92,AI93)) -> 0 | AJ94: =IF(AJ38=0,0,IF(Paramètres!$F$13="gross",AJ92,AJ93)) -> 0 | AK94: =IF(AK38=0,0,IF(Paramètres!$F$13="gross",AK92,AK93)) -> 0 | AL94: =IF(AL38=0,0,IF(Paramètres!$F$13="gross",AL92,AL93)) -> 0 | AM94: =IF(AM38=0,0,IF(Paramètres!$F$13="gross",AM92,AM93)) -> 0 | AN94: =IF(AN38=0,0,IF(Paramètres!$F$13="gross",AN92,AN93)) -> 0 | AO94: =IF(AO38=0,0,IF(Paramètres!$F$13="gross",AO92,AO93)) -> 0 | AP94: =IF(AP38=0,0,IF(Paramètres!$F$13="gross",AP92,AP93)) -> 0 | AQ94: =IF(AQ38=0,0,IF(Paramètres!$F$13="gross",AQ92,AQ93)) -> 0 | AR94: =IF(AR38=0,0,IF(Paramètres!$F$13="gross",AR92,AR93)) -> 0 | AS94: =IF(AS38=0,0,IF(Paramètres!$F$13="gross",AS92,AS93)) -> 0 | AT94: =IF(AT38=0,0,IF(Paramètres!$F$13="gross",AT92,AT93)) -> 0 | AU94: =IF(AU38=0,0,IF(Paramètres!$F$13="gross",AU92,AU93)) -> 0 | AV94: =IF(AV38=0,0,IF(Paramètres!$F$13="gross",AV92,AV93)) -> 0 | AW94: =IF(AW38=0,0,IF(Paramètres!$F$13="gross",AW92,AW93)) -> 0 | AX94: =IF(AX38=0,0,IF(Paramètres!$F$13="gross",AX92,AX93)) -> 0 | AY94: =IF(AY38=0,0,IF(Paramètres!$F$13="gross",AY92,AY93)) -> 0 | AZ94: =IF(AZ38=0,0,IF(Paramètres!$F$13="gross",AZ92,AZ93)) -> 0 | BA94: =IF(BA38=0,0,IF(Paramètres!$F$13="gross",BA92,BA93)) -> 0 | BB94: =IF(BB38=0,0,IF(Paramètres!$F$13="gross",BB92,BB93)) -> 0 | BC94: =IF(BC38=0,0,IF(Paramètres!$F$13="gross",BC92,BC93)) -> 0 | BD94: =IF(BD38=0,0,IF(Paramètres!$F$13="gross",BD92,BD93)) -> 0
D95: Taux 1 | E95: % | G95: =Paramètres!$F$11 -> 0.02 | H95: =Paramètres!$F$11 -> 0.02 | I95: =Paramètres!$F$11 -> 0.02 | J95: =Paramètres!$F$11 -> 0.02 | K95: =Paramètres!$F$11 -> 0.02 | L95: =Paramètres!$F$11 -> 0.02 | M95: =Paramètres!$F$11 -> 0.02 | N95: =Paramètres!$F$11 -> 0.02 | O95: =Paramètres!$F$11 -> 0.02 | P95: =Paramètres!$F$11 -> 0.02 | Q95: =Paramètres!$F$11 -> 0.02 | R95: =Paramètres!$F$11 -> 0.02 | S95: =Paramètres!$F$11 -> 0.02 | T95: =Paramètres!$F$11 -> 0.02 | U95: =Paramètres!$F$11 -> 0.02 | V95: =Paramètres!$F$11 -> 0.02 | W95: =Paramètres!$F$11 -> 0.02 | X95: =Paramètres!$F$11 -> 0.02 | Y95: =Paramètres!$F$11 -> 0.02 | Z95: =Paramètres!$F$11 -> 0.02 | AA95: =Paramètres!$F$11 -> 0.02 | AB95: =Paramètres!$F$11 -> 0.02 | AC95: =Paramètres!$F$11 -> 0.02 | AD95: =Paramètres!$F$11 -> 0.02 | AE95: =Paramètres!$F$11 -> 0.02 | AF95: =Paramètres!$F$11 -> 0.02 | AG95: =Paramètres!$F$11 -> 0.02 | AH95: =Paramètres!$F$11 -> 0.02 | AI95: =Paramètres!$F$11 -> 0.02 | AJ95: =Paramètres!$F$11 -> 0.02 | AK95: =Paramètres!$F$11 -> 0.02 | AL95: =Paramètres!$F$11 -> 0.02 | AM95: =Paramètres!$F$11 -> 0.02 | AN95: =Paramètres!$F$11 -> 0.02 | AO95: =Paramètres!$F$11 -> 0.02 | AP95: =Paramètres!$F$11 -> 0.02 | AQ95: =Paramètres!$F$11 -> 0.02 | AR95: =Paramètres!$F$11 -> 0.02 | AS95: =Paramètres!$F$11 -> 0.02 | AT95: =Paramètres!$F$11 -> 0.02 | AU95: =Paramètres!$F$11 -> 0.02 | AV95: =Paramètres!$F$11 -> 0.02 | AW95: =Paramètres!$F$11 -> 0.02 | AX95: =Paramètres!$F$11 -> 0.02 | AY95: =Paramètres!$F$11 -> 0.02 | AZ95: =Paramètres!$F$11 -> 0.02 | BA95: =Paramètres!$F$11 -> 0.02 | BB95: =Paramètres!$F$11 -> 0.02 | BC95: =Paramètres!$F$11 -> 0.02 | BD95: =Paramètres!$F$11 -> 0.02
D96: Taux 2 | E96: % | G96: =IF(Paramètres!G$106<=Paramètres!$E$60,Paramètres!$F$60,IF(Paramètres!G$106<=Paramètres!$E$61,Paramètres!$F$61,IF(Paramètres!G$106<=Paramètres!$E$62,Paramètres!$F$62,Paramètres!$F$63))) -> 0 | H96: =IF(Paramètres!H$106<=Paramètres!$E$60,Paramètres!$F$60,IF(Paramètres!H$106<=Paramètres!$E$61,Paramètres!$F$61,IF(Paramètres!H$106<=Paramètres!$E$62,Paramètres!$F$62,Paramètres!$F$63))) -> 0 | I96: =IF(Paramètres!I$106<=Paramètres!$E$60,Paramètres!$F$60,IF(Paramètres!I$106<=Paramètres!$E$61,Paramètres!$F$61,IF(Paramètres!I$106<=Paramètres!$E$62,Paramètres!$F$62,Paramètres!$F$63))) -> 0 | J96: =IF(Paramètres!J$106<=Paramètres!$E$60,Paramètres!$F$60,IF(Paramètres!J$106<=Paramètres!$E$61,Paramètres!$F$61,IF(Paramètres!J$106<=Paramètres!$E$62,Paramètres!$F$62,Paramètres!$F$63))) -> 0 | K96: =IF(Paramètres!K$106<=Paramètres!$E$60,Paramètres!$F$60,IF(Paramètres!K$106<=Paramètres!$E$61,Paramètres!$F$61,IF(Paramètres!K$106<=Paramètres!$E$62,Paramètres!$F$62,Paramètres!$F$63))) -> 0 | L96: =IF(Paramètres!L$106<=Paramètres!$E$60,Paramètres!$F$60,IF(Paramètres!L$106<=Paramètres!$E$61,Paramètres!$F$61,IF(Paramètres!L$106<=Paramètres!$E$62,Paramètres!$F$62,Paramètres!$F$63))) -> 0 | M96: =IF(Paramètres!M$106<=Paramètres!$E$60,Paramètres!$F$60,IF(Paramètres!M$106<=Paramètres!$E$61,Paramètres!$F$61,IF(Paramètres!M$106<=Paramètres!$E$62,Paramètres!$F$62,Paramètres!$F$63))) -> 0 | N96: =IF(Paramètres!N$106<=Paramètres!$E$60,Paramètres!$F$60,IF(Paramètres!N$106<=Paramètres!$E$61,Paramètres!$F$61,IF(Paramètres!N$106<=Paramètres!$E$62,Paramètres!$F$62,Paramètres!$F$63))) -> 0 | O96: =IF(Paramètres!O$106<=Paramètres!$E$60,Paramètres!$F$60,IF(Paramètres!O$106<=Paramètres!$E$61,Paramètres!$F$61,IF(Paramètres!O$106<=Paramètres!$E$62,Paramètres!$F$62,Paramètres!$F$63))) -> 0 | P96: =IF(Paramètres!P$106<=Paramètres!$E$60,Paramètres!$F$60,IF(Paramètres!P$106<=Paramètres!$E$61,Paramètres!$F$61,IF(Paramètres!P$106<=Paramètres!$E$62,Paramètres!$F$62,Paramètres!$F$63))) -> 0 | Q96: =IF(Paramètres!Q$106<=Paramètres!$E$60,Paramètres!$F$60,IF(Paramètres!Q$106<=Paramètres!$E$61,Paramètres!$F$61,IF(Paramètres!Q$106<=Paramètres!$E$62,Paramètres!$F$62,Paramètres!$F$63))) -> 0 | R96: =IF(Paramètres!R$106<=Paramètres!$E$60,Paramètres!$F$60,IF(Paramètres!R$106<=Paramètres!$E$61,Paramètres!$F$61,IF(Paramètres!R$106<=Paramètres!$E$62,Paramètres!$F$62,Paramètres!$F$63))) -> 0 | S96: =IF(Paramètres!S$106<=Paramètres!$E$60,Paramètres!$F$60,IF(Paramètres!S$106<=Paramètres!$E$61,Paramètres!$F$61,IF(Paramètres!S$106<=Paramètres!$E$62,Paramètres!$F$62,Paramètres!$F$63))) -> 0 | T96: =IF(Paramètres!T$106<=Paramètres!$E$60,Paramètres!$F$60,IF(Paramètres!T$106<=Paramètres!$E$61,Paramètres!$F$61,IF(Paramètres!T$106<=Paramètres!$E$62,Paramètres!$F$62,Paramètres!$F$63))) -> 0 | U96: =IF(Paramètres!U$106<=Paramètres!$E$60,Paramètres!$F$60,IF(Paramètres!U$106<=Paramètres!$E$61,Paramètres!$F$61,IF(Paramètres!U$106<=Paramètres!$E$62,Paramètres!$F$62,Paramètres!$F$63))) -> 0 | V96: =IF(Paramètres!V$106<=Paramètres!$E$60,Paramètres!$F$60,IF(Paramètres!V$106<=Paramètres!$E$61,Paramètres!$F$61,IF(Paramètres!V$106<=Paramètres!$E$62,Paramètres!$F$62,Paramètres!$F$63))) -> 0 | W96: =IF(Paramètres!W$106<=Paramètres!$E$60,Paramètres!$F$60,IF(Paramètres!W$106<=Paramètres!$E$61,Paramètres!$F$61,IF(Paramètres!W$106<=Paramètres!$E$62,Paramètres!$F$62,Paramètres!$F$63))) -> 0 | X96: =IF(Paramètres!X$106<=Paramètres!$E$60,Paramètres!$F$60,IF(Paramètres!X$106<=Paramètres!$E$61,Paramètres!$F$61,IF(Paramètres!X$106<=Paramètres!$E$62,Paramètres!$F$62,Paramètres!$F$63))) -> 0 | Y96: =IF(Paramètres!Y$106<=Paramètres!$E$60,Paramètres!$F$60,IF(Paramètres!Y$106<=Paramètres!$E$61,Paramètres!$F$61,IF(Paramètres!Y$106<=Paramètres!$E$62,Paramètres!$F$62,Paramètres!$F$63))) -> 0 | Z96: =IF(Paramètres!Z$106<=Paramètres!$E$60,Paramètres!$F$60,IF(Paramètres!Z$106<=Paramètres!$E$61,Paramètres!$F$61,IF(Paramètres!Z$106<=Paramètres!$E$62,Paramètres!$F$62,Paramètres!$F$63))) -> 0 | AA96: =IF(Paramètres!AA$106<=Paramètres!$E$60,Paramètres!$F$60,IF(Paramètres!AA$106<=Paramètres!$E$61,Paramètres!$F$61,IF(Paramètres!AA$106<=Paramètres!$E$62,Paramètres!$F$62,Paramètres!$F$63))) -> 0 | AB96: =IF(Paramètres!AB$106<=Paramètres!$E$60,Paramètres!$F$60,IF(Paramètres!AB$106<=Paramètres!$E$61,Paramètres!$F$61,IF(Paramètres!AB$106<=Paramètres!$E$62,Paramètres!$F$62,Paramètres!$F$63))) -> 0 | AC96: =IF(Paramètres!AC$106<=Paramètres!$E$60,Paramètres!$F$60,IF(Paramètres!AC$106<=Paramètres!$E$61,Paramètres!$F$61,IF(Paramètres!AC$106<=Paramètres!$E$62,Paramètres!$F$62,Paramètres!$F$63))) -> 0 | AD96: =IF(Paramètres!AD$106<=Paramètres!$E$60,Paramètres!$F$60,IF(Paramètres!AD$106<=Paramètres!$E$61,Paramètres!$F$61,IF(Paramètres!AD$106<=Paramètres!$E$62,Paramètres!$F$62,Paramètres!$F$63))) -> 0 | AE96: =IF(Paramètres!AE$106<=Paramètres!$E$60,Paramètres!$F$60,IF(Paramètres!AE$106<=Paramètres!$E$61,Paramètres!$F$61,IF(Paramètres!AE$106<=Paramètres!$E$62,Paramètres!$F$62,Paramètres!$F$63))) -> 0 | AF96: =IF(Paramètres!AF$106<=Paramètres!$E$60,Paramètres!$F$60,IF(Paramètres!AF$106<=Paramètres!$E$61,Paramètres!$F$61,IF(Paramètres!AF$106<=Paramètres!$E$62,Paramètres!$F$62,Paramètres!$F$63))) -> 0 | AG96: =IF(Paramètres!AG$106<=Paramètres!$E$60,Paramètres!$F$60,IF(Paramètres!AG$106<=Paramètres!$E$61,Paramètres!$F$61,IF(Paramètres!AG$106<=Paramètres!$E$62,Paramètres!$F$62,Paramètres!$F$63))) -> 0 | AH96: =IF(Paramètres!AH$106<=Paramètres!$E$60,Paramètres!$F$60,IF(Paramètres!AH$106<=Paramètres!$E$61,Paramètres!$F$61,IF(Paramètres!AH$106<=Paramètres!$E$62,Paramètres!$F$62,Paramètres!$F$63))) -> 0 | AI96: =IF(Paramètres!AI$106<=Paramètres!$E$60,Paramètres!$F$60,IF(Paramètres!AI$106<=Paramètres!$E$61,Paramètres!$F$61,IF(Paramètres!AI$106<=Paramètres!$E$62,Paramètres!$F$62,Paramètres!$F$63))) -> 0 | AJ96: =IF(Paramètres!AJ$106<=Paramètres!$E$60,Paramètres!$F$60,IF(Paramètres!AJ$106<=Paramètres!$E$61,Paramètres!$F$61,IF(Paramètres!AJ$106<=Paramètres!$E$62,Paramètres!$F$62,Paramètres!$F$63))) -> 0 | AK96: =IF(Paramètres!AK$106<=Paramètres!$E$60,Paramètres!$F$60,IF(Paramètres!AK$106<=Paramètres!$E$61,Paramètres!$F$61,IF(Paramètres!AK$106<=Paramètres!$E$62,Paramètres!$F$62,Paramètres!$F$63))) -> 0 | AL96: =IF(Paramètres!AL$106<=Paramètres!$E$60,Paramètres!$F$60,IF(Paramètres!AL$106<=Paramètres!$E$61,Paramètres!$F$61,IF(Paramètres!AL$106<=Paramètres!$E$62,Paramètres!$F$62,Paramètres!$F$63))) -> 0 | AM96: =IF(Paramètres!AM$106<=Paramètres!$E$60,Paramètres!$F$60,IF(Paramètres!AM$106<=Paramètres!$E$61,Paramètres!$F$61,IF(Paramètres!AM$106<=Paramètres!$E$62,Paramètres!$F$62,Paramètres!$F$63))) -> 0 | AN96: =IF(Paramètres!AN$106<=Paramètres!$E$60,Paramètres!$F$60,IF(Paramètres!AN$106<=Paramètres!$E$61,Paramètres!$F$61,IF(Paramètres!AN$106<=Paramètres!$E$62,Paramètres!$F$62,Paramètres!$F$63))) -> 0 | AO96: =IF(Paramètres!AO$106<=Paramètres!$E$60,Paramètres!$F$60,IF(Paramètres!AO$106<=Paramètres!$E$61,Paramètres!$F$61,IF(Paramètres!AO$106<=Paramètres!$E$62,Paramètres!$F$62,Paramètres!$F$63))) -> 0 | AP96: =IF(Paramètres!AP$106<=Paramètres!$E$60,Paramètres!$F$60,IF(Paramètres!AP$106<=Paramètres!$E$61,Paramètres!$F$61,IF(Paramètres!AP$106<=Paramètres!$E$62,Paramètres!$F$62,Paramètres!$F$63))) -> 0 | AQ96: =IF(Paramètres!AQ$106<=Paramètres!$E$60,Paramètres!$F$60,IF(Paramètres!AQ$106<=Paramètres!$E$61,Paramètres!$F$61,IF(Paramètres!AQ$106<=Paramètres!$E$62,Paramètres!$F$62,Paramètres!$F$63))) -> 0 | AR96: =IF(Paramètres!AR$106<=Paramètres!$E$60,Paramètres!$F$60,IF(Paramètres!AR$106<=Paramètres!$E$61,Paramètres!$F$61,IF(Paramètres!AR$106<=Paramètres!$E$62,Paramètres!$F$62,Paramètres!$F$63))) -> 0 | AS96: =IF(Paramètres!AS$106<=Paramètres!$E$60,Paramètres!$F$60,IF(Paramètres!AS$106<=Paramètres!$E$61,Paramètres!$F$61,IF(Paramètres!AS$106<=Paramètres!$E$62,Paramètres!$F$62,Paramètres!$F$63))) -> 0 | AT96: =IF(Paramètres!AT$106<=Paramètres!$E$60,Paramètres!$F$60,IF(Paramètres!AT$106<=Paramètres!$E$61,Paramètres!$F$61,IF(Paramètres!AT$106<=Paramètres!$E$62,Paramètres!$F$62,Paramètres!$F$63))) -> 0 | AU96: =IF(Paramètres!AU$106<=Paramètres!$E$60,Paramètres!$F$60,IF(Paramètres!AU$106<=Paramètres!$E$61,Paramètres!$F$61,IF(Paramètres!AU$106<=Paramètres!$E$62,Paramètres!$F$62,Paramètres!$F$63))) -> 0 | AV96: =IF(Paramètres!AV$106<=Paramètres!$E$60,Paramètres!$F$60,IF(Paramètres!AV$106<=Paramètres!$E$61,Paramètres!$F$61,IF(Paramètres!AV$106<=Paramètres!$E$62,Paramètres!$F$62,Paramètres!$F$63))) -> 0 | AW96: =IF(Paramètres!AW$106<=Paramètres!$E$60,Paramètres!$F$60,IF(Paramètres!AW$106<=Paramètres!$E$61,Paramètres!$F$61,IF(Paramètres!AW$106<=Paramètres!$E$62,Paramètres!$F$62,Paramètres!$F$63))) -> 0 | AX96: =IF(Paramètres!AX$106<=Paramètres!$E$60,Paramètres!$F$60,IF(Paramètres!AX$106<=Paramètres!$E$61,Paramètres!$F$61,IF(Paramètres!AX$106<=Paramètres!$E$62,Paramètres!$F$62,Paramètres!$F$63))) -> 0 | AY96: =IF(Paramètres!AY$106<=Paramètres!$E$60,Paramètres!$F$60,IF(Paramètres!AY$106<=Paramètres!$E$61,Paramètres!$F$61,IF(Paramètres!AY$106<=Paramètres!$E$62,Paramètres!$F$62,Paramètres!$F$63))) -> 0 | AZ96: =IF(Paramètres!AZ$106<=Paramètres!$E$60,Paramètres!$F$60,IF(Paramètres!AZ$106<=Paramètres!$E$61,Paramètres!$F$61,IF(Paramètres!AZ$106<=Paramètres!$E$62,Paramètres!$F$62,Paramètres!$F$63))) -> 0 | BA96: =IF(Paramètres!BA$106<=Paramètres!$E$60,Paramètres!$F$60,IF(Paramètres!BA$106<=Paramètres!$E$61,Paramètres!$F$61,IF(Paramètres!BA$106<=Paramètres!$E$62,Paramètres!$F$62,Paramètres!$F$63))) -> 0 | BB96: =IF(Paramètres!BB$106<=Paramètres!$E$60,Paramètres!$F$60,IF(Paramètres!BB$106<=Paramètres!$E$61,Paramètres!$F$61,IF(Paramètres!BB$106<=Paramètres!$E$62,Paramètres!$F$62,Paramètres!$F$63))) -> 0 | BC96: =IF(Paramètres!BC$106<=Paramètres!$E$60,Paramètres!$F$60,IF(Paramètres!BC$106<=Paramètres!$E$61,Paramètres!$F$61,IF(Paramètres!BC$106<=Paramètres!$E$62,Paramètres!$F$62,Paramètres!$F$63))) -> 0 | BD96: =IF(Paramètres!BD$106<=Paramètres!$E$60,Paramètres!$F$60,IF(Paramètres!BD$106<=Paramètres!$E$61,Paramètres!$F$61,IF(Paramètres!BD$106<=Paramètres!$E$62,Paramètres!$F$62,Paramètres!$F$63))) -> 0
C97: =SUM(G97:BD97) -> 68.63402646 | D97: Montant de la redevance | E97: $mm nominal | G97: =G94*CHOOSE(Paramètres!$F$25,G95,G96) -> 0 | H97: =H94*CHOOSE(Paramètres!$F$25,H95,H96) -> 0 | I97: =I94*CHOOSE(Paramètres!$F$25,I95,I96) -> 0 | J97: =J94*CHOOSE(Paramètres!$F$25,J95,J96) -> 0 | K97: =K94*CHOOSE(Paramètres!$F$25,K95,K96) -> 0 | L97: =L94*CHOOSE(Paramètres!$F$25,L95,L96) -> 3.448089418 | M97: =M94*CHOOSE(Paramètres!$F$25,M95,M96) -> 4.236794048 | N97: =N94*CHOOSE(Paramètres!$F$25,N95,N96) -> 3.87438178 | O97: =O94*CHOOSE(Paramètres!$F$25,O95,O96) -> 5.233721362 | P97: =P94*CHOOSE(Paramètres!$F$25,P95,P96) -> 5.652790606 | Q97: =Q94*CHOOSE(Paramètres!$F$25,Q95,Q96) -> 5.563797279 | R97: =R94*CHOOSE(Paramètres!$F$25,R95,R96) -> 5.24629846 | S97: =S94*CHOOSE(Paramètres!$F$25,S95,S96) -> 5.193897317 | T97: =T94*CHOOSE(Paramètres!$F$25,T95,T96) -> 4.318370122 | U97: =U94*CHOOSE(Paramètres!$F$25,U95,U96) -> 4.438480503 | V97: =V94*CHOOSE(Paramètres!$F$25,V95,V96) -> 4.527250113 | W97: =W94*CHOOSE(Paramètres!$F$25,W95,W96) -> 4.447838644 | X97: =X94*CHOOSE(Paramètres!$F$25,X95,X96) -> 4.351504046 | Y97: =Y94*CHOOSE(Paramètres!$F$25,Y95,Y96) -> 4.462883851 | Z97: =Z94*CHOOSE(Paramètres!$F$25,Z95,Z96) -> 3.637928916 | AA97: =AA94*CHOOSE(Paramètres!$F$25,AA95,AA96) -> 0 | AB97: =AB94*CHOOSE(Paramètres!$F$25,AB95,AB96) -> 0 | AC97: =AC94*CHOOSE(Paramètres!$F$25,AC95,AC96) -> 0 | AD97: =AD94*CHOOSE(Paramètres!$F$25,AD95,AD96) -> 0 | AE97: =AE94*CHOOSE(Paramètres!$F$25,AE95,AE96) -> 0 | AF97: =AF94*CHOOSE(Paramètres!$F$25,AF95,AF96) -> 0 | AG97: =AG94*CHOOSE(Paramètres!$F$25,AG95,AG96) -> 0 | AH97: =AH94*CHOOSE(Paramètres!$F$25,AH95,AH96) -> 0 | AI97: =AI94*CHOOSE(Paramètres!$F$25,AI95,AI96) -> 0 | AJ97: =AJ94*CHOOSE(Paramètres!$F$25,AJ95,AJ96) -> 0 | AK97: =AK94*CHOOSE(Paramètres!$F$25,AK95,AK96) -> 0 | AL97: =AL94*CHOOSE(Paramètres!$F$25,AL95,AL96) -> 0 | AM97: =AM94*CHOOSE(Paramètres!$F$25,AM95,AM96) -> 0 | AN97: =AN94*CHOOSE(Paramètres!$F$25,AN95,AN96) -> 0 | AO97: =AO94*CHOOSE(Paramètres!$F$25,AO95,AO96) -> 0 | AP97: =AP94*CHOOSE(Paramètres!$F$25,AP95,AP96) -> 0 | AQ97: =AQ94*CHOOSE(Paramètres!$F$25,AQ95,AQ96) -> 0 | AR97: =AR94*CHOOSE(Paramètres!$F$25,AR95,AR96) -> 0 | AS97: =AS94*CHOOSE(Paramètres!$F$25,AS95,AS96) -> 0 | AT97: =AT94*CHOOSE(Paramètres!$F$25,AT95,AT96) -> 0 | AU97: =AU94*CHOOSE(Paramètres!$F$25,AU95,AU96) -> 0 | AV97: =AV94*CHOOSE(Paramètres!$F$25,AV95,AV96) -> 0 | AW97: =AW94*CHOOSE(Paramètres!$F$25,AW95,AW96) -> 0 | AX97: =AX94*CHOOSE(Paramètres!$F$25,AX95,AX96) -> 0 | AY97: =AY94*CHOOSE(Paramètres!$F$25,AY95,AY96) -> 0 | AZ97: =AZ94*CHOOSE(Paramètres!$F$25,AZ95,AZ96) -> 0 | BA97: =BA94*CHOOSE(Paramètres!$F$25,BA95,BA96) -> 0 | BB97: =BB94*CHOOSE(Paramètres!$F$25,BB95,BB96) -> 0 | BC97: =BC94*CHOOSE(Paramètres!$F$25,BC95,BC96) -> 0 | BD97: =BD94*CHOOSE(Paramètres!$F$25,BD95,BD96) -> 0
D98: Redevance cobalt
C99: =SUM(G99:BD99) -> 2743.597687 | D99: Chiffre d'affaires brut | E99: $mm nominal | G99: =G53 -> 0 | H99: =H53 -> 0 | I99: 0 | J99: 0 | K99: 0 | L99: 136.0576082 | M99: 142.5777495 | N99: 132.2826936 | O99: 136.6669585 | P99: 180.0576419 | Q99: 205.3574802 | R99: 163.5116434 | S99: 228.1139235 | T99: 301.0041579 | U99: 230.2681808 | V99: 234.8735444 | W99: 212.9520075 | X99: 217.2110477 | Y99: 166.1664562 | Z99: 56.4965935 | AA99: 0 | AB99: 0 | AC99: 0 | AD99: 0 | AE99: 0 | AF99: 0 | AG99: 0 | AH99: 0 | AI99: 0 | AJ99: 0 | AK99: 0 | AL99: 0 | AM99: 0 | AN99: 0 | AO99: 0 | AP99: 0 | AQ99: 0 | AR99: 0 | AS99: 0 | AT99: 0 | AU99: 0 | AV99: 0 | AW99: 0 | AX99: 0 | AY99: 0 | AZ99: 0 | BA99: 0 | BB99: 0 | BC99: 0 | BD99: 0
C100: =SUM(G100:BD100) -> 2743.597687 | D100: Chiffre d'affaires net | E100: $mm nominal | G100: =G53 -> 0 | H100: =H53 -> 0 | I100: 0 | J100: 0 | K100: 0 | L100: 136.0576082 | M100: 142.5777495 | N100: 132.2826936 | O100: 136.6669585 | P100: 180.0576419 | Q100: 205.3574802 | R100: 163.5116434 | S100: 228.1139235 | T100: 301.0041579 | U100: 230.2681808 | V100: 234.8735444 | W100: 212.9520075 | X100: 217.2110477 | Y100: 166.1664562 | Z100: 56.4965935 | AA100: 0 | AB100: 0 | AC100: 0 | AD100: 0 | AE100: 0 | AF100: 0 | AG100: 0 | AH100: 0 | AI100: 0 | AJ100: 0 | AK100: 0 | AL100: 0 | AM100: 0 | AN100: 0 | AO100: 0 | AP100: 0 | AQ100: 0 | AR100: 0 | AS100: 0 | AT100: 0 | AU100: 0 | AV100: 0 | AW100: 0 | AX100: 0 | AY100: 0 | AZ100: 0 | BA100: 0 | BB100: 0 | BC100: 0 | BD100: 0
C101: =SUM(G101:BD101) -> 2743.597687 | D101: ="Assiette de la redevance: revenu "&Paramètres!F20 -> Assiette de la redevance: revenu 1 | E101: $mm nominal | G101: =IF(G45=0,0,IF(Paramètres!$F$13="gross",G99,G100)) -> 0 | H101: =IF(H45=0,0,IF(Paramètres!$F$13="gross",H99,H100)) -> 0 | I101: =IF(I45=0,0,IF(Paramètres!$F$13="gross",I99,I100)) -> 0 | J101: =IF(J45=0,0,IF(Paramètres!$F$13="gross",J99,J100)) -> 0 | K101: =IF(K45=0,0,IF(Paramètres!$F$13="gross",K99,K100)) -> 0 | L101: =IF(L45=0,0,IF(Paramètres!$F$13="gross",L99,L100)) -> 136.0576082 | M101: =IF(M45=0,0,IF(Paramètres!$F$13="gross",M99,M100)) -> 142.5777495 | N101: =IF(N45=0,0,IF(Paramètres!$F$13="gross",N99,N100)) -> 132.2826936 | O101: =IF(O45=0,0,IF(Paramètres!$F$13="gross",O99,O100)) -> 136.6669585 | P101: =IF(P45=0,0,IF(Paramètres!$F$13="gross",P99,P100)) -> 180.0576419 | Q101: =IF(Q45=0,0,IF(Paramètres!$F$13="gross",Q99,Q100)) -> 205.3574802 | R101: =IF(R45=0,0,IF(Paramètres!$F$13="gross",R99,R100)) -> 163.5116434 | S101: =IF(S45=0,0,IF(Paramètres!$F$13="gross",S99,S100)) -> 228.1139235 | T101: =IF(T45=0,0,IF(Paramètres!$F$13="gross",T99,T100)) -> 301.0041579 | U101: =IF(U45=0,0,IF(Paramètres!$F$13="gross",U99,U100)) -> 230.2681808 | V101: =IF(V45=0,0,IF(Paramètres!$F$13="gross",V99,V100)) -> 234.8735444 | W101: =IF(W45=0,0,IF(Paramètres!$F$13="gross",W99,W100)) -> 212.9520075 | X101: =IF(X45=0,0,IF(Paramètres!$F$13="gross",X99,X100)) -> 217.2110477 | Y101: =IF(Y45=0,0,IF(Paramètres!$F$13="gross",Y99,Y100)) -> 166.1664562 | Z101: =IF(Z45=0,0,IF(Paramètres!$F$13="gross",Z99,Z100)) -> 56.4965935 | AA101: =IF(AA45=0,0,IF(Paramètres!$F$13="gross",AA99,AA100)) -> 0 | AB101: =IF(AB45=0,0,IF(Paramètres!$F$13="gross",AB99,AB100)) -> 0 | AC101: =IF(AC45=0,0,IF(Paramètres!$F$13="gross",AC99,AC100)) -> 0 | AD101: =IF(AD45=0,0,IF(Paramètres!$F$13="gross",AD99,AD100)) -> 0 | AE101: =IF(AE45=0,0,IF(Paramètres!$F$13="gross",AE99,AE100)) -> 0 | AF101: =IF(AF45=0,0,IF(Paramètres!$F$13="gross",AF99,AF100)) -> 0 | AG101: =IF(AG45=0,0,IF(Paramètres!$F$13="gross",AG99,AG100)) -> 0 | AH101: =IF(AH45=0,0,IF(Paramètres!$F$13="gross",AH99,AH100)) -> 0 | AI101: =IF(AI45=0,0,IF(Paramètres!$F$13="gross",AI99,AI100)) -> 0 | AJ101: =IF(AJ45=0,0,IF(Paramètres!$F$13="gross",AJ99,AJ100)) -> 0 | AK101: =IF(AK45=0,0,IF(Paramètres!$F$13="gross",AK99,AK100)) -> 0 | AL101: =IF(AL45=0,0,IF(Paramètres!$F$13="gross",AL99,AL100)) -> 0 | AM101: =IF(AM45=0,0,IF(Paramètres!$F$13="gross",AM99,AM100)) -> 0 | AN101: =IF(AN45=0,0,IF(Paramètres!$F$13="gross",AN99,AN100)) -> 0 | AO101: =IF(AO45=0,0,IF(Paramètres!$F$13="gross",AO99,AO100)) -> 0 | AP101: =IF(AP45=0,0,IF(Paramètres!$F$13="gross",AP99,AP100)) -> 0 | AQ101: =IF(AQ45=0,0,IF(Paramètres!$F$13="gross",AQ99,AQ100)) -> 0 | AR101: =IF(AR45=0,0,IF(Paramètres!$F$13="gross",AR99,AR100)) -> 0 | AS101: =IF(AS45=0,0,IF(Paramètres!$F$13="gross",AS99,AS100)) -> 0 | AT101: =IF(AT45=0,0,IF(Paramètres!$F$13="gross",AT99,AT100)) -> 0 | AU101: =IF(AU45=0,0,IF(Paramètres!$F$13="gross",AU99,AU100)) -> 0 | AV101: =IF(AV45=0,0,IF(Paramètres!$F$13="gross",AV99,AV100)) -> 0 | AW101: =IF(AW45=0,0,IF(Paramètres!$F$13="gross",AW99,AW100)) -> 0 | AX101: =IF(AX45=0,0,IF(Paramètres!$F$13="gross",AX99,AX100)) -> 0 | AY101: =IF(AY45=0,0,IF(Paramètres!$F$13="gross",AY99,AY100)) -> 0 | AZ101: =IF(AZ45=0,0,IF(Paramètres!$F$13="gross",AZ99,AZ100)) -> 0 | BA101: =IF(BA45=0,0,IF(Paramètres!$F$13="gross",BA99,BA100)) -> 0 | BB101: =IF(BB45=0,0,IF(Paramètres!$F$13="gross",BB99,BB100)) -> 0 | BC101: =IF(BC45=0,0,IF(Paramètres!$F$13="gross",BC99,BC100)) -> 0 | BD101: =IF(BD45=0,0,IF(Paramètres!$F$13="gross",BD99,BD100)) -> 0
D102: Taux 1 | E102: % | G102: =Paramètres!$F$12 -> 0.02 | H102: =Paramètres!$F$12 -> 0.02 | I102: =Paramètres!$F$12 -> 0.02 | J102: =Paramètres!$F$12 -> 0.02 | K102: =Paramètres!$F$12 -> 0.02 | L102: =Paramètres!$F$12 -> 0.02 | M102: =Paramètres!$F$12 -> 0.02 | N102: =Paramètres!$F$12 -> 0.02 | O102: =Paramètres!$F$12 -> 0.02 | P102: =Paramètres!$F$12 -> 0.02 | Q102: =Paramètres!$F$12 -> 0.02 | R102: =Paramètres!$F$12 -> 0.02 | S102: =Paramètres!$F$12 -> 0.02 | T102: =Paramètres!$F$12 -> 0.02 | U102: =Paramètres!$F$12 -> 0.02 | V102: =Paramètres!$F$12 -> 0.02 | W102: =Paramètres!$F$12 -> 0.02 | X102: =Paramètres!$F$12 -> 0.02 | Y102: =Paramètres!$F$12 -> 0.02 | Z102: =Paramètres!$F$12 -> 0.02 | AA102: =Paramètres!$F$12 -> 0.02 | AB102: =Paramètres!$F$12 -> 0.02 | AC102: =Paramètres!$F$12 -> 0.02 | AD102: =Paramètres!$F$12 -> 0.02 | AE102: =Paramètres!$F$12 -> 0.02 | AF102: =Paramètres!$F$12 -> 0.02 | AG102: =Paramètres!$F$12 -> 0.02 | AH102: =Paramètres!$F$12 -> 0.02 | AI102: =Paramètres!$F$12 -> 0.02 | AJ102: =Paramètres!$F$12 -> 0.02 | AK102: =Paramètres!$F$12 -> 0.02 | AL102: =Paramètres!$F$12 -> 0.02 | AM102: =Paramètres!$F$12 -> 0.02 | AN102: =Paramètres!$F$12 -> 0.02 | AO102: =Paramètres!$F$12 -> 0.02 | AP102: =Paramètres!$F$12 -> 0.02 | AQ102: =Paramètres!$F$12 -> 0.02 | AR102: =Paramètres!$F$12 -> 0.02 | AS102: =Paramètres!$F$12 -> 0.02 | AT102: =Paramètres!$F$12 -> 0.02 | AU102: =Paramètres!$F$12 -> 0.02 | AV102: =Paramètres!$F$12 -> 0.02 | AW102: =Paramètres!$F$12 -> 0.02 | AX102: =Paramètres!$F$12 -> 0.02 | AY102: =Paramètres!$F$12 -> 0.02 | AZ102: =Paramètres!$F$12 -> 0.02 | BA102: =Paramètres!$F$12 -> 0.02 | BB102: =Paramètres!$F$12 -> 0.02 | BC102: =Paramètres!$F$12 -> 0.02 | BD102: =Paramètres!$F$12 -> 0.02
D103: Taux 2 | E103: % | G103: =IF(Paramètres!G$106<=Paramètres!$E$60,Paramètres!$F$60,IF(Paramètres!G$106<=Paramètres!$E$61,Paramètres!$F$61,IF(Paramètres!G$106<=Paramètres!$E$62,Paramètres!$F$62,Paramètres!$F$63))) -> 0 | H103: =IF(Paramètres!H$106<=Paramètres!$E$60,Paramètres!$F$60,IF(Paramètres!H$106<=Paramètres!$E$61,Paramètres!$F$61,IF(Paramètres!H$106<=Paramètres!$E$62,Paramètres!$F$62,Paramètres!$F$63))) -> 0 | I103: =IF(Paramètres!I$106<=Paramètres!$E$60,Paramètres!$F$60,IF(Paramètres!I$106<=Paramètres!$E$61,Paramètres!$F$61,IF(Paramètres!I$106<=Paramètres!$E$62,Paramètres!$F$62,Paramètres!$F$63))) -> 0 | J103: =IF(Paramètres!J$106<=Paramètres!$E$60,Paramètres!$F$60,IF(Paramètres!J$106<=Paramètres!$E$61,Paramètres!$F$61,IF(Paramètres!J$106<=Paramètres!$E$62,Paramètres!$F$62,Paramètres!$F$63))) -> 0 | K103: =IF(Paramètres!K$106<=Paramètres!$E$60,Paramètres!$F$60,IF(Paramètres!K$106<=Paramètres!$E$61,Paramètres!$F$61,IF(Paramètres!K$106<=Paramètres!$E$62,Paramètres!$F$62,Paramètres!$F$63))) -> 0 | L103: =IF(Paramètres!L$106<=Paramètres!$E$60,Paramètres!$F$60,IF(Paramètres!L$106<=Paramètres!$E$61,Paramètres!$F$61,IF(Paramètres!L$106<=Paramètres!$E$62,Paramètres!$F$62,Paramètres!$F$63))) -> 0 | M103: =IF(Paramètres!M$106<=Paramètres!$E$60,Paramètres!$F$60,IF(Paramètres!M$106<=Paramètres!$E$61,Paramètres!$F$61,IF(Paramètres!M$106<=Paramètres!$E$62,Paramètres!$F$62,Paramètres!$F$63))) -> 0 | N103: =IF(Paramètres!N$106<=Paramètres!$E$60,Paramètres!$F$60,IF(Paramètres!N$106<=Paramètres!$E$61,Paramètres!$F$61,IF(Paramètres!N$106<=Paramètres!$E$62,Paramètres!$F$62,Paramètres!$F$63))) -> 0 | O103: =IF(Paramètres!O$106<=Paramètres!$E$60,Paramètres!$F$60,IF(Paramètres!O$106<=Paramètres!$E$61,Paramètres!$F$61,IF(Paramètres!O$106<=Paramètres!$E$62,Paramètres!$F$62,Paramètres!$F$63))) -> 0 | P103: =IF(Paramètres!P$106<=Paramètres!$E$60,Paramètres!$F$60,IF(Paramètres!P$106<=Paramètres!$E$61,Paramètres!$F$61,IF(Paramètres!P$106<=Paramètres!$E$62,Paramètres!$F$62,Paramètres!$F$63))) -> 0 | Q103: =IF(Paramètres!Q$106<=Paramètres!$E$60,Paramètres!$F$60,IF(Paramètres!Q$106<=Paramètres!$E$61,Paramètres!$F$61,IF(Paramètres!Q$106<=Paramètres!$E$62,Paramètres!$F$62,Paramètres!$F$63))) -> 0 | R103: =IF(Paramètres!R$106<=Paramètres!$E$60,Paramètres!$F$60,IF(Paramètres!R$106<=Paramètres!$E$61,Paramètres!$F$61,IF(Paramètres!R$106<=Paramètres!$E$62,Paramètres!$F$62,Paramètres!$F$63))) -> 0 | S103: =IF(Paramètres!S$106<=Paramètres!$E$60,Paramètres!$F$60,IF(Paramètres!S$106<=Paramètres!$E$61,Paramètres!$F$61,IF(Paramètres!S$106<=Paramètres!$E$62,Paramètres!$F$62,Paramètres!$F$63))) -> 0 | T103: =IF(Paramètres!T$106<=Paramètres!$E$60,Paramètres!$F$60,IF(Paramètres!T$106<=Paramètres!$E$61,Paramètres!$F$61,IF(Paramètres!T$106<=Paramètres!$E$62,Paramètres!$F$62,Paramètres!$F$63))) -> 0 | U103: =IF(Paramètres!U$106<=Paramètres!$E$60,Paramètres!$F$60,IF(Paramètres!U$106<=Paramètres!$E$61,Paramètres!$F$61,IF(Paramètres!U$106<=Paramètres!$E$62,Paramètres!$F$62,Paramètres!$F$63))) -> 0 | V103: =IF(Paramètres!V$106<=Paramètres!$E$60,Paramètres!$F$60,IF(Paramètres!V$106<=Paramètres!$E$61,Paramètres!$F$61,IF(Paramètres!V$106<=Paramètres!$E$62,Paramètres!$F$62,Paramètres!$F$63))) -> 0 | W103: =IF(Paramètres!W$106<=Paramètres!$E$60,Paramètres!$F$60,IF(Paramètres!W$106<=Paramètres!$E$61,Paramètres!$F$61,IF(Paramètres!W$106<=Paramètres!$E$62,Paramètres!$F$62,Paramètres!$F$63))) -> 0 | X103: =IF(Paramètres!X$106<=Paramètres!$E$60,Paramètres!$F$60,IF(Paramètres!X$106<=Paramètres!$E$61,Paramètres!$F$61,IF(Paramètres!X$106<=Paramètres!$E$62,Paramètres!$F$62,Paramètres!$F$63))) -> 0 | Y103: =IF(Paramètres!Y$106<=Paramètres!$E$60,Paramètres!$F$60,IF(Paramètres!Y$106<=Paramètres!$E$61,Paramètres!$F$61,IF(Paramètres!Y$106<=Paramètres!$E$62,Paramètres!$F$62,Paramètres!$F$63))) -> 0 | Z103: =IF(Paramètres!Z$106<=Paramètres!$E$60,Paramètres!$F$60,IF(Paramètres!Z$106<=Paramètres!$E$61,Paramètres!$F$61,IF(Paramètres!Z$106<=Paramètres!$E$62,Paramètres!$F$62,Paramètres!$F$63))) -> 0 | AA103: =IF(Paramètres!AA$106<=Paramètres!$E$60,Paramètres!$F$60,IF(Paramètres!AA$106<=Paramètres!$E$61,Paramètres!$F$61,IF(Paramètres!AA$106<=Paramètres!$E$62,Paramètres!$F$62,Paramètres!$F$63))) -> 0 | AB103: =IF(Paramètres!AB$106<=Paramètres!$E$60,Paramètres!$F$60,IF(Paramètres!AB$106<=Paramètres!$E$61,Paramètres!$F$61,IF(Paramètres!AB$106<=Paramètres!$E$62,Paramètres!$F$62,Paramètres!$F$63))) -> 0 | AC103: =IF(Paramètres!AC$106<=Paramètres!$E$60,Paramètres!$F$60,IF(Paramètres!AC$106<=Paramètres!$E$61,Paramètres!$F$61,IF(Paramètres!AC$106<=Paramètres!$E$62,Paramètres!$F$62,Paramètres!$F$63))) -> 0 | AD103: =IF(Paramètres!AD$106<=Paramètres!$E$60,Paramètres!$F$60,IF(Paramètres!AD$106<=Paramètres!$E$61,Paramètres!$F$61,IF(Paramètres!AD$106<=Paramètres!$E$62,Paramètres!$F$62,Paramètres!$F$63))) -> 0 | AE103: =IF(Paramètres!AE$106<=Paramètres!$E$60,Paramètres!$F$60,IF(Paramètres!AE$106<=Paramètres!$E$61,Paramètres!$F$61,IF(Paramètres!AE$106<=Paramètres!$E$62,Paramètres!$F$62,Paramètres!$F$63))) -> 0 | AF103: =IF(Paramètres!AF$106<=Paramètres!$E$60,Paramètres!$F$60,IF(Paramètres!AF$106<=Paramètres!$E$61,Paramètres!$F$61,IF(Paramètres!AF$106<=Paramètres!$E$62,Paramètres!$F$62,Paramètres!$F$63))) -> 0 | AG103: =IF(Paramètres!AG$106<=Paramètres!$E$60,Paramètres!$F$60,IF(Paramètres!AG$106<=Paramètres!$E$61,Paramètres!$F$61,IF(Paramètres!AG$106<=Paramètres!$E$62,Paramètres!$F$62,Paramètres!$F$63))) -> 0 | AH103: =IF(Paramètres!AH$106<=Paramètres!$E$60,Paramètres!$F$60,IF(Paramètres!AH$106<=Paramètres!$E$61,Paramètres!$F$61,IF(Paramètres!AH$106<=Paramètres!$E$62,Paramètres!$F$62,Paramètres!$F$63))) -> 0 | AI103: =IF(Paramètres!AI$106<=Paramètres!$E$60,Paramètres!$F$60,IF(Paramètres!AI$106<=Paramètres!$E$61,Paramètres!$F$61,IF(Paramètres!AI$106<=Paramètres!$E$62,Paramètres!$F$62,Paramètres!$F$63))) -> 0 | AJ103: =IF(Paramètres!AJ$106<=Paramètres!$E$60,Paramètres!$F$60,IF(Paramètres!AJ$106<=Paramètres!$E$61,Paramètres!$F$61,IF(Paramètres!AJ$106<=Paramètres!$E$62,Paramètres!$F$62,Paramètres!$F$63))) -> 0 | AK103: =IF(Paramètres!AK$106<=Paramètres!$E$60,Paramètres!$F$60,IF(Paramètres!AK$106<=Paramètres!$E$61,Paramètres!$F$61,IF(Paramètres!AK$106<=Paramètres!$E$62,Paramètres!$F$62,Paramètres!$F$63))) -> 0 | AL103: =IF(Paramètres!AL$106<=Paramètres!$E$60,Paramètres!$F$60,IF(Paramètres!AL$106<=Paramètres!$E$61,Paramètres!$F$61,IF(Paramètres!AL$106<=Paramètres!$E$62,Paramètres!$F$62,Paramètres!$F$63))) -> 0 | AM103: =IF(Paramètres!AM$106<=Paramètres!$E$60,Paramètres!$F$60,IF(Paramètres!AM$106<=Paramètres!$E$61,Paramètres!$F$61,IF(Paramètres!AM$106<=Paramètres!$E$62,Paramètres!$F$62,Paramètres!$F$63))) -> 0 | AN103: =IF(Paramètres!AN$106<=Paramètres!$E$60,Paramètres!$F$60,IF(Paramètres!AN$106<=Paramètres!$E$61,Paramètres!$F$61,IF(Paramètres!AN$106<=Paramètres!$E$62,Paramètres!$F$62,Paramètres!$F$63))) -> 0 | AO103: =IF(Paramètres!AO$106<=Paramètres!$E$60,Paramètres!$F$60,IF(Paramètres!AO$106<=Paramètres!$E$61,Paramètres!$F$61,IF(Paramètres!AO$106<=Paramètres!$E$62,Paramètres!$F$62,Paramètres!$F$63))) -> 0 | AP103: =IF(Paramètres!AP$106<=Paramètres!$E$60,Paramètres!$F$60,IF(Paramètres!AP$106<=Paramètres!$E$61,Paramètres!$F$61,IF(Paramètres!AP$106<=Paramètres!$E$62,Paramètres!$F$62,Paramètres!$F$63))) -> 0 | AQ103: =IF(Paramètres!AQ$106<=Paramètres!$E$60,Paramètres!$F$60,IF(Paramètres!AQ$106<=Paramètres!$E$61,Paramètres!$F$61,IF(Paramètres!AQ$106<=Paramètres!$E$62,Paramètres!$F$62,Paramètres!$F$63))) -> 0 | AR103: =IF(Paramètres!AR$106<=Paramètres!$E$60,Paramètres!$F$60,IF(Paramètres!AR$106<=Paramètres!$E$61,Paramètres!$F$61,IF(Paramètres!AR$106<=Paramètres!$E$62,Paramètres!$F$62,Paramètres!$F$63))) -> 0 | AS103: =IF(Paramètres!AS$106<=Paramètres!$E$60,Paramètres!$F$60,IF(Paramètres!AS$106<=Paramètres!$E$61,Paramètres!$F$61,IF(Paramètres!AS$106<=Paramètres!$E$62,Paramètres!$F$62,Paramètres!$F$63))) -> 0 | AT103: =IF(Paramètres!AT$106<=Paramètres!$E$60,Paramètres!$F$60,IF(Paramètres!AT$106<=Paramètres!$E$61,Paramètres!$F$61,IF(Paramètres!AT$106<=Paramètres!$E$62,Paramètres!$F$62,Paramètres!$F$63))) -> 0 | AU103: =IF(Paramètres!AU$106<=Paramètres!$E$60,Paramètres!$F$60,IF(Paramètres!AU$106<=Paramètres!$E$61,Paramètres!$F$61,IF(Paramètres!AU$106<=Paramètres!$E$62,Paramètres!$F$62,Paramètres!$F$63))) -> 0 | AV103: =IF(Paramètres!AV$106<=Paramètres!$E$60,Paramètres!$F$60,IF(Paramètres!AV$106<=Paramètres!$E$61,Paramètres!$F$61,IF(Paramètres!AV$106<=Paramètres!$E$62,Paramètres!$F$62,Paramètres!$F$63))) -> 0 | AW103: =IF(Paramètres!AW$106<=Paramètres!$E$60,Paramètres!$F$60,IF(Paramètres!AW$106<=Paramètres!$E$61,Paramètres!$F$61,IF(Paramètres!AW$106<=Paramètres!$E$62,Paramètres!$F$62,Paramètres!$F$63))) -> 0 | AX103: =IF(Paramètres!AX$106<=Paramètres!$E$60,Paramètres!$F$60,IF(Paramètres!AX$106<=Paramètres!$E$61,Paramètres!$F$61,IF(Paramètres!AX$106<=Paramètres!$E$62,Paramètres!$F$62,Paramètres!$F$63))) -> 0 | AY103: =IF(Paramètres!AY$106<=Paramètres!$E$60,Paramètres!$F$60,IF(Paramètres!AY$106<=Paramètres!$E$61,Paramètres!$F$61,IF(Paramètres!AY$106<=Paramètres!$E$62,Paramètres!$F$62,Paramètres!$F$63))) -> 0 | AZ103: =IF(Paramètres!AZ$106<=Paramètres!$E$60,Paramètres!$F$60,IF(Paramètres!AZ$106<=Paramètres!$E$61,Paramètres!$F$61,IF(Paramètres!AZ$106<=Paramètres!$E$62,Paramètres!$F$62,Paramètres!$F$63))) -> 0 | BA103: =IF(Paramètres!BA$106<=Paramètres!$E$60,Paramètres!$F$60,IF(Paramètres!BA$106<=Paramètres!$E$61,Paramètres!$F$61,IF(Paramètres!BA$106<=Paramètres!$E$62,Paramètres!$F$62,Paramètres!$F$63))) -> 0 | BB103: =IF(Paramètres!BB$106<=Paramètres!$E$60,Paramètres!$F$60,IF(Paramètres!BB$106<=Paramètres!$E$61,Paramètres!$F$61,IF(Paramètres!BB$106<=Paramètres!$E$62,Paramètres!$F$62,Paramètres!$F$63))) -> 0 | BC103: =IF(Paramètres!BC$106<=Paramètres!$E$60,Paramètres!$F$60,IF(Paramètres!BC$106<=Paramètres!$E$61,Paramètres!$F$61,IF(Paramètres!BC$106<=Paramètres!$E$62,Paramètres!$F$62,Paramètres!$F$63))) -> 0 | BD103: =IF(Paramètres!BD$106<=Paramètres!$E$60,Paramètres!$F$60,IF(Paramètres!BD$106<=Paramètres!$E$61,Paramètres!$F$61,IF(Paramètres!BD$106<=Paramètres!$E$62,Paramètres!$F$62,Paramètres!$F$63))) -> 0
C104: =SUM(G104:BD104) -> 54.87195374 | D104: Montant de la redevance | E104: $mm nominal | G104: =G101*CHOOSE(Paramètres!$F$25,G102,G103) -> 0 | H104: =H101*CHOOSE(Paramètres!$F$25,H102,H103) -> 0 | I104: =I101*CHOOSE(Paramètres!$F$25,I102,I103) -> 0 | J104: =J101*CHOOSE(Paramètres!$F$25,J102,J103) -> 0 | K104: =K101*CHOOSE(Paramètres!$F$25,K102,K103) -> 0 | L104: =L101*CHOOSE(Paramètres!$F$25,L102,L103) -> 2.721152163 | M104: =M101*CHOOSE(Paramètres!$F$25,M102,M103) -> 2.85155499 | N104: =N101*CHOOSE(Paramètres!$F$25,N102,N103) -> 2.645653872 | O104: =O101*CHOOSE(Paramètres!$F$25,O102,O103) -> 2.733339169 | P104: =P101*CHOOSE(Paramètres!$F$25,P102,P103) -> 3.601152838 | Q104: =Q101*CHOOSE(Paramètres!$F$25,Q102,Q103) -> 4.107149604 | R104: =R101*CHOOSE(Paramètres!$F$25,R102,R103) -> 3.270232868 | S104: =S101*CHOOSE(Paramètres!$F$25,S102,S103) -> 4.56227847 | T104: =T101*CHOOSE(Paramètres!$F$25,T102,T103) -> 6.020083158 | U104: =U101*CHOOSE(Paramètres!$F$25,U102,U103) -> 4.605363616 | V104: =V101*CHOOSE(Paramètres!$F$25,V102,V103) -> 4.697470889 | W104: =W101*CHOOSE(Paramètres!$F$25,W102,W103) -> 4.25904015 | X104: =X101*CHOOSE(Paramètres!$F$25,X102,X103) -> 4.344220954 | Y104: =Y101*CHOOSE(Paramètres!$F$25,Y102,Y103) -> 3.323329124 | Z104: =Z101*CHOOSE(Paramètres!$F$25,Z102,Z103) -> 1.12993187 | AA104: =AA101*CHOOSE(Paramètres!$F$25,AA102,AA103) -> 0 | AB104: =AB101*CHOOSE(Paramètres!$F$25,AB102,AB103) -> 0 | AC104: =AC101*CHOOSE(Paramètres!$F$25,AC102,AC103) -> 0 | AD104: =AD101*CHOOSE(Paramètres!$F$25,AD102,AD103) -> 0 | AE104: =AE101*CHOOSE(Paramètres!$F$25,AE102,AE103) -> 0 | AF104: =AF101*CHOOSE(Paramètres!$F$25,AF102,AF103) -> 0 | AG104: =AG101*CHOOSE(Paramètres!$F$25,AG102,AG103) -> 0 | AH104: =AH101*CHOOSE(Paramètres!$F$25,AH102,AH103) -> 0 | AI104: =AI101*CHOOSE(Paramètres!$F$25,AI102,AI103) -> 0 | AJ104: =AJ101*CHOOSE(Paramètres!$F$25,AJ102,AJ103) -> 0 | AK104: =AK101*CHOOSE(Paramètres!$F$25,AK102,AK103) -> 0 | AL104: =AL101*CHOOSE(Paramètres!$F$25,AL102,AL103) -> 0 | AM104: =AM101*CHOOSE(Paramètres!$F$25,AM102,AM103) -> 0 | AN104: =AN101*CHOOSE(Paramètres!$F$25,AN102,AN103) -> 0 | AO104: =AO101*CHOOSE(Paramètres!$F$25,AO102,AO103) -> 0 | AP104: =AP101*CHOOSE(Paramètres!$F$25,AP102,AP103) -> 0 | AQ104: =AQ101*CHOOSE(Paramètres!$F$25,AQ102,AQ103) -> 0 | AR104: =AR101*CHOOSE(Paramètres!$F$25,AR102,AR103) -> 0 | AS104: =AS101*CHOOSE(Paramètres!$F$25,AS102,AS103) -> 0 | AT104: =AT101*CHOOSE(Paramètres!$F$25,AT102,AT103) -> 0 | AU104: =AU101*CHOOSE(Paramètres!$F$25,AU102,AU103) -> 0 | AV104: =AV101*CHOOSE(Paramètres!$F$25,AV102,AV103) -> 0 | AW104: =AW101*CHOOSE(Paramètres!$F$25,AW102,AW103) -> 0 | AX104: =AX101*CHOOSE(Paramètres!$F$25,AX102,AX103) -> 0 | AY104: =AY101*CHOOSE(Paramètres!$F$25,AY102,AY103) -> 0 | AZ104: =AZ101*CHOOSE(Paramètres!$F$25,AZ102,AZ103) -> 0 | BA104: =BA101*CHOOSE(Paramètres!$F$25,BA102,BA103) -> 0 | BB104: =BB101*CHOOSE(Paramètres!$F$25,BB102,BB103) -> 0 | BC104: =BC101*CHOOSE(Paramètres!$F$25,BC102,BC103) -> 0 | BD104: =BD101*CHOOSE(Paramètres!$F$25,BD102,BD103) -> 0
C106: =SUM(G106:BD106) -> 123.5059802 | D106: Montant total de la redevance | E106: $mm nominal | G106: =G97+G104 -> 0 | H106: =H97+H104 -> 0 | I106: 0 | J106: 0 | K106: 0 | L106: 6.169241581 | M106: 7.088349038 | N106: 6.520035652 | O106: 7.967060531 | P106: 9.253943444 | Q106: 9.670946882 | R106: 8.516531328 | S106: 9.756175787 | T106: 10.33845328 | U106: 9.043844119 | V106: 9.224721001 | W106: 8.706878794 | X106: 8.695724999 | Y106: 7.786212976 | Z106: 4.767860786 | AA106: 0 | AB106: 0 | AC106: 0 | AD106: 0 | AE106: 0 | AF106: 0 | AG106: 0 | AH106: 0 | AI106: 0 | AJ106: 0 | AK106: 0 | AL106: 0 | AM106: 0 | AN106: 0 | AO106: 0 | AP106: 0 | AQ106: 0 | AR106: 0 | AS106: 0 | AT106: 0 | AU106: 0 | AV106: 0 | AW106: 0 | AX106: 0 | AY106: 0 | AZ106: 0 | BA106: 0 | BB106: 0 | BC106: 0 | BD106: 0
D108: Redevance de contrôle de change (banque centrale)
C109: =SUM(G109:BD109) -> 6175.29901 | D109: Chiffre d'affaires net | E109: $mm nominal | G109: =G56 -> 0 | H109: =H56 -> 0 | I109: 0 | J109: 0 | K109: 0 | L109: 308.462079 | M109: 354.4174519 | N109: 326.0017826 | O109: 398.3530266 | P109: 462.6971722 | Q109: 483.5473441 | R109: 425.8265664 | S109: 487.8087893 | T109: 516.922664 | U109: 452.1922059 | V109: 461.2360501 | W109: 435.3439397 | X109: 434.78625 | Y109: 389.3106488 | Z109: 238.3930393 | AA109: 0 | AB109: 0 | AC109: 0 | AD109: 0 | AE109: 0 | AF109: 0 | AG109: 0 | AH109: 0 | AI109: 0 | AJ109: 0 | AK109: 0 | AL109: 0 | AM109: 0 | AN109: 0 | AO109: 0 | AP109: 0 | AQ109: 0 | AR109: 0 | AS109: 0 | AT109: 0 | AU109: 0 | AV109: 0 | AW109: 0 | AX109: 0 | AY109: 0 | AZ109: 0 | BA109: 0 | BB109: 0 | BC109: 0 | BD109: 0
C110: =SUM(G110:BD110) -> 0 | D110: Redevance de contrôle de change | E110: $mm nominal | G110: =(Paramètres!$F$36*Modèle!G109) -> 0 | H110: =(Paramètres!$F$36*Modèle!H109) -> 0 | I110: =(Paramètres!$F$36*Modèle!I109) -> 0 | J110: =(Paramètres!$F$36*Modèle!J109) -> 0 | K110: =(Paramètres!$F$36*Modèle!K109) -> 0 | L110: =(Paramètres!$F$36*Modèle!L109) -> 0 | M110: =(Paramètres!$F$36*Modèle!M109) -> 0 | N110: =(Paramètres!$F$36*Modèle!N109) -> 0 | O110: =(Paramètres!$F$36*Modèle!O109) -> 0 | P110: =(Paramètres!$F$36*Modèle!P109) -> 0 | Q110: =(Paramètres!$F$36*Modèle!Q109) -> 0 | R110: =(Paramètres!$F$36*Modèle!R109) -> 0 | S110: =(Paramètres!$F$36*Modèle!S109) -> 0 | T110: =(Paramètres!$F$36*Modèle!T109) -> 0 | U110: =(Paramètres!$F$36*Modèle!U109) -> 0 | V110: =(Paramètres!$F$36*Modèle!V109) -> 0 | W110: =(Paramètres!$F$36*Modèle!W109) -> 0 | X110: =(Paramètres!$F$36*Modèle!X109) -> 0 | Y110: =(Paramètres!$F$36*Modèle!Y109) -> 0 | Z110: =(Paramètres!$F$36*Modèle!Z109) -> 0 | AA110: =(Paramètres!$F$36*Modèle!AA109) -> 0 | AB110: =(Paramètres!$F$36*Modèle!AB109) -> 0 | AC110: =(Paramètres!$F$36*Modèle!AC109) -> 0 | AD110: =(Paramètres!$F$36*Modèle!AD109) -> 0 | AE110: =(Paramètres!$F$36*Modèle!AE109) -> 0 | AF110: =(Paramètres!$F$36*Modèle!AF109) -> 0 | AG110: =(Paramètres!$F$36*Modèle!AG109) -> 0 | AH110: =(Paramètres!$F$36*Modèle!AH109) -> 0 | AI110: =(Paramètres!$F$36*Modèle!AI109) -> 0 | AJ110: =(Paramètres!$F$36*Modèle!AJ109) -> 0 | AK110: =(Paramètres!$F$36*Modèle!AK109) -> 0 | AL110: =(Paramètres!$F$36*Modèle!AL109) -> 0 | AM110: =(Paramètres!$F$36*Modèle!AM109) -> 0 | AN110: =(Paramètres!$F$36*Modèle!AN109) -> 0 | AO110: =(Paramètres!$F$36*Modèle!AO109) -> 0 | AP110: =(Paramètres!$F$36*Modèle!AP109) -> 0 | AQ110: =(Paramètres!$F$36*Modèle!AQ109) -> 0 | AR110: =(Paramètres!$F$36*Modèle!AR109) -> 0 | AS110: =(Paramètres!$F$36*Modèle!AS109) -> 0 | AT110: =(Paramètres!$F$36*Modèle!AT109) -> 0 | AU110: =(Paramètres!$F$36*Modèle!AU109) -> 0 | AV110: =(Paramètres!$F$36*Modèle!AV109) -> 0 | AW110: =(Paramètres!$F$36*Modèle!AW109) -> 0 | AX110: =(Paramètres!$F$36*Modèle!AX109) -> 0 | AY110: =(Paramètres!$F$36*Modèle!AY109) -> 0 | AZ110: =(Paramètres!$F$36*Modèle!AZ109) -> 0 | BA110: =(Paramètres!$F$36*Modèle!BA109) -> 0 | BB110: =(Paramètres!$F$36*Modèle!BB109) -> 0 | BC110: =(Paramètres!$F$36*Modèle!BC109) -> 0 | BD110: =(Paramètres!$F$36*Modèle!BD109) -> 0
D112: Contribution au developpement communautaire
C113: =SUM(G113:BD113) -> 6487.226469 | D113: Chiffre d'affaires brut | E113: $mm nominal | G113: =G54 -> 0 | H113: =H54 -> 0 | I113: 0 | J113: 0 | K113: 0 | L113: 332.1619564 | M113: 389.5464001 | N113: 349.1913043 | O113: 420.8283312 | P113: 491.008762 | Q113: 504.4889568 | R113: 443.1502696 | S113: 508.1696088 | T113: 536.4405647 | U113: 470.4133157 | V113: 479.821582 | W113: 453.1895059 | X113: 452.4516061 | Y113: 406.1118258 | Z113: 250.2524794 | AA113: 0 | AB113: 0 | AC113: 0 | AD113: 0 | AE113: 0 | AF113: 0 | AG113: 0 | AH113: 0 | AI113: 0 | AJ113: 0 | AK113: 0 | AL113: 0 | AM113: 0 | AN113: 0 | AO113: 0 | AP113: 0 | AQ113: 0 | AR113: 0 | AS113: 0 | AT113: 0 | AU113: 0 | AV113: 0 | AW113: 0 | AX113: 0 | AY113: 0 | AZ113: 0 | BA113: 0 | BB113: 0 | BC113: 0 | BD113: 0
C114: =SUM(G114:BD114) -> 0 | D114: Contribution au developpement communautaire | E114: $mm nominal | G114: =Paramètres!$F$37*G113 -> 0 | H114: =Paramètres!$F$37*H113 -> 0 | I114: =Paramètres!$F$37*I113 -> 0 | J114: =Paramètres!$F$37*J113 -> 0 | K114: =Paramètres!$F$37*K113 -> 0 | L114: =Paramètres!$F$37*L113 -> 0 | M114: =Paramètres!$F$37*M113 -> 0 | N114: =Paramètres!$F$37*N113 -> 0 | O114: =Paramètres!$F$37*O113 -> 0 | P114: =Paramètres!$F$37*P113 -> 0 | Q114: =Paramètres!$F$37*Q113 -> 0 | R114: =Paramètres!$F$37*R113 -> 0 | S114: =Paramètres!$F$37*S113 -> 0 | T114: =Paramètres!$F$37*T113 -> 0 | U114: =Paramètres!$F$37*U113 -> 0 | V114: =Paramètres!$F$37*V113 -> 0 | W114: =Paramètres!$F$37*W113 -> 0 | X114: =Paramètres!$F$37*X113 -> 0 | Y114: =Paramètres!$F$37*Y113 -> 0 | Z114: =Paramètres!$F$37*Z113 -> 0 | AA114: =Paramètres!$F$37*AA113 -> 0 | AB114: =Paramètres!$F$37*AB113 -> 0 | AC114: =Paramètres!$F$37*AC113 -> 0 | AD114: =Paramètres!$F$37*AD113 -> 0 | AE114: =Paramètres!$F$37*AE113 -> 0 | AF114: =Paramètres!$F$37*AF113 -> 0 | AG114: =Paramètres!$F$37*AG113 -> 0 | AH114: =Paramètres!$F$37*AH113 -> 0 | AI114: =Paramètres!$F$37*AI113 -> 0 | AJ114: =Paramètres!$F$37*AJ113 -> 0 | AK114: =Paramètres!$F$37*AK113 -> 0 | AL114: =Paramètres!$F$37*AL113 -> 0 | AM114: =Paramètres!$F$37*AM113 -> 0 | AN114: =Paramètres!$F$37*AN113 -> 0 | AO114: =Paramètres!$F$37*AO113 -> 0 | AP114: =Paramètres!$F$37*AP113 -> 0 | AQ114: =Paramètres!$F$37*AQ113 -> 0 | AR114: =Paramètres!$F$37*AR113 -> 0 | AS114: =Paramètres!$F$37*AS113 -> 0 | AT114: =Paramètres!$F$37*AT113 -> 0 | AU114: =Paramètres!$F$37*AU113 -> 0 | AV114: =Paramètres!$F$37*AV113 -> 0 | AW114: =Paramètres!$F$37*AW113 -> 0 | AX114: =Paramètres!$F$37*AX113 -> 0 | AY114: =Paramètres!$F$37*AY113 -> 0 | AZ114: =Paramètres!$F$37*AZ113 -> 0 | BA114: =Paramètres!$F$37*BA113 -> 0 | BB114: =Paramètres!$F$37*BB113 -> 0 | BC114: =Paramètres!$F$37*BC113 -> 0 | BD114: =Paramètres!$F$37*BD113 -> 0
D116: Redevance a taux variable
D117: Assiette | G117: =G56 -> 0 | H117: 0 | I117: 0 | J117: 0 | K117: 0 | L117: 308.462079 | M117: 354.4174519 | N117: 326.0017826 | O117: 398.3530266 | P117: 462.6971722 | Q117: 483.5473441 | R117: 425.8265664 | S117: 487.8087893 | T117: 516.922664 | U117: 452.1922059 | V117: 461.2360501 | W117: 435.3439397 | X117: 434.78625 | Y117: 389.3106488 | Z117: 238.3930393 | AA117: 0 | AB117: 0 | AC117: 0 | AD117: 0 | AE117: 0 | AF117: 0 | AG117: 0 | AH117: 0 | AI117: 0 | AJ117: 0 | AK117: 0 | AL117: 0 | AM117: =AM56 -> 0 | AN117: 0 | AO117: 0 | AP117: 0 | AQ117: 0 | AR117: 0 | AS117: 0 | AT117: 0 | AU117: 0 | AV117: 0 | AW117: 0 | AX117: 0 | AY117: 0 | AZ117: 0 | BA117: 0 | BB117: 0 | BC117: 0 | BD117: 0
D119: Fourchette de prix 1 | E119: $ | G119: =MIN(Paramètres!G$106,Paramètres!$E60) -> 0 | H119: =MIN(Paramètres!H$106,Paramètres!$E60) -> 0 | I119: =MIN(Paramètres!I$106,Paramètres!$E60) -> 0 | J119: =MIN(Paramètres!J$106,Paramètres!$E60) -> 0 | K119: =MIN(Paramètres!K$106,Paramètres!$E60) -> 0 | L119: =MIN(Paramètres!L$106,Paramètres!$E60) -> 0 | M119: =MIN(Paramètres!M$106,Paramètres!$E60) -> 0 | N119: =MIN(Paramètres!N$106,Paramètres!$E60) -> 0 | O119: =MIN(Paramètres!O$106,Paramètres!$E60) -> 0 | P119: =MIN(Paramètres!P$106,Paramètres!$E60) -> 0 | Q119: =MIN(Paramètres!Q$106,Paramètres!$E60) -> 0 | R119: =MIN(Paramètres!R$106,Paramètres!$E60) -> 0 | S119: =MIN(Paramètres!S$106,Paramètres!$E60) -> 0 | T119: =MIN(Paramètres!T$106,Paramètres!$E60) -> 0 | U119: =MIN(Paramètres!U$106,Paramètres!$E60) -> 0 | V119: =MIN(Paramètres!V$106,Paramètres!$E60) -> 0 | W119: =MIN(Paramètres!W$106,Paramètres!$E60) -> 0 | X119: =MIN(Paramètres!X$106,Paramètres!$E60) -> 0 | Y119: =MIN(Paramètres!Y$106,Paramètres!$E60) -> 0 | Z119: =MIN(Paramètres!Z$106,Paramètres!$E60) -> 0 | AA119: =MIN(Paramètres!AA$106,Paramètres!$E60) -> 0 | AB119: =MIN(Paramètres!AB$106,Paramètres!$E60) -> 0 | AC119: =MIN(Paramètres!AC$106,Paramètres!$E60) -> 0 | AD119: =MIN(Paramètres!AD$106,Paramètres!$E60) -> 0 | AE119: =MIN(Paramètres!AE$106,Paramètres!$E60) -> 0 | AF119: =MIN(Paramètres!AF$106,Paramètres!$E60) -> 0 | AG119: =MIN(Paramètres!AG$106,Paramètres!$E60) -> 0 | AH119: =MIN(Paramètres!AH$106,Paramètres!$E60) -> 0 | AI119: =MIN(Paramètres!AI$106,Paramètres!$E60) -> 0 | AJ119: =MIN(Paramètres!AJ$106,Paramètres!$E60) -> 0 | AK119: =MIN(Paramètres!AK$106,Paramètres!$E60) -> 0 | AL119: =MIN(Paramètres!AL$106,Paramètres!$E60) -> 0 | AM119: =MIN(Paramètres!AM$106,Paramètres!$E60) -> 0 | AN119: =MIN(Paramètres!AN$106,Paramètres!$E60) -> 0 | AO119: =MIN(Paramètres!AO$106,Paramètres!$E60) -> 0 | AP119: =MIN(Paramètres!AP$106,Paramètres!$E60) -> 0 | AQ119: =MIN(Paramètres!AQ$106,Paramètres!$E60) -> 0 | AR119: =MIN(Paramètres!AR$106,Paramètres!$E60) -> 0 | AS119: =MIN(Paramètres!AS$106,Paramètres!$E60) -> 0 | AT119: =MIN(Paramètres!AT$106,Paramètres!$E60) -> 0 | AU119: =MIN(Paramètres!AU$106,Paramètres!$E60) -> 0 | AV119: =MIN(Paramètres!AV$106,Paramètres!$E60) -> 0 | AW119: =MIN(Paramètres!AW$106,Paramètres!$E60) -> 0 | AX119: =MIN(Paramètres!AX$106,Paramètres!$E60) -> 0 | AY119: =MIN(Paramètres!AY$106,Paramètres!$E60) -> 0 | AZ119: =MIN(Paramètres!AZ$106,Paramètres!$E60) -> 0 | BA119: =MIN(Paramètres!BA$106,Paramètres!$E60) -> 0 | BB119: =MIN(Paramètres!BB$106,Paramètres!$E60) -> 0 | BC119: =MIN(Paramètres!BC$106,Paramètres!$E60) -> 0 | BD119: =MIN(Paramètres!BD$106,Paramètres!$E60) -> 0
D120: Fourchette de prix 2 | E120: $ | G120: =IF(Paramètres!G$106>Paramètres!$E61,Paramètres!G$106-Paramètres!$E61,0) -> 7000 | H120: =IF(Paramètres!H$106>Paramètres!$E61,Paramètres!H$106-Paramètres!$E61,0) -> 7000 | I120: =IF(Paramètres!I$106>Paramètres!$E61,Paramètres!I$106-Paramètres!$E61,0) -> 7000 | J120: =IF(Paramètres!J$106>Paramètres!$E61,Paramètres!J$106-Paramètres!$E61,0) -> 7000 | K120: =IF(Paramètres!K$106>Paramètres!$E61,Paramètres!K$106-Paramètres!$E61,0) -> 7000 | L120: =IF(Paramètres!L$106>Paramètres!$E61,Paramètres!L$106-Paramètres!$E61,0) -> 7000 | M120: =IF(Paramètres!M$106>Paramètres!$E61,Paramètres!M$106-Paramètres!$E61,0) -> 7000 | N120: =IF(Paramètres!N$106>Paramètres!$E61,Paramètres!N$106-Paramètres!$E61,0) -> 7000 | O120: =IF(Paramètres!O$106>Paramètres!$E61,Paramètres!O$106-Paramètres!$E61,0) -> 7000 | P120: =IF(Paramètres!P$106>Paramètres!$E61,Paramètres!P$106-Paramètres!$E61,0) -> 7000 | Q120: =IF(Paramètres!Q$106>Paramètres!$E61,Paramètres!Q$106-Paramètres!$E61,0) -> 7000 | R120: =IF(Paramètres!R$106>Paramètres!$E61,Paramètres!R$106-Paramètres!$E61,0) -> 7000 | S120: =IF(Paramètres!S$106>Paramètres!$E61,Paramètres!S$106-Paramètres!$E61,0) -> 7000 | T120: =IF(Paramètres!T$106>Paramètres!$E61,Paramètres!T$106-Paramètres!$E61,0) -> 7000 | U120: =IF(Paramètres!U$106>Paramètres!$E61,Paramètres!U$106-Paramètres!$E61,0) -> 7000 | V120: =IF(Paramètres!V$106>Paramètres!$E61,Paramètres!V$106-Paramètres!$E61,0) -> 7000 | W120: =IF(Paramètres!W$106>Paramètres!$E61,Paramètres!W$106-Paramètres!$E61,0) -> 7000 | X120: =IF(Paramètres!X$106>Paramètres!$E61,Paramètres!X$106-Paramètres!$E61,0) -> 7000 | Y120: =IF(Paramètres!Y$106>Paramètres!$E61,Paramètres!Y$106-Paramètres!$E61,0) -> 7000 | Z120: =IF(Paramètres!Z$106>Paramètres!$E61,Paramètres!Z$106-Paramètres!$E61,0) -> 7000 | AA120: =IF(Paramètres!AA$106>Paramètres!$E61,Paramètres!AA$106-Paramètres!$E61,0) -> 7000 | AB120: =IF(Paramètres!AB$106>Paramètres!$E61,Paramètres!AB$106-Paramètres!$E61,0) -> 7000 | AC120: =IF(Paramètres!AC$106>Paramètres!$E61,Paramètres!AC$106-Paramètres!$E61,0) -> 7000 | AD120: =IF(Paramètres!AD$106>Paramètres!$E61,Paramètres!AD$106-Paramètres!$E61,0) -> 7000 | AE120: =IF(Paramètres!AE$106>Paramètres!$E61,Paramètres!AE$106-Paramètres!$E61,0) -> 7000 | AF120: =IF(Paramètres!AF$106>Paramètres!$E61,Paramètres!AF$106-Paramètres!$E61,0) -> 7000 | AG120: =IF(Paramètres!AG$106>Paramètres!$E61,Paramètres!AG$106-Paramètres!$E61,0) -> 7000 | AH120: =IF(Paramètres!AH$106>Paramètres!$E61,Paramètres!AH$106-Paramètres!$E61,0) -> 7000 | AI120: =IF(Paramètres!AI$106>Paramètres!$E61,Paramètres!AI$106-Paramètres!$E61,0) -> 7000 | AJ120: =IF(Paramètres!AJ$106>Paramètres!$E61,Paramètres!AJ$106-Paramètres!$E61,0) -> 7000 | AK120: =IF(Paramètres!AK$106>Paramètres!$E61,Paramètres!AK$106-Paramètres!$E61,0) -> 7000 | AL120: =IF(Paramètres!AL$106>Paramètres!$E61,Paramètres!AL$106-Paramètres!$E61,0) -> 7000 | AM120: =IF(Paramètres!AM$106>Paramètres!$E61,Paramètres!AM$106-Paramètres!$E61,0) -> 7000 | AN120: =IF(Paramètres!AN$106>Paramètres!$E61,Paramètres!AN$106-Paramètres!$E61,0) -> 7000 | AO120: =IF(Paramètres!AO$106>Paramètres!$E61,Paramètres!AO$106-Paramètres!$E61,0) -> 7000 | AP120: =IF(Paramètres!AP$106>Paramètres!$E61,Paramètres!AP$106-Paramètres!$E61,0) -> 7000 | AQ120: =IF(Paramètres!AQ$106>Paramètres!$E61,Paramètres!AQ$106-Paramètres!$E61,0) -> 7000 | AR120: =IF(Paramètres!AR$106>Paramètres!$E61,Paramètres!AR$106-Paramètres!$E61,0) -> 7000 | AS120: =IF(Paramètres!AS$106>Paramètres!$E61,Paramètres!AS$106-Paramètres!$E61,0) -> 7000 | AT120: =IF(Paramètres!AT$106>Paramètres!$E61,Paramètres!AT$106-Paramètres!$E61,0) -> 7000 | AU120: =IF(Paramètres!AU$106>Paramètres!$E61,Paramètres!AU$106-Paramètres!$E61,0) -> 7000 | AV120: =IF(Paramètres!AV$106>Paramètres!$E61,Paramètres!AV$106-Paramètres!$E61,0) -> 7000 | AW120: =IF(Paramètres!AW$106>Paramètres!$E61,Paramètres!AW$106-Paramètres!$E61,0) -> 7000 | AX120: =IF(Paramètres!AX$106>Paramètres!$E61,Paramètres!AX$106-Paramètres!$E61,0) -> 7000 | AY120: =IF(Paramètres!AY$106>Paramètres!$E61,Paramètres!AY$106-Paramètres!$E61,0) -> 7000 | AZ120: =IF(Paramètres!AZ$106>Paramètres!$E61,Paramètres!AZ$106-Paramètres!$E61,0) -> 7000 | BA120: =IF(Paramètres!BA$106>Paramètres!$E61,Paramètres!BA$106-Paramètres!$E61,0) -> 7000 | BB120: =IF(Paramètres!BB$106>Paramètres!$E61,Paramètres!BB$106-Paramètres!$E61,0) -> 7000 | BC120: =IF(Paramètres!BC$106>Paramètres!$E61,Paramètres!BC$106-Paramètres!$E61,0) -> 7000 | BD120: =IF(Paramètres!BD$106>Paramètres!$E61,Paramètres!BD$106-Paramètres!$E61,0) -> 7000
D121: Fourchette de prix 3 | E121: $ | G121: =IF(Paramètres!G$106>Paramètres!$E62,Paramètres!G$106-Paramètres!$E62,0) -> 7000 | H121: =IF(Paramètres!H$106>Paramètres!$E62,Paramètres!H$106-Paramètres!$E62,0) -> 7000 | I121: =IF(Paramètres!I$106>Paramètres!$E62,Paramètres!I$106-Paramètres!$E62,0) -> 7000 | J121: =IF(Paramètres!J$106>Paramètres!$E62,Paramètres!J$106-Paramètres!$E62,0) -> 7000 | K121: =IF(Paramètres!K$106>Paramètres!$E62,Paramètres!K$106-Paramètres!$E62,0) -> 7000 | L121: =IF(Paramètres!L$106>Paramètres!$E62,Paramètres!L$106-Paramètres!$E62,0) -> 7000 | M121: =IF(Paramètres!M$106>Paramètres!$E62,Paramètres!M$106-Paramètres!$E62,0) -> 7000 | N121: =IF(Paramètres!N$106>Paramètres!$E62,Paramètres!N$106-Paramètres!$E62,0) -> 7000 | O121: =IF(Paramètres!O$106>Paramètres!$E62,Paramètres!O$106-Paramètres!$E62,0) -> 7000 | P121: =IF(Paramètres!P$106>Paramètres!$E62,Paramètres!P$106-Paramètres!$E62,0) -> 7000 | Q121: =IF(Paramètres!Q$106>Paramètres!$E62,Paramètres!Q$106-Paramètres!$E62,0) -> 7000 | R121: =IF(Paramètres!R$106>Paramètres!$E62,Paramètres!R$106-Paramètres!$E62,0) -> 7000 | S121: =IF(Paramètres!S$106>Paramètres!$E62,Paramètres!S$106-Paramètres!$E62,0) -> 7000 | T121: =IF(Paramètres!T$106>Paramètres!$E62,Paramètres!T$106-Paramètres!$E62,0) -> 7000 | U121: =IF(Paramètres!U$106>Paramètres!$E62,Paramètres!U$106-Paramètres!$E62,0) -> 7000 | V121: =IF(Paramètres!V$106>Paramètres!$E62,Paramètres!V$106-Paramètres!$E62,0) -> 7000 | W121: =IF(Paramètres!W$106>Paramètres!$E62,Paramètres!W$106-Paramètres!$E62,0) -> 7000 | X121: =IF(Paramètres!X$106>Paramètres!$E62,Paramètres!X$106-Paramètres!$E62,0) -> 7000 | Y121: =IF(Paramètres!Y$106>Paramètres!$E62,Paramètres!Y$106-Paramètres!$E62,0) -> 7000 | Z121: =IF(Paramètres!Z$106>Paramètres!$E62,Paramètres!Z$106-Paramètres!$E62,0) -> 7000 | AA121: =IF(Paramètres!AA$106>Paramètres!$E62,Paramètres!AA$106-Paramètres!$E62,0) -> 7000 | AB121: =IF(Paramètres!AB$106>Paramètres!$E62,Paramètres!AB$106-Paramètres!$E62,0) -> 7000 | AC121: =IF(Paramètres!AC$106>Paramètres!$E62,Paramètres!AC$106-Paramètres!$E62,0) -> 7000 | AD121: =IF(Paramètres!AD$106>Paramètres!$E62,Paramètres!AD$106-Paramètres!$E62,0) -> 7000 | AE121: =IF(Paramètres!AE$106>Paramètres!$E62,Paramètres!AE$106-Paramètres!$E62,0) -> 7000 | AF121: =IF(Paramètres!AF$106>Paramètres!$E62,Paramètres!AF$106-Paramètres!$E62,0) -> 7000 | AG121: =IF(Paramètres!AG$106>Paramètres!$E62,Paramètres!AG$106-Paramètres!$E62,0) -> 7000 | AH121: =IF(Paramètres!AH$106>Paramètres!$E62,Paramètres!AH$106-Paramètres!$E62,0) -> 7000 | AI121: =IF(Paramètres!AI$106>Paramètres!$E62,Paramètres!AI$106-Paramètres!$E62,0) -> 7000 | AJ121: =IF(Paramètres!AJ$106>Paramètres!$E62,Paramètres!AJ$106-Paramètres!$E62,0) -> 7000 | AK121: =IF(Paramètres!AK$106>Paramètres!$E62,Paramètres!AK$106-Paramètres!$E62,0) -> 7000 | AL121: =IF(Paramètres!AL$106>Paramètres!$E62,Paramètres!AL$106-Paramètres!$E62,0) -> 7000 | AM121: =IF(Paramètres!AM$106>Paramètres!$E62,Paramètres!AM$106-Paramètres!$E62,0) -> 7000 | AN121: =IF(Paramètres!AN$106>Paramètres!$E62,Paramètres!AN$106-Paramètres!$E62,0) -> 7000 | AO121: =IF(Paramètres!AO$106>Paramètres!$E62,Paramètres!AO$106-Paramètres!$E62,0) -> 7000 | AP121: =IF(Paramètres!AP$106>Paramètres!$E62,Paramètres!AP$106-Paramètres!$E62,0) -> 7000 | AQ121: =IF(Paramètres!AQ$106>Paramètres!$E62,Paramètres!AQ$106-Paramètres!$E62,0) -> 7000 | AR121: =IF(Paramètres!AR$106>Paramètres!$E62,Paramètres!AR$106-Paramètres!$E62,0) -> 7000 | AS121: =IF(Paramètres!AS$106>Paramètres!$E62,Paramètres!AS$106-Paramètres!$E62,0) -> 7000 | AT121: =IF(Paramètres!AT$106>Paramètres!$E62,Paramètres!AT$106-Paramètres!$E62,0) -> 7000 | AU121: =IF(Paramètres!AU$106>Paramètres!$E62,Paramètres!AU$106-Paramètres!$E62,0) -> 7000 | AV121: =IF(Paramètres!AV$106>Paramètres!$E62,Paramètres!AV$106-Paramètres!$E62,0) -> 7000 | AW121: =IF(Paramètres!AW$106>Paramètres!$E62,Paramètres!AW$106-Paramètres!$E62,0) -> 7000 | AX121: =IF(Paramètres!AX$106>Paramètres!$E62,Paramètres!AX$106-Paramètres!$E62,0) -> 7000 | AY121: =IF(Paramètres!AY$106>Paramètres!$E62,Paramètres!AY$106-Paramètres!$E62,0) -> 7000 | AZ121: =IF(Paramètres!AZ$106>Paramètres!$E62,Paramètres!AZ$106-Paramètres!$E62,0) -> 7000 | BA121: =IF(Paramètres!BA$106>Paramètres!$E62,Paramètres!BA$106-Paramètres!$E62,0) -> 7000 | BB121: =IF(Paramètres!BB$106>Paramètres!$E62,Paramètres!BB$106-Paramètres!$E62,0) -> 7000 | BC121: =IF(Paramètres!BC$106>Paramètres!$E62,Paramètres!BC$106-Paramètres!$E62,0) -> 7000 | BD121: =IF(Paramètres!BD$106>Paramètres!$E62,Paramètres!BD$106-Paramètres!$E62,0) -> 7000
D122: Fourchette de prix 4 | E122: $ | G122: =IF(Paramètres!G$106>Paramètres!$E63,Paramètres!G$106-Paramètres!$E63,0) -> 7000 | H122: =IF(Paramètres!H$106>Paramètres!$E63,Paramètres!H$106-Paramètres!$E63,0) -> 7000 | I122: =IF(Paramètres!I$106>Paramètres!$E63,Paramètres!I$106-Paramètres!$E63,0) -> 7000 | J122: =IF(Paramètres!J$106>Paramètres!$E63,Paramètres!J$106-Paramètres!$E63,0) -> 7000 | K122: =IF(Paramètres!K$106>Paramètres!$E63,Paramètres!K$106-Paramètres!$E63,0) -> 7000 | L122: =IF(Paramètres!L$106>Paramètres!$E63,Paramètres!L$106-Paramètres!$E63,0) -> 7000 | M122: =IF(Paramètres!M$106>Paramètres!$E63,Paramètres!M$106-Paramètres!$E63,0) -> 7000 | N122: =IF(Paramètres!N$106>Paramètres!$E63,Paramètres!N$106-Paramètres!$E63,0) -> 7000 | O122: =IF(Paramètres!O$106>Paramètres!$E63,Paramètres!O$106-Paramètres!$E63,0) -> 7000 | P122: =IF(Paramètres!P$106>Paramètres!$E63,Paramètres!P$106-Paramètres!$E63,0) -> 7000 | Q122: =IF(Paramètres!Q$106>Paramètres!$E63,Paramètres!Q$106-Paramètres!$E63,0) -> 7000 | R122: =IF(Paramètres!R$106>Paramètres!$E63,Paramètres!R$106-Paramètres!$E63,0) -> 7000 | S122: =IF(Paramètres!S$106>Paramètres!$E63,Paramètres!S$106-Paramètres!$E63,0) -> 7000 | T122: =IF(Paramètres!T$106>Paramètres!$E63,Paramètres!T$106-Paramètres!$E63,0) -> 7000 | U122: =IF(Paramètres!U$106>Paramètres!$E63,Paramètres!U$106-Paramètres!$E63,0) -> 7000 | V122: =IF(Paramètres!V$106>Paramètres!$E63,Paramètres!V$106-Paramètres!$E63,0) -> 7000 | W122: =IF(Paramètres!W$106>Paramètres!$E63,Paramètres!W$106-Paramètres!$E63,0) -> 7000 | X122: =IF(Paramètres!X$106>Paramètres!$E63,Paramètres!X$106-Paramètres!$E63,0) -> 7000 | Y122: =IF(Paramètres!Y$106>Paramètres!$E63,Paramètres!Y$106-Paramètres!$E63,0) -> 7000 | Z122: =IF(Paramètres!Z$106>Paramètres!$E63,Paramètres!Z$106-Paramètres!$E63,0) -> 7000 | AA122: =IF(Paramètres!AA$106>Paramètres!$E63,Paramètres!AA$106-Paramètres!$E63,0) -> 7000 | AB122: =IF(Paramètres!AB$106>Paramètres!$E63,Paramètres!AB$106-Paramètres!$E63,0) -> 7000 | AC122: =IF(Paramètres!AC$106>Paramètres!$E63,Paramètres!AC$106-Paramètres!$E63,0) -> 7000 | AD122: =IF(Paramètres!AD$106>Paramètres!$E63,Paramètres!AD$106-Paramètres!$E63,0) -> 7000 | AE122: =IF(Paramètres!AE$106>Paramètres!$E63,Paramètres!AE$106-Paramètres!$E63,0) -> 7000 | AF122: =IF(Paramètres!AF$106>Paramètres!$E63,Paramètres!AF$106-Paramètres!$E63,0) -> 7000 | AG122: =IF(Paramètres!AG$106>Paramètres!$E63,Paramètres!AG$106-Paramètres!$E63,0) -> 7000 | AH122: =IF(Paramètres!AH$106>Paramètres!$E63,Paramètres!AH$106-Paramètres!$E63,0) -> 7000 | AI122: =IF(Paramètres!AI$106>Paramètres!$E63,Paramètres!AI$106-Paramètres!$E63,0) -> 7000 | AJ122: =IF(Paramètres!AJ$106>Paramètres!$E63,Paramètres!AJ$106-Paramètres!$E63,0) -> 7000 | AK122: =IF(Paramètres!AK$106>Paramètres!$E63,Paramètres!AK$106-Paramètres!$E63,0) -> 7000 | AL122: =IF(Paramètres!AL$106>Paramètres!$E63,Paramètres!AL$106-Paramètres!$E63,0) -> 7000 | AM122: =IF(Paramètres!AM$106>Paramètres!$E63,Paramètres!AM$106-Paramètres!$E63,0) -> 7000 | AN122: =IF(Paramètres!AN$106>Paramètres!$E63,Paramètres!AN$106-Paramètres!$E63,0) -> 7000 | AO122: =IF(Paramètres!AO$106>Paramètres!$E63,Paramètres!AO$106-Paramètres!$E63,0) -> 7000 | AP122: =IF(Paramètres!AP$106>Paramètres!$E63,Paramètres!AP$106-Paramètres!$E63,0) -> 7000 | AQ122: =IF(Paramètres!AQ$106>Paramètres!$E63,Paramètres!AQ$106-Paramètres!$E63,0) -> 7000 | AR122: =IF(Paramètres!AR$106>Paramètres!$E63,Paramètres!AR$106-Paramètres!$E63,0) -> 7000 | AS122: =IF(Paramètres!AS$106>Paramètres!$E63,Paramètres!AS$106-Paramètres!$E63,0) -> 7000 | AT122: =IF(Paramètres!AT$106>Paramètres!$E63,Paramètres!AT$106-Paramètres!$E63,0) -> 7000 | AU122: =IF(Paramètres!AU$106>Paramètres!$E63,Paramètres!AU$106-Paramètres!$E63,0) -> 7000 | AV122: =IF(Paramètres!AV$106>Paramètres!$E63,Paramètres!AV$106-Paramètres!$E63,0) -> 7000 | AW122: =IF(Paramètres!AW$106>Paramètres!$E63,Paramètres!AW$106-Paramètres!$E63,0) -> 7000 | AX122: =IF(Paramètres!AX$106>Paramètres!$E63,Paramètres!AX$106-Paramètres!$E63,0) -> 7000 | AY122: =IF(Paramètres!AY$106>Paramètres!$E63,Paramètres!AY$106-Paramètres!$E63,0) -> 7000 | AZ122: =IF(Paramètres!AZ$106>Paramètres!$E63,Paramètres!AZ$106-Paramètres!$E63,0) -> 7000 | BA122: =IF(Paramètres!BA$106>Paramètres!$E63,Paramètres!BA$106-Paramètres!$E63,0) -> 7000 | BB122: =IF(Paramètres!BB$106>Paramètres!$E63,Paramètres!BB$106-Paramètres!$E63,0) -> 7000 | BC122: =IF(Paramètres!BC$106>Paramètres!$E63,Paramètres!BC$106-Paramètres!$E63,0) -> 7000 | BD122: =IF(Paramètres!BD$106>Paramètres!$E63,Paramètres!BD$106-Paramètres!$E63,0) -> 7000
D125: Palier 1 | E125: $ per tonne of Cu cathode | G125: =Paramètres!$F60*G119 -> 0 | H125: =Paramètres!$F60*H119 -> 0 | I125: =Paramètres!$F60*I119 -> 0 | J125: =Paramètres!$F60*J119 -> 0 | K125: =Paramètres!$F60*K119 -> 0 | L125: =Paramètres!$F60*L119 -> 0 | M125: =Paramètres!$F60*M119 -> 0 | N125: =Paramètres!$F60*N119 -> 0 | O125: =Paramètres!$F60*O119 -> 0 | P125: =Paramètres!$F60*P119 -> 0 | Q125: =Paramètres!$F60*Q119 -> 0 | R125: =Paramètres!$F60*R119 -> 0 | S125: =Paramètres!$F60*S119 -> 0 | T125: =Paramètres!$F60*T119 -> 0 | U125: =Paramètres!$F60*U119 -> 0 | V125: =Paramètres!$F60*V119 -> 0 | W125: =Paramètres!$F60*W119 -> 0 | X125: =Paramètres!$F60*X119 -> 0 | Y125: =Paramètres!$F60*Y119 -> 0 | Z125: =Paramètres!$F60*Z119 -> 0 | AA125: =Paramètres!$F60*AA119 -> 0 | AB125: =Paramètres!$F60*AB119 -> 0 | AC125: =Paramètres!$F60*AC119 -> 0 | AD125: =Paramètres!$F60*AD119 -> 0 | AE125: =Paramètres!$F60*AE119 -> 0 | AF125: =Paramètres!$F60*AF119 -> 0 | AG125: =Paramètres!$F60*AG119 -> 0 | AH125: =Paramètres!$F60*AH119 -> 0 | AI125: =Paramètres!$F60*AI119 -> 0 | AJ125: =Paramètres!$F60*AJ119 -> 0 | AK125: =Paramètres!$F60*AK119 -> 0 | AL125: =Paramètres!$F60*AL119 -> 0 | AM125: =Paramètres!$F60*AM119 -> 0 | AN125: =Paramètres!$F60*AN119 -> 0 | AO125: =Paramètres!$F60*AO119 -> 0 | AP125: =Paramètres!$F60*AP119 -> 0 | AQ125: =Paramètres!$F60*AQ119 -> 0 | AR125: =Paramètres!$F60*AR119 -> 0 | AS125: =Paramètres!$F60*AS119 -> 0 | AT125: =Paramètres!$F60*AT119 -> 0 | AU125: =Paramètres!$F60*AU119 -> 0 | AV125: =Paramètres!$F60*AV119 -> 0 | AW125: =Paramètres!$F60*AW119 -> 0 | AX125: =Paramètres!$F60*AX119 -> 0 | AY125: =Paramètres!$F60*AY119 -> 0 | AZ125: =Paramètres!$F60*AZ119 -> 0 | BA125: =Paramètres!$F60*BA119 -> 0 | BB125: =Paramètres!$F60*BB119 -> 0 | BC125: =Paramètres!$F60*BC119 -> 0 | BD125: =Paramètres!$F60*BD119 -> 0
D126: Palier 2 | E126: $ per tonne of Cu cathode | G126: =Paramètres!$F61*G120 -> 0 | H126: =Paramètres!$F61*H120 -> 0 | I126: =Paramètres!$F61*I120 -> 0 | J126: =Paramètres!$F61*J120 -> 0 | K126: =Paramètres!$F61*K120 -> 0 | L126: =Paramètres!$F61*L120 -> 0 | M126: =Paramètres!$F61*M120 -> 0 | N126: =Paramètres!$F61*N120 -> 0 | O126: =Paramètres!$F61*O120 -> 0 | P126: =Paramètres!$F61*P120 -> 0 | Q126: =Paramètres!$F61*Q120 -> 0 | R126: =Paramètres!$F61*R120 -> 0 | S126: =Paramètres!$F61*S120 -> 0 | T126: =Paramètres!$F61*T120 -> 0 | U126: =Paramètres!$F61*U120 -> 0 | V126: =Paramètres!$F61*V120 -> 0 | W126: =Paramètres!$F61*W120 -> 0 | X126: =Paramètres!$F61*X120 -> 0 | Y126: =Paramètres!$F61*Y120 -> 0 | Z126: =Paramètres!$F61*Z120 -> 0 | AA126: =Paramètres!$F61*AA120 -> 0 | AB126: =Paramètres!$F61*AB120 -> 0 | AC126: =Paramètres!$F61*AC120 -> 0 | AD126: =Paramètres!$F61*AD120 -> 0 | AE126: =Paramètres!$F61*AE120 -> 0 | AF126: =Paramètres!$F61*AF120 -> 0 | AG126: =Paramètres!$F61*AG120 -> 0 | AH126: =Paramètres!$F61*AH120 -> 0 | AI126: =Paramètres!$F61*AI120 -> 0 | AJ126: =Paramètres!$F61*AJ120 -> 0 | AK126: =Paramètres!$F61*AK120 -> 0 | AL126: =Paramètres!$F61*AL120 -> 0 | AM126: =Paramètres!$F61*AM120 -> 0 | AN126: =Paramètres!$F61*AN120 -> 0 | AO126: =Paramètres!$F61*AO120 -> 0 | AP126: =Paramètres!$F61*AP120 -> 0 | AQ126: =Paramètres!$F61*AQ120 -> 0 | AR126: =Paramètres!$F61*AR120 -> 0 | AS126: =Paramètres!$F61*AS120 -> 0 | AT126: =Paramètres!$F61*AT120 -> 0 | AU126: =Paramètres!$F61*AU120 -> 0 | AV126: =Paramètres!$F61*AV120 -> 0 | AW126: =Paramètres!$F61*AW120 -> 0 | AX126: =Paramètres!$F61*AX120 -> 0 | AY126: =Paramètres!$F61*AY120 -> 0 | AZ126: =Paramètres!$F61*AZ120 -> 0 | BA126: =Paramètres!$F61*BA120 -> 0 | BB126: =Paramètres!$F61*BB120 -> 0 | BC126: =Paramètres!$F61*BC120 -> 0 | BD126: =Paramètres!$F61*BD120 -> 0
D127: Palier 3 | E127: $ per tonne of Cu cathode | G127: =Paramètres!$F62*G121 -> 0 | H127: =Paramètres!$F62*H121 -> 0 | I127: =Paramètres!$F62*I121 -> 0 | J127: =Paramètres!$F62*J121 -> 0 | K127: =Paramètres!$F62*K121 -> 0 | L127: =Paramètres!$F62*L121 -> 0 | M127: =Paramètres!$F62*M121 -> 0 | N127: =Paramètres!$F62*N121 -> 0 | O127: =Paramètres!$F62*O121 -> 0 | P127: =Paramètres!$F62*P121 -> 0 | Q127: =Paramètres!$F62*Q121 -> 0 | R127: =Paramètres!$F62*R121 -> 0 | S127: =Paramètres!$F62*S121 -> 0 | T127: =Paramètres!$F62*T121 -> 0 | U127: =Paramètres!$F62*U121 -> 0 | V127: =Paramètres!$F62*V121 -> 0 | W127: =Paramètres!$F62*W121 -> 0 | X127: =Paramètres!$F62*X121 -> 0 | Y127: =Paramètres!$F62*Y121 -> 0 | Z127: =Paramètres!$F62*Z121 -> 0 | AA127: =Paramètres!$F62*AA121 -> 0 | AB127: =Paramètres!$F62*AB121 -> 0 | AC127: =Paramètres!$F62*AC121 -> 0 | AD127: =Paramètres!$F62*AD121 -> 0 | AE127: =Paramètres!$F62*AE121 -> 0 | AF127: =Paramètres!$F62*AF121 -> 0 | AG127: =Paramètres!$F62*AG121 -> 0 | AH127: =Paramètres!$F62*AH121 -> 0 | AI127: =Paramètres!$F62*AI121 -> 0 | AJ127: =Paramètres!$F62*AJ121 -> 0 | AK127: =Paramètres!$F62*AK121 -> 0 | AL127: =Paramètres!$F62*AL121 -> 0 | AM127: =Paramètres!$F62*AM121 -> 0 | AN127: =Paramètres!$F62*AN121 -> 0 | AO127: =Paramètres!$F62*AO121 -> 0 | AP127: =Paramètres!$F62*AP121 -> 0 | AQ127: =Paramètres!$F62*AQ121 -> 0 | AR127: =Paramètres!$F62*AR121 -> 0 | AS127: =Paramètres!$F62*AS121 -> 0 | AT127: =Paramètres!$F62*AT121 -> 0 | AU127: =Paramètres!$F62*AU121 -> 0 | AV127: =Paramètres!$F62*AV121 -> 0 | AW127: =Paramètres!$F62*AW121 -> 0 | AX127: =Paramètres!$F62*AX121 -> 0 | AY127: =Paramètres!$F62*AY121 -> 0 | AZ127: =Paramètres!$F62*AZ121 -> 0 | BA127: =Paramètres!$F62*BA121 -> 0 | BB127: =Paramètres!$F62*BB121 -> 0 | BC127: =Paramètres!$F62*BC121 -> 0 | BD127: =Paramètres!$F62*BD121 -> 0
D128: Palier 4 | E128: $ per tonne of Cu cathode | G128: =Paramètres!$F63*G122 -> 0 | H128: =Paramètres!$F63*H122 -> 0 | I128: =Paramètres!$F63*I122 -> 0 | J128: =Paramètres!$F63*J122 -> 0 | K128: =Paramètres!$F63*K122 -> 0 | L128: =Paramètres!$F63*L122 -> 0 | M128: =Paramètres!$F63*M122 -> 0 | N128: =Paramètres!$F63*N122 -> 0 | O128: =Paramètres!$F63*O122 -> 0 | P128: =Paramètres!$F63*P122 -> 0 | Q128: =Paramètres!$F63*Q122 -> 0 | R128: =Paramètres!$F63*R122 -> 0 | S128: =Paramètres!$F63*S122 -> 0 | T128: =Paramètres!$F63*T122 -> 0 | U128: =Paramètres!$F63*U122 -> 0 | V128: =Paramètres!$F63*V122 -> 0 | W128: =Paramètres!$F63*W122 -> 0 | X128: =Paramètres!$F63*X122 -> 0 | Y128: =Paramètres!$F63*Y122 -> 0 | Z128: =Paramètres!$F63*Z122 -> 0 | AA128: =Paramètres!$F63*AA122 -> 0 | AB128: =Paramètres!$F63*AB122 -> 0 | AC128: =Paramètres!$F63*AC122 -> 0 | AD128: =Paramètres!$F63*AD122 -> 0 | AE128: =Paramètres!$F63*AE122 -> 0 | AF128: =Paramètres!$F63*AF122 -> 0 | AG128: =Paramètres!$F63*AG122 -> 0 | AH128: =Paramètres!$F63*AH122 -> 0 | AI128: =Paramètres!$F63*AI122 -> 0 | AJ128: =Paramètres!$F63*AJ122 -> 0 | AK128: =Paramètres!$F63*AK122 -> 0 | AL128: =Paramètres!$F63*AL122 -> 0 | AM128: =Paramètres!$F63*AM122 -> 0 | AN128: =Paramètres!$F63*AN122 -> 0 | AO128: =Paramètres!$F63*AO122 -> 0 | AP128: =Paramètres!$F63*AP122 -> 0 | AQ128: =Paramètres!$F63*AQ122 -> 0 | AR128: =Paramètres!$F63*AR122 -> 0 | AS128: =Paramètres!$F63*AS122 -> 0 | AT128: =Paramètres!$F63*AT122 -> 0 | AU128: =Paramètres!$F63*AU122 -> 0 | AV128: =Paramètres!$F63*AV122 -> 0 | AW128: =Paramètres!$F63*AW122 -> 0 | AX128: =Paramètres!$F63*AX122 -> 0 | AY128: =Paramètres!$F63*AY122 -> 0 | AZ128: =Paramètres!$F63*AZ122 -> 0 | BA128: =Paramètres!$F63*BA122 -> 0 | BB128: =Paramètres!$F63*BB122 -> 0 | BC128: =Paramètres!$F63*BC122 -> 0 | BD128: =Paramètres!$F63*BD122 -> 0
D129: Palier 5 | E129: $ per tonne of Cu cathode | G129: =Paramètres!$F64*G123 -> 0 | H129: =Paramètres!$F64*H123 -> 0 | I129: =Paramètres!$F64*I123 -> 0 | J129: =Paramètres!$F64*J123 -> 0 | K129: =Paramètres!$F64*K123 -> 0 | L129: =Paramètres!$F64*L123 -> 0 | M129: =Paramètres!$F64*M123 -> 0 | N129: =Paramètres!$F64*N123 -> 0 | O129: =Paramètres!$F64*O123 -> 0 | P129: =Paramètres!$F64*P123 -> 0 | Q129: =Paramètres!$F64*Q123 -> 0 | R129: =Paramètres!$F64*R123 -> 0 | S129: =Paramètres!$F64*S123 -> 0 | T129: =Paramètres!$F64*T123 -> 0 | U129: =Paramètres!$F64*U123 -> 0 | V129: =Paramètres!$F64*V123 -> 0 | W129: =Paramètres!$F64*W123 -> 0 | X129: =Paramètres!$F64*X123 -> 0 | Y129: =Paramètres!$F64*Y123 -> 0 | Z129: =Paramètres!$F64*Z123 -> 0 | AA129: =Paramètres!$F64*AA123 -> 0 | AB129: =Paramètres!$F64*AB123 -> 0 | AC129: =Paramètres!$F64*AC123 -> 0 | AD129: =Paramètres!$F64*AD123 -> 0 | AE129: =Paramètres!$F64*AE123 -> 0 | AF129: =Paramètres!$F64*AF123 -> 0 | AG129: =Paramètres!$F64*AG123 -> 0 | AH129: =Paramètres!$F64*AH123 -> 0 | AI129: =Paramètres!$F64*AI123 -> 0 | AJ129: =Paramètres!$F64*AJ123 -> 0 | AK129: =Paramètres!$F64*AK123 -> 0 | AL129: =Paramètres!$F64*AL123 -> 0 | AM129: =Paramètres!$F64*AM123 -> 0 | AN129: =Paramètres!$F64*AN123 -> 0 | AO129: =Paramètres!$F64*AO123 -> 0 | AP129: =Paramètres!$F64*AP123 -> 0 | AQ129: =Paramètres!$F64*AQ123 -> 0 | AR129: =Paramètres!$F64*AR123 -> 0 | AS129: =Paramètres!$F64*AS123 -> 0 | AT129: =Paramètres!$F64*AT123 -> 0 | AU129: =Paramètres!$F64*AU123 -> 0 | AV129: =Paramètres!$F64*AV123 -> 0 | AW129: =Paramètres!$F64*AW123 -> 0 | AX129: =Paramètres!$F64*AX123 -> 0 | AY129: =Paramètres!$F64*AY123 -> 0 | AZ129: =Paramètres!$F64*AZ123 -> 0 | BA129: =Paramètres!$F64*BA123 -> 0 | BB129: =Paramètres!$F64*BB123 -> 0 | BC129: =Paramètres!$F64*BC123 -> 0 | BD129: =Paramètres!$F64*BD123 -> 0
C131: =SUM(G131:BD131) -> 0 | D131: Redevance a taux variable | E131: $mm nominal | G131: =IF(Paramètres!$F$25=1,SUM(G125:G128)*G8/1000000,0) -> 0 | H131: =IF(Paramètres!$F$25=1,SUM(H125:H128)*H8/1000000,0) -> 0 | I131: =IF(Paramètres!$F$25=1,SUM(I125:I128)*I8/1000000,0) -> 0 | J131: =IF(Paramètres!$F$25=1,SUM(J125:J128)*J8/1000000,0) -> 0 | K131: =IF(Paramètres!$F$25=1,SUM(K125:K128)*K8/1000000,0) -> 0 | L131: =IF(Paramètres!$F$25=1,SUM(L125:L128)*L8/1000000,0) -> 0 | M131: =IF(Paramètres!$F$25=1,SUM(M125:M128)*M8/1000000,0) -> 0 | N131: =IF(Paramètres!$F$25=1,SUM(N125:N128)*N8/1000000,0) -> 0 | O131: =IF(Paramètres!$F$25=1,SUM(O125:O128)*O8/1000000,0) -> 0 | P131: =IF(Paramètres!$F$25=1,SUM(P125:P128)*P8/1000000,0) -> 0 | Q131: =IF(Paramètres!$F$25=1,SUM(Q125:Q128)*Q8/1000000,0) -> 0 | R131: =IF(Paramètres!$F$25=1,SUM(R125:R128)*R8/1000000,0) -> 0 | S131: =IF(Paramètres!$F$25=1,SUM(S125:S128)*S8/1000000,0) -> 0 | T131: =IF(Paramètres!$F$25=1,SUM(T125:T128)*T8/1000000,0) -> 0 | U131: =IF(Paramètres!$F$25=1,SUM(U125:U128)*U8/1000000,0) -> 0 | V131: =IF(Paramètres!$F$25=1,SUM(V125:V128)*V8/1000000,0) -> 0 | W131: =IF(Paramètres!$F$25=1,SUM(W125:W128)*W8/1000000,0) -> 0 | X131: =IF(Paramètres!$F$25=1,SUM(X125:X128)*X8/1000000,0) -> 0 | Y131: =IF(Paramètres!$F$25=1,SUM(Y125:Y128)*Y8/1000000,0) -> 0 | Z131: =IF(Paramètres!$F$25=1,SUM(Z125:Z128)*Z8/1000000,0) -> 0 | AA131: =IF(Paramètres!$F$25=1,SUM(AA125:AA128)*AA8/1000000,0) -> 0 | AB131: =IF(Paramètres!$F$25=1,SUM(AB125:AB128)*AB8/1000000,0) -> 0 | AC131: =IF(Paramètres!$F$25=1,SUM(AC125:AC128)*AC8/1000000,0) -> 0 | AD131: =IF(Paramètres!$F$25=1,SUM(AD125:AD128)*AD8/1000000,0) -> 0 | AE131: =IF(Paramètres!$F$25=1,SUM(AE125:AE128)*AE8/1000000,0) -> 0 | AF131: =IF(Paramètres!$F$25=1,SUM(AF125:AF128)*AF8/1000000,0) -> 0 | AG131: =IF(Paramètres!$F$25=1,SUM(AG125:AG128)*AG8/1000000,0) -> 0 | AH131: =IF(Paramètres!$F$25=1,SUM(AH125:AH128)*AH8/1000000,0) -> 0 | AI131: =IF(Paramètres!$F$25=1,SUM(AI125:AI128)*AI8/1000000,0) -> 0 | AJ131: =IF(Paramètres!$F$25=1,SUM(AJ125:AJ128)*AJ8/1000000,0) -> 0 | AK131: =IF(Paramètres!$F$25=1,SUM(AK125:AK128)*AK8/1000000,0) -> 0 | AL131: =IF(Paramètres!$F$25=1,SUM(AL125:AL128)*AL8/1000000,0) -> 0 | AM131: =IF(Paramètres!$F$25=1,SUM(AM125:AM128)*AM8/1000000,0) -> 0 | AN131: =IF(Paramètres!$F$25=1,SUM(AN125:AN128)*AN8/1000000,0) -> 0 | AO131: =IF(Paramètres!$F$25=1,SUM(AO125:AO128)*AO8/1000000,0) -> 0 | AP131: =IF(Paramètres!$F$25=1,SUM(AP125:AP128)*AP8/1000000,0) -> 0 | AQ131: =IF(Paramètres!$F$25=1,SUM(AQ125:AQ128)*AQ8/1000000,0) -> 0 | AR131: =IF(Paramètres!$F$25=1,SUM(AR125:AR128)*AR8/1000000,0) -> 0 | AS131: =IF(Paramètres!$F$25=1,SUM(AS125:AS128)*AS8/1000000,0) -> 0 | AT131: =IF(Paramètres!$F$25=1,SUM(AT125:AT128)*AT8/1000000,0) -> 0 | AU131: =IF(Paramètres!$F$25=1,SUM(AU125:AU128)*AU8/1000000,0) -> 0 | AV131: =IF(Paramètres!$F$25=1,SUM(AV125:AV128)*AV8/1000000,0) -> 0 | AW131: =IF(Paramètres!$F$25=1,SUM(AW125:AW128)*AW8/1000000,0) -> 0 | AX131: =IF(Paramètres!$F$25=1,SUM(AX125:AX128)*AX8/1000000,0) -> 0 | AY131: =IF(Paramètres!$F$25=1,SUM(AY125:AY128)*AY8/1000000,0) -> 0 | AZ131: =IF(Paramètres!$F$25=1,SUM(AZ125:AZ128)*AZ8/1000000,0) -> 0 | BA131: =IF(Paramètres!$F$25=1,SUM(BA125:BA128)*BA8/1000000,0) -> 0 | BB131: =IF(Paramètres!$F$25=1,SUM(BB125:BB128)*BB8/1000000,0) -> 0 | BC131: =IF(Paramètres!$F$25=1,SUM(BC125:BC128)*BC8/1000000,0) -> 0 | BD131: =IF(Paramètres!$F$25=1,SUM(BD125:BD128)*BD8/1000000,0) -> 0
D133: Droits de douane
C134: =SUM(G134:BD134) -> 71.75425048 | D134: Droits de douane | E134: $mm nominal | G134: =G61*Paramètres!$F$38*Paramètres!$F$101+SUM(G59+G60)*Paramètres!$F$38*Paramètres!$F$102 -> 0.11447822 | H134: =H61*Paramètres!$F$38*Paramètres!$F$101+SUM(H59+H60)*Paramètres!$F$38*Paramètres!$F$102 -> 0.57589914 | I134: =I61*Paramètres!$F$38*Paramètres!$F$101+SUM(I59+I60)*Paramètres!$F$38*Paramètres!$F$102 -> 2.109129218 | J134: =J61*Paramètres!$F$38*Paramètres!$F$101+SUM(J59+J60)*Paramètres!$F$38*Paramètres!$F$102 -> 2.720940496 | K134: =K61*Paramètres!$F$38*Paramètres!$F$101+SUM(K59+K60)*Paramètres!$F$38*Paramètres!$F$102 -> 1.238488461 | L134: =L61*Paramètres!$F$38*Paramètres!$F$101+SUM(L59+L60)*Paramètres!$F$38*Paramètres!$F$102 -> 4.616360119 | M134: =M61*Paramètres!$F$38*Paramètres!$F$101+SUM(M59+M60)*Paramètres!$F$38*Paramètres!$F$102 -> 6.253101032 | N134: =N61*Paramètres!$F$38*Paramètres!$F$101+SUM(N59+N60)*Paramètres!$F$38*Paramètres!$F$102 -> 5.59142468 | O134: =O61*Paramètres!$F$38*Paramètres!$F$101+SUM(O59+O60)*Paramètres!$F$38*Paramètres!$F$102 -> 5.440147395 | P134: =P61*Paramètres!$F$38*Paramètres!$F$101+SUM(P59+P60)*Paramètres!$F$38*Paramètres!$F$102 -> 5.587706801 | Q134: =Q61*Paramètres!$F$38*Paramètres!$F$101+SUM(Q59+Q60)*Paramètres!$F$38*Paramètres!$F$102 -> 4.454866896 | R134: =R61*Paramètres!$F$38*Paramètres!$F$101+SUM(R59+R60)*Paramètres!$F$38*Paramètres!$F$102 -> 4.108631387 | S134: =S61*Paramètres!$F$38*Paramètres!$F$101+SUM(S59+S60)*Paramètres!$F$38*Paramètres!$F$102 -> 4.110803817 | T134: =T61*Paramètres!$F$38*Paramètres!$F$101+SUM(T59+T60)*Paramètres!$F$38*Paramètres!$F$102 -> 3.989818824 | U134: =U61*Paramètres!$F$38*Paramètres!$F$101+SUM(U59+U60)*Paramètres!$F$38*Paramètres!$F$102 -> 3.630431602 | V134: =V61*Paramètres!$F$38*Paramètres!$F$101+SUM(V59+V60)*Paramètres!$F$38*Paramètres!$F$102 -> 3.546204959 | W134: =W61*Paramètres!$F$38*Paramètres!$F$101+SUM(W59+W60)*Paramètres!$F$38*Paramètres!$F$102 -> 3.587876697 | X134: =X61*Paramètres!$F$38*Paramètres!$F$101+SUM(X59+X60)*Paramètres!$F$38*Paramètres!$F$102 -> 3.632895949 | Y134: =Y61*Paramètres!$F$38*Paramètres!$F$101+SUM(Y59+Y60)*Paramètres!$F$38*Paramètres!$F$102 -> 3.698451656 | Z134: =Z61*Paramètres!$F$38*Paramètres!$F$101+SUM(Z59+Z60)*Paramètres!$F$38*Paramètres!$F$102 -> 2.746593131 | AA134: =AA61*Paramètres!$F$38*Paramètres!$F$101+SUM(AA59+AA60)*Paramètres!$F$38*Paramètres!$F$102 -> 0 | AB134: =AB61*Paramètres!$F$38*Paramètres!$F$101+SUM(AB59+AB60)*Paramètres!$F$38*Paramètres!$F$102 -> 0 | AC134: =AC61*Paramètres!$F$38*Paramètres!$F$101+SUM(AC59+AC60)*Paramètres!$F$38*Paramètres!$F$102 -> 0 | AD134: =AD61*Paramètres!$F$38*Paramètres!$F$101+SUM(AD59+AD60)*Paramètres!$F$38*Paramètres!$F$102 -> 0 | AE134: =AE61*Paramètres!$F$38*Paramètres!$F$101+SUM(AE59+AE60)*Paramètres!$F$38*Paramètres!$F$102 -> 0 | AF134: =AF61*Paramètres!$F$38*Paramètres!$F$101+SUM(AF59+AF60)*Paramètres!$F$38*Paramètres!$F$102 -> 0 | AG134: =AG61*Paramètres!$F$38*Paramètres!$F$101+SUM(AG59+AG60)*Paramètres!$F$38*Paramètres!$F$102 -> 0 | AH134: =AH61*Paramètres!$F$38*Paramètres!$F$101+SUM(AH59+AH60)*Paramètres!$F$38*Paramètres!$F$102 -> 0 | AI134: =AI61*Paramètres!$F$38*Paramètres!$F$101+SUM(AI59+AI60)*Paramètres!$F$38*Paramètres!$F$102 -> 0 | AJ134: =AJ61*Paramètres!$F$38*Paramètres!$F$101+SUM(AJ59+AJ60)*Paramètres!$F$38*Paramètres!$F$102 -> 0 | AK134: =AK61*Paramètres!$F$38*Paramètres!$F$101+SUM(AK59+AK60)*Paramètres!$F$38*Paramètres!$F$102 -> 0 | AL134: =AL61*Paramètres!$F$38*Paramètres!$F$101+SUM(AL59+AL60)*Paramètres!$F$38*Paramètres!$F$102 -> 0 | AM134: =AM61*Paramètres!$F$38*Paramètres!$F$101+SUM(AM59+AM60)*Paramètres!$F$38*Paramètres!$F$102 -> 0 | AN134: =AN61*Paramètres!$F$38*Paramètres!$F$101+SUM(AN59+AN60)*Paramètres!$F$38*Paramètres!$F$102 -> 0 | AO134: =AO61*Paramètres!$F$38*Paramètres!$F$101+SUM(AO59+AO60)*Paramètres!$F$38*Paramètres!$F$102 -> 0 | AP134: =AP61*Paramètres!$F$38*Paramètres!$F$101+SUM(AP59+AP60)*Paramètres!$F$38*Paramètres!$F$102 -> 0 | AQ134: =AQ61*Paramètres!$F$38*Paramètres!$F$101+SUM(AQ59+AQ60)*Paramètres!$F$38*Paramètres!$F$102 -> 0 | AR134: =AR61*Paramètres!$F$38*Paramètres!$F$101+SUM(AR59+AR60)*Paramètres!$F$38*Paramètres!$F$102 -> 0 | AS134: =AS61*Paramètres!$F$38*Paramètres!$F$101+SUM(AS59+AS60)*Paramètres!$F$38*Paramètres!$F$102 -> 0 | AT134: =AT61*Paramètres!$F$38*Paramètres!$F$101+SUM(AT59+AT60)*Paramètres!$F$38*Paramètres!$F$102 -> 0 | AU134: =AU61*Paramètres!$F$38*Paramètres!$F$101+SUM(AU59+AU60)*Paramètres!$F$38*Paramètres!$F$102 -> 0 | AV134: =AV61*Paramètres!$F$38*Paramètres!$F$101+SUM(AV59+AV60)*Paramètres!$F$38*Paramètres!$F$102 -> 0 | AW134: =AW61*Paramètres!$F$38*Paramètres!$F$101+SUM(AW59+AW60)*Paramètres!$F$38*Paramètres!$F$102 -> 0 | AX134: =AX61*Paramètres!$F$38*Paramètres!$F$101+SUM(AX59+AX60)*Paramètres!$F$38*Paramètres!$F$102 -> 0 | AY134: =AY61*Paramètres!$F$38*Paramètres!$F$101+SUM(AY59+AY60)*Paramètres!$F$38*Paramètres!$F$102 -> 0 | AZ134: =AZ61*Paramètres!$F$38*Paramètres!$F$101+SUM(AZ59+AZ60)*Paramètres!$F$38*Paramètres!$F$102 -> 0 | BA134: =BA61*Paramètres!$F$38*Paramètres!$F$101+SUM(BA59+BA60)*Paramètres!$F$38*Paramètres!$F$102 -> 0 | BB134: =BB61*Paramètres!$F$38*Paramètres!$F$101+SUM(BB59+BB60)*Paramètres!$F$38*Paramètres!$F$102 -> 0 | BC134: =BC61*Paramètres!$F$38*Paramètres!$F$101+SUM(BC59+BC60)*Paramètres!$F$38*Paramètres!$F$102 -> 0 | BD134: =BD61*Paramètres!$F$38*Paramètres!$F$101+SUM(BD59+BD60)*Paramètres!$F$38*Paramètres!$F$102 -> 0
D136: Bonus
C137: =SUM(G137:BD137) -> 0 | D137: Bonus de signature | E137: $mm nominal | G137: =(G37=1)*Paramètres!$F$9 -> 0 | H137: =(H37=1)*Paramètres!$F$9 -> 0 | I137: =(I37=1)*Paramètres!$F$9 -> 0 | J137: =(J37=1)*Paramètres!$F$9 -> 0 | K137: =(K37=1)*Paramètres!$F$9 -> 0 | L137: =(L37=1)*Paramètres!$F$9 -> 0 | M137: =(M37=1)*Paramètres!$F$9 -> 0 | N137: =(N37=1)*Paramètres!$F$9 -> 0 | O137: =(O37=1)*Paramètres!$F$9 -> 0 | P137: =(P37=1)*Paramètres!$F$9 -> 0 | Q137: =(Q37=1)*Paramètres!$F$9 -> 0 | R137: =(R37=1)*Paramètres!$F$9 -> 0 | S137: =(S37=1)*Paramètres!$F$9 -> 0 | T137: =(T37=1)*Paramètres!$F$9 -> 0 | U137: =(U37=1)*Paramètres!$F$9 -> 0 | V137: =(V37=1)*Paramètres!$F$9 -> 0 | W137: =(W37=1)*Paramètres!$F$9 -> 0 | X137: =(X37=1)*Paramètres!$F$9 -> 0 | Y137: =(Y37=1)*Paramètres!$F$9 -> 0 | Z137: =(Z37=1)*Paramètres!$F$9 -> 0 | AA137: =(AA37=1)*Paramètres!$F$9 -> 0 | AB137: =(AB37=1)*Paramètres!$F$9 -> 0 | AC137: =(AC37=1)*Paramètres!$F$9 -> 0 | AD137: =(AD37=1)*Paramètres!$F$9 -> 0 | AE137: =(AE37=1)*Paramètres!$F$9 -> 0 | AF137: =(AF37=1)*Paramètres!$F$9 -> 0 | AG137: =(AG37=1)*Paramètres!$F$9 -> 0 | AH137: =(AH37=1)*Paramètres!$F$9 -> 0 | AI137: =(AI37=1)*Paramètres!$F$9 -> 0 | AJ137: =(AJ37=1)*Paramètres!$F$9 -> 0 | AK137: =(AK37=1)*Paramètres!$F$9 -> 0 | AL137: =(AL37=1)*Paramètres!$F$9 -> 0 | AM137: =(AM37=1)*Paramètres!$F$9 -> 0 | AN137: =(AN37=1)*Paramètres!$F$9 -> 0 | AO137: =(AO37=1)*Paramètres!$F$9 -> 0 | AP137: =(AP37=1)*Paramètres!$F$9 -> 0 | AQ137: =(AQ37=1)*Paramètres!$F$9 -> 0 | AR137: =(AR37=1)*Paramètres!$F$9 -> 0 | AS137: =(AS37=1)*Paramètres!$F$9 -> 0 | AT137: =(AT37=1)*Paramètres!$F$9 -> 0 | AU137: =(AU37=1)*Paramètres!$F$9 -> 0 | AV137: =(AV37=1)*Paramètres!$F$9 -> 0 | AW137: =(AW37=1)*Paramètres!$F$9 -> 0 | AX137: =(AX37=1)*Paramètres!$F$9 -> 0 | AY137: =(AY37=1)*Paramètres!$F$9 -> 0 | AZ137: =(AZ37=1)*Paramètres!$F$9 -> 0 | BA137: =(BA37=1)*Paramètres!$F$9 -> 0 | BB137: =(BB37=1)*Paramètres!$F$9 -> 0 | BC137: =(BC37=1)*Paramètres!$F$9 -> 0 | BD137: =(BD37=1)*Paramètres!$F$9 -> 0
D139: Indicateurs du projet: valeures nominales
C140: =SUM(G140:BD140) -> 4082.676294 | D140: EBITDA | E140: $mm nominal | G140: =G56-G61-G131-G134 -> -0.11447822 | H140: =H56-H61-H131-H134 -> -0.57589914 | I140: -2.109129218 | J140: -2.720940496 | K140: -1.238488461 | L140: 179.409203 | M140: 199.7896455 | N140: 164.6611531 | O140: 225.6345452 | P140: 272.6850473 | Q140: 332.3847725 | R140: 285.6753633 | S140: 347.6012356 | T140: 380.8875293 | U140: 328.5150053 | V140: 340.4699832 | W140: 313.1668826 | X140: 311.0836661 | Y140: 263.3778558 | Z140: 144.0933418 | AA140: 0 | AB140: 0 | AC140: 0 | AD140: 0 | AE140: 0 | AF140: 0 | AG140: 0 | AH140: 0 | AI140: 0 | AJ140: 0 | AK140: 0 | AL140: 0 | AM140: 0 | AN140: 0 | AO140: 0 | AP140: 0 | AQ140: 0 | AR140: 0 | AS140: 0 | AT140: 0 | AU140: 0 | AV140: 0 | AW140: 0 | AX140: 0 | AY140: 0 | AZ140: 0 | BA140: 0 | BB140: 0 | BC140: 0 | BD140: 0
C141: =SUM(G141:BD141) -> 3959.170314 | D141: Excedent Brut d'exploitation | E141: $mm nominal | G141: =G140-G106-G110-G114-G131-G137 -> -0.11447822 | H141: =H140-H106-H110-H114-H131-H137 -> -0.57589914 | I141: -2.109129218 | J141: -2.720940496 | K141: -1.238488461 | L141: 173.2399614 | M141: 192.7012965 | N141: 158.1411174 | O141: 217.6674847 | P141: 263.4311039 | Q141: 322.7138256 | R141: 277.1588319 | S141: 337.8450598 | T141: 370.549076 | U141: 319.4711612 | V141: 331.2452622 | W141: 304.4600038 | X141: 302.3879411 | Y141: 255.5916429 | Z141: 139.325481 | AA141: 0 | AB141: 0 | AC141: 0 | AD141: 0 | AE141: 0 | AF141: 0 | AG141: 0 | AH141: 0 | AI141: 0 | AJ141: 0 | AK141: 0 | AL141: 0 | AM141: 0 | AN141: 0 | AO141: 0 | AP141: 0 | AQ141: 0 | AR141: 0 | AS141: 0 | AT141: 0 | AU141: 0 | AV141: 0 | AW141: 0 | AX141: 0 | AY141: 0 | AZ141: 0 | BA141: 0 | BB141: 0 | BC141: 0 | BD141: 0
C142: =SUM(G142:BD142) -> 2256.732957 | D142: EBE - cuivre | E142: $mm nominal | G142: =G141*IFERROR(G52/G$54,2/3) -> -0.07631881333 | H142: =H141*IFERROR(H52/H$54,2/3) -> -0.38393276 | I142: -1.406086145 | J142: -1.81396033 | K142: -0.8256589741 | L142: 102.2787501 | M142: 122.1707585 | N142: 98.23317375 | O142: 146.9784391 | P142: 166.828381 | Q142: 191.3498044 | R142: 174.8939814 | S142: 186.1886821 | T142: 162.6289075 | U142: 163.0894419 | V142: 169.1000988 | W142: 161.3954179 | X142: 157.2188211 | Y142: 151.0126702 | Z142: 107.8715866 | AA142: 0 | AB142: 0 | AC142: 0 | AD142: 0 | AE142: 0 | AF142: 0 | AG142: 0 | AH142: 0 | AI142: 0 | AJ142: 0 | AK142: 0 | AL142: 0 | AM142: 0 | AN142: 0 | AO142: 0 | AP142: 0 | AQ142: 0 | AR142: 0 | AS142: 0 | AT142: 0 | AU142: 0 | AV142: 0 | AW142: 0 | AX142: 0 | AY142: 0 | AZ142: 0 | BA142: 0 | BB142: 0 | BC142: 0 | BD142: 0
C143: =SUM(G143:BD143) -> 1702.437357 | D143: EBE - cobalt | E143: $mm nominal | G143: =G141*IFERROR(G53/G$54,1/3) -> -0.03815940667 | H143: =H141*IFERROR(H53/H$54,1/3) -> -0.19196638 | I143: -0.7030430727 | J143: -0.9069801652 | K143: -0.412829487 | L143: 70.96121135 | M143: 70.53053799 | N143: 59.90794366 | O143: 70.68904559 | P143: 96.60272289 | Q143: 131.3640213 | R143: 102.2648506 | S143: 151.6563777 | T143: 207.9201685 | U143: 156.3817194 | V143: 162.1451634 | W143: 143.064586 | X143: 145.16912 | Y143: 104.5789727 | Z143: 31.45389441 | AA143: 0 | AB143: 0 | AC143: 0 | AD143: 0 | AE143: 0 | AF143: 0 | AG143: 0 | AH143: 0 | AI143: 0 | AJ143: 0 | AK143: 0 | AL143: 0 | AM143: 0 | AN143: 0 | AO143: 0 | AP143: 0 | AQ143: 0 | AR143: 0 | AS143: 0 | AT143: 0 | AU143: 0 | AV143: 0 | AW143: 0 | AX143: 0 | AY143: 0 | AZ143: 0 | BA143: 0 | BB143: 0 | BC143: 0 | BD143: 0
D145: Taxe sur la marge operationnelle
D146: Profit operationnel [EBITDA] | E146: $mm nominal | G146: =IF(G140<0,0,G140) -> 0 | H146: 0 | I146: 0 | J146: 0 | K146: 0 | L146: 179.409203 | M146: 199.7896455 | N146: 164.6611531 | O146: 225.6345452 | P146: 272.6850473 | Q146: 332.3847725 | R146: 285.6753633 | S146: 347.6012356 | T146: 380.8875293 | U146: 328.5150053 | V146: 340.4699832 | W146: 313.1668826 | X146: 311.0836661 | Y146: 263.3778558 | Z146: 144.0933418 | AA146: 0 | AB146: 0 | AC146: 0 | AD146: 0 | AE146: 0 | AF146: 0 | AG146: 0 | AH146: 0 | AI146: 0 | AJ146: 0 | AK146: 0 | AL146: 0 | AM146: =IF(AM140<0,0,AM140) -> 0 | AN146: 0 | AO146: 0 | AP146: 0 | AQ146: 0 | AR146: 0 | AS146: 0 | AT146: 0 | AU146: 0 | AV146: 0 | AW146: 0 | AX146: 0 | AY146: 0 | AZ146: 0 | BA146: 0 | BB146: 0 | BC146: 0 | BD146: 0
D147: Marge operationnelle | E147: % | G147: =IFERROR(IF(G140/G54>0,G140/G54,0),0) -> 0 | H147: 0 | I147: 0 | J147: 0 | K147: 0 | L147: 0.5401256813 | M147: 0.5128776583 | N147: 0.4715499815 | O147: 0.5361676686 | P147: 0.5553567847 | Q147: 0.658854407 | R147: 0.6446467099 | S147: 0.6840260211 | T147: 0.7100274557 | U147: 0.6983539674 | V147: 0.7095762175 | W147: 0.69102854 | X147: 0.6875512473 | Y147: 0.6485353026 | Z147: 0.5757918648 | AA147: 0 | AB147: 0 | AC147: 0 | AD147: 0 | AE147: 0 | AF147: 0 | AG147: 0 | AH147: 0 | AI147: 0 | AJ147: 0 | AK147: 0 | AL147: 0 | AM147: =IFERROR(IF(AM140/AM54>0,AM140/AM54,0),0) -> 0 | AN147: 0 | AO147: 0 | AP147: 0 | AQ147: 0 | AR147: 0 | AS147: 0 | AT147: 0 | AU147: 0 | AV147: 0 | AW147: 0 | AX147: 0 | AY147: 0 | AZ147: 0 | BA147: 0 | BB147: 0 | BC147: 0 | BD147: 0
D149: Palier 1 | E149: % | G149: =MIN(G$147,Paramètres!$E$68) -> 0 | H149: =MIN(H$147,Paramètres!$E$68) -> 0 | I149: =MIN(I$147,Paramètres!$E$68) -> 0 | J149: =MIN(J$147,Paramètres!$E$68) -> 0 | K149: =MIN(K$147,Paramètres!$E$68) -> 0 | L149: =MIN(L$147,Paramètres!$E$68) -> 0 | M149: =MIN(M$147,Paramètres!$E$68) -> 0 | N149: =MIN(N$147,Paramètres!$E$68) -> 0 | O149: =MIN(O$147,Paramètres!$E$68) -> 0 | P149: =MIN(P$147,Paramètres!$E$68) -> 0 | Q149: =MIN(Q$147,Paramètres!$E$68) -> 0 | R149: =MIN(R$147,Paramètres!$E$68) -> 0 | S149: =MIN(S$147,Paramètres!$E$68) -> 0 | T149: =MIN(T$147,Paramètres!$E$68) -> 0 | U149: =MIN(U$147,Paramètres!$E$68) -> 0 | V149: =MIN(V$147,Paramètres!$E$68) -> 0 | W149: =MIN(W$147,Paramètres!$E$68) -> 0 | X149: =MIN(X$147,Paramètres!$E$68) -> 0 | Y149: =MIN(Y$147,Paramètres!$E$68) -> 0 | Z149: =MIN(Z$147,Paramètres!$E$68) -> 0 | AA149: =MIN(AA$147,Paramètres!$E$68) -> 0 | AB149: =MIN(AB$147,Paramètres!$E$68) -> 0 | AC149: =MIN(AC$147,Paramètres!$E$68) -> 0 | AD149: =MIN(AD$147,Paramètres!$E$68) -> 0 | AE149: =MIN(AE$147,Paramètres!$E$68) -> 0 | AF149: =MIN(AF$147,Paramètres!$E$68) -> 0 | AG149: =MIN(AG$147,Paramètres!$E$68) -> 0 | AH149: =MIN(AH$147,Paramètres!$E$68) -> 0 | AI149: =MIN(AI$147,Paramètres!$E$68) -> 0 | AJ149: =MIN(AJ$147,Paramètres!$E$68) -> 0 | AK149: =MIN(AK$147,Paramètres!$E$68) -> 0 | AL149: =MIN(AL$147,Paramètres!$E$68) -> 0 | AM149: =MIN(AM$147,Paramètres!$E$68) -> 0 | AN149: =MIN(AN$147,Paramètres!$E$68) -> 0 | AO149: =MIN(AO$147,Paramètres!$E$68) -> 0 | AP149: =MIN(AP$147,Paramètres!$E$68) -> 0 | AQ149: =MIN(AQ$147,Paramètres!$E$68) -> 0 | AR149: =MIN(AR$147,Paramètres!$E$68) -> 0 | AS149: =MIN(AS$147,Paramètres!$E$68) -> 0 | AT149: =MIN(AT$147,Paramètres!$E$68) -> 0 | AU149: =MIN(AU$147,Paramètres!$E$68) -> 0 | AV149: =MIN(AV$147,Paramètres!$E$68) -> 0 | AW149: =MIN(AW$147,Paramètres!$E$68) -> 0 | AX149: =MIN(AX$147,Paramètres!$E$68) -> 0 | AY149: =MIN(AY$147,Paramètres!$E$68) -> 0 | AZ149: =MIN(AZ$147,Paramètres!$E$68) -> 0 | BA149: =MIN(BA$147,Paramètres!$E$68) -> 0 | BB149: =MIN(BB$147,Paramètres!$E$68) -> 0 | BC149: =MIN(BC$147,Paramètres!$E$68) -> 0 | BD149: =MIN(BD$147,Paramètres!$E$68) -> 0
D150: Palier 2 | E150: % | G150: =(G$147>Paramètres!$E68)*(G$147-Paramètres!$E68-SUM(G151:G$165)) -> 0 | H150: =(H$147>Paramètres!$E68)*(H$147-Paramètres!$E68-SUM(H151:H$165)) -> 0 | I150: =(I$147>Paramètres!$E68)*(I$147-Paramètres!$E68-SUM(I151:I$165)) -> 0 | J150: =(J$147>Paramètres!$E68)*(J$147-Paramètres!$E68-SUM(J151:J$165)) -> 0 | K150: =(K$147>Paramètres!$E68)*(K$147-Paramètres!$E68-SUM(K151:K$165)) -> 0 | L150: =(L$147>Paramètres!$E68)*(L$147-Paramètres!$E68-SUM(L151:L$165)) -> 0 | M150: =(M$147>Paramètres!$E68)*(M$147-Paramètres!$E68-SUM(M151:M$165)) -> 0 | N150: =(N$147>Paramètres!$E68)*(N$147-Paramètres!$E68-SUM(N151:N$165)) -> 0 | O150: =(O$147>Paramètres!$E68)*(O$147-Paramètres!$E68-SUM(O151:O$165)) -> 0 | P150: =(P$147>Paramètres!$E68)*(P$147-Paramètres!$E68-SUM(P151:P$165)) -> 0 | Q150: =(Q$147>Paramètres!$E68)*(Q$147-Paramètres!$E68-SUM(Q151:Q$165)) -> 0 | R150: =(R$147>Paramètres!$E68)*(R$147-Paramètres!$E68-SUM(R151:R$165)) -> 0 | S150: =(S$147>Paramètres!$E68)*(S$147-Paramètres!$E68-SUM(S151:S$165)) -> 0 | T150: =(T$147>Paramètres!$E68)*(T$147-Paramètres!$E68-SUM(T151:T$165)) -> 0 | U150: =(U$147>Paramètres!$E68)*(U$147-Paramètres!$E68-SUM(U151:U$165)) -> 0 | V150: =(V$147>Paramètres!$E68)*(V$147-Paramètres!$E68-SUM(V151:V$165)) -> 0 | W150: =(W$147>Paramètres!$E68)*(W$147-Paramètres!$E68-SUM(W151:W$165)) -> 0 | X150: =(X$147>Paramètres!$E68)*(X$147-Paramètres!$E68-SUM(X151:X$165)) -> 0 | Y150: =(Y$147>Paramètres!$E68)*(Y$147-Paramètres!$E68-SUM(Y151:Y$165)) -> 0 | Z150: =(Z$147>Paramètres!$E68)*(Z$147-Paramètres!$E68-SUM(Z151:Z$165)) -> 0 | AA150: =(AA$147>Paramètres!$E68)*(AA$147-Paramètres!$E68-SUM(AA151:AA$165)) -> 0 | AB150: =(AB$147>Paramètres!$E68)*(AB$147-Paramètres!$E68-SUM(AB151:AB$165)) -> 0 | AC150: =(AC$147>Paramètres!$E68)*(AC$147-Paramètres!$E68-SUM(AC151:AC$165)) -> 0 | AD150: =(AD$147>Paramètres!$E68)*(AD$147-Paramètres!$E68-SUM(AD151:AD$165)) -> 0 | AE150: =(AE$147>Paramètres!$E68)*(AE$147-Paramètres!$E68-SUM(AE151:AE$165)) -> 0 | AF150: =(AF$147>Paramètres!$E68)*(AF$147-Paramètres!$E68-SUM(AF151:AF$165)) -> 0 | AG150: =(AG$147>Paramètres!$E68)*(AG$147-Paramètres!$E68-SUM(AG151:AG$165)) -> 0 | AH150: =(AH$147>Paramètres!$E68)*(AH$147-Paramètres!$E68-SUM(AH151:AH$165)) -> 0 | AI150: =(AI$147>Paramètres!$E68)*(AI$147-Paramètres!$E68-SUM(AI151:AI$165)) -> 0 | AJ150: =(AJ$147>Paramètres!$E68)*(AJ$147-Paramètres!$E68-SUM(AJ151:AJ$165)) -> 0 | AK150: =(AK$147>Paramètres!$E68)*(AK$147-Paramètres!$E68-SUM(AK151:AK$165)) -> 0 | AL150: =(AL$147>Paramètres!$E68)*(AL$147-Paramètres!$E68-SUM(AL151:AL$165)) -> 0 | AM150: =(AM$147>Paramètres!$E68)*(AM$147-Paramètres!$E68-SUM(AM151:AM$165)) -> 0 | AN150: =(AN$147>Paramètres!$E68)*(AN$147-Paramètres!$E68-SUM(AN151:AN$165)) -> 0 | AO150: =(AO$147>Paramètres!$E68)*(AO$147-Paramètres!$E68-SUM(AO151:AO$165)) -> 0 | AP150: =(AP$147>Paramètres!$E68)*(AP$147-Paramètres!$E68-SUM(AP151:AP$165)) -> 0 | AQ150: =(AQ$147>Paramètres!$E68)*(AQ$147-Paramètres!$E68-SUM(AQ151:AQ$165)) -> 0 | AR150: =(AR$147>Paramètres!$E68)*(AR$147-Paramètres!$E68-SUM(AR151:AR$165)) -> 0 | AS150: =(AS$147>Paramètres!$E68)*(AS$147-Paramètres!$E68-SUM(AS151:AS$165)) -> 0 | AT150: =(AT$147>Paramètres!$E68)*(AT$147-Paramètres!$E68-SUM(AT151:AT$165)) -> 0 | AU150: =(AU$147>Paramètres!$E68)*(AU$147-Paramètres!$E68-SUM(AU151:AU$165)) -> 0 | AV150: =(AV$147>Paramètres!$E68)*(AV$147-Paramètres!$E68-SUM(AV151:AV$165)) -> 0 | AW150: =(AW$147>Paramètres!$E68)*(AW$147-Paramètres!$E68-SUM(AW151:AW$165)) -> 0 | AX150: =(AX$147>Paramètres!$E68)*(AX$147-Paramètres!$E68-SUM(AX151:AX$165)) -> 0 | AY150: =(AY$147>Paramètres!$E68)*(AY$147-Paramètres!$E68-SUM(AY151:AY$165)) -> 0 | AZ150: =(AZ$147>Paramètres!$E68)*(AZ$147-Paramètres!$E68-SUM(AZ151:AZ$165)) -> 0 | BA150: =(BA$147>Paramètres!$E68)*(BA$147-Paramètres!$E68-SUM(BA151:BA$165)) -> 0 | BB150: =(BB$147>Paramètres!$E68)*(BB$147-Paramètres!$E68-SUM(BB151:BB$165)) -> 0 | BC150: =(BC$147>Paramètres!$E68)*(BC$147-Paramètres!$E68-SUM(BC151:BC$165)) -> 0 | BD150: =(BD$147>Paramètres!$E68)*(BD$147-Paramètres!$E68-SUM(BD151:BD$165)) -> 0
D151: Palier 3 | E151: % | G151: =(G$147>Paramètres!$E69)*(G$147-Paramètres!$E69-SUM(G152:G$165)) -> 0 | H151: =(H$147>Paramètres!$E69)*(H$147-Paramètres!$E69-SUM(H152:H$165)) -> 0 | I151: =(I$147>Paramètres!$E69)*(I$147-Paramètres!$E69-SUM(I152:I$165)) -> 0 | J151: =(J$147>Paramètres!$E69)*(J$147-Paramètres!$E69-SUM(J152:J$165)) -> 0 | K151: =(K$147>Paramètres!$E69)*(K$147-Paramètres!$E69-SUM(K152:K$165)) -> 0 | L151: =(L$147>Paramètres!$E69)*(L$147-Paramètres!$E69-SUM(L152:L$165)) -> 0 | M151: =(M$147>Paramètres!$E69)*(M$147-Paramètres!$E69-SUM(M152:M$165)) -> 0 | N151: =(N$147>Paramètres!$E69)*(N$147-Paramètres!$E69-SUM(N152:N$165)) -> 0 | O151: =(O$147>Paramètres!$E69)*(O$147-Paramètres!$E69-SUM(O152:O$165)) -> 0 | P151: =(P$147>Paramètres!$E69)*(P$147-Paramètres!$E69-SUM(P152:P$165)) -> 0 | Q151: =(Q$147>Paramètres!$E69)*(Q$147-Paramètres!$E69-SUM(Q152:Q$165)) -> 0 | R151: =(R$147>Paramètres!$E69)*(R$147-Paramètres!$E69-SUM(R152:R$165)) -> 0 | S151: =(S$147>Paramètres!$E69)*(S$147-Paramètres!$E69-SUM(S152:S$165)) -> 0 | T151: =(T$147>Paramètres!$E69)*(T$147-Paramètres!$E69-SUM(T152:T$165)) -> 0 | U151: =(U$147>Paramètres!$E69)*(U$147-Paramètres!$E69-SUM(U152:U$165)) -> 0 | V151: =(V$147>Paramètres!$E69)*(V$147-Paramètres!$E69-SUM(V152:V$165)) -> 0 | W151: =(W$147>Paramètres!$E69)*(W$147-Paramètres!$E69-SUM(W152:W$165)) -> 0 | X151: =(X$147>Paramètres!$E69)*(X$147-Paramètres!$E69-SUM(X152:X$165)) -> 0 | Y151: =(Y$147>Paramètres!$E69)*(Y$147-Paramètres!$E69-SUM(Y152:Y$165)) -> 0 | Z151: =(Z$147>Paramètres!$E69)*(Z$147-Paramètres!$E69-SUM(Z152:Z$165)) -> 0 | AA151: =(AA$147>Paramètres!$E69)*(AA$147-Paramètres!$E69-SUM(AA152:AA$165)) -> 0 | AB151: =(AB$147>Paramètres!$E69)*(AB$147-Paramètres!$E69-SUM(AB152:AB$165)) -> 0 | AC151: =(AC$147>Paramètres!$E69)*(AC$147-Paramètres!$E69-SUM(AC152:AC$165)) -> 0 | AD151: =(AD$147>Paramètres!$E69)*(AD$147-Paramètres!$E69-SUM(AD152:AD$165)) -> 0 | AE151: =(AE$147>Paramètres!$E69)*(AE$147-Paramètres!$E69-SUM(AE152:AE$165)) -> 0 | AF151: =(AF$147>Paramètres!$E69)*(AF$147-Paramètres!$E69-SUM(AF152:AF$165)) -> 0 | AG151: =(AG$147>Paramètres!$E69)*(AG$147-Paramètres!$E69-SUM(AG152:AG$165)) -> 0 | AH151: =(AH$147>Paramètres!$E69)*(AH$147-Paramètres!$E69-SUM(AH152:AH$165)) -> 0 | AI151: =(AI$147>Paramètres!$E69)*(AI$147-Paramètres!$E69-SUM(AI152:AI$165)) -> 0 | AJ151: =(AJ$147>Paramètres!$E69)*(AJ$147-Paramètres!$E69-SUM(AJ152:AJ$165)) -> 0 | AK151: =(AK$147>Paramètres!$E69)*(AK$147-Paramètres!$E69-SUM(AK152:AK$165)) -> 0 | AL151: =(AL$147>Paramètres!$E69)*(AL$147-Paramètres!$E69-SUM(AL152:AL$165)) -> 0 | AM151: =(AM$147>Paramètres!$E69)*(AM$147-Paramètres!$E69-SUM(AM152:AM$165)) -> 0 | AN151: =(AN$147>Paramètres!$E69)*(AN$147-Paramètres!$E69-SUM(AN152:AN$165)) -> 0 | AO151: =(AO$147>Paramètres!$E69)*(AO$147-Paramètres!$E69-SUM(AO152:AO$165)) -> 0 | AP151: =(AP$147>Paramètres!$E69)*(AP$147-Paramètres!$E69-SUM(AP152:AP$165)) -> 0 | AQ151: =(AQ$147>Paramètres!$E69)*(AQ$147-Paramètres!$E69-SUM(AQ152:AQ$165)) -> 0 | AR151: =(AR$147>Paramètres!$E69)*(AR$147-Paramètres!$E69-SUM(AR152:AR$165)) -> 0 | AS151: =(AS$147>Paramètres!$E69)*(AS$147-Paramètres!$E69-SUM(AS152:AS$165)) -> 0 | AT151: =(AT$147>Paramètres!$E69)*(AT$147-Paramètres!$E69-SUM(AT152:AT$165)) -> 0 | AU151: =(AU$147>Paramètres!$E69)*(AU$147-Paramètres!$E69-SUM(AU152:AU$165)) -> 0 | AV151: =(AV$147>Paramètres!$E69)*(AV$147-Paramètres!$E69-SUM(AV152:AV$165)) -> 0 | AW151: =(AW$147>Paramètres!$E69)*(AW$147-Paramètres!$E69-SUM(AW152:AW$165)) -> 0 | AX151: =(AX$147>Paramètres!$E69)*(AX$147-Paramètres!$E69-SUM(AX152:AX$165)) -> 0 | AY151: =(AY$147>Paramètres!$E69)*(AY$147-Paramètres!$E69-SUM(AY152:AY$165)) -> 0 | AZ151: =(AZ$147>Paramètres!$E69)*(AZ$147-Paramètres!$E69-SUM(AZ152:AZ$165)) -> 0 | BA151: =(BA$147>Paramètres!$E69)*(BA$147-Paramètres!$E69-SUM(BA152:BA$165)) -> 0 | BB151: =(BB$147>Paramètres!$E69)*(BB$147-Paramètres!$E69-SUM(BB152:BB$165)) -> 0 | BC151: =(BC$147>Paramètres!$E69)*(BC$147-Paramètres!$E69-SUM(BC152:BC$165)) -> 0 | BD151: =(BD$147>Paramètres!$E69)*(BD$147-Paramètres!$E69-SUM(BD152:BD$165)) -> 0
D152: Palier 4 | E152: % | G152: =(G$147>Paramètres!$E70)*(G$147-Paramètres!$E70-SUM(G153:G$165)) -> 0 | H152: =(H$147>Paramètres!$E70)*(H$147-Paramètres!$E70-SUM(H153:H$165)) -> 0 | I152: =(I$147>Paramètres!$E70)*(I$147-Paramètres!$E70-SUM(I153:I$165)) -> 0 | J152: =(J$147>Paramètres!$E70)*(J$147-Paramètres!$E70-SUM(J153:J$165)) -> 0 | K152: =(K$147>Paramètres!$E70)*(K$147-Paramètres!$E70-SUM(K153:K$165)) -> 0 | L152: =(L$147>Paramètres!$E70)*(L$147-Paramètres!$E70-SUM(L153:L$165)) -> 0 | M152: =(M$147>Paramètres!$E70)*(M$147-Paramètres!$E70-SUM(M153:M$165)) -> 0 | N152: =(N$147>Paramètres!$E70)*(N$147-Paramètres!$E70-SUM(N153:N$165)) -> 0 | O152: =(O$147>Paramètres!$E70)*(O$147-Paramètres!$E70-SUM(O153:O$165)) -> 0 | P152: =(P$147>Paramètres!$E70)*(P$147-Paramètres!$E70-SUM(P153:P$165)) -> 0 | Q152: =(Q$147>Paramètres!$E70)*(Q$147-Paramètres!$E70-SUM(Q153:Q$165)) -> 0 | R152: =(R$147>Paramètres!$E70)*(R$147-Paramètres!$E70-SUM(R153:R$165)) -> 0 | S152: =(S$147>Paramètres!$E70)*(S$147-Paramètres!$E70-SUM(S153:S$165)) -> 0 | T152: =(T$147>Paramètres!$E70)*(T$147-Paramètres!$E70-SUM(T153:T$165)) -> 0 | U152: =(U$147>Paramètres!$E70)*(U$147-Paramètres!$E70-SUM(U153:U$165)) -> 0 | V152: =(V$147>Paramètres!$E70)*(V$147-Paramètres!$E70-SUM(V153:V$165)) -> 0 | W152: =(W$147>Paramètres!$E70)*(W$147-Paramètres!$E70-SUM(W153:W$165)) -> 0 | X152: =(X$147>Paramètres!$E70)*(X$147-Paramètres!$E70-SUM(X153:X$165)) -> 0 | Y152: =(Y$147>Paramètres!$E70)*(Y$147-Paramètres!$E70-SUM(Y153:Y$165)) -> 0 | Z152: =(Z$147>Paramètres!$E70)*(Z$147-Paramètres!$E70-SUM(Z153:Z$165)) -> 0 | AA152: =(AA$147>Paramètres!$E70)*(AA$147-Paramètres!$E70-SUM(AA153:AA$165)) -> 0 | AB152: =(AB$147>Paramètres!$E70)*(AB$147-Paramètres!$E70-SUM(AB153:AB$165)) -> 0 | AC152: =(AC$147>Paramètres!$E70)*(AC$147-Paramètres!$E70-SUM(AC153:AC$165)) -> 0 | AD152: =(AD$147>Paramètres!$E70)*(AD$147-Paramètres!$E70-SUM(AD153:AD$165)) -> 0 | AE152: =(AE$147>Paramètres!$E70)*(AE$147-Paramètres!$E70-SUM(AE153:AE$165)) -> 0 | AF152: =(AF$147>Paramètres!$E70)*(AF$147-Paramètres!$E70-SUM(AF153:AF$165)) -> 0 | AG152: =(AG$147>Paramètres!$E70)*(AG$147-Paramètres!$E70-SUM(AG153:AG$165)) -> 0 | AH152: =(AH$147>Paramètres!$E70)*(AH$147-Paramètres!$E70-SUM(AH153:AH$165)) -> 0 | AI152: =(AI$147>Paramètres!$E70)*(AI$147-Paramètres!$E70-SUM(AI153:AI$165)) -> 0 | AJ152: =(AJ$147>Paramètres!$E70)*(AJ$147-Paramètres!$E70-SUM(AJ153:AJ$165)) -> 0 | AK152: =(AK$147>Paramètres!$E70)*(AK$147-Paramètres!$E70-SUM(AK153:AK$165)) -> 0 | AL152: =(AL$147>Paramètres!$E70)*(AL$147-Paramètres!$E70-SUM(AL153:AL$165)) -> 0 | AM152: =(AM$147>Paramètres!$E70)*(AM$147-Paramètres!$E70-SUM(AM153:AM$165)) -> 0 | AN152: =(AN$147>Paramètres!$E70)*(AN$147-Paramètres!$E70-SUM(AN153:AN$165)) -> 0 | AO152: =(AO$147>Paramètres!$E70)*(AO$147-Paramètres!$E70-SUM(AO153:AO$165)) -> 0 | AP152: =(AP$147>Paramètres!$E70)*(AP$147-Paramètres!$E70-SUM(AP153:AP$165)) -> 0 | AQ152: =(AQ$147>Paramètres!$E70)*(AQ$147-Paramètres!$E70-SUM(AQ153:AQ$165)) -> 0 | AR152: =(AR$147>Paramètres!$E70)*(AR$147-Paramètres!$E70-SUM(AR153:AR$165)) -> 0 | AS152: =(AS$147>Paramètres!$E70)*(AS$147-Paramètres!$E70-SUM(AS153:AS$165)) -> 0 | AT152: =(AT$147>Paramètres!$E70)*(AT$147-Paramètres!$E70-SUM(AT153:AT$165)) -> 0 | AU152: =(AU$147>Paramètres!$E70)*(AU$147-Paramètres!$E70-SUM(AU153:AU$165)) -> 0 | AV152: =(AV$147>Paramètres!$E70)*(AV$147-Paramètres!$E70-SUM(AV153:AV$165)) -> 0 | AW152: =(AW$147>Paramètres!$E70)*(AW$147-Paramètres!$E70-SUM(AW153:AW$165)) -> 0 | AX152: =(AX$147>Paramètres!$E70)*(AX$147-Paramètres!$E70-SUM(AX153:AX$165)) -> 0 | AY152: =(AY$147>Paramètres!$E70)*(AY$147-Paramètres!$E70-SUM(AY153:AY$165)) -> 0 | AZ152: =(AZ$147>Paramètres!$E70)*(AZ$147-Paramètres!$E70-SUM(AZ153:AZ$165)) -> 0 | BA152: =(BA$147>Paramètres!$E70)*(BA$147-Paramètres!$E70-SUM(BA153:BA$165)) -> 0 | BB152: =(BB$147>Paramètres!$E70)*(BB$147-Paramètres!$E70-SUM(BB153:BB$165)) -> 0 | BC152: =(BC$147>Paramètres!$E70)*(BC$147-Paramètres!$E70-SUM(BC153:BC$165)) -> 0 | BD152: =(BD$147>Paramètres!$E70)*(BD$147-Paramètres!$E70-SUM(BD153:BD$165)) -> 0
